Workbook

Sheet StudentData
A1: Updated On26/04/2015 | M1: LEFT | N1: At-Patdi,Ta-Dasada,Dist-Surendranagar, Pincode-382765 | O1: (Ph) 02757-227001,M-9427045919 | AL1: COM
A2: SHREE SURAJMALJI HIGHSCHOOL PATDI
A3: AT-PATDI,DIST-SURENDRANAGAR | G3: PHONE-02757227001 | I3: YEAR 2017-18
O4: =I3 -> YEAR 2017-18
N5: Enter Data Below
N6: ENTER NAME OF SCHOOL | O6: Surajmalji Highschool Patdi
N7: ENTER STD | O7: 9
N8: ENTER CLASS | O8: A
A9: Sr. No. | B9: Roll No. | C9: STUDENT NAME | G9: left After 1st sem | H9: જી.આર.નં | I9: B.Date | J9: com/dairy | K9: હાજરી | L9: Handicape | N9: CLASS TEACHER | O9: M.V.PARMAR
M10: Girl | N10: Total Student(SEM1) | O10: =COUNT(A11:A154) -> 65
A11: 1 | B11: 1 | C11: DESAI RUSHI DIPAKKUMAR | H11: 15151 | I11: 2003-05-16 | J11: COM | N11: Total Student(SEM2) | O11: =(O10)-(COUNTIF(G11:G154,"LEFT")) -> 64
A12: 2 | B12: 2 | C12: SHRIMALI UPENDRA MUKESHBHAI | H12: 15152 | I12: 2002-09-28 | J12: COM | N12: NAME OF SUBJECT | O12: TEACHER NAME
A13: 3 | B13: 3 | C13: CHAUHAN AEZADBHAI AKBARBHAI | H13: 15153 | I13: 2002-10-09 | J13: COM | N13: GUJARATI | O13: S.B.MAKWANA
A14: 4 | B14: 4 | C14: PALIYA JAYKUMAR HARESHBHAI | H14: 15154 | I14: 2003-07-14 | J14: COM | N14: ENGLISH | O14: M.V.PARMAR
A15: 5 | B15: 5 | C15: GHANCHI RUMIRZAFAR SHABBIRBHAI | H15: 15155 | I15: 2003-02-20 | J15: COM | N15: HINDI | O15: U.B.SATHAVARA
A16: 6 | B16: 6 | C16: GHANCHI MAHMADSAHEJAN SAKIRBHAI | H16: 15156 | I16: 2003-07-06 | J16: COM | N16: SANSKRIT | O16: S.B.JOSHI
A17: 7 | B17: 7 | C17: PATADIYA SAHILBHAI HIRABHAI | H17: 15157 | I17: 2003-05-07 | J17: COM | N17: MATHS | O17: D.V.PATEL
A18: 8 | B18: 8 | C18: RABARI MAHESHBHAI KANUBHAI | H18: 15158 | I18: 2002-01-24 | J18: COM | N18: SCI&TECH | O18: V.H.BHORANIYA
A19: 9 | B19: 9 | C19: RUDECHA JATINKUMAR DINESHKUMAR | H19: 15159 | I19: 2003-07-15 | J19: COM | N19: SOC.SCI | O19: P.D.KHAMBHALA
A20: 10 | B20: 10 | C20: SIPAI NAIM HAYATBHAI | H20: 15160 | I20: 2003-05-29 | J20: COM | N20: PT | O20: B.M.CHAUDHRY
A21: 11 | B21: 11 | C21: BABARIYA DASHARATHBHAI GOPALBHAI | H21: 15161 | I21: 2001-06-01 | J21: COM | N21: DRAW | O21: S.C.DESAI
A22: 12 | B22: 12 | C22: THAKOR DARSHAN CHELAJI | H22: 15162 | I22: 2002-08-14 | J22: COM | N22: COM | O22: G.K.GURJAR
A23: 13 | B23: 13 | C23: SIPAI FAIZAN DILAVARBHAI | H23: 15163 | I23: 2000-12-09 | J23: COM | N23: DAI
A24: 14 | B24: 14 | C24: RATHOD MHAVESHKUMAR JAGDISHBHAI | H24: 15164 | I24: 2003-09-18 | J24: COM
A25: 15 | B25: 15 | C25: RABARI BHAILALBHAI DEVRAJBHAI | H25: 15165 | I25: 2002-09-13 | J25: COM | N25: First Test Result Date | O25: 2016-10-19
A26: 16 | B26: 16 | C26: CHAVDA BADALBHAI MANUBHAI | H26: 15166 | I26: 2002-12-09 | J26: COM | N26: Second Test Result Date
A27: 17 | B27: 17 | C27: RATHOD CHIRAGKUMAR MAHENDRABHAI | H27: 15167 | I27: 2003-04-02 | J27: COM | N27: Date of Re-Opening School
A28: 18 | B28: 18 | C28: VALMIKI AMRUTBHAI ISHWARBHAI | H28: 15168 | I28: 2002-07-03 | J28: COM
A29: 19 | B29: 19 | C29: KOLA SAHAR JAYMALBHAI | H29: 15169 | I29: 2002-09-10 | J29: COM | N29: Click hear for Mark Enry Sem1 | O29: Print Sem 1 All Sheet
A30: 20 | B30: 20 | C30: GOHIL VIJAYBHAI ARJUNBHAI | H30: 15274 | I30: 2003-01-26 | J30: COM
A31: 21 | B31: 21 | C31: MALEK SUFIYAN NURMAHAMMADBHAI | H31: 15171 | I31: 2003-07-31 | J31: COM
A32: 22 | B32: 22 | C32: DALVADI DHANSHUKHBHAI NITINBHAI | H32: 15172 | I32: 2002-12-25 | J32: COM
A33: 23 | B33: 23 | C33: PARMAR RAVIRAJ RAMNIKBHAI | H33: 15173 | I33: 2002-10-10 | J33: COM
A34: 24 | B34: 24 | C34: ANSHARI NILESH VISHRAMBHAI | H34: 15174 | I34: 2003-06-21 | J34: COM
A35: 25 | B35: 25 | C35: MULADIYA JIVAN ASHOKBHAI | H35: 15175 | I35: 2000-04-09 | O35: Print Sem 1 Student Marksheet
A36: 26 | B36: 26 | C36: CHAVDA AJITBHAI HIRABHAI | H36: 15176 | I36: 2002-11-19
A37: 27 | B37: 27 | C37: VAGHRI MAHESH MAHADEVBHAI | H37: 15177 | I37: 2001-05-04
A38: 28 | B38: 28 | C38: KHALIFA JAHIDBHAI SALIMBHAI | H38: 15178 | I38: 2003-05-30
A39: 29 | B39: 29 | C39: MALEK NASHIRBHAI JIVANKHANJI | H39: 15179 | I39: 2003-06-17
A40: 30 | B40: 30 | C40: GALIYA VIJAYBHAI MASHRUBHAI | H40: 15180 | I40: 2002-09-22 | N40: Click hear for Mark Enry Sem2 | O40: Click hear for Generate Sem2
A41: 31 | B41: 31 | C41: RABARI RAKESHBHAI JAYMALBHAI | H41: 15181 | I41: 2002-09-20
A42: 32 | B42: 32 | C42: BHIMANI AXAYKUMAR HASMUKHBHAI | H42: 15182 | I42: 2002-01-19
A43: 33 | B43: 33 | C43: SHEKH AYAZ BABUBHAI | H43: 15183 | I43: 2003-05-16
A44: 34 | B44: 34 | C44: TAKOR MEHULKUMAR RAJESHBHAI | H44: 15184 | I44: 2002-07-18
A45: 35 | B45: 35 | C45: KUDECHA SURESHBHAI SOMABHAI | H45: 15185 | I45: 2000-03-22 | O45: Click hear for Generate Annual
A46: 36 | B46: 36 | C46: CHAUHAN HARDIKKUMAR MANUBHAI | H46: 15186 | I46: 2002-08-08
A47: 37 | B47: 37 | C47: SOLANKI SAMIRBHAI DILAWARBHAI | H47: 15187 | I47: 2002-03-06
A48: 38 | B48: 38 | C48: THAKOR VISHALBHAI RAMESHBHAI | H48: 15188 | I48: 2002-08-12
A49: 39 | B49: 39 | C49: THAKOR JIGNESHBHAI PRAHLADBHAI | H49: 15189 | I49: 2000-11-15
A50: 40 | B50: 40 | C50: RABARI VISHALKUMAR DEVENBHAI | H50: 15190 | I50: 2003-06-01 | O50: Print Sem2All Sheet
A51: 41 | B51: 41 | C51: BHIMANI CHETANKUMAR NAVGHANBHAI | H51: 15191 | I51: 2002-12-31
A52: 42 | B52: 42 | C52: PARMAR AARYANSINH RAJENDRASINH | H52: 15192 | I52: 2003-08-18
A53: 43 | B53: 43 | C53: SADHU JAYESH JANAKDAS | H53: 15193 | I53: 2003-06-16
A54: 44 | B54: 44 | C54: THAKOR AMITBHAI BABUBHAI | H54: 15194 | I54: 2001-03-01
A55: 45 | B55: 45 | C55: PANCHANI CHETAN SURESHBHAI | H55: 15195 | I55: 2003-06-22 | O55: Print Student Marksheet
A56: 46 | B56: 46 | C56: RATHOD HIREN HARJIBHAI | H56: 15196 | I56: 2003-06-04
A57: 47 | B57: 47 | C57: SAVDHARIYA BHARATBHAI KALUBHAI | H57: 15197 | I57: 2002-03-18
A58: 48 | B58: 48 | C58: JARVALIYA SANJAYKUMAR JAYANTIBHAI | H58: 15198 | I58: 2002-09-13
A59: 49 | B59: 49 | C59: PATADIYA MANTRAKUMAR NITESHKUMAR | H59: 15199 | I59: 2003-08-01
A60: 50 | B60: 50 | C60: PATADIYA KANAIYALAL DILIPBHAI | H60: 15200 | I60: 2003-01-16 | O60: Print_Indicator_Sheets
A61: 51 | B61: 51 | C61: DEDANIYA BHARATBHAI KANJIBHAI | H61: 15201 | I61: 2002-10-12
A62: 52 | B62: 52 | C62: VIRUGAMI HITESHBHAI LAKHUBHAI | H62: 15202 | I62: 2002-06-01
A63: 53 | B63: 53 | C63: SURELA ANANDBHAI RAMESHBHAI | H63: 15203 | I63: 2000-10-19
A64: 54 | B64: 54 | C64: BHIMANI CHIRAGBHAI MANGABHAI | H64: 15204 | I64: 2002-10-20
A65: 55 | B65: 55 | C65: DHAMECHA NILESHBHAI VISHNUBHAI | H65: 15205 | I65: 2003-06-13
A66: 56 | B66: 56 | C66: THAKOR CHONDABHAI DILIPBHAI | H66: 15206 | I66: 2001-10-30
A67: 57 | B67: 57 | C67: RANIVADIYA VISHALKUMAR ASMIKBHAI | H67: 15207 | I67: 2003-12-11
A68: 58 | B68: 58 | C68: VAIRAGI DEVENDRAKUMAR ASHOKBHAI | H68: 15208 | I68: 2002-02-21
A69: 59 | B69: 59 | C69: JAMBUKIYA KARTIKBHAI RANJITBHAI | H69: 15209 | I69: 2002-10-26
A70: 60 | B70: 60 | C70: DEVIPUJAK SUNIL DANUBHAI | H70: 15210 | I70: 2002-03-05
A71: 61 | B71: 62 | C71: KOLA BHAGVANBHAI BHIMABHAI | H71: 15212 | I71: 2001-04-09
A72: 62 | B72: 63 | C72: KOLADARA HITESHKUMAR NARAYANBHAI | G72: LEFT | H72: 15213 | I72: 2002-02-06
A73: 63 | B73: 64 | C73: VANAPARA ALPESH JORUBHAI | H73: 15214 | I73: 2002-11-18
A74: 64 | B74: 65 | C74: MAKWANA ANKITKUMAR KALUBHAI | H74: 15215 | I74: 2003-02-24
A75: 65 | B75: 73 | C75: BAROT MANAV PRATAPBHAI | H75: 15501 | I75: 2002-10-05

Sheet SEM1MARKENTRY
A1: =StudentData!O10 -> 65 | B1: FIRST ANNUAL EXAMINATION | F1: =StudentData!$A$2 -> SHREE SURAJMALJI HIGHSCHOOL PATDI | T1: ="STD-"&$B$3 -> STD-9A | V1: =StudentData!$A$2 -> SHREE SURAJMALJI HIGHSCHOOL PATDI | AJ1: ="STD-"&$B$3 -> STD-9A | AL1: =StudentData!$A$2 -> SHREE SURAJMALJI HIGHSCHOOL PATDI | AZ1: ="STD-"&$B$3 -> STD-9A | BB1: =StudentData!$A$2 -> SHREE SURAJMALJI HIGHSCHOOL PATDI | BP1: ="STD-"&$B$3 -> STD-9A | BR1: =StudentData!$A$2 -> SHREE SURAJMALJI HIGHSCHOOL PATDI | CF1: ="STD-"&$B$3 -> STD-9A | CH1: =StudentData!$A$2 -> SHREE SURAJMALJI HIGHSCHOOL PATDI | CV1: ="STD-"&$B$3 -> STD-9A | CX1: =StudentData!$A$2 -> SHREE SURAJMALJI HIGHSCHOOL PATDI | DL1: ="STD-"&$B$3 -> STD-9A | DN1: =StudentData!$A$2 -> SHREE SURAJMALJI HIGHSCHOOL PATDI | EB1: ="STD-"&$B$3 -> STD-9A | EE1: =StudentData!$A$2 -> SHREE SURAJMALJI HIGHSCHOOL PATDI | ES1: ="STD-"&$B$3 -> STD-9A | EV1: =StudentData!$A$2 -> SHREE SURAJMALJI HIGHSCHOOL PATDI | FJ1: ="STD-"&$B$3 -> STD-9A | FM1: =StudentData!$A$2 -> SHREE SURAJMALJI HIGHSCHOOL PATDI | GA1: ="STD-"&$B$3 -> STD-9A
B3: =StudentData!O7&StudentData!O8 -> 9A | D3: =StudentData!I3 -> YEAR 2017-18 | F3: ="SUB-"&StudentData!$N13 -> SUB-GUJARATI | M3: =StudentData!$O13 -> S.B.MAKWANA | T3: First Annual Exam | V3: ="SUB-"&StudentData!$N14 -> SUB-ENGLISH | AC3: =StudentData!$O14 -> M.V.PARMAR | AJ3: First Annual Exam | AL3: ="SUB-"&StudentData!$N15 -> SUB-HINDI | AS3: =StudentData!$O15 -> U.B.SATHAVARA | AZ3: First Annual Exam | BB3: ="SUB-"&StudentData!$N16 -> SUB-SANSKRIT | BI3: =StudentData!$O16 -> S.B.JOSHI | BP3: First Annual Exam | BR3: ="SUB-"&StudentData!$N17 -> SUB-MATHS | BY3: =StudentData!$O17 -> D.V.PATEL | CF3: First Annual Exam | CH3: ="SUB-"&StudentData!$N18 -> SUB-SCI&TECH | CO3: =StudentData!$O18 -> V.H.BHORANIYA | CV3: First Annual Exam | CX3: ="SUB-"&StudentData!$N19 -> SUB-SOC.SCI | DE3: =StudentData!$O19 -> P.D.KHAMBHALA | DL3: First Annual Exam | DN3: ="SUB-"&StudentData!$N20 -> SUB-PT | DU3: =StudentData!$O20 -> B.M.CHAUDHRY | EB3: First Annual Exam | EE3: ="SUB-"&StudentData!$N21 -> SUB-DRAW | EL3: =StudentData!$O21 -> S.C.DESAI | ES3: First Annual Exam | EV3: ="SUB-"&StudentData!$N22 -> SUB-COM | FC3: =StudentData!$O22 -> G.K.GURJAR | FJ3: First Annual Exam | FM3: ="SUB-"&StudentData!$N23 -> SUB-DAI | FT3: =StudentData!$O23 -> 0 | GA3: First Annual Exam
B7: SR NO | C7: ROLL NO | D7: STUDENT NAME | F7: FORMATIVE ASSASMENT 1 | M7: FORMATIVE ASSASMENT 1 | T7: SA1 | V7: FORMATIVE ASSASMENT 1 | AC7: FORMATIVE ASSASMENT 1 | AJ7: SA1 | AL7: FORMATIVE ASSASMENT 1 | AS7: FORMATIVE ASSASMENT 1 | AZ7: SA1 | BB7: FORMATIVE ASSASMENT 1 | BI7: FORMATIVE ASSASMENT 1 | BP7: SA1 | BR7: FORMATIVE ASSASMENT 1 | BY7: FORMATIVE ASSASMENT 1 | CF7: SA1 | CH7: FORMATIVE ASSASMENT 1 | CO7: FORMATIVE ASSASMENT 1 | CV7: SA1 | CX7: FORMATIVE ASSASMENT 1 | DE7: FORMATIVE ASSASMENT 1 | DL7: SA1 | DN7: FORMATIVE ASSASMENT 1 | DU7: FORMATIVE ASSASMENT 1 | EB7: Agregate Marks | EE7: FORMATIVE ASSASMENT 1 | EL7: FORMATIVE ASSASMENT 1 | ES7: Agregate Marks | EV7: FORMATIVE ASSASMENT 1 | FC7: FORMATIVE ASSASMENT 1 | FJ7: Agregate Marks | FM7: FORMATIVE ASSASMENT 1 | FT7: FORMATIVE ASSASMENT 1 | GA7: Agregate Marks
F8: FA ACTIVITY 1 | G8: FA ACTIVITY 2 | H8: FA ACTIVITY 3 | I8: FA ACTIVITY 4 | J8: FA ACTIVITY 5 | K8: Total Of FA1 | L8: FA1 Converted 10 Marks | M8: FA ACTIVITY 6 | N8: FA ACTIVITY 7 | O8: FA ACTIVITY 8 | P8: FA ACTIVITY 9 | Q8: FA ACTIVITY 10 | R8: Total Of FA2 | S8: FA2 Converted 10 Marks | T8: First Annual Examination`s Mark Obtained | V8: FA ACTIVITY 1 | W8: FA ACTIVITY 2 | X8: FA ACTIVITY 3 | Y8: FA ACTIVITY 4 | Z8: FA ACTIVITY 5 | AA8: Total Of FA1 | AB8: FA1 Converted 10 Marks | AC8: FA ACTIVITY 6 | AD8: FA ACTIVITY 7 | AE8: FA ACTIVITY 8 | AF8: FA ACTIVITY 9 | AG8: FA ACTIVITY 10 | AH8: Total Of FA2 | AI8: FA2 Converted 10 Marks | AJ8: First Annual Examination`s Mark Obtained | AL8: FA ACTIVITY 1 | AM8: FA ACTIVITY 2 | AN8: FA ACTIVITY 3 | AO8: FA ACTIVITY 4 | AP8: FA ACTIVITY 5 | AQ8: Total Of FA1 | AR8: FA1 Converted 10 Marks | AS8: FA ACTIVITY 6 | AT8: FA ACTIVITY 7 | AU8: FA ACTIVITY 8 | AV8: FA ACTIVITY 9 | AW8: FA ACTIVITY 10 | AX8: Total Of FA2 | AY8: FA2 Converted 10 Marks | AZ8: First Annual Examination`s Mark Obtained | BB8: FA ACTIVITY 1 | BC8: FA ACTIVITY 2 | BD8: FA ACTIVITY 3 | BE8: FA ACTIVITY 4 | BF8: FA ACTIVITY 5 | BG8: Total Of FA1 | BH8: FA1 Converted 10 Marks | BI8: FA ACTIVITY 6 | BJ8: FA ACTIVITY 7 | BK8: FA ACTIVITY 8 | BL8: FA ACTIVITY 9 | BM8: FA ACTIVITY 10 | BN8: Total Of FA2 | BO8: FA2 Converted 10 Marks | BP8: First Annual Examination`s Mark Obtained | BR8: FA ACTIVITY 1 | BS8: FA ACTIVITY 2 | BT8: FA ACTIVITY 3 | BU8: FA ACTIVITY 4 | BV8: FA ACTIVITY 5 | BW8: Total Of FA1 | BX8: FA1 Converted 10 Marks | BY8: FA ACTIVITY 6 | BZ8: FA ACTIVITY 7 | CA8: FA ACTIVITY 8 | CB8: FA ACTIVITY 9 | CC8: FA ACTIVITY 10 | CD8: Total Of FA2 | CE8: FA2 Converted 10 Marks | CF8: First Annual Examination`s Mark Obtained | CH8: FA ACTIVITY 1 | CI8: FA ACTIVITY 2 | CJ8: FA ACTIVITY 3 | CK8: FA ACTIVITY 4 | CL8: FA ACTIVITY 5 | CM8: Total Of FA1 | CN8: FA1 Converted 10 Marks | CO8: FA ACTIVITY 6 | CP8: FA ACTIVITY 7 | CQ8: FA ACTIVITY 8 | CR8: FA ACTIVITY 9 | CS8: FA ACTIVITY 10 | CT8: Total Of FA2 | CU8: FA2 Converted 10 Marks | CV8: First Annual Examination`s Mark Obtained | CX8: FA ACTIVITY 1 | CY8: FA ACTIVITY 2 | CZ8: FA ACTIVITY 3 | DA8: FA ACTIVITY 4 | DB8: FA ACTIVITY 5 | DC8: Total Of FA1 | DD8: FA1 Converted 10 Marks | DE8: FA ACTIVITY 6 | DF8: FA ACTIVITY 7 | DG8: FA ACTIVITY 8 | DH8: FA ACTIVITY 9 | DI8: FA ACTIVITY 10 | DJ8: Total Of FA2 | DK8: FA2 Converted 10 Marks | DL8: First Annual Examination`s Mark Obtained | DN8: FA ACTIVITY 1 | DO8: FA ACTIVITY 2 | DP8: FA ACTIVITY 3 | DQ8: FA ACTIVITY 4 | DR8: FA ACTIVITY 5 | DS8: Total Of FA1 | DT8: FA1 Converted 30 Marks | DU8: FA ACTIVITY 6 | DV8: FA ACTIVITY 7 | DW8: FA ACTIVITY 8 | DX8: FA ACTIVITY 9 | DY8: FA ACTIVITY 10 | DZ8: Total Of FA2 | EA8: FA2 Converted 30 Marks | EB8: SA 1 Marks | EC8: Total | ED8: Grade | EE8: FA ACTIVITY 1 | EF8: FA ACTIVITY 2 | EG8: FA ACTIVITY 3 | EH8: FA ACTIVITY 4 | EI8: FA ACTIVITY 5 | EJ8: Total Of FA1 | EK8: FA1 Converted 30 Marks | EL8: FA ACTIVITY 6 | EM8: FA ACTIVITY 7 | EN8: FA ACTIVITY 8 | EO8: FA ACTIVITY 9 | EP8: FA ACTIVITY 10 | EQ8: Total Of FA2 | ER8: FA2 Converted 30 Marks | ES8: SA 1 Marks | ET8: Total | EU8: Grade | EV8: FA ACTIVITY 1 | EW8: FA ACTIVITY 2 | EX8: FA ACTIVITY 3 | EY8: FA ACTIVITY 4 | EZ8: FA ACTIVITY 5 | FA8: Total Of FA1 | FB8: FA1 Converted 30 Marks | FC8: FA ACTIVITY 6 | FD8: FA ACTIVITY 7 | FE8: FA ACTIVITY 8 | FF8: FA ACTIVITY 9 | FG8: FA ACTIVITY 10 | FH8: Total Of FA2 | FI8: FA2 Converted 30 Marks | FJ8: SA 1 Marks | FK8: Total | FL8: Grade | FM8: FA ACTIVITY 1 | FN8: FA ACTIVITY 2 | FO8: FA ACTIVITY 3 | FP8: FA ACTIVITY 4 | FQ8: FA ACTIVITY 5 | FR8: Total Of FA1 | FS8: FA1 Converted 30 Marks | FT8: FA ACTIVITY 6 | FU8: FA ACTIVITY 7 | FV8: FA ACTIVITY 8 | FW8: FA ACTIVITY 9 | FX8: FA ACTIVITY 10 | FY8: Total Of FA2 | FZ8: FA2 Converted 30 Marks | GA8: SA 1 Marks | GB8: Total | GC8: Grade
F9: 10 | G9: 10 | H9: 10 | I9: 10 | J9: 10 | K9: =IF(AND(F9="Ab",G9="Ab",H9="Ab",I9="Ab",J9="Ab"),"Ab",SUM(F9:J9)) -> 50 | L9: =IF(K9="","",IF(K9="Ab","Ab",ROUND(SUM(F9:J9)*10/K$9,0))) -> 10 | M9: 10 | N9: 10 | O9: 10 | P9: 10 | Q9: 10 | R9: =IF(AND(M9="Ab",N9="Ab",O9="Ab",P9="Ab",Q9="Ab"),"Ab",SUM(M9:Q9)) -> 50 | S9: =IF(R9="","",IF(R9="Ab","Ab",ROUND(SUM(M9:Q9)*10/R$9,0))) -> 10 | T9: 60 | U9: =IF(T9="","",IF(T9="Ab","Ab",ROUNDUP(T9/2,))) -> 30 | V9: 10 | W9: 10 | X9: 10 | Y9: 10 | Z9: 10 | AA9: =IF(AND(V9="Ab",W9="Ab",X9="Ab",Y9="Ab",Z9="Ab"),"Ab",SUM(V9:Z9)) -> 50 | AB9: =IF(AA9="","",IF(AA9="Ab","Ab",ROUND(SUM(V9:Z9)*10/AA$9,0))) -> 10 | AC9: 10 | AD9: 10 | AE9: 10 | AF9: 10 | AG9: 10 | AH9: =IF(AND(AC9="Ab",AD9="Ab",AE9="Ab",AF9="Ab",AG9="Ab"),"Ab",SUM(AC9:AG9)) -> 50 | AI9: =IF(AH9="","",IF(AH9="Ab","Ab",ROUND(SUM(AC9:AG9)*10/AH$9,0))) -> 10 | AJ9: 60 | AK9: =IF(AJ9="","",IF(AJ9="Ab","Ab",ROUNDUP(AJ9/2,))) -> 30 | AL9: 10 | AM9: 10 | AN9: 10 | AO9: 10 | AP9: 10 | AQ9: =IF(AND(AL9="Ab",AM9="Ab",AN9="Ab",AO9="Ab",AP9="Ab"),"Ab",SUM(AL9:AP9)) -> 50 | AR9: =IF(AQ9="","",IF(AQ9="Ab","Ab",ROUND(SUM(AL9:AP9)*10/AQ$9,0))) -> 10 | AS9: 10 | AT9: 10 | AU9: 10 | AV9: 10 | AW9: 10 | AX9: =IF(AND(AS9="Ab",AT9="Ab",AU9="Ab",AV9="Ab",AW9="Ab"),"Ab",SUM(AS9:AW9)) -> 50 | AY9: =IF(AX9="","",IF(AX9="Ab","Ab",ROUND(SUM(AS9:AW9)*10/AX$9,0))) -> 10 | AZ9: 60 | BA9: =IF(AZ9="","",IF(AZ9="Ab","Ab",ROUNDUP(AZ9/2,))) -> 30 | BB9: 10 | BC9: 10 | BD9: 10 | BE9: 10 | BF9: 10 | BG9: =IF(AND(BB9="Ab",BC9="Ab",BD9="Ab",BE9="Ab",BF9="Ab"),"Ab",SUM(BB9:BF9)) -> 50 | BH9: =IF(BG9="","",IF(BG9="Ab","Ab",ROUND(SUM(BB9:BF9)*10/BG$9,0))) -> 10 | BI9: 10 | BJ9: 10 | BK9: 10 | BL9: 10 | BM9: 10 | BN9: =IF(AND(BI9="Ab",BJ9="Ab",BK9="Ab",BL9="Ab",BM9="Ab"),"Ab",SUM(BI9:BM9)) -> 50 | BO9: =IF(BN9="","",IF(BN9="Ab","Ab",ROUND(SUM(BI9:BM9)*10/BN$9,0))) -> 10 | BP9: 60 | BQ9: =IF(BP9="","",IF(BP9="Ab","Ab",ROUNDUP(BP9/2,))) -> 30 | BR9: 10 | BS9: 10 | BT9: 10 | BU9: 10 | BV9: 10 | BW9: =IF(AND(BR9="Ab",BS9="Ab",BT9="Ab",BU9="Ab",BV9="Ab"),"Ab",SUM(BR9:BV9)) -> 50 | BX9: =IF(BW9="","",IF(BW9="Ab","Ab",ROUND(SUM(BR9:BV9)*10/BW$9,0))) -> 10 | BY9: 10 | BZ9: 10 | CA9: 10 | CB9: 10 | CC9: 10 | CD9: =IF(AND(BY9="Ab",BZ9="Ab",CA9="Ab",CB9="Ab",CC9="Ab"),"Ab",SUM(BY9:CC9)) -> 50 | CE9: =IF(CD9="","",IF(CD9="Ab","Ab",ROUND(SUM(BY9:CC9)*10/CD$9,0))) -> 10 | CF9: 60 | CG9: =IF(CF9="","",IF(CF9="Ab","Ab",ROUNDUP(CF9/2,))) -> 30 | CH9: 10 | CI9: 10 | CJ9: 10 | CK9: 10 | CL9: 10 | CM9: =IF(AND(CH9="Ab",CI9="Ab",CJ9="Ab",CK9="Ab",CL9="Ab"),"Ab",SUM(CH9:CL9)) -> 50 | CN9: =IF(CM9="","",IF(CM9="Ab","Ab",ROUND(SUM(CH9:CL9)*10/CM$9,0))) -> 10 | CO9: 10 | CP9: 10 | CQ9: 10 | CR9: 10 | CS9: 10 | CT9: =IF(AND(CO9="Ab",CP9="Ab",CQ9="Ab",CR9="Ab",CS9="Ab"),"Ab",SUM(CO9:CS9)) -> 50 | CU9: =IF(CT9="","",IF(CT9="Ab","Ab",ROUND(SUM(CO9:CS9)*10/CT$9,0))) -> 10 | CV9: 60 | CW9: =IF(CV9="","",IF(CV9="Ab","Ab",ROUNDUP(CV9/2,))) -> 30 | CX9: 10 | CY9: 10 | CZ9: 10 | DA9: 10 | DB9: 10 | DC9: =IF(AND(CX9="Ab",CY9="Ab",CZ9="Ab",DA9="Ab",DB9="Ab"),"Ab",SUM(CX9:DB9)) -> 50 | DD9: =IF(DC9="","",IF(DC9="Ab","Ab",ROUND(SUM(CX9:DB9)*10/DC$9,0))) -> 10 | DE9: 10 | DF9: 10 | DG9: 10 | DH9: 10 | DI9: 10 | DJ9: =IF(AND(DE9="Ab",DF9="Ab",DG9="Ab",DH9="Ab",DI9="Ab"),"Ab",SUM(DE9:DI9)) -> 50 | DK9: =IF(DJ9="","",IF(DJ9="Ab","Ab",ROUND(SUM(DE9:DI9)*10/DJ$9,0))) -> 10 | DL9: 60 | DM9: =IF(DL9="","",IF(DL9="Ab","Ab",ROUNDUP(DL9/2,))) -> 30 | DN9: 10 | DO9: 10 | DP9: 10 | DQ9: 10 | DR9: 10 | DS9: =IF(AND(DN9="Ab",DO9="Ab",DP9="Ab",DQ9="Ab",DR9="Ab"),"Ab",SUM(DN9:DR9)) -> 50 | DT9: =IF(DS9="","",IF(DS9="Ab","Ab",ROUND(SUM(DN9:DR9)*30/DS$9,0))) -> 30 | DU9: 10 | DV9: 10 | DW9: 10 | DX9: 10 | DY9: 10 | DZ9: =IF(AND(DU9="Ab",DV9="Ab",DW9="Ab",DX9="Ab",DY9="Ab"),"Ab",SUM(DU9:DY9)) -> 50 | EA9: =IF(DZ9="","",IF(DZ9="Ab","Ab",ROUND(SUM(DU9:DY9)*30/DZ$9,0))) -> 30 | EB9: 40 | EC9: =IF(AND(DT9="",EA9="",EB9=""),"",IF(AND(DT9="Ab",EA9="Ab",EB9="Ab"),"Ab",SUM(DT9,EA9,EB9))) -> 100 | EE9: 10 | EF9: 10 | EG9: 10 | EH9: 10 | EI9: 10 | EJ9: =IF(AND(EE9="Ab",EF9="Ab",EG9="Ab",EH9="Ab",EI9="Ab"),"Ab",SUM(EE9:EI9)) -> 50 | EK9: =IF(EJ9="","",IF(EJ9="Ab","Ab",ROUND(SUM(EE9:EI9)*30/EJ$9,0))) -> 30 | EL9: 10 | EM9: 10 | EN9: 10 | EO9: 10 | EP9: 10 | EQ9: =IF(AND(EL9="Ab",EM9="Ab",EN9="Ab",EO9="Ab",EP9="Ab"),"Ab",SUM(EL9:EP9)) -> 50 | ER9: =IF(EQ9="","",IF(EQ9="Ab","Ab",ROUND(SUM(EL9:EP9)*30/EQ$9,0))) -> 30 | ES9: 40 | ET9: =IF(AND(EK9="",ER9="",ES9=""),"",IF(AND(EK9="Ab",ER9="Ab",ES9="Ab"),"Ab",SUM(EK9,ER9,ES9))) -> 100 | EV9: 10 | EW9: 10 | EX9: 10 | EY9: 10 | EZ9: 10 | FA9: =IF(AND(EV9="Ab",EW9="Ab",EX9="Ab",EY9="Ab",EZ9="Ab"),"Ab",SUM(EV9:EZ9)) -> 50 | FB9: =IF(FA9="","",IF(FA9="Ab","Ab",ROUND(SUM(EV9:EZ9)*30/FA$9,0))) -> 30 | FC9: 10 | FD9: 10 | FE9: 10 | FF9: 10 | FG9: 10 | FH9: =IF(AND(FC9="Ab",FD9="Ab",FE9="Ab",FF9="Ab",FG9="Ab"),"Ab",SUM(FC9:FG9)) -> 50 | FI9: =IF(FH9="","",IF(FH9="Ab","Ab",ROUND(SUM(FC9:FG9)*30/FH$9,0))) -> 30 | FJ9: 40 | FK9: =IF(AND(FB9="",FI9="",FJ9=""),"",IF(AND(FB9="Ab",FI9="Ab",FJ9="Ab"),"Ab",SUM(FB9,FI9,FJ9))) -> 100 | FM9: 10 | FN9: 10 | FO9: 10 | FP9: 10 | FQ9: 10 | FR9: =IF(AND(FM9="Ab",FN9="Ab",FO9="Ab",FP9="Ab",FQ9="Ab"),"Ab",SUM(FM9:FQ9)) -> 50 | FS9: =IF(FR9="","",IF(FR9="Ab","Ab",ROUND(SUM(FM9:FQ9)*30/FR$9,0))) -> 30 | FT9: 10 | FU9: 10 | FV9: 10 | FW9: 10 | FX9: 10 | FY9: =IF(AND(FT9="Ab",FU9="Ab",FV9="Ab",FW9="Ab",FX9="Ab"),"Ab",SUM(FT9:FX9)) -> 50 | FZ9: =IF(FY9="","",IF(FY9="Ab","Ab",ROUND(SUM(FT9:FX9)*30/FY$9,0))) -> 30 | GA9: 40 | GB9: =IF(AND(FS9="",FZ9="",GA9=""),"",IF(AND(FS9="Ab",FZ9="Ab",GA9="Ab"),"Ab",SUM(FS9,FZ9,GA9))) -> 100
B10: =IF(StudentData!A10="","",StudentData!A10) ->  | C10: =IF(StudentData!B10="","",StudentData!B10) ->  | D10: =IF(StudentData!C10="","",(LEFT(TRIM(CLEAN(StudentData!C10)),SEARCH(" ",TRIM(CLEAN(StudentData!C10)),SEARCH(" ",TRIM(CLEAN(StudentData!C10)),1)+1)))&" "&LEFT(RIGHT(StudentData!C10,LEN(StudentData!C10)-SEARCH(" ",StudentData!C10,SEARCH(" ",StudentData!C10,SEARCH(" ",StudentData!C10,1)+1)-1)),1)&".") ->  | E10: =IF(StudentData!G10="","",StudentData!G10) ->  | K10: =IF(AND(F10="",G10="",H10="",I10="",J10=""),"",(IF(AND(F10="Ab",G10="Ab",H10="Ab",I10="Ab",J10="Ab"),"Ab",SUM(F10:J10)))) ->  | L10: =IF(K10="","",IF(K10="Ab","Ab",ROUND(SUM(F10:J10)*10/K$9,0))) ->  | R10: =IF(AND(M10="",N10="",O10="",P10="",Q10=""),"",(IF(AND(M10="Ab",N10="Ab",O10="Ab",P10="Ab",Q10="Ab"),"Ab",SUM(M10:Q10)))) ->  | S10: =IF(R10="","",IF(R10="Ab","Ab",ROUND(SUM(M10:Q10)*10/R$9,0))) ->  | U10: =IF(T10="","",IF(T10="AB","Ab",ROUNDUP(T10/2,0))) ->  | AA10: =IF(AND(V10="",W10="",X10="",Y10="",Z10=""),"",(IF(AND(V10="Ab",W10="Ab",X10="Ab",Y10="Ab",Z10="Ab"),"Ab",SUM(V10:Z10)))) ->  | AB10: =IF(AA10="","",IF(AA10="Ab","Ab",ROUND(SUM(V10:Z10)*10/AA$9,0))) ->  | AH10: =IF(AND(AC10="",AD10="",AE10="",AF10="",AG10=""),"",(IF(AND(AC10="Ab",AD10="Ab",AE10="Ab",AF10="Ab",AG10="Ab"),"Ab",SUM(AC10:AG10)))) ->  | AI10: =IF(AH10="","",IF(AH10="Ab","Ab",ROUND(SUM(AC10:AG10)*10/AH$9,0))) ->  | AK10: =IF(AJ10="","",IF(AJ10="AB","Ab",ROUNDUP(AJ10/2,0))) ->  | AQ10: =IF(AND(AL10="",AM10="",AN10="",AO10="",AP10=""),"",(IF(AND(AL10="Ab",AM10="Ab",AN10="Ab",AO10="Ab",AP10="Ab"),"Ab",SUM(AL10:AP10)))) ->  | AR10: =IF(AQ10="","",IF(AQ10="Ab","Ab",ROUND(SUM(AL10:AP10)*10/AQ$9,0))) ->  | AX10: =IF(AND(AS10="",AT10="",AU10="",AV10="",AW10=""),"",(IF(AND(AS10="Ab",AT10="Ab",AU10="Ab",AV10="Ab",AW10="Ab"),"Ab",SUM(AS10:AW10)))) ->  | AY10: =IF(AX10="","",IF(AX10="Ab","Ab",ROUND(SUM(AS10:AW10)*10/AX$9,0))) ->  | BA10: =IF(AZ10="","",IF(AZ10="AB","Ab",ROUNDUP(AZ10/2,0))) ->  | BG10: =IF(AND(BB10="",BC10="",BD10="",BE10="",BF10=""),"",(IF(AND(BB10="Ab",BC10="Ab",BD10="Ab",BE10="Ab",BF10="Ab"),"Ab",SUM(BB10:BF10)))) ->  | BH10: =IF(BG10="","",IF(BG10="Ab","Ab",ROUND(SUM(BB10:BF10)*10/BG$9,0))) ->  | BN10: =IF(AND(BI10="",BJ10="",BK10="",BL10="",BM10=""),"",(IF(AND(BI10="Ab",BJ10="Ab",BK10="Ab",BL10="Ab",BM10="Ab"),"Ab",SUM(BI10:BM10)))) ->  | BO10: =IF(BN10="","",IF(BN10="Ab","Ab",ROUND(SUM(BI10:BM10)*10/BN$9,0))) ->  | BQ10: =IF(BP10="","",IF(BP10="AB","Ab",ROUNDUP(BP10/2,0))) ->  | BW10: =IF(AND(BR10="",BS10="",BT10="",BU10="",BV10=""),"",(IF(AND(BR10="Ab",BS10="Ab",BT10="Ab",BU10="Ab",BV10="Ab"),"Ab",SUM(BR10:BV10)))) ->  | BX10: =IF(BW10="","",IF(BW10="Ab","Ab",ROUND(SUM(BR10:BV10)*10/BW$9,0))) ->  | CD10: =IF(AND(BY10="",BZ10="",CA10="",CB10="",CC10=""),"",(IF(AND(BY10="Ab",BZ10="Ab",CA10="Ab",CB10="Ab",CC10="Ab"),"Ab",SUM(BY10:CC10)))) ->  | CE10: =IF(CD10="","",IF(CD10="Ab","Ab",ROUND(SUM(BY10:CC10)*10/CD$9,0))) ->  | CG10: =IF(CF10="","",IF(CF10="AB","Ab",ROUNDUP(CF10/2,0))) ->  | CM10: =IF(AND(CH10="",CI10="",CJ10="",CK10="",CL10=""),"",(IF(AND(CH10="Ab",CI10="Ab",CJ10="Ab",CK10="Ab",CL10="Ab"),"Ab",SUM(CH10:CL10)))) ->  | CN10: =IF(CM10="","",IF(CM10="Ab","Ab",ROUND(SUM(CH10:CL10)*10/CM$9,0))) ->  | CT10: =IF(AND(CO10="",CP10="",CQ10="",CR10="",CS10=""),"",(IF(AND(CO10="Ab",CP10="Ab",CQ10="Ab",CR10="Ab",CS10="Ab"),"Ab",SUM(CO10:CS10)))) ->  | CU10: =IF(CT10="","",IF(CT10="Ab","Ab",ROUND(SUM(CO10:CS10)*10/CT$9,0))) ->  | CW10: =IF(CV10="","",IF(CV10="AB","Ab",ROUNDUP(CV10/2,0))) ->  | DC10: =IF(AND(CX10="",CY10="",CZ10="",DA10="",DB10=""),"",(IF(AND(CX10="Ab",CY10="Ab",CZ10="Ab",DA10="Ab",DB10="Ab"),"Ab",SUM(CX10:DB10)))) ->  | DD10: =IF(DC10="","",IF(DC10="Ab","Ab",ROUND(SUM(CX10:DB10)*10/DC$9,0))) ->  | DJ10: =IF(AND(DE10="",DF10="",DG10="",DH10="",DI10=""),"",(IF(AND(DE10="Ab",DF10="Ab",DG10="Ab",DH10="Ab",DI10="Ab"),"Ab",SUM(DE10:DI10)))) ->  | DK10: =IF(DJ10="","",IF(DJ10="Ab","Ab",ROUND(SUM(DE10:DI10)*10/DJ$9,0))) ->  | DM10: =IF(DL10="","",IF(DL10="AB","Ab",ROUNDUP(DL10/2,0))) ->  | DS10: =IF(AND(DN10="",DO10="",DP10="",DQ10="",DR10=""),"",(IF(AND(DN10="Ab",DO10="Ab",DP10="Ab",DQ10="Ab",DR10="Ab"),"Ab",SUM(DN10:DR10)))) ->  | DT10: =IF(DS10="","",IF(DS10="Ab","Ab",ROUND(SUM(DN10:DR10)*30/DS$9,0))) ->  | DZ10: =IF(AND(DU10="",DV10="",DW10="",DX10="",DY10=""),"",(IF(AND(DU10="Ab",DV10="Ab",DW10="Ab",DX10="Ab",DY10="Ab"),"Ab",SUM(DU10:DY10)))) ->  | EA10: =IF(DZ10="","",IF(DZ10="Ab","Ab",ROUND(SUM(DU10:DY10)*30/DZ$9,0))) ->  | EC10: =IF(AND(DT10="",EA10="",EB10=""),"",IF(AND(DT10="Ab",EA10="Ab",EB10="Ab"),"Ab",SUM(DT10,EA10,EB10))) ->  | ED10: =IF(EC10="","",IF(EC10="Ab","Ab",IF(EC10>89,"A+",IF(EC10>74,"A",IF(EC10>59,"B+",IF(EC10>44,"B",IF(EC10>32,"C","E"))))))) ->  | EJ10: =IF(AND(EE10="",EF10="",EG10="",EH10="",EI10=""),"",(IF(AND(EE10="Ab",EF10="Ab",EG10="Ab",EH10="Ab",EI10="Ab"),"Ab",SUM(EE10:EI10)))) ->  | EK10: =IF(EJ10="","",IF(EJ10="Ab","Ab",ROUND(SUM(EE10:EI10)*30/EJ$9,0))) ->  | EQ10: =IF(AND(EL10="",EM10="",EN10="",EO10="",EP10=""),"",(IF(AND(EL10="Ab",EM10="Ab",EN10="Ab",EO10="Ab",EP10="Ab"),"Ab",SUM(EL10:EP10)))) ->  | ER10: =IF(EQ10="","",IF(EQ10="Ab","Ab",ROUND(SUM(EL10:EP10)*30/EQ$9,0))) ->  | ET10: =IF(AND(EK10="",ER10="",ES10=""),"",IF(AND(EK10="Ab",ER10="Ab",ES10="Ab"),"Ab",SUM(EK10,ER10,ES10))) ->  | EU10: =IF(ET10="","",IF(ET10="Ab","Ab",IF(ET10>89,"A+",IF(ET10>74,"A",IF(ET10>59,"B+",IF(ET10>44,"B",IF(ET10>32,"C","E"))))))) ->  | FA10: =IF(AND(EV10="",EW10="",EX10="",EY10="",EZ10=""),"",(IF(AND(EV10="Ab",EW10="Ab",EX10="Ab",EY10="Ab",EZ10="Ab"),"Ab",SUM(EV10:EZ10)))) ->  | FB10: =IF(FA10="","",IF(FA10="Ab","Ab",ROUND(SUM(EV10:EZ10)*30/FA$9,0))) ->  | FH10: =IF(AND(FC10="",FD10="",FE10="",FF10="",FG10=""),"",(IF(AND(FC10="Ab",FD10="Ab",FE10="Ab",FF10="Ab",FG10="Ab"),"Ab",SUM(FC10:FG10)))) ->  | FI10: =IF(FH10="","",IF(FH10="Ab","Ab",ROUND(SUM(FC10:FG10)*30/FH$9,0))) ->  | FK10: =IF(AND(FB10="",FI10="",FJ10=""),"",IF(AND(FB10="Ab",FI10="Ab",FJ10="Ab"),"Ab",SUM(FB10,FI10,FJ10))) ->  | FL10: =IF(FK10="","",IF(FK10="Ab","Ab",IF(FK10>89,"A+",IF(FK10>74,"A",IF(FK10>59,"B+",IF(FK10>44,"B",IF(FK10>32,"C","E"))))))) ->  | FR10: =IF(AND(FM10="",FN10="",FO10="",FP10="",FQ10=""),"",(IF(AND(FM10="Ab",FN10="Ab",FO10="Ab",FP10="Ab",FQ10="Ab"),"Ab",SUM(FM10:FQ10)))) ->  | FS10: =IF(FR10="","",IF(FR10="Ab","Ab",ROUND(SUM(FM10:FQ10)*30/FR$9,0))) ->  | FY10: =IF(AND(FT10="",FU10="",FV10="",FW10="",FX10=""),"",(IF(AND(FT10="Ab",FU10="Ab",FV10="Ab",FW10="Ab",FX10="Ab"),"Ab",SUM(FT10:FX10)))) ->  | FZ10: =IF(FY10="","",IF(FY10="Ab","Ab",ROUND(SUM(FT10:FX10)*30/FY$9,0))) ->  | GB10: =IF(AND(FS10="",FZ10="",GA10=""),"",IF(AND(FS10="Ab",FZ10="Ab",GA10="Ab"),"Ab",SUM(FS10,FZ10,GA10))) ->  | GC10: =IF(GB10="","",IF(GB10="Ab","Ab",IF(GB10>89,"A+",IF(GB10>74,"A",IF(GB10>59,"B+",IF(GB10>44,"B",IF(GB10>32,"C","E"))))))) -> 
B11: =IF(StudentData!A11="","",StudentData!A11) -> 1 | C11: =IF(StudentData!B11="","",StudentData!B11) -> 1 | D11: =IF(StudentData!C11="","",(LEFT(TRIM(CLEAN(StudentData!C11)),SEARCH(" ",TRIM(CLEAN(StudentData!C11)),SEARCH(" ",TRIM(CLEAN(StudentData!C11)),1)+1)))&" "&LEFT(RIGHT(StudentData!C11,LEN(StudentData!C11)-SEARCH(" ",StudentData!C11,SEARCH(" ",StudentData!C11,SEARCH(" ",StudentData!C11,1)+1)-1)),1)&".") -> DESAI RUSHI D. | E11: =IF(StudentData!G11="","",StudentData!G11) ->  | F11: 9 | G11: 9 | H11: 9 | I11: 8 | J11: 6 | K11: =IF(AND(F11="",G11="",H11="",I11="",J11=""),"",(IF(AND(F11="Ab",G11="Ab",H11="Ab",I11="Ab",J11="Ab"),"Ab",SUM(F11:J11)))) -> 41 | L11: =IF(K11="","",IF(K11="Ab","Ab",ROUND(SUM(F11:J11)*10/K$9,0))) -> 8 | M11: 9 | N11: 9 | O11: 9 | P11: 9 | Q11: 9 | R11: =IF(AND(M11="",N11="",O11="",P11="",Q11=""),"",(IF(AND(M11="Ab",N11="Ab",O11="Ab",P11="Ab",Q11="Ab"),"Ab",SUM(M11:Q11)))) -> 45 | S11: =IF(R11="","",IF(R11="Ab","Ab",ROUND(SUM(M11:Q11)*10/R$9,0))) -> 9 | T11: 41 | U11: =IF(T11="","",IF(T11="AB","Ab",ROUNDUP(T11/2,0))) -> 21 | V11: 9 | W11: 9 | X11: 8 | Y11: 9 | Z11: 9 | AA11: =IF(AND(V11="",W11="",X11="",Y11="",Z11=""),"",(IF(AND(V11="Ab",W11="Ab",X11="Ab",Y11="Ab",Z11="Ab"),"Ab",SUM(V11:Z11)))) -> 44 | AB11: =IF(AA11="","",IF(AA11="Ab","Ab",ROUND(SUM(V11:Z11)*10/AA$9,0))) -> 9 | AC11: 9 | AD11: 9 | AE11: 9 | AF11: 8 | AG11: 9 | AH11: =IF(AND(AC11="",AD11="",AE11="",AF11="",AG11=""),"",(IF(AND(AC11="Ab",AD11="Ab",AE11="Ab",AF11="Ab",AG11="Ab"),"Ab",SUM(AC11:AG11)))) -> 44 | AI11: =IF(AH11="","",IF(AH11="Ab","Ab",ROUND(SUM(AC11:AG11)*10/AH$9,0))) -> 9 | AJ11: 44 | AK11: =IF(AJ11="","",IF(AJ11="AB","Ab",ROUNDUP(AJ11/2,0))) -> 22 | AL11: 9 | AM11: 9 | AN11: 9 | AO11: 9 | AP11: 9 | AQ11: =IF(AND(AL11="",AM11="",AN11="",AO11="",AP11=""),"",(IF(AND(AL11="Ab",AM11="Ab",AN11="Ab",AO11="Ab",AP11="Ab"),"Ab",SUM(AL11:AP11)))) -> 45 | AR11: =IF(AQ11="","",IF(AQ11="Ab","Ab",ROUND(SUM(AL11:AP11)*10/AQ$9,0))) -> 9 | AS11: 4 | AT11: 4 | AU11: 9 | AV11: 3 | AW11: 8 | AX11: =IF(AND(AS11="",AT11="",AU11="",AV11="",AW11=""),"",(IF(AND(AS11="Ab",AT11="Ab",AU11="Ab",AV11="Ab",AW11="Ab"),"Ab",SUM(AS11:AW11)))) -> 28 | AY11: =IF(AX11="","",IF(AX11="Ab","Ab",ROUND(SUM(AS11:AW11)*10/AX$9,0))) -> 6 | AZ11: 35 | BA11: =IF(AZ11="","",IF(AZ11="AB","Ab",ROUNDUP(AZ11/2,0))) -> 18 | BB11: 8 | BC11: 6 | BD11: 8 | BE11: 8 | BF11: 9 | BG11: =IF(AND(BB11="",BC11="",BD11="",BE11="",BF11=""),"",(IF(AND(BB11="Ab",BC11="Ab",BD11="Ab",BE11="Ab",BF11="Ab"),"Ab",SUM(BB11:BF11)))) -> 39 | BH11: =IF(BG11="","",IF(BG11="Ab","Ab",ROUND(SUM(BB11:BF11)*10/BG$9,0))) -> 8 | BI11: 8 | BJ11: 8 | BK11: 6 | BL11: 8 | BM11: 8 | BN11: =IF(AND(BI11="",BJ11="",BK11="",BL11="",BM11=""),"",(IF(AND(BI11="Ab",BJ11="Ab",BK11="Ab",BL11="Ab",BM11="Ab"),"Ab",SUM(BI11:BM11)))) -> 38 | BO11: =IF(BN11="","",IF(BN11="Ab","Ab",ROUND(SUM(BI11:BM11)*10/BN$9,0))) -> 8 | BP11: 47 | BQ11: =IF(BP11="","",IF(BP11="AB","Ab",ROUNDUP(BP11/2,0))) -> 24 | BR11: 4 | BS11: 4 | BT11: 9 | BU11: 3 | BV11: 8 | BW11: =IF(AND(BR11="",BS11="",BT11="",BU11="",BV11=""),"",(IF(AND(BR11="Ab",BS11="Ab",BT11="Ab",BU11="Ab",BV11="Ab"),"Ab",SUM(BR11:BV11)))) -> 28 | BX11: =IF(BW11="","",IF(BW11="Ab","Ab",ROUND(SUM(BR11:BV11)*10/BW$9,0))) -> 6 | BY11: 4 | BZ11: 4 | CA11: 9 | CB11: 3 | CC11: 8 | CD11: =IF(AND(BY11="",BZ11="",CA11="",CB11="",CC11=""),"",(IF(AND(BY11="Ab",BZ11="Ab",CA11="Ab",CB11="Ab",CC11="Ab"),"Ab",SUM(BY11:CC11)))) -> 28 | CE11: =IF(CD11="","",IF(CD11="Ab","Ab",ROUND(SUM(BY11:CC11)*10/CD$9,0))) -> 6 | CF11: 39 | CG11: =IF(CF11="","",IF(CF11="AB","Ab",ROUNDUP(CF11/2,0))) -> 20 | CH11: 7 | CI11: 9 | CJ11: 4 | CK11: 6 | CL11: 9 | CM11: =IF(AND(CH11="",CI11="",CJ11="",CK11="",CL11=""),"",(IF(AND(CH11="Ab",CI11="Ab",CJ11="Ab",CK11="Ab",CL11="Ab"),"Ab",SUM(CH11:CL11)))) -> 35 | CN11: =IF(CM11="","",IF(CM11="Ab","Ab",ROUND(SUM(CH11:CL11)*10/CM$9,0))) -> 7 | CO11: 8 | CP11: 8 | CQ11: 9 | CR11: 6 | CS11: 9 | CT11: =IF(AND(CO11="",CP11="",CQ11="",CR11="",CS11=""),"",(IF(AND(CO11="Ab",CP11="Ab",CQ11="Ab",CR11="Ab",CS11="Ab"),"Ab",SUM(CO11:CS11)))) -> 40 | CU11: =IF(CT11="","",IF(CT11="Ab","Ab",ROUND(SUM(CO11:CS11)*10/CT$9,0))) -> 8 | CV11: 38 | CW11: =IF(CV11="","",IF(CV11="AB","Ab",ROUNDUP(CV11/2,0))) -> 19 | CX11: 9 | CY11: 9 | CZ11: 9 | DA11: 9 | DB11: 9 | DC11: =IF(AND(CX11="",CY11="",CZ11="",DA11="",DB11=""),"",(IF(AND(CX11="Ab",CY11="Ab",CZ11="Ab",DA11="Ab",DB11="Ab"),"Ab",SUM(CX11:DB11)))) -> 45 | DD11: =IF(DC11="","",IF(DC11="Ab","Ab",ROUND(SUM(CX11:DB11)*10/DC$9,0))) -> 9 | DE11: 4 | DF11: 4 | DG11: 9 | DH11: 3 | DI11: 8 | DJ11: =IF(AND(DE11="",DF11="",DG11="",DH11="",DI11=""),"",(IF(AND(DE11="Ab",DF11="Ab",DG11="Ab",DH11="Ab",DI11="Ab"),"Ab",SUM(DE11:DI11)))) -> 28 | DK11: =IF(DJ11="","",IF(DJ11="Ab","Ab",ROUND(SUM(DE11:DI11)*10/DJ$9,0))) -> 6 | DL11: 33 | DM11: =IF(DL11="","",IF(DL11="AB","Ab",ROUNDUP(DL11/2,0))) -> 17 | DN11: 3 | DO11: 7 | DP11: 7 | DQ11: 5 | DR11: 3 | DS11: =IF(AND(DN11="",DO11="",DP11="",DQ11="",DR11=""),"",(IF(AND(DN11="Ab",DO11="Ab",DP11="Ab",DQ11="Ab",DR11="Ab"),"Ab",SUM(DN11:DR11)))) -> 25 | DT11: =IF(DS11="","",IF(DS11="Ab","Ab",ROUND(SUM(DN11:DR11)*30/DS$9,0))) -> 15 | DU11: 5 | DV11: 7 | DW11: 5 | DX11: 1 | DY11: 8 | DZ11: =IF(AND(DU11="",DV11="",DW11="",DX11="",DY11=""),"",(IF(AND(DU11="Ab",DV11="Ab",DW11="Ab",DX11="Ab",DY11="Ab"),"Ab",SUM(DU11:DY11)))) -> 26 | EA11: =IF(DZ11="","",IF(DZ11="Ab","Ab",ROUND(SUM(DU11:DY11)*30/DZ$9,0))) -> 16 | EB11: 25 | EC11: =IF(AND(DT11="",EA11="",EB11=""),"",IF(AND(DT11="Ab",EA11="Ab",EB11="Ab"),"Ab",SUM(DT11,EA11,EB11))) -> 56 | ED11: =IF(EC11="","",IF(EC11="Ab","Ab",IF(EC11>89,"A+",IF(EC11>74,"A",IF(EC11>59,"B+",IF(EC11>44,"B",IF(EC11>32,"C","E"))))))) -> B | EE11: 9 | EF11: 9 | EG11: 9 | EH11: 8 | EI11: 6 | EJ11: =IF(AND(EE11="",EF11="",EG11="",EH11="",EI11=""),"",(IF(AND(EE11="Ab",EF11="Ab",EG11="Ab",EH11="Ab",EI11="Ab"),"Ab",SUM(EE11:EI11)))) -> 41 | EK11: =IF(EJ11="","",IF(EJ11="Ab","Ab",ROUND(SUM(EE11:EI11)*30/EJ$9,0))) -> 25 | EL11: 9 | EM11: 9 | EN11: 8 | EO11: 9 | EP11: 9 | EQ11: =IF(AND(EL11="",EM11="",EN11="",EO11="",EP11=""),"",(IF(AND(EL11="Ab",EM11="Ab",EN11="Ab",EO11="Ab",EP11="Ab"),"Ab",SUM(EL11:EP11)))) -> 44 | ER11: =IF(EQ11="","",IF(EQ11="Ab","Ab",ROUND(SUM(EL11:EP11)*30/EQ$9,0))) -> 26 | ES11: 26 | ET11: =IF(AND(EK11="",ER11="",ES11=""),"",IF(AND(EK11="Ab",ER11="Ab",ES11="Ab"),"Ab",SUM(EK11,ER11,ES11))) -> 77 | EU11: =IF(ET11="","",IF(ET11="Ab","Ab",IF(ET11>89,"A+",IF(ET11>74,"A",IF(ET11>59,"B+",IF(ET11>44,"B",IF(ET11>32,"C","E"))))))) -> A | EV11: 9 | EW11: 9 | EX11: 9 | EY11: 8 | EZ11: 6 | FA11: =IF(AND(EV11="",EW11="",EX11="",EY11="",EZ11=""),"",(IF(AND(EV11="Ab",EW11="Ab",EX11="Ab",EY11="Ab",EZ11="Ab"),"Ab",SUM(EV11:EZ11)))) -> 41 | FB11: =IF(FA11="","",IF(FA11="Ab","Ab",ROUND(SUM(EV11:EZ11)*30/FA$9,0))) -> 25 | FC11: 9 | FD11: 9 | FE11: 8 | FF11: 9 | FG11: 9 | FH11: =IF(AND(FC11="",FD11="",FE11="",FF11="",FG11=""),"",(IF(AND(FC11="Ab",FD11="Ab",FE11="Ab",FF11="Ab",FG11="Ab"),"Ab",SUM(FC11:FG11)))) -> 44 | FI11: =IF(FH11="","",IF(FH11="Ab","Ab",ROUND(SUM(FC11:FG11)*30/FH$9,0))) -> 26 | FJ11: 18 | FK11: =IF(AND(FB11="",FI11="",FJ11=""),"",IF(AND(FB11="Ab",FI11="Ab",FJ11="Ab"),"Ab",SUM(FB11,FI11,FJ11))) -> 69 | FL11: =IF(FK11="","",IF(FK11="Ab","Ab",IF(FK11>89,"A+",IF(FK11>74,"A",IF(FK11>59,"B+",IF(FK11>44,"B",IF(FK11>32,"C","E"))))))) -> B+ | FR11: =IF(AND(FM11="",FN11="",FO11="",FP11="",FQ11=""),"",(IF(AND(FM11="Ab",FN11="Ab",FO11="Ab",FP11="Ab",FQ11="Ab"),"Ab",SUM(FM11:FQ11)))) ->  | FS11: =IF(FR11="","",IF(FR11="Ab","Ab",ROUND(SUM(FM11:FQ11)*30/FR$9,0))) ->  | FY11: =IF(AND(FT11="",FU11="",FV11="",FW11="",FX11=""),"",(IF(AND(FT11="Ab",FU11="Ab",FV11="Ab",FW11="Ab",FX11="Ab"),"Ab",SUM(FT11:FX11)))) ->  | FZ11: =IF(FY11="","",IF(FY11="Ab","Ab",ROUND(SUM(FT11:FX11)*30/FY$9,0))) ->  | GB11: =IF(AND(FS11="",FZ11="",GA11=""),"",IF(AND(FS11="Ab",FZ11="Ab",GA11="Ab"),"Ab",SUM(FS11,FZ11,GA11))) ->  | GC11: =IF(GB11="","",IF(GB11="Ab","Ab",IF(GB11>89,"A+",IF(GB11>74,"A",IF(GB11>59,"B+",IF(GB11>44,"B",IF(GB11>32,"C","E"))))))) -> 
B12: =IF(StudentData!A12="","",StudentData!A12) -> 2 | C12: =IF(StudentData!B12="","",StudentData!B12) -> 2 | D12: =IF(StudentData!C12="","",(LEFT(TRIM(CLEAN(StudentData!C12)),SEARCH(" ",TRIM(CLEAN(StudentData!C12)),SEARCH(" ",TRIM(CLEAN(StudentData!C12)),1)+1)))&" "&LEFT(RIGHT(StudentData!C12,LEN(StudentData!C12)-SEARCH(" ",StudentData!C12,SEARCH(" ",StudentData!C12,SEARCH(" ",StudentData!C12,1)+1)-1)),1)&".") -> SHRIMALI UPENDRA M. | E12: =IF(StudentData!G12="","",StudentData!G12) ->  | F12: 7 | G12: 9 | H12: 5 | I12: 9 | J12: 4 | K12: 34 | L12: 7 | M12: 7 | N12: 9 | O12: 5 | P12: 9 | Q12: 5 | R12: 35 | S12: 7 | T12: 34 | U12: 17 | V12: 7 | W12: 6 | X12: 5 | Y12: 1 | Z12: 1 | AA12: 20 | AB12: 4 | AC12: 7 | AD12: 7 | AE12: 6 | AF12: 5 | AG12: 1 | AH12: 26 | AI12: 5 | AJ12: 20 | AK12: 10 | AL12: 4 | AM12: 4 | AN12: 1 | AO12: 3 | AP12: 9 | AQ12: 21 | AR12: 4 | AS12: 3 | AT12: 3 | AU12: 4 | AV12: 4 | AW12: 1 | AX12: 15 | AY12: 3 | AZ12: 27 | BA12: 14 | BB12: 5 | BC12: 5 | BD12: 9 | BE12: 1 | BF12: 4 | BG12: 24 | BH12: 5 | BI12: 5 | BJ12: 5 | BK12: 5 | BL12: 9 | BM12: 1 | BN12: 25 | BO12: 5 | BP12: 19 | BQ12: 10 | BR12: 3 | BS12: 3 | BT12: 4 | BU12: 4 | BV12: 1 | BW12: 15 | BX12: 3 | BY12: 3 | BZ12: 3 | CA12: 4 | CB12: 4 | CC12: 1 | CD12: 15 | CE12: 3 | CF12: 24 | CG12: 12 | CH12: 7 | CI12: 3 | CJ12: 4 | CK12: 9 | CL12: 4 | CM12: 27 | CN12: 5 | CO12: 9 | CP12: 1 | CQ12: 4 | CR12: 9 | CS12: 4 | CT12: 27 | CU12: 5 | CV12: 17 | CW12: 9 | CX12: 4 | CY12: 1 | CZ12: 3 | DA12: 9 | DB12: 2 | DC12: 19 | DD12: 4 | DE12: 3 | DF12: 3 | DG12: 4 | DH12: 4 | DI12: 1 | DJ12: 15 | DK12: 3 | DL12: 13 | DM12: 7 | DN12: 6 | DO12: 3 | DP12: 1 | DQ12: 7 | DR12: 5 | DS12: 22 | DT12: 13 | DU12: 4 | DV12: 8 | DW12: 7 | DX12: 1 | DY12: 6 | DZ12: 26 | EA12: 16 | EB12: 22 | EC12: 51 | ED12: B | EE12: 7 | EF12: 9 | EG12: 5 | EH12: 9 | EI12: 4 | EJ12: 34 | EK12: 20 | EL12: 7 | EM12: 6 | EN12: 5 | EO12: 1 | EP12: 1 | EQ12: 20 | ER12: 12 | ES12: 26 | ET12: 58 | EU12: B | EV12: 7 | EW12: 9 | EX12: 5 | EY12: 9 | EZ12: 4 | FA12: 34 | FB12: 20 | FC12: 7 | FD12: 6 | FE12: 5 | FF12: 1 | FG12: 1 | FH12: 20 | FI12: 12 | FJ12: 13 | FK12: 45 | FL12: B
B13: =IF(StudentData!A13="","",StudentData!A13) -> 3 | C13: =IF(StudentData!B13="","",StudentData!B13) -> 3 | D13: =IF(StudentData!C13="","",(LEFT(TRIM(CLEAN(StudentData!C13)),SEARCH(" ",TRIM(CLEAN(StudentData!C13)),SEARCH(" ",TRIM(CLEAN(StudentData!C13)),1)+1)))&" "&LEFT(RIGHT(StudentData!C13,LEN(StudentData!C13)-SEARCH(" ",StudentData!C13,SEARCH(" ",StudentData!C13,SEARCH(" ",StudentData!C13,1)+1)-1)),1)&".") -> CHAUHAN AEZADBHAI A. | E13: =IF(StudentData!G13="","",StudentData!G13) ->  | F13: 7 | G13: 8 | H13: 5 | I13: 3 | J13: 6 | K13: 29 | L13: 6 | M13: 7 | N13: 8 | O13: 5 | P13: 8 | Q13: 5 | R13: 33 | S13: 7 | T13: 29 | U13: 15 | V13: 7 | W13: 4 | X13: 9 | Y13: 7 | Z13: 2 | AA13: 29 | AB13: 6 | AC13: 7 | AD13: 7 | AE13: 4 | AF13: 9 | AG13: 7 | AH13: 34 | AI13: 7 | AJ13: 29 | AK13: 15 | AL13: 8 | AM13: 8 | AN13: 7 | AO13: 7 | AP13: 1 | AQ13: 31 | AR13: 6 | AS13: 2 | AT13: 2 | AU13: 7 | AV13: 5 | AW13: 1 | AX13: 17 | AY13: 3 | AZ13: 24 | BA13: 12 | BB13: 7 | BC13: 6 | BD13: 4 | BE13: 3 | BF13: 6 | BG13: 26 | BH13: 5 | BI13: 7 | BJ13: 7 | BK13: 6 | BL13: 4 | BM13: 3 | BN13: 27 | BO13: 5 | BP13: 24 | BQ13: 12 | BR13: 2 | BS13: 2 | BT13: 7 | BU13: 5 | BV13: 1 | BW13: 17 | BX13: 3 | BY13: 2 | BZ13: 2 | CA13: 7 | CB13: 5 | CC13: 1 | CD13: 17 | CE13: 3 | CF13: 26 | CG13: 13 | CH13: 2 | CI13: 7 | CJ13: 7 | CK13: 2 | CL13: 6 | CM13: 24 | CN13: 5 | CO13: 4 | CP13: 3 | CQ13: 6 | CR13: 2 | CS13: 6 | CT13: 21 | CU13: 4 | CV13: 16 | CW13: 8 | CX13: 8 | CY13: 7 | CZ13: 7 | DA13: 1 | DB13: 1 | DC13: 24 | DD13: 5 | DE13: 2 | DF13: 2 | DG13: 7 | DH13: 5 | DI13: 1 | DJ13: 17 | DK13: 3 | DL13: 20 | DM13: 10 | DN13: 7 | DO13: 6 | DP13: 1 | DQ13: 2 | DR13: 5 | DS13: 21 | DT13: 13 | DU13: 5 | DV13: 5 | DW13: 5 | DX13: 4 | DY13: 9 | DZ13: 28 | EA13: 17 | EB13: 21 | EC13: 51 | ED13: B | EE13: 7 | EF13: 8 | EG13: 5 | EH13: 3 | EI13: 6 | EJ13: 29 | EK13: 17 | EL13: 7 | EM13: 4 | EN13: 9 | EO13: 7 | EP13: 2 | EQ13: 29 | ER13: 17 | ES13: 28 | ET13: 62 | EU13: B+ | EV13: 7 | EW13: 8 | EX13: 5 | EY13: 3 | EZ13: 6 | FA13: 29 | FB13: 17 | FC13: 7 | FD13: 4 | FE13: 9 | FF13: 7 | FG13: 2 | FH13: 29 | FI13: 17 | FJ13: 17 | FK13: 51 | FL13: B
B14: =IF(StudentData!A14="","",StudentData!A14) -> 4 | C14: =IF(StudentData!B14="","",StudentData!B14) -> 4 | D14: =IF(StudentData!C14="","",(LEFT(TRIM(CLEAN(StudentData!C14)),SEARCH(" ",TRIM(CLEAN(StudentData!C14)),SEARCH(" ",TRIM(CLEAN(StudentData!C14)),1)+1)))&" "&LEFT(RIGHT(StudentData!C14,LEN(StudentData!C14)-SEARCH(" ",StudentData!C14,SEARCH(" ",StudentData!C14,SEARCH(" ",StudentData!C14,1)+1)-1)),1)&".") -> PALIYA JAYKUMAR H. | E14: =IF(StudentData!G14="","",StudentData!G14) ->  | F14: 8 | G14: 4 | H14: 9 | I14: 9 | J14: 7 | K14: 37 | L14: 7 | M14: 8 | N14: 4 | O14: 9 | P14: 4 | Q14: 9 | R14: 34 | S14: 7 | T14: 37 | U14: 19 | V14: 7 | W14: 6 | X14: 9 | Y14: 9 | Z14: 9 | AA14: 40 | AB14: 8 | AC14: 7 | AD14: 7 | AE14: 6 | AF14: 9 | AG14: 9 | AH14: 38 | AI14: 8 | AJ14: 40 | AK14: 20 | AL14: 8 | AM14: 8 | AN14: 9 | AO14: 9 | AP14: 9 | AQ14: 43 | AR14: 9 | AS14: 9 | AT14: 9 | AU14: 3 | AV14: 8 | AW14: 6 | AX14: 35 | AY14: 7 | AZ14: 28 | BA14: 14 | BB14: 4 | BC14: 9 | BD14: 9 | BE14: 9 | BF14: 9 | BG14: 40 | BH14: 8 | BI14: 4 | BJ14: 4 | BK14: 9 | BL14: 9 | BM14: 9 | BN14: 35 | BO14: 7 | BP14: 44 | BQ14: 22 | BR14: 9 | BS14: 9 | BT14: 3 | BU14: 8 | BV14: 6 | BW14: 35 | BX14: 7 | BY14: 9 | BZ14: 9 | CA14: 3 | CB14: 8 | CC14: 6 | CD14: 35 | CE14: 7 | CF14: 40 | CG14: 20 | CH14: 3 | CI14: 4 | CJ14: 6 | CK14: 7 | CL14: 8 | CM14: 28 | CN14: 6 | CO14: 9 | CP14: 9 | CQ14: 9 | CR14: 7 | CS14: 8 | CT14: 42 | CU14: 8 | CV14: 24 | CW14: 12 | CX14: 8 | CY14: 9 | CZ14: 9 | DA14: 9 | DB14: 9 | DC14: 44 | DD14: 9 | DE14: 9 | DF14: 9 | DG14: 3 | DH14: 8 | DI14: 6 | DJ14: 35 | DK14: 7 | DL14: 30 | DM14: 15 | DN14: 4 | DO14: 6 | DP14: 7 | DQ14: 7 | DR14: 3 | DS14: 27 | DT14: 16 | DU14: 8 | DV14: 3 | DW14: 4 | DX14: 8 | DY14: 5 | DZ14: 28 | EA14: 17 | EB14: 27 | EC14: 60 | ED14: B+ | EE14: 8 | EF14: 4 | EG14: 9 | EH14: 9 | EI14: 7 | EJ14: 37 | EK14: 22 | EL14: 7 | EM14: 6 | EN14: 9 | EO14: 9 | EP14: 9 | EQ14: 40 | ER14: 24 | ES14: 28 | ET14: 74 | EU14: B+ | EV14: 8 | EW14: 4 | EX14: 9 | EY14: 9 | EZ14: 7 | FA14: 37 | FB14: 22 | FC14: 7 | FD14: 6 | FE14: 9 | FF14: 9 | FG14: 9 | FH14: 40 | FI14: 24 | FJ14: 23 | FK14: 69 | FL14: B+
B15: =IF(StudentData!A15="","",StudentData!A15) -> 5 | C15: =IF(StudentData!B15="","",StudentData!B15) -> 5 | D15: =IF(StudentData!C15="","",(LEFT(TRIM(CLEAN(StudentData!C15)),SEARCH(" ",TRIM(CLEAN(StudentData!C15)),SEARCH(" ",TRIM(CLEAN(StudentData!C15)),1)+1)))&" "&LEFT(RIGHT(StudentData!C15,LEN(StudentData!C15)-SEARCH(" ",StudentData!C15,SEARCH(" ",StudentData!C15,SEARCH(" ",StudentData!C15,1)+1)-1)),1)&".") -> GHANCHI RUMIRZAFAR S. | E15: =IF(StudentData!G15="","",StudentData!G15) ->  | F15: 2 | G15: 5 | H15: 7 | I15: 7 | J15: 9 | K15: 30 | L15: 6 | M15: 2 | N15: 5 | O15: 7 | P15: 5 | Q15: 7 | R15: 26 | S15: 5 | T15: 30 | U15: 15 | V15: 4 | W15: 7 | X15: 5 | Y15: 3 | Z15: 2 | AA15: 21 | AB15: 4 | AC15: 4 | AD15: 4 | AE15: 7 | AF15: 5 | AG15: 3 | AH15: 23 | AI15: 5 | AJ15: 21 | AK15: 11 | AL15: 7 | AM15: 7 | AN15: 1 | AO15: 6 | AP15: 1 | AQ15: 22 | AR15: 4 | AS15: 1 | AT15: 1 | AU15: 6 | AV15: 1 | AW15: 1 | AX15: 10 | AY15: 2 | AZ15: 21 | BA15: 11 | BB15: 1 | BC15: 2 | BD15: 7 | BE15: 3 | BF15: 7 | BG15: 20 | BH15: 4 | BI15: 1 | BJ15: 1 | BK15: 2 | BL15: 7 | BM15: 3 | BN15: 14 | BO15: 3 | BP15: 16 | BQ15: 8 | BR15: 1 | BS15: 1 | BT15: 6 | BU15: 1 | BV15: 1 | BW15: 10 | BX15: 2 | BY15: 1 | BZ15: 1 | CA15: 6 | CB15: 1 | CC15: 1 | CD15: 10 | CE15: 2 | CF15: 20 | CG15: 10 | CH15: 1 | CI15: 4 | CJ15: 5 | CK15: 4 | CL15: 7 | CM15: 21 | CN15: 4 | CO15: 7 | CP15: 3 | CQ15: 7 | CR15: 4 | CS15: 7 | CT15: 28 | CU15: 6 | CV15: 12 | CW15: 6 | CX15: 7 | CY15: 1 | CZ15: 6 | DA15: 1 | DB15: 1 | DC15: 16 | DD15: 3 | DE15: 1 | DF15: 1 | DG15: 6 | DH15: 1 | DI15: 1 | DJ15: 10 | DK15: 2 | DL15: 10 | DM15: 5 | DN15: 5 | DO15: 2 | DP15: 4 | DQ15: 4 | DR15: 4 | DS15: 19 | DT15: 11 | DU15: 6 | DV15: 5 | DW15: 1 | DX15: 9 | DY15: 4 | DZ15: 25 | EA15: 15 | EB15: 19 | EC15: 45 | ED15: B | EE15: 2 | EF15: 5 | EG15: 7 | EH15: 7 | EI15: 9 | EJ15: 30 | EK15: 18 | EL15: 4 | EM15: 7 | EN15: 5 | EO15: 3 | EP15: 2 | EQ15: 21 | ER15: 13 | ES15: 25 | ET15: 56 | EU15: B | EV15: 2 | EW15: 5 | EX15: 7 | EY15: 7 | EZ15: 9 | FA15: 30 | FB15: 18 | FC15: 4 | FD15: 7 | FE15: 5 | FF15: 3 | FG15: 2 | FH15: 21 | FI15: 13 | FJ15: 18 | FK15: 49 | FL15: B
B16: =IF(StudentData!A16="","",StudentData!A16) -> 6 | C16: =IF(StudentData!B16="","",StudentData!B16) -> 6 | D16: =IF(StudentData!C16="","",(LEFT(TRIM(CLEAN(StudentData!C16)),SEARCH(" ",TRIM(CLEAN(StudentData!C16)),SEARCH(" ",TRIM(CLEAN(StudentData!C16)),1)+1)))&" "&LEFT(RIGHT(StudentData!C16,LEN(StudentData!C16)-SEARCH(" ",StudentData!C16,SEARCH(" ",StudentData!C16,SEARCH(" ",StudentData!C16,1)+1)-1)),1)&".") -> GHANCHI MAHMADSAHEJAN S. | E16: =IF(StudentData!G16="","",StudentData!G16) ->  | F16: 2 | G16: 1 | H16: 5 | I16: 7 | J16: 6 | K16: 21 | L16: 4 | M16: 2 | N16: 1 | O16: 5 | P16: 1 | Q16: 5 | R16: 14 | S16: 3 | T16: 21 | U16: 11 | V16: 3 | W16: 5 | X16: 2 | Y16: 6 | Z16: 9 | AA16: 25 | AB16: 5 | AC16: 3 | AD16: 3 | AE16: 5 | AF16: 2 | AG16: 6 | AH16: 19 | AI16: 4 | AJ16: 25 | AK16: 13 | AL16: 2 | AM16: 2 | AN16: 4 | AO16: 5 | AP16: 1 | AQ16: 14 | AR16: 3 | AS16: 5 | AT16: 5 | AU16: 1 | AV16: 1 | AW16: 2 | AX16: 14 | AY16: 3 | AZ16: 23 | BA16: 12 | BB16: 7 | BC16: 1 | BD16: 7 | BE16: 4 | BF16: 2 | BG16: 21 | BH16: 4 | BI16: 7 | BJ16: 7 | BK16: 1 | BL16: 7 | BM16: 4 | BN16: 26 | BO16: 5 | BP16: 16 | BQ16: 8 | BR16: 5 | BS16: 5 | BT16: 1 | BU16: 1 | BV16: 2 | BW16: 14 | BX16: 3 | BY16: 5 | BZ16: 5 | CA16: 1 | CB16: 1 | CC16: 2 | CD16: 14 | CE16: 3 | CF16: 21 | CG16: 11 | CH16: 8 | CI16: 1 | CJ16: 2 | CK16: 6 | CL16: 6 | CM16: 23 | CN16: 5 | CO16: 7 | CP16: 4 | CQ16: 2 | CR16: 6 | CS16: 6 | CT16: 25 | CU16: 5 | CV16: 15 | CW16: 8 | CX16: 2 | CY16: 4 | CZ16: 5 | DA16: 1 | DB16: 4 | DC16: 16 | DD16: 3 | DE16: 5 | DF16: 5 | DG16: 1 | DH16: 1 | DI16: 2 | DJ16: 14 | DK16: 3 | DL16: 10 | DM16: 5 | DN16: 1 | DO16: 6 | DP16: 3 | DQ16: 3 | DR16: 3 | DS16: 16 | DT16: 10 | DU16: 9 | DV16: 3 | DW16: 8 | DX16: 1 | DY16: 2 | DZ16: 23 | EA16: 14 | EB16: 16 | EC16: 40 | ED16: C | EE16: 2 | EF16: 1 | EG16: 5 | EH16: 7 | EI16: 6 | EJ16: 21 | EK16: 13 | EL16: 3 | EM16: 5 | EN16: 2 | EO16: 6 | EP16: 9 | EQ16: 25 | ER16: 15 | ES16: 23 | ET16: 51 | EU16: B | EV16: 2 | EW16: 1 | EX16: 5 | EY16: 7 | EZ16: 6 | FA16: 21 | FB16: 13 | FC16: 3 | FD16: 5 | FE16: 2 | FF16: 6 | FG16: 9 | FH16: 25 | FI16: 15 | FJ16: 14 | FK16: 42 | FL16: C
B17: =IF(StudentData!A17="","",StudentData!A17) -> 7 | C17: =IF(StudentData!B17="","",StudentData!B17) -> 7 | D17: =IF(StudentData!C17="","",(LEFT(TRIM(CLEAN(StudentData!C17)),SEARCH(" ",TRIM(CLEAN(StudentData!C17)),SEARCH(" ",TRIM(CLEAN(StudentData!C17)),1)+1)))&" "&LEFT(RIGHT(StudentData!C17,LEN(StudentData!C17)-SEARCH(" ",StudentData!C17,SEARCH(" ",StudentData!C17,SEARCH(" ",StudentData!C17,1)+1)-1)),1)&".") -> PATADIYA SAHILBHAI H. | E17: =IF(StudentData!G17="","",StudentData!G17) ->  | F17: 5 | G17: 4 | H17: 1 | I17: 5 | J17: 9 | K17: 24 | L17: 5 | M17: 5 | N17: 4 | O17: 1 | P17: 4 | Q17: 1 | R17: 15 | S17: 3 | T17: 24 | U17: 12 | V17: 9 | W17: 7 | X17: 6 | Y17: 1 | Z17: 1 | AA17: 24 | AB17: 5 | AC17: 9 | AD17: 9 | AE17: 7 | AF17: 6 | AG17: 1 | AH17: 32 | AI17: 6 | AJ17: 24 | AK17: 12 | AL17: 4 | AM17: 4 | AN17: 6 | AO17: 2 | AP17: 4 | AQ17: 20 | AR17: 4 | AS17: 1 | AT17: 1 | AU17: 2 | AV17: 1 | AW17: 6 | AX17: 11 | AY17: 2 | AZ17: 24 | BA17: 12 | BB17: 3 | BC17: 1 | BD17: 9 | BE17: 3 | BF17: 1 | BG17: 17 | BH17: 3 | BI17: 3 | BJ17: 3 | BK17: 1 | BL17: 9 | BM17: 3 | BN17: 19 | BO17: 4 | BP17: 20 | BQ17: 10 | BR17: 1 | BS17: 1 | BT17: 2 | BU17: 1 | BV17: 6 | BW17: 11 | BX17: 2 | BY17: 1 | BZ17: 1 | CA17: 2 | CB17: 1 | CC17: 6 | CD17: 11 | CE17: 2 | CF17: 17 | CG17: 9 | CH17: 3 | CI17: 8 | CJ17: 5 | CK17: 1 | CL17: 7 | CM17: 24 | CN17: 5 | CO17: 9 | CP17: 3 | CQ17: 1 | CR17: 1 | CS17: 7 | CT17: 21 | CU17: 4 | CV17: 16 | CW17: 8 | CX17: 4 | CY17: 6 | CZ17: 2 | DA17: 4 | DB17: 4 | DC17: 20 | DD17: 4 | DE17: 1 | DF17: 1 | DG17: 2 | DH17: 1 | DI17: 6 | DJ17: 11 | DK17: 2 | DL17: 16 | DM17: 8 | DN17: 5 | DO17: 3 | DP17: 5 | DQ17: 1 | DR17: 1 | DS17: 15 | DT17: 9 | DU17: 6 | DV17: 5 | DW17: 1 | DX17: 2 | DY17: 4 | DZ17: 18 | EA17: 11 | EB17: 15 | EC17: 35 | ED17: C | EE17: 5 | EF17: 4 | EG17: 1 | EH17: 5 | EI17: 9 | EJ17: 24 | EK17: 14 | EL17: 9 | EM17: 7 | EN17: 6 | EO17: 1 | EP17: 1 | EQ17: 24 | ER17: 14 | ES17: 18 | ET17: 46 | EU17: B | EV17: 5 | EW17: 4 | EX17: 1 | EY17: 5 | EZ17: 9 | FA17: 24 | FB17: 14 | FC17: 9 | FD17: 7 | FE17: 6 | FF17: 1 | FG17: 1 | FH17: 24 | FI17: 14 | FJ17: 14 | FK17: 42 | FL17: C
B18: =IF(StudentData!A18="","",StudentData!A18) -> 8 | C18: =IF(StudentData!B18="","",StudentData!B18) -> 8 | D18: =IF(StudentData!C18="","",(LEFT(TRIM(CLEAN(StudentData!C18)),SEARCH(" ",TRIM(CLEAN(StudentData!C18)),SEARCH(" ",TRIM(CLEAN(StudentData!C18)),1)+1)))&" "&LEFT(RIGHT(StudentData!C18,LEN(StudentData!C18)-SEARCH(" ",StudentData!C18,SEARCH(" ",StudentData!C18,SEARCH(" ",StudentData!C18,1)+1)-1)),1)&".") -> RABARI MAHESHBHAI K. | E18: =IF(StudentData!G18="","",StudentData!G18) ->  | F18: 9 | G18: 9 | H18: 9 | I18: 9 | J18: 9 | K18: 45 | L18: 9 | M18: 9 | N18: 9 | O18: 9 | P18: 9 | Q18: 9 | R18: 45 | S18: 9 | T18: 45 | U18: 23 | V18: 9 | W18: 5 | X18: 8 | Y18: 8 | Z18: 6 | AA18: 36 | AB18: 7 | AC18: 9 | AD18: 9 | AE18: 5 | AF18: 8 | AG18: 8 | AH18: 39 | AI18: 8 | AJ18: 36 | AK18: 18 | AL18: 9 | AM18: 9 | AN18: 9 | AO18: 9 | AP18: 9 | AQ18: 45 | AR18: 9 | AS18: 4 | AT18: 4 | AU18: 9 | AV18: 8 | AW18: 4 | AX18: 29 | AY18: 6 | AZ18: 43 | BA18: 22 | BB18: 7 | BC18: 1 | BD18: 8 | BE18: 7 | BF18: 3 | BG18: 26 | BH18: 5 | BI18: 7 | BJ18: 7 | BK18: 1 | BL18: 8 | BM18: 7 | BN18: 30 | BO18: 6 | BP18: 46 | BQ18: 23 | BR18: 4 | BS18: 4 | BT18: 9 | BU18: 8 | BV18: 4 | BW18: 29 | BX18: 6 | BY18: 4 | BZ18: 4 | CA18: 9 | CB18: 8 | CC18: 4 | CD18: 29 | CE18: 6 | CF18: 26 | CG18: 13 | CH18: 9 | CI18: 9 | CJ18: 8 | CK18: 9 | CL18: 8 | CM18: 43 | CN18: 9 | CO18: 8 | CP18: 7 | CQ18: 3 | CR18: 9 | CS18: 8 | CT18: 35 | CU18: 7 | CV18: 23 | CW18: 12 | CX18: 9 | CY18: 9 | CZ18: 9 | DA18: 9 | DB18: 9 | DC18: 45 | DD18: 9 | DE18: 4 | DF18: 4 | DG18: 9 | DH18: 8 | DI18: 4 | DJ18: 29 | DK18: 6 | DL18: 34 | DM18: 17 | DN18: 1 | DO18: 2 | DP18: 9 | DQ18: 1 | DR18: 8 | DS18: 21 | DT18: 13 | DU18: 9 | DV18: 1 | DW18: 8 | DX18: 1 | DY18: 9 | DZ18: 28 | EA18: 17 | EB18: 21 | EC18: 51 | ED18: B | EE18: 9 | EF18: 9 | EG18: 9 | EH18: 9 | EI18: 9 | EJ18: 45 | EK18: 27 | EL18: 9 | EM18: 5 | EN18: 8 | EO18: 8 | EP18: 6 | EQ18: 36 | ER18: 22 | ES18: 28 | ET18: 77 | EU18: A | EV18: 9 | EW18: 9 | EX18: 9 | EY18: 9 | EZ18: 9 | FA18: 45 | FB18: 27 | FC18: 9 | FD18: 5 | FE18: 8 | FF18: 8 | FG18: 6 | FH18: 36 | FI18: 22 | FJ18: 15 | FK18: 64 | FL18: B+
B19: =IF(StudentData!A19="","",StudentData!A19) -> 9 | C19: =IF(StudentData!B19="","",StudentData!B19) -> 9 | D19: =IF(StudentData!C19="","",(LEFT(TRIM(CLEAN(StudentData!C19)),SEARCH(" ",TRIM(CLEAN(StudentData!C19)),SEARCH(" ",TRIM(CLEAN(StudentData!C19)),1)+1)))&" "&LEFT(RIGHT(StudentData!C19,LEN(StudentData!C19)-SEARCH(" ",StudentData!C19,SEARCH(" ",StudentData!C19,SEARCH(" ",StudentData!C19,1)+1)-1)),1)&".") -> RUDECHA JATINKUMAR D. | E19: =IF(StudentData!G19="","",StudentData!G19) ->  | F19: 1 | G19: 5 | H19: 8 | I19: 3 | J19: 7 | K19: 24 | L19: 5 | M19: 1 | N19: 5 | O19: 8 | P19: 5 | Q19: 8 | R19: 27 | S19: 5 | T19: 24 | U19: 12 | V19: 4 | W19: 3 | X19: 3 | Y19: 3 | Z19: 7 | AA19: 20 | AB19: 4 | AC19: 4 | AD19: 4 | AE19: 3 | AF19: 3 | AG19: 3 | AH19: 17 | AI19: 3 | AJ19: 20 | AK19: 10 | AL19: 2 | AM19: 2 | AN19: 7 | AO19: 4 | AP19: 2 | AQ19: 17 | AR19: 3 | AS19: 1 | AT19: 1 | AU19: 3 | AV19: 1 | AW19: 6 | AX19: 12 | AY19: 2 | AZ19: 27 | BA19: 14 | BB19: 1 | BC19: 6 | BD19: 2 | BE19: 3 | BF19: 5 | BG19: 17 | BH19: 3 | BI19: 1 | BJ19: 1 | BK19: 6 | BL19: 2 | BM19: 3 | BN19: 13 | BO19: 3 | BP19: 20 | BQ19: 10 | BR19: 1 | BS19: 1 | BT19: 3 | BU19: 1 | BV19: 6 | BW19: 12 | BX19: 2 | BY19: 1 | BZ19: 1 | CA19: 3 | CB19: 1 | CC19: 6 | CD19: 12 | CE19: 2 | CF19: 17 | CG19: 9 | CH19: 8 | CI19: 6 | CJ19: 2 | CK19: 4 | CL19: 7 | CM19: 27 | CN19: 5 | CO19: 2 | CP19: 3 | CQ19: 5 | CR19: 4 | CS19: 7 | CT19: 21 | CU19: 4 | CV19: 14 | CW19: 7 | CX19: 2 | CY19: 7 | CZ19: 4 | DA19: 2 | DB19: 5 | DC19: 20 | DD19: 4 | DE19: 1 | DF19: 1 | DG19: 3 | DH19: 1 | DI19: 6 | DJ19: 12 | DK19: 2 | DL19: 13 | DM19: 7 | DN19: 3 | DO19: 3 | DP19: 4 | DQ19: 3 | DR19: 3 | DS19: 16 | DT19: 10 | DU19: 4 | DV19: 7 | DW19: 1 | DX19: 1 | DY19: 1 | DZ19: 14 | EA19: 8 | EB19: 16 | EC19: 34 | ED19: C | EE19: 1 | EF19: 5 | EG19: 8 | EH19: 3 | EI19: 7 | EJ19: 24 | EK19: 14 | EL19: 4 | EM19: 3 | EN19: 3 | EO19: 3 | EP19: 7 | EQ19: 20 | ER19: 12 | ES19: 14 | ET19: 40 | EU19: C | EV19: 1 | EW19: 5 | EX19: 8 | EY19: 3 | EZ19: 7 | FA19: 24 | FB19: 14 | FC19: 4 | FD19: 3 | FE19: 3 | FF19: 3 | FG19: 7 | FH19: 20 | FI19: 12 | FJ19: 9 | FK19: 35 | FL19: C
B20: =IF(StudentData!A20="","",StudentData!A20) -> 10 | C20: =IF(StudentData!B20="","",StudentData!B20) -> 10 | D20: =IF(StudentData!C20="","",(LEFT(TRIM(CLEAN(StudentData!C20)),SEARCH(" ",TRIM(CLEAN(StudentData!C20)),SEARCH(" ",TRIM(CLEAN(StudentData!C20)),1)+1)))&" "&LEFT(RIGHT(StudentData!C20,LEN(StudentData!C20)-SEARCH(" ",StudentData!C20,SEARCH(" ",StudentData!C20,SEARCH(" ",StudentData!C20,1)+1)-1)),1)&".") -> SIPAI NAIM H. | E20: =IF(StudentData!G20="","",StudentData!G20) ->  | F20: 9 | G20: 5 | H20: 6 | I20: 9 | J20: 6 | K20: 35 | L20: 7 | M20: 9 | N20: 5 | O20: 6 | P20: 5 | Q20: 6 | R20: 31 | S20: 6 | T20: 35 | U20: 18 | V20: 1 | W20: 5 | X20: 9 | Y20: 9 | Z20: 9 | AA20: 33 | AB20: 7 | AC20: 1 | AD20: 1 | AE20: 5 | AF20: 9 | AG20: 9 | AH20: 25 | AI20: 5 | AJ20: 33 | AK20: 17 | AL20: 8 | AM20: 8 | AN20: 7 | AO20: 9 | AP20: 9 | AQ20: 41 | AR20: 8 | AS20: 3 | AT20: 3 | AU20: 8 | AV20: 6 | AW20: 6 | AX20: 26 | AY20: 5 | AZ20: 31 | BA20: 16 | BB20: 6 | BC20: 7 | BD20: 9 | BE20: 5 | BF20: 6 | BG20: 33 | BH20: 7 | BI20: 6 | BJ20: 6 | BK20: 7 | BL20: 9 | BM20: 5 | BN20: 33 | BO20: 7 | BP20: 41 | BQ20: 21 | BR20: 3 | BS20: 3 | BT20: 8 | BU20: 6 | BV20: 6 | BW20: 26 | BX20: 5 | BY20: 3 | BZ20: 3 | CA20: 8 | CB20: 6 | CC20: 6 | CD20: 26 | CE20: 5 | CF20: 33 | CG20: 17 | CH20: 7 | CI20: 6 | CJ20: 6 | CK20: 5 | CL20: 7 | CM20: 31 | CN20: 6 | CO20: 9 | CP20: 5 | CQ20: 6 | CR20: 5 | CS20: 7 | CT20: 32 | CU20: 6 | CV20: 23 | CW20: 12 | CX20: 8 | CY20: 7 | CZ20: 9 | DA20: 9 | DB20: 8 | DC20: 41 | DD20: 8 | DE20: 3 | DF20: 3 | DG20: 8 | DH20: 6 | DI20: 6 | DJ20: 26 | DK20: 5 | DL20: 32 | DM20: 16 | DN20: 2 | DO20: 9 | DP20: 7 | DQ20: 9 | DR20: 9 | DS20: 36 | DT20: 22 | DU20: 7 | DV20: 7 | DW20: 6 | DX20: 4 | DY20: 9 | DZ20: 33 | EA20: 20 | EB20: 36 | EC20: 78 | ED20: A | EE20: 9 | EF20: 5 | EG20: 6 | EH20: 9 | EI20: 6 | EJ20: 35 | EK20: 21 | EL20: 1 | EM20: 5 | EN20: 9 | EO20: 9 | EP20: 9 | EQ20: 33 | ER20: 20 | ES20: 33 | ET20: 74 | EU20: B+ | EV20: 9 | EW20: 5 | EX20: 6 | EY20: 9 | EZ20: 6 | FA20: 35 | FB20: 21 | FC20: 1 | FD20: 5 | FE20: 9 | FF20: 9 | FG20: 9 | FH20: 33 | FI20: 20 | FJ20: 23 | FK20: 64 | FL20: B+
B21: =IF(StudentData!A21="","",StudentData!A21) -> 11 | C21: =IF(StudentData!B21="","",StudentData!B21) -> 11 | D21: =IF(StudentData!C21="","",(LEFT(TRIM(CLEAN(StudentData!C21)),SEARCH(" ",TRIM(CLEAN(StudentData!C21)),SEARCH(" ",TRIM(CLEAN(StudentData!C21)),1)+1)))&" "&LEFT(RIGHT(StudentData!C21,LEN(StudentData!C21)-SEARCH(" ",StudentData!C21,SEARCH(" ",StudentData!C21,SEARCH(" ",StudentData!C21,1)+1)-1)),1)&".") -> BABARIYA DASHARATHBHAI G. | E21: =IF(StudentData!G21="","",StudentData!G21) ->  | F21: 9 | G21: 9 | H21: 9 | I21: 9 | J21: 9 | K21: 45 | L21: 9 | M21: 9 | N21: 9 | O21: 9 | P21: 9 | Q21: 9 | R21: 45 | S21: 9 | T21: 49 | U21: 25 | V21: 9 | W21: 9 | X21: 9 | Y21: 9 | Z21: 9 | AA21: 45 | AB21: 9 | AC21: 9 | AD21: 9 | AE21: 9 | AF21: 9 | AG21: 9 | AH21: 45 | AI21: 9 | AJ21: 47 | AK21: 24 | AL21: 9 | AM21: 9 | AN21: 9 | AO21: 9 | AP21: 9 | AQ21: 45 | AR21: 9 | AS21: 9 | AT21: 9 | AU21: 6 | AV21: 8 | AW21: 9 | AX21: 41 | AY21: 8 | AZ21: 45 | BA21: 23 | BB21: 5 | BC21: 9 | BD21: 8 | BE21: 6 | BF21: 9 | BG21: 37 | BH21: 7 | BI21: 5 | BJ21: 5 | BK21: 9 | BL21: 8 | BM21: 6 | BN21: 33 | BO21: 7 | BP21: 45 | BQ21: 23 | BR21: 9 | BS21: 9 | BT21: 6 | BU21: 8 | BV21: 9 | BW21: 41 | BX21: 8 | BY21: 9 | BZ21: 9 | CA21: 6 | CB21: 8 | CC21: 9 | CD21: 41 | CE21: 8 | CF21: 37 | CG21: 19 | CH21: 9 | CI21: 9 | CJ21: 9 | CK21: 9 | CL21: 9 | CM21: 45 | CN21: 9 | CO21: 8 | CP21: 6 | CQ21: 9 | CR21: 9 | CS21: 9 | CT21: 41 | CU21: 8 | CV21: 37 | CW21: 19 | CX21: 9 | CY21: 9 | CZ21: 9 | DA21: 9 | DB21: 9 | DC21: 45 | DD21: 9 | DE21: 9 | DF21: 9 | DG21: 6 | DH21: 8 | DI21: 9 | DJ21: 41 | DK21: 8 | DL21: 41 | DM21: 21 | DN21: 7 | DO21: 8 | DP21: 9 | DQ21: 8 | DR21: 4 | DS21: 36 | DT21: 22 | DU21: 9 | DV21: 2 | DW21: 5 | DX21: 9 | DY21: 9 | DZ21: 34 | EA21: 20 | EB21: 36 | EC21: 78 | ED21: A | EE21: 9 | EF21: 9 | EG21: 9 | EH21: 9 | EI21: 9 | EJ21: 45 | EK21: 27 | EL21: 9 | EM21: 9 | EN21: 9 | EO21: 9 | EP21: 9 | EQ21: 45 | ER21: 27 | ES21: 34 | ET21: 88 | EU21: A | EV21: 9 | EW21: 9 | EX21: 9 | EY21: 9 | EZ21: 9 | FA21: 45 | FB21: 27 | FC21: 9 | FD21: 9 | FE21: 9 | FF21: 9 | FG21: 9 | FH21: 45 | FI21: 27 | FJ21: 23 | FK21: 77 | FL21: A
B22: =IF(StudentData!A22="","",StudentData!A22) -> 12 | C22: =IF(StudentData!B22="","",StudentData!B22) -> 12 | D22: =IF(StudentData!C22="","",(LEFT(TRIM(CLEAN(StudentData!C22)),SEARCH(" ",TRIM(CLEAN(StudentData!C22)),SEARCH(" ",TRIM(CLEAN(StudentData!C22)),1)+1)))&" "&LEFT(RIGHT(StudentData!C22,LEN(StudentData!C22)-SEARCH(" ",StudentData!C22,SEARCH(" ",StudentData!C22,SEARCH(" ",StudentData!C22,1)+1)-1)),1)&".") -> THAKOR DARSHAN C. | E22: =IF(StudentData!G22="","",StudentData!G22) ->  | F22: 9 | G22: 6 | H22: 9 | I22: 7 | J22: 9 | K22: 40 | L22: 8 | M22: 9 | N22: 6 | O22: 9 | P22: 6 | Q22: 9 | R22: 39 | S22: 8 | T22: 40 | U22: 20 | V22: 2 | W22: 9 | X22: 5 | Y22: 2 | Z22: 4 | AA22: 22 | AB22: 4 | AC22: 2 | AD22: 2 | AE22: 9 | AF22: 5 | AG22: 2 | AH22: 20 | AI22: 4 | AJ22: 22 | AK22: 11 | AL22: 4 | AM22: 4 | AN22: 2 | AO22: 4 | AP22: 1 | AQ22: 15 | AR22: 3 | AS22: 1 | AT22: 1 | AU22: 3 | AV22: 2 | AW22: 7 | AX22: 14 | AY22: 3 | AZ22: 27 | BA22: 14 | BB22: 6 | BC22: 4 | BD22: 9 | BE22: 5 | BF22: 9 | BG22: 33 | BH22: 7 | BI22: 6 | BJ22: 6 | BK22: 4 | BL22: 9 | BM22: 5 | BN22: 30 | BO22: 6 | BP22: 20 | BQ22: 10 | BR22: 1 | BS22: 1 | BT22: 3 | BU22: 2 | BV22: 7 | BW22: 14 | BX22: 3 | BY22: 1 | BZ22: 1 | CA22: 3 | CB22: 2 | CC22: 7 | CD22: 14 | CE22: 3 | CF22: 33 | CG22: 17 | CH22: 4 | CI22: 9 | CJ22: 7 | CK22: 5 | CL22: 2 | CM22: 27 | CN22: 5 | CO22: 9 | CP22: 5 | CQ22: 9 | CR22: 5 | CS22: 2 | CT22: 30 | CU22: 6 | CV22: 18 | CW22: 9 | CX22: 4 | CY22: 2 | CZ22: 4 | DA22: 1 | DB22: 9 | DC22: 20 | DD22: 4 | DE22: 1 | DF22: 1 | DG22: 3 | DH22: 2 | DI22: 7 | DJ22: 14 | DK22: 3 | DL22: 21 | DM22: 11 | DN22: 1 | DO22: 8 | DP22: 4 | DQ22: 5 | DR22: 8 | DS22: 26 | DT22: 16 | DU22: 5 | DV22: 3 | DW22: 6 | DX22: 8 | DY22: 4 | DZ22: 26 | EA22: 16 | EB22: 26 | EC22: 58 | ED22: B | EE22: 9 | EF22: 6 | EG22: 9 | EH22: 7 | EI22: 9 | EJ22: 40 | EK22: 24 | EL22: 2 | EM22: 9 | EN22: 5 | EO22: 2 | EP22: 4 | EQ22: 22 | ER22: 13 | ES22: 26 | ET22: 63 | EU22: B+ | EV22: 9 | EW22: 6 | EX22: 9 | EY22: 7 | EZ22: 9 | FA22: 40 | FB22: 24 | FC22: 2 | FD22: 9 | FE22: 5 | FF22: 2 | FG22: 4 | FH22: 22 | FI22: 13 | FJ22: 20 | FK22: 57 | FL22: B
B23: =IF(StudentData!A23="","",StudentData!A23) -> 13 | C23: =IF(StudentData!B23="","",StudentData!B23) -> 13 | D23: =IF(StudentData!C23="","",(LEFT(TRIM(CLEAN(StudentData!C23)),SEARCH(" ",TRIM(CLEAN(StudentData!C23)),SEARCH(" ",TRIM(CLEAN(StudentData!C23)),1)+1)))&" "&LEFT(RIGHT(StudentData!C23,LEN(StudentData!C23)-SEARCH(" ",StudentData!C23,SEARCH(" ",StudentData!C23,SEARCH(" ",StudentData!C23,1)+1)-1)),1)&".") -> SIPAI FAIZAN D. | E23: =IF(StudentData!G23="","",StudentData!G23) ->  | F23: 6 | G23: 7 | H23: 5 | I23: 9 | J23: 6 | K23: 33 | L23: 7 | M23: 6 | N23: 7 | O23: 5 | P23: 7 | Q23: 5 | R23: 30 | S23: 6 | T23: 33 | U23: 17 | V23: 9 | W23: 8 | X23: 5 | Y23: 4 | Z23: 9 | AA23: 35 | AB23: 7 | AC23: 9 | AD23: 9 | AE23: 8 | AF23: 5 | AG23: 4 | AH23: 35 | AI23: 7 | AJ23: 35 | AK23: 18 | AL23: 9 | AM23: 9 | AN23: 6 | AO23: 9 | AP23: 7 | AQ23: 40 | AR23: 8 | AS23: 6 | AT23: 6 | AU23: 6 | AV23: 4 | AW23: 9 | AX23: 31 | AY23: 6 | AZ23: 35 | BA23: 18 | BB23: 9 | BC23: 6 | BD23: 9 | BE23: 7 | BF23: 9 | BG23: 40 | BH23: 8 | BI23: 9 | BJ23: 9 | BK23: 6 | BL23: 9 | BM23: 7 | BN23: 40 | BO23: 8 | BP23: 38 | BQ23: 19 | BR23: 6 | BS23: 6 | BT23: 6 | BU23: 4 | BV23: 9 | BW23: 31 | BX23: 6 | BY23: 6 | BZ23: 6 | CA23: 6 | CB23: 4 | CC23: 9 | CD23: 31 | CE23: 6 | CF23: 40 | CG23: 20 | CH23: 4 | CI23: 8 | CJ23: 9 | CK23: 7 | CL23: 7 | CM23: 35 | CN23: 7 | CO23: 9 | CP23: 7 | CQ23: 9 | CR23: 7 | CS23: 7 | CT23: 39 | CU23: 8 | CV23: 16 | CW23: 8 | CX23: 9 | CY23: 6 | CZ23: 9 | DA23: 7 | DB23: 7 | DC23: 38 | DD23: 8 | DE23: 6 | DF23: 6 | DG23: 6 | DH23: 4 | DI23: 9 | DJ23: 31 | DK23: 6 | DL23: 28 | DM23: 14 | DN23: 6 | DO23: 3 | DP23: 9 | DQ23: 6 | DR23: 9 | DS23: 33 | DT23: 20 | DU23: 6 | DV23: 5 | DW23: 8 | DX23: 9 | DY23: 4 | DZ23: 32 | EA23: 19 | EB23: 33 | EC23: 72 | ED23: B+ | EE23: 6 | EF23: 7 | EG23: 5 | EH23: 9 | EI23: 6 | EJ23: 33 | EK23: 20 | EL23: 9 | EM23: 8 | EN23: 5 | EO23: 4 | EP23: 9 | EQ23: 35 | ER23: 21 | ES23: 32 | ET23: 73 | EU23: B+ | EV23: 6 | EW23: 7 | EX23: 5 | EY23: 9 | EZ23: 6 | FA23: 33 | FB23: 20 | FC23: 9 | FD23: 8 | FE23: 5 | FF23: 4 | FG23: 9 | FH23: 35 | FI23: 21 | FJ23: 22 | FK23: 63 | FL23: B+
B24: =IF(StudentData!A24="","",StudentData!A24) -> 14 | C24: =IF(StudentData!B24="","",StudentData!B24) -> 14 | D24: =IF(StudentData!C24="","",(LEFT(TRIM(CLEAN(StudentData!C24)),SEARCH(" ",TRIM(CLEAN(StudentData!C24)),SEARCH(" ",TRIM(CLEAN(StudentData!C24)),1)+1)))&" "&LEFT(RIGHT(StudentData!C24,LEN(StudentData!C24)-SEARCH(" ",StudentData!C24,SEARCH(" ",StudentData!C24,SEARCH(" ",StudentData!C24,1)+1)-1)),1)&".") -> RATHOD MHAVESHKUMAR J. | E24: =IF(StudentData!G24="","",StudentData!G24) ->  | F24: 9 | G24: 9 | H24: 5 | I24: 8 | J24: 4 | K24: 35 | L24: 7 | M24: 9 | N24: 9 | O24: 5 | P24: 9 | Q24: 5 | R24: 37 | S24: 7 | T24: 35 | U24: 18 | V24: 6 | W24: 5 | X24: 5 | Y24: 5 | Z24: 9 | AA24: 30 | AB24: 6 | AC24: 6 | AD24: 6 | AE24: 5 | AF24: 5 | AG24: 5 | AH24: 27 | AI24: 5 | AJ24: 30 | AK24: 15 | AL24: 4 | AM24: 4 | AN24: 7 | AO24: 4 | AP24: 6 | AQ24: 25 | AR24: 5 | AS24: 1 | AT24: 1 | AU24: 2 | AV24: 6 | AW24: 7 | AX24: 17 | AY24: 3 | AZ24: 26 | BA24: 13 | BB24: 9 | BC24: 7 | BD24: 4 | BE24: 2 | BF24: 8 | BG24: 30 | BH24: 6 | BI24: 9 | BJ24: 9 | BK24: 7 | BL24: 4 | BM24: 2 | BN24: 31 | BO24: 6 | BP24: 28 | BQ24: 14 | BR24: 1 | BS24: 1 | BT24: 2 | BU24: 6 | BV24: 7 | BW24: 17 | BX24: 3 | BY24: 1 | BZ24: 1 | CA24: 2 | CB24: 6 | CC24: 7 | CD24: 17 | CE24: 3 | CF24: 30 | CG24: 15 | CH24: 4 | CI24: 5 | CJ24: 6 | CK24: 9 | CL24: 2 | CM24: 26 | CN24: 5 | CO24: 4 | CP24: 2 | CQ24: 8 | CR24: 9 | CS24: 2 | CT24: 25 | CU24: 5 | CV24: 14 | CW24: 7 | CX24: 4 | CY24: 7 | CZ24: 4 | DA24: 6 | DB24: 7 | DC24: 28 | DD24: 6 | DE24: 1 | DF24: 1 | DG24: 2 | DH24: 6 | DI24: 7 | DJ24: 17 | DK24: 3 | DL24: 17 | DM24: 9 | DN24: 4 | DO24: 3 | DP24: 7 | DQ24: 7 | DR24: 6 | DS24: 27 | DT24: 16 | DU24: 4 | DV24: 5 | DW24: 5 | DX24: 8 | DY24: 4 | DZ24: 26 | EA24: 16 | EB24: 27 | EC24: 59 | ED24: B | EE24: 9 | EF24: 9 | EG24: 5 | EH24: 8 | EI24: 4 | EJ24: 35 | EK24: 21 | EL24: 6 | EM24: 5 | EN24: 5 | EO24: 5 | EP24: 9 | EQ24: 30 | ER24: 18 | ES24: 26 | ET24: 65 | EU24: B+ | EV24: 9 | EW24: 9 | EX24: 5 | EY24: 8 | EZ24: 4 | FA24: 35 | FB24: 21 | FC24: 6 | FD24: 5 | FE24: 5 | FF24: 5 | FG24: 9 | FH24: 30 | FI24: 18 | FJ24: 22 | FK24: 61 | FL24: B+
B25: =IF(StudentData!A25="","",StudentData!A25) -> 15 | C25: =IF(StudentData!B25="","",StudentData!B25) -> 15 | D25: =IF(StudentData!C25="","",(LEFT(TRIM(CLEAN(StudentData!C25)),SEARCH(" ",TRIM(CLEAN(StudentData!C25)),SEARCH(" ",TRIM(CLEAN(StudentData!C25)),1)+1)))&" "&LEFT(RIGHT(StudentData!C25,LEN(StudentData!C25)-SEARCH(" ",StudentData!C25,SEARCH(" ",StudentData!C25,SEARCH(" ",StudentData!C25,1)+1)-1)),1)&".") -> RABARI BHAILALBHAI D. | E25: =IF(StudentData!G25="","",StudentData!G25) ->  | F25: 8 | G25: 9 | H25: 9 | I25: 5 | J25: 9 | K25: 40 | L25: 8 | M25: 8 | N25: 9 | O25: 9 | P25: 9 | Q25: 9 | R25: 44 | S25: 9 | T25: 40 | U25: 20 | V25: 7 | W25: 8 | X25: 8 | Y25: 6 | Z25: 6 | AA25: 35 | AB25: 7 | AC25: 7 | AD25: 7 | AE25: 8 | AF25: 8 | AG25: 6 | AH25: 36 | AI25: 7 | AJ25: 35 | AK25: 18 | AL25: 9 | AM25: 9 | AN25: 8 | AO25: 8 | AP25: 4 | AQ25: 38 | AR25: 8 | AS25: 7 | AT25: 7 | AU25: 2 | AV25: 2 | AW25: 9 | AX25: 27 | AY25: 5 | AZ25: 29 | BA25: 15 | BB25: 2 | BC25: 7 | BD25: 3 | BE25: 5 | BF25: 5 | BG25: 22 | BH25: 4 | BI25: 2 | BJ25: 2 | BK25: 7 | BL25: 3 | BM25: 5 | BN25: 19 | BO25: 4 | BP25: 36 | BQ25: 18 | BR25: 7 | BS25: 7 | BT25: 2 | BU25: 2 | BV25: 9 | BW25: 27 | BX25: 5 | BY25: 7 | BZ25: 7 | CA25: 2 | CB25: 2 | CC25: 9 | CD25: 27 | CE25: 5 | CF25: 22 | CG25: 11 | CH25: 4 | CI25: 4 | CJ25: 8 | CK25: 9 | CL25: 4 | CM25: 29 | CN25: 6 | CO25: 3 | CP25: 5 | CQ25: 5 | CR25: 9 | CS25: 4 | CT25: 26 | CU25: 5 | CV25: 21 | CW25: 11 | CX25: 9 | CY25: 8 | CZ25: 8 | DA25: 4 | DB25: 7 | DC25: 36 | DD25: 7 | DE25: 7 | DF25: 7 | DG25: 2 | DH25: 2 | DI25: 9 | DJ25: 27 | DK25: 5 | DL25: 21 | DM25: 11 | DN25: 6 | DO25: 6 | DP25: 6 | DQ25: 2 | DR25: 6 | DS25: 26 | DT25: 16 | DU25: 6 | DV25: 7 | DW25: 1 | DX25: 6 | DY25: 4 | DZ25: 24 | EA25: 14 | EB25: 26 | EC25: 56 | ED25: B | EE25: 8 | EF25: 9 | EG25: 9 | EH25: 5 | EI25: 9 | EJ25: 40 | EK25: 24 | EL25: 7 | EM25: 8 | EN25: 8 | EO25: 6 | EP25: 6 | EQ25: 35 | ER25: 21 | ES25: 24 | ET25: 69 | EU25: B+ | EV25: 8 | EW25: 9 | EX25: 9 | EY25: 5 | EZ25: 9 | FA25: 40 | FB25: 24 | FC25: 7 | FD25: 8 | FE25: 8 | FF25: 6 | FG25: 6 | FH25: 35 | FI25: 21 | FJ25: 29 | FK25: 74 | FL25: B+
B26: =IF(StudentData!A26="","",StudentData!A26) -> 16 | C26: =IF(StudentData!B26="","",StudentData!B26) -> 16 | D26: =IF(StudentData!C26="","",(LEFT(TRIM(CLEAN(StudentData!C26)),SEARCH(" ",TRIM(CLEAN(StudentData!C26)),SEARCH(" ",TRIM(CLEAN(StudentData!C26)),1)+1)))&" "&LEFT(RIGHT(StudentData!C26,LEN(StudentData!C26)-SEARCH(" ",StudentData!C26,SEARCH(" ",StudentData!C26,SEARCH(" ",StudentData!C26,1)+1)-1)),1)&".") -> CHAVDA BADALBHAI M. | E26: =IF(StudentData!G26="","",StudentData!G26) ->  | F26: 2 | G26: 4 | H26: 8 | I26: 1 | J26: 9 | K26: 24 | L26: 5 | M26: 2 | N26: 4 | O26: 8 | P26: 4 | Q26: 8 | R26: 26 | S26: 5 | T26: 24 | U26: 12 | V26: 3 | W26: 1 | X26: 6 | Y26: 4 | Z26: 1 | AA26: 15 | AB26: 3 | AC26: 3 | AD26: 3 | AE26: 1 | AF26: 6 | AG26: 4 | AH26: 17 | AI26: 3 | AJ26: 15 | AK26: 8 | AL26: 3 | AM26: 3 | AN26: 1 | AO26: 1 | AP26: 7 | AQ26: 15 | AR26: 3 | AS26: 5 | AT26: 5 | AU26: 1 | AV26: 1 | AW26: 5 | AX26: 17 | AY26: 3 | AZ26: 26 | BA26: 13 | BB26: 9 | BC26: 1 | BD26: 7 | BE26: 3 | BF26: 6 | BG26: 26 | BH26: 5 | BI26: 9 | BJ26: 9 | BK26: 1 | BL26: 7 | BM26: 3 | BN26: 29 | BO26: 6 | BP26: 13 | BQ26: 7 | BR26: 5 | BS26: 5 | BT26: 1 | BU26: 1 | BV26: 5 | BW26: 17 | BX26: 3 | BY26: 5 | BZ26: 5 | CA26: 1 | CB26: 1 | CC26: 5 | CD26: 17 | CE26: 3 | CF26: 26 | CG26: 13 | CH26: 8 | CI26: 3 | CJ26: 2 | CK26: 7 | CL26: 6 | CM26: 26 | CN26: 5 | CO26: 7 | CP26: 3 | CQ26: 6 | CR26: 7 | CS26: 6 | CT26: 29 | CU26: 6 | CV26: 16 | CW26: 8 | CX26: 3 | CY26: 1 | CZ26: 1 | DA26: 7 | DB26: 1 | DC26: 13 | DD26: 3 | DE26: 5 | DF26: 5 | DG26: 1 | DH26: 1 | DI26: 5 | DJ26: 17 | DK26: 3 | DL26: 13 | DM26: 7 | DN26: 2 | DO26: 3 | DP26: 6 | DQ26: 2 | DR26: 5 | DS26: 18 | DT26: 11 | DU26: 9 | DV26: 2 | DW26: 3 | DX26: 4 | DY26: 3 | DZ26: 21 | EA26: 13 | EB26: 18 | EC26: 42 | ED26: C | EE26: 2 | EF26: 4 | EG26: 8 | EH26: 1 | EI26: 9 | EJ26: 24 | EK26: 14 | EL26: 3 | EM26: 1 | EN26: 6 | EO26: 4 | EP26: 1 | EQ26: 15 | ER26: 9 | ES26: 21 | ET26: 44 | EU26: C | EV26: 2 | EW26: 4 | EX26: 8 | EY26: 1 | EZ26: 9 | FA26: 24 | FB26: 14 | FC26: 3 | FD26: 1 | FE26: 6 | FF26: 4 | FG26: 1 | FH26: 15 | FI26: 9 | FJ26: 18 | FK26: 41 | FL26: C
B27: =IF(StudentData!A27="","",StudentData!A27) -> 17 | C27: =IF(StudentData!B27="","",StudentData!B27) -> 17 | D27: =IF(StudentData!C27="","",(LEFT(TRIM(CLEAN(StudentData!C27)),SEARCH(" ",TRIM(CLEAN(StudentData!C27)),SEARCH(" ",TRIM(CLEAN(StudentData!C27)),1)+1)))&" "&LEFT(RIGHT(StudentData!C27,LEN(StudentData!C27)-SEARCH(" ",StudentData!C27,SEARCH(" ",StudentData!C27,SEARCH(" ",StudentData!C27,1)+1)-1)),1)&".") -> RATHOD CHIRAGKUMAR M. | E27: =IF(StudentData!G27="","",StudentData!G27) ->  | F27: 9 | G27: 9 | H27: 9 | I27: 9 | J27: 9 | K27: 45 | L27: 9 | M27: 9 | N27: 9 | O27: 9 | P27: 9 | Q27: 9 | R27: 45 | S27: 9 | T27: 45 | U27: 23 | V27: 9 | W27: 6 | X27: 8 | Y27: 9 | Z27: 9 | AA27: 41 | AB27: 8 | AC27: 9 | AD27: 9 | AE27: 6 | AF27: 8 | AG27: 9 | AH27: 41 | AI27: 8 | AJ27: 41 | AK27: 21 | AL27: 9 | AM27: 9 | AN27: 5 | AO27: 5 | AP27: 9 | AQ27: 37 | AR27: 7 | AS27: 6 | AT27: 6 | AU27: 2 | AV27: 2 | AW27: 6 | AX27: 22 | AY27: 4 | AZ27: 39 | BA27: 20 | BB27: 5 | BC27: 9 | BD27: 9 | BE27: 9 | BF27: 6 | BG27: 38 | BH27: 8 | BI27: 5 | BJ27: 5 | BK27: 9 | BL27: 9 | BM27: 9 | BN27: 37 | BO27: 7 | BP27: 37 | BQ27: 19 | BR27: 6 | BS27: 6 | BT27: 2 | BU27: 2 | BV27: 6 | BW27: 22 | BX27: 4 | BY27: 6 | BZ27: 6 | CA27: 2 | CB27: 2 | CC27: 6 | CD27: 22 | CE27: 4 | CF27: 38 | CG27: 19 | CH27: 9 | CI27: 9 | CJ27: 8 | CK27: 7 | CL27: 6 | CM27: 39 | CN27: 8 | CO27: 9 | CP27: 9 | CQ27: 6 | CR27: 7 | CS27: 6 | CT27: 37 | CU27: 7 | CV27: 21 | CW27: 11 | CX27: 9 | CY27: 5 | CZ27: 5 | DA27: 9 | DB27: 9 | DC27: 37 | DD27: 7 | DE27: 6 | DF27: 6 | DG27: 2 | DH27: 2 | DI27: 6 | DJ27: 22 | DK27: 4 | DL27: 25 | DM27: 13 | DN27: 4 | DO27: 2 | DP27: 5 | DQ27: 9 | DR27: 7 | DS27: 27 | DT27: 16 | DU27: 8 | DV27: 2 | DW27: 4 | DX27: 6 | DY27: 3 | DZ27: 23 | EA27: 14 | EB27: 27 | EC27: 57 | ED27: B | EE27: 9 | EF27: 9 | EG27: 9 | EH27: 9 | EI27: 9 | EJ27: 45 | EK27: 27 | EL27: 9 | EM27: 6 | EN27: 8 | EO27: 9 | EP27: 9 | EQ27: 41 | ER27: 25 | ES27: 23 | ET27: 75 | EU27: A | EV27: 9 | EW27: 9 | EX27: 9 | EY27: 9 | EZ27: 9 | FA27: 45 | FB27: 27 | FC27: 9 | FD27: 6 | FE27: 8 | FF27: 9 | FG27: 9 | FH27: 41 | FI27: 25 | FJ27: 29 | FK27: 81 | FL27: A
B28: =IF(StudentData!A28="","",StudentData!A28) -> 18 | C28: =IF(StudentData!B28="","",StudentData!B28) -> 18 | D28: =IF(StudentData!C28="","",(LEFT(TRIM(CLEAN(StudentData!C28)),SEARCH(" ",TRIM(CLEAN(StudentData!C28)),SEARCH(" ",TRIM(CLEAN(StudentData!C28)),1)+1)))&" "&LEFT(RIGHT(StudentData!C28,LEN(StudentData!C28)-SEARCH(" ",StudentData!C28,SEARCH(" ",StudentData!C28,SEARCH(" ",StudentData!C28,1)+1)-1)),1)&".") -> VALMIKI AMRUTBHAI I. | E28: =IF(StudentData!G28="","",StudentData!G28) ->  | F28: 6 | G28: 8 | H28: 8 | I28: 9 | J28: 9 | K28: 40 | L28: 8 | M28: 6 | N28: 8 | O28: 8 | P28: 8 | Q28: 8 | R28: 38 | S28: 8 | T28: 40 | U28: 20 | V28: 8 | W28: 3 | X28: 8 | Y28: 5 | Z28: 9 | AA28: 33 | AB28: 7 | AC28: 8 | AD28: 8 | AE28: 3 | AF28: 8 | AG28: 5 | AH28: 32 | AI28: 6 | AJ28: 33 | AK28: 17 | AL28: 2 | AM28: 2 | AN28: 1 | AO28: 3 | AP28: 1 | AQ28: 9 | AR28: 2 | AS28: 7 | AT28: 7 | AU28: 5 | AV28: 2 | AW28: 2 | AX28: 23 | AY28: 5 | AZ28: 33 | BA28: 17 | BB28: 1 | BC28: 7 | BD28: 5 | BE28: 3 | BF28: 1 | BG28: 17 | BH28: 3 | BI28: 1 | BJ28: 1 | BK28: 7 | BL28: 5 | BM28: 3 | BN28: 17 | BO28: 3 | BP28: 14 | BQ28: 7 | BR28: 7 | BS28: 7 | BT28: 5 | BU28: 2 | BV28: 2 | BW28: 23 | BX28: 5 | BY28: 7 | BZ28: 7 | CA28: 5 | CB28: 2 | CC28: 2 | CD28: 23 | CE28: 5 | CF28: 17 | CG28: 9 | CH28: 9 | CI28: 6 | CJ28: 7 | CK28: 7 | CL28: 4 | CM28: 33 | CN28: 7 | CO28: 5 | CP28: 3 | CQ28: 1 | CR28: 7 | CS28: 4 | CT28: 20 | CU28: 4 | CV28: 21 | CW28: 11 | CX28: 2 | CY28: 1 | CZ28: 3 | DA28: 1 | DB28: 7 | DC28: 14 | DD28: 3 | DE28: 7 | DF28: 7 | DG28: 5 | DH28: 2 | DI28: 2 | DJ28: 23 | DK28: 5 | DL28: 20 | DM28: 10 | DN28: 5 | DO28: 6 | DP28: 7 | DQ28: 6 | DR28: 3 | DS28: 27 | DT28: 16 | DU28: 5 | DV28: 5 | DW28: 4 | DX28: 8 | DY28: 7 | DZ28: 29 | EA28: 17 | EB28: 27 | EC28: 60 | ED28: B+ | EE28: 6 | EF28: 8 | EG28: 8 | EH28: 9 | EI28: 9 | EJ28: 40 | EK28: 24 | EL28: 8 | EM28: 3 | EN28: 8 | EO28: 5 | EP28: 9 | EQ28: 33 | ER28: 20 | ES28: 29 | ET28: 73 | EU28: B+ | EV28: 6 | EW28: 8 | EX28: 8 | EY28: 9 | EZ28: 9 | FA28: 40 | FB28: 24 | FC28: 8 | FD28: 3 | FE28: 8 | FF28: 5 | FG28: 9 | FH28: 33 | FI28: 20 | FJ28: 28 | FK28: 72 | FL28: B+
B29: =IF(StudentData!A29="","",StudentData!A29) -> 19 | C29: =IF(StudentData!B29="","",StudentData!B29) -> 19 | D29: =IF(StudentData!C29="","",(LEFT(TRIM(CLEAN(StudentData!C29)),SEARCH(" ",TRIM(CLEAN(StudentData!C29)),SEARCH(" ",TRIM(CLEAN(StudentData!C29)),1)+1)))&" "&LEFT(RIGHT(StudentData!C29,LEN(StudentData!C29)-SEARCH(" ",StudentData!C29,SEARCH(" ",StudentData!C29,SEARCH(" ",StudentData!C29,1)+1)-1)),1)&".") -> KOLA SAHAR J. | E29: =IF(StudentData!G29="","",StudentData!G29) ->  | F29: 2 | G29: 8 | H29: 9 | I29: 9 | J29: 9 | K29: 37 | L29: 7 | M29: 2 | N29: 8 | O29: 9 | P29: 8 | Q29: 9 | R29: 36 | S29: 7 | T29: 37 | U29: 19 | V29: 4 | W29: 8 | X29: 4 | Y29: 1 | Z29: 4 | AA29: 21 | AB29: 4 | AC29: 4 | AD29: 4 | AE29: 8 | AF29: 4 | AG29: 1 | AH29: 21 | AI29: 4 | AJ29: 21 | AK29: 11 | AL29: 4 | AM29: 4 | AN29: 4 | AO29: 5 | AP29: 3 | AQ29: 20 | AR29: 4 | AS29: 1 | AT29: 1 | AU29: 2 | AV29: 6 | AW29: 8 | AX29: 18 | AY29: 4 | AZ29: 31 | BA29: 16 | BB29: 7 | BC29: 1 | BD29: 3 | BE29: 7 | BF29: 2 | BG29: 20 | BH29: 4 | BI29: 7 | BJ29: 7 | BK29: 1 | BL29: 3 | BM29: 7 | BN29: 25 | BO29: 5 | BP29: 20 | BQ29: 10 | BR29: 1 | BS29: 1 | BT29: 2 | BU29: 6 | BV29: 8 | BW29: 18 | BX29: 4 | BY29: 1 | BZ29: 1 | CA29: 2 | CB29: 6 | CC29: 8 | CD29: 18 | CE29: 4 | CF29: 20 | CG29: 10 | CH29: 3 | CI29: 7 | CJ29: 3 | CK29: 9 | CL29: 9 | CM29: 31 | CN29: 6 | CO29: 3 | CP29: 7 | CQ29: 2 | CR29: 9 | CS29: 9 | CT29: 30 | CU29: 6 | CV29: 12 | CW29: 6 | CX29: 4 | CY29: 4 | CZ29: 5 | DA29: 3 | DB29: 4 | DC29: 20 | DD29: 4 | DE29: 1 | DF29: 1 | DG29: 2 | DH29: 6 | DI29: 8 | DJ29: 18 | DK29: 4 | DL29: 20 | DM29: 10 | DN29: 5 | DO29: 1 | DP29: 3 | DQ29: 8 | DR29: 5 | DS29: 22 | DT29: 13 | DU29: 1 | DV29: 5 | DW29: 2 | DX29: 5 | DY29: 1 | DZ29: 14 | EA29: 8 | EB29: 22 | EC29: 43 | ED29: C | EE29: 2 | EF29: 8 | EG29: 9 | EH29: 9 | EI29: 9 | EJ29: 37 | EK29: 22 | EL29: 4 | EM29: 8 | EN29: 4 | EO29: 1 | EP29: 4 | EQ29: 21 | ER29: 13 | ES29: 14 | ET29: 49 | EU29: B | EV29: 2 | EW29: 8 | EX29: 9 | EY29: 9 | EZ29: 9 | FA29: 37 | FB29: 22 | FC29: 4 | FD29: 8 | FE29: 4 | FF29: 1 | FG29: 4 | FH29: 21 | FI29: 13 | FJ29: 22 | FK29: 57 | FL29: B
B30: =IF(StudentData!A30="","",StudentData!A30) -> 20 | C30: =IF(StudentData!B30="","",StudentData!B30) -> 20 | D30: =IF(StudentData!C30="","",(LEFT(TRIM(CLEAN(StudentData!C30)),SEARCH(" ",TRIM(CLEAN(StudentData!C30)),SEARCH(" ",TRIM(CLEAN(StudentData!C30)),1)+1)))&" "&LEFT(RIGHT(StudentData!C30,LEN(StudentData!C30)-SEARCH(" ",StudentData!C30,SEARCH(" ",StudentData!C30,SEARCH(" ",StudentData!C30,1)+1)-1)),1)&".") -> GOHIL VIJAYBHAI A. | E30: =IF(StudentData!G30="","",StudentData!G30) ->  | F30: 9 | G30: 6 | H30: 2 | I30: 4 | J30: 8 | K30: 29 | L30: 6 | M30: 9 | N30: 6 | O30: 2 | P30: 6 | Q30: 2 | R30: 25 | S30: 5 | T30: 29 | U30: 15 | V30: 7 | W30: 2 | X30: 8 | Y30: 6 | Z30: 2 | AA30: 25 | AB30: 5 | AC30: 7 | AD30: 7 | AE30: 2 | AF30: 8 | AG30: 6 | AH30: 30 | AI30: 6 | AJ30: 25 | AK30: 13 | AL30: 3 | AM30: 3 | AN30: 3 | AO30: 1 | AP30: 1 | AQ30: 11 | AR30: 2 | AS30: 2 | AT30: 2 | AU30: 5 | AV30: 1 | AW30: 6 | AX30: 16 | AY30: 3 | AZ30: 30 | BA30: 15 | BB30: 1 | BC30: 7 | BD30: 1 | BE30: 1 | BF30: 5 | BG30: 15 | BH30: 3 | BI30: 1 | BJ30: 1 | BK30: 7 | BL30: 1 | BM30: 1 | BN30: 11 | BO30: 2 | BP30: 15 | BQ30: 8 | BR30: 2 | BS30: 2 | BT30: 5 | BU30: 1 | BV30: 6 | BW30: 16 | BX30: 3 | BY30: 2 | BZ30: 2 | CA30: 5 | CB30: 1 | CC30: 6 | CD30: 16 | CE30: 3 | CF30: 15 | CG30: 8 | CH30: 4 | CI30: 6 | CJ30: 8 | CK30: 3 | CL30: 9 | CM30: 30 | CN30: 6 | CO30: 1 | CP30: 1 | CQ30: 5 | CR30: 3 | CS30: 9 | CT30: 19 | CU30: 4 | CV30: 14 | CW30: 7 | CX30: 3 | CY30: 3 | CZ30: 1 | DA30: 1 | DB30: 7 | DC30: 15 | DD30: 3 | DE30: 2 | DF30: 2 | DG30: 5 | DH30: 1 | DI30: 6 | DJ30: 16 | DK30: 3 | DL30: 15 | DM30: 8 | DN30: 1 | DO30: 5 | DP30: 5 | DQ30: 5 | DR30: 5 | DS30: 21 | DT30: 13 | DU30: 1 | DV30: 5 | DW30: 9 | DX30: 2 | DY30: 1 | DZ30: 18 | EA30: 11 | EB30: 21 | EC30: 45 | ED30: B | EE30: 9 | EF30: 6 | EG30: 2 | EH30: 4 | EI30: 8 | EJ30: 29 | EK30: 17 | EL30: 7 | EM30: 2 | EN30: 8 | EO30: 6 | EP30: 2 | EQ30: 25 | ER30: 15 | ES30: 18 | ET30: 50 | EU30: B | EV30: 9 | EW30: 6 | EX30: 2 | EY30: 4 | EZ30: 8 | FA30: 29 | FB30: 17 | FC30: 7 | FD30: 2 | FE30: 8 | FF30: 6 | FG30: 2 | FH30: 25 | FI30: 15 | FJ30: 18 | FK30: 50 | FL30: B
B31: =IF(StudentData!A31="","",StudentData!A31) -> 21 | C31: =IF(StudentData!B31="","",StudentData!B31) -> 21 | D31: =IF(StudentData!C31="","",(LEFT(TRIM(CLEAN(StudentData!C31)),SEARCH(" ",TRIM(CLEAN(StudentData!C31)),SEARCH(" ",TRIM(CLEAN(StudentData!C31)),1)+1)))&" "&LEFT(RIGHT(StudentData!C31,LEN(StudentData!C31)-SEARCH(" ",StudentData!C31,SEARCH(" ",StudentData!C31,SEARCH(" ",StudentData!C31,1)+1)-1)),1)&".") -> MALEK SUFIYAN N. | E31: =IF(StudentData!G31="","",StudentData!G31) ->  | F31: 1 | G31: 1 | H31: 1 | I31: 1 | J31: 1 | K31: 5 | L31: 1 | M31: 1 | N31: 1 | O31: 1 | P31: 1 | Q31: 1 | R31: 5 | S31: 1 | T31: 5 | U31: 3 | V31: 7 | W31: 3 | X31: 1 | Y31: 1 | Z31: 2 | AA31: 14 | AB31: 3 | AC31: 7 | AD31: 7 | AE31: 3 | AF31: 1 | AG31: 1 | AH31: 19 | AI31: 4 | AJ31: 14 | AK31: 7 | AL31: 1 | AM31: 1 | AN31: 1 | AO31: 5 | AP31: 1 | AQ31: 9 | AR31: 2 | AS31: 8 | AT31: 8 | AU31: 3 | AV31: 3 | AW31: 1 | AX31: 23 | AY31: 5 | AZ31: 24 | BA31: 12 | BB31: 1 | BC31: 1 | BD31: 4 | BE31: 6 | BF31: 8 | BG31: 20 | BH31: 4 | BI31: 1 | BJ31: 1 | BK31: 1 | BL31: 4 | BM31: 6 | BN31: 13 | BO31: 3 | BP31: 16 | BQ31: 8 | BR31: 8 | BS31: 8 | BT31: 3 | BU31: 3 | BV31: 1 | BW31: 23 | BX31: 5 | BY31: 8 | BZ31: 8 | CA31: 3 | CB31: 3 | CC31: 1 | CD31: 23 | CE31: 5 | CF31: 20 | CG31: 10 | CH31: 7 | CI31: 4 | CJ31: 1 | CK31: 4 | CL31: 8 | CM31: 24 | CN31: 5 | CO31: 4 | CP31: 6 | CQ31: 8 | CR31: 4 | CS31: 8 | CT31: 30 | CU31: 6 | CV31: 11 | CW31: 6 | CX31: 1 | CY31: 1 | CZ31: 5 | DA31: 1 | DB31: 8 | DC31: 16 | DD31: 3 | DE31: 8 | DF31: 8 | DG31: 3 | DH31: 3 | DI31: 1 | DJ31: 23 | DK31: 5 | DL31: 16 | DM31: 8 | DN31: 6 | DO31: 1 | DP31: 3 | DQ31: 4 | DR31: 3 | DS31: 17 | DT31: 10 | DU31: 1 | DV31: 1 | DW31: 5 | DX31: 7 | DY31: 1 | DZ31: 15 | EA31: 9 | EB31: 17 | EC31: 36 | ED31: C | EE31: 1 | EF31: 1 | EG31: 1 | EH31: 1 | EI31: 1 | EJ31: 5 | EK31: 3 | EL31: 7 | EM31: 3 | EN31: 1 | EO31: 1 | EP31: 2 | EQ31: 14 | ER31: 8 | ES31: 15 | ET31: 26 | EU31: E | EV31: 1 | EW31: 1 | EX31: 1 | EY31: 1 | EZ31: 1 | FA31: 5 | FB31: 3 | FC31: 7 | FD31: 3 | FE31: 1 | FF31: 1 | FG31: 2 | FH31: 14 | FI31: 8 | FJ31: 14 | FK31: 25 | FL31: E
B32: =IF(StudentData!A32="","",StudentData!A32) -> 22 | C32: =IF(StudentData!B32="","",StudentData!B32) -> 22 | D32: =IF(StudentData!C32="","",(LEFT(TRIM(CLEAN(StudentData!C32)),SEARCH(" ",TRIM(CLEAN(StudentData!C32)),SEARCH(" ",TRIM(CLEAN(StudentData!C32)),1)+1)))&" "&LEFT(RIGHT(StudentData!C32,LEN(StudentData!C32)-SEARCH(" ",StudentData!C32,SEARCH(" ",StudentData!C32,SEARCH(" ",StudentData!C32,1)+1)-1)),1)&".") -> DALVADI DHANSHUKHBHAI N. | E32: =IF(StudentData!G32="","",StudentData!G32) ->  | F32: 5 | G32: 5 | H32: 9 | I32: 6 | J32: 8 | K32: 33 | L32: 7 | M32: 5 | N32: 5 | O32: 9 | P32: 5 | Q32: 9 | R32: 33 | S32: 7 | T32: 33 | U32: 17 | V32: 8 | W32: 6 | X32: 3 | Y32: 6 | Z32: 9 | AA32: 32 | AB32: 6 | AC32: 8 | AD32: 8 | AE32: 6 | AF32: 3 | AG32: 6 | AH32: 31 | AI32: 6 | AJ32: 32 | AK32: 16 | AL32: 5 | AM32: 5 | AN32: 9 | AO32: 3 | AP32: 8 | AQ32: 30 | AR32: 6 | AS32: 8 | AT32: 8 | AU32: 2 | AV32: 3 | AW32: 9 | AX32: 30 | AY32: 6 | AZ32: 35 | BA32: 18 | BB32: 6 | BC32: 3 | BD32: 9 | BE32: 5 | BF32: 2 | BG32: 25 | BH32: 5 | BI32: 6 | BJ32: 6 | BK32: 3 | BL32: 9 | BM32: 5 | BN32: 29 | BO32: 6 | BP32: 27 | BQ32: 14 | BR32: 8 | BS32: 8 | BT32: 2 | BU32: 3 | BV32: 9 | BW32: 30 | BX32: 6 | BY32: 8 | BZ32: 8 | CA32: 2 | CB32: 3 | CC32: 9 | CD32: 30 | CE32: 6 | CF32: 25 | CG32: 13 | CH32: 4 | CI32: 9 | CJ32: 5 | CK32: 8 | CL32: 9 | CM32: 35 | CN32: 7 | CO32: 9 | CP32: 5 | CQ32: 2 | CR32: 8 | CS32: 9 | CT32: 33 | CU32: 7 | CV32: 20 | CW32: 10 | CX32: 5 | CY32: 9 | CZ32: 3 | DA32: 8 | DB32: 2 | DC32: 27 | DD32: 5 | DE32: 8 | DF32: 8 | DG32: 2 | DH32: 3 | DI32: 9 | DJ32: 30 | DK32: 6 | DL32: 26 | DM32: 13 | DN32: 6 | DO32: 3 | DP32: 7 | DQ32: 2 | DR32: 4 | DS32: 22 | DT32: 13 | DU32: 6 | DV32: 7 | DW32: 9 | DX32: 3 | DY32: 3 | DZ32: 28 | EA32: 17 | EB32: 22 | EC32: 52 | ED32: B | EE32: 5 | EF32: 5 | EG32: 9 | EH32: 6 | EI32: 8 | EJ32: 33 | EK32: 20 | EL32: 8 | EM32: 6 | EN32: 3 | EO32: 6 | EP32: 9 | EQ32: 32 | ER32: 19 | ES32: 28 | ET32: 67 | EU32: B+ | EV32: 5 | EW32: 5 | EX32: 9 | EY32: 6 | EZ32: 8 | FA32: 33 | FB32: 20 | FC32: 8 | FD32: 6 | FE32: 3 | FF32: 6 | FG32: 9 | FH32: 32 | FI32: 19 | FJ32: 26 | FK32: 65 | FL32: B+
B33: =IF(StudentData!A33="","",StudentData!A33) -> 23 | C33: =IF(StudentData!B33="","",StudentData!B33) -> 23 | D33: =IF(StudentData!C33="","",(LEFT(TRIM(CLEAN(StudentData!C33)),SEARCH(" ",TRIM(CLEAN(StudentData!C33)),SEARCH(" ",TRIM(CLEAN(StudentData!C33)),1)+1)))&" "&LEFT(RIGHT(StudentData!C33,LEN(StudentData!C33)-SEARCH(" ",StudentData!C33,SEARCH(" ",StudentData!C33,SEARCH(" ",StudentData!C33,1)+1)-1)),1)&".") -> PARMAR RAVIRAJ R. | E33: =IF(StudentData!G33="","",StudentData!G33) ->  | F33: 9 | G33: 9 | H33: 9 | I33: 9 | J33: 9 | K33: 45 | L33: 9 | M33: 9 | N33: 9 | O33: 9 | P33: 9 | Q33: 9 | R33: 45 | S33: 9 | T33: 48 | U33: 24 | V33: 6 | W33: 7 | X33: 9 | Y33: 8 | Z33: 6 | AA33: 36 | AB33: 7 | AC33: 6 | AD33: 6 | AE33: 7 | AF33: 9 | AG33: 8 | AH33: 36 | AI33: 7 | AJ33: 36 | AK33: 18 | AL33: 9 | AM33: 9 | AN33: 9 | AO33: 9 | AP33: 9 | AQ33: 45 | AR33: 9 | AS33: 7 | AT33: 7 | AU33: 8 | AV33: 4 | AW33: 2 | AX33: 28 | AY33: 6 | AZ33: 43 | BA33: 22 | BB33: 9 | BC33: 8 | BD33: 2 | BE33: 7 | BF33: 6 | BG33: 32 | BH33: 6 | BI33: 9 | BJ33: 9 | BK33: 8 | BL33: 2 | BM33: 7 | BN33: 35 | BO33: 7 | BP33: 42 | BQ33: 21 | BR33: 7 | BS33: 7 | BT33: 8 | BU33: 4 | BV33: 2 | BW33: 28 | BX33: 6 | BY33: 7 | BZ33: 7 | CA33: 8 | CB33: 4 | CC33: 2 | CD33: 28 | CE33: 6 | CF33: 32 | CG33: 16 | CH33: 9 | CI33: 9 | CJ33: 8 | CK33: 8 | CL33: 9 | CM33: 43 | CN33: 9 | CO33: 2 | CP33: 7 | CQ33: 6 | CR33: 8 | CS33: 9 | CT33: 32 | CU33: 6 | CV33: 15 | CW33: 8 | CX33: 9 | CY33: 9 | CZ33: 9 | DA33: 9 | DB33: 6 | DC33: 42 | DD33: 8 | DE33: 7 | DF33: 7 | DG33: 8 | DH33: 4 | DI33: 2 | DJ33: 28 | DK33: 6 | DL33: 30 | DM33: 15 | DN33: 7 | DO33: 7 | DP33: 4 | DQ33: 6 | DR33: 4 | DS33: 28 | DT33: 17 | DU33: 9 | DV33: 6 | DW33: 9 | DX33: 9 | DY33: 5 | DZ33: 38 | EA33: 23 | EB33: 28 | EC33: 68 | ED33: B+ | EE33: 9 | EF33: 9 | EG33: 9 | EH33: 9 | EI33: 9 | EJ33: 45 | EK33: 27 | EL33: 6 | EM33: 7 | EN33: 9 | EO33: 8 | EP33: 6 | EQ33: 36 | ER33: 22 | ES33: 38 | ET33: 87 | EU33: A | EV33: 9 | EW33: 9 | EX33: 9 | EY33: 9 | EZ33: 9 | FA33: 45 | FB33: 27 | FC33: 6 | FD33: 7 | FE33: 9 | FF33: 8 | FG33: 6 | FH33: 36 | FI33: 22 | FJ33: 32 | FK33: 81 | FL33: A
B34: =IF(StudentData!A34="","",StudentData!A34) -> 24 | C34: =IF(StudentData!B34="","",StudentData!B34) -> 24 | D34: =IF(StudentData!C34="","",(LEFT(TRIM(CLEAN(StudentData!C34)),SEARCH(" ",TRIM(CLEAN(StudentData!C34)),SEARCH(" ",TRIM(CLEAN(StudentData!C34)),1)+1)))&" "&LEFT(RIGHT(StudentData!C34,LEN(StudentData!C34)-SEARCH(" ",StudentData!C34,SEARCH(" ",StudentData!C34,SEARCH(" ",StudentData!C34,1)+1)-1)),1)&".") -> ANSHARI NILESH V. | E34: =IF(StudentData!G34="","",StudentData!G34) ->  | F34: 6 | G34: 8 | H34: 9 | I34: 7 | J34: 9 | K34: 39 | L34: 8 | M34: 6 | N34: 8 | O34: 9 | P34: 8 | Q34: 9 | R34: 40 | S34: 8 | T34: 39 | U34: 20 | V34: 7 | W34: 7 | X34: 5 | Y34: 9 | Z34: 4 | AA34: 32 | AB34: 6 | AC34: 7 | AD34: 7 | AE34: 7 | AF34: 5 | AG34: 9 | AH34: 35 | AI34: 7 | AJ34: 32 | AK34: 16 | AL34: 8 | AM34: 8 | AN34: 9 | AO34: 9 | AP34: 9 | AQ34: 43 | AR34: 9 | AS34: 8 | AT34: 8 | AU34: 7 | AV34: 7 | AW34: 1 | AX34: 31 | AY34: 6 | AZ34: 40 | BA34: 20 | BB34: 8 | BC34: 9 | BD34: 6 | BE34: 9 | BF34: 2 | BG34: 34 | BH34: 7 | BI34: 8 | BJ34: 8 | BK34: 9 | BL34: 6 | BM34: 9 | BN34: 40 | BO34: 8 | BP34: 44 | BQ34: 22 | BR34: 8 | BS34: 8 | BT34: 7 | BU34: 7 | BV34: 1 | BW34: 31 | BX34: 6 | BY34: 8 | BZ34: 8 | CA34: 7 | CB34: 7 | CC34: 1 | CD34: 31 | CE34: 6 | CF34: 34 | CG34: 17 | CH34: 9 | CI34: 9 | CJ34: 6 | CK34: 9 | CL34: 7 | CM34: 40 | CN34: 8 | CO34: 6 | CP34: 9 | CQ34: 2 | CR34: 9 | CS34: 7 | CT34: 33 | CU34: 7 | CV34: 19 | CW34: 10 | CX34: 8 | CY34: 9 | CZ34: 9 | DA34: 9 | DB34: 9 | DC34: 44 | DD34: 9 | DE34: 8 | DF34: 8 | DG34: 7 | DH34: 7 | DI34: 1 | DJ34: 31 | DK34: 6 | DL34: 25 | DM34: 13 | DN34: 6 | DO34: 6 | DP34: 7 | DQ34: 5 | DR34: 6 | DS34: 30 | DT34: 18 | DU34: 4 | DV34: 8 | DW34: 6 | DX34: 9 | DY34: 5 | DZ34: 32 | EA34: 19 | EB34: 30 | EC34: 67 | ED34: B+ | EE34: 6 | EF34: 8 | EG34: 9 | EH34: 7 | EI34: 9 | EJ34: 39 | EK34: 23 | EL34: 7 | EM34: 7 | EN34: 5 | EO34: 9 | EP34: 4 | EQ34: 32 | ER34: 19 | ES34: 32 | ET34: 74 | EU34: B+ | EV34: 6 | EW34: 8 | EX34: 9 | EY34: 7 | EZ34: 9 | FA34: 39 | FB34: 23 | FC34: 7 | FD34: 7 | FE34: 5 | FF34: 9 | FG34: 4 | FH34: 32 | FI34: 19 | FJ34: 31 | FK34: 73 | FL34: B+
B35: =IF(StudentData!A35="","",StudentData!A35) -> 25 | C35: =IF(StudentData!B35="","",StudentData!B35) -> 25 | D35: =IF(StudentData!C35="","",(LEFT(TRIM(CLEAN(StudentData!C35)),SEARCH(" ",TRIM(CLEAN(StudentData!C35)),SEARCH(" ",TRIM(CLEAN(StudentData!C35)),1)+1)))&" "&LEFT(RIGHT(StudentData!C35,LEN(StudentData!C35)-SEARCH(" ",StudentData!C35,SEARCH(" ",StudentData!C35,SEARCH(" ",StudentData!C35,1)+1)-1)),1)&".") -> MULADIYA JIVAN A. | E35: =IF(StudentData!G35="","",StudentData!G35) ->  | F35: 9 | G35: 9 | H35: 9 | I35: 6 | J35: 9 | K35: 42 | L35: 8 | M35: 9 | N35: 9 | O35: 9 | P35: 9 | Q35: 9 | R35: 45 | S35: 9 | T35: 42 | U35: 21 | V35: 3 | W35: 9 | X35: 8 | Y35: 9 | Z35: 7 | AA35: 36 | AB35: 7 | AC35: 3 | AD35: 3 | AE35: 9 | AF35: 8 | AG35: 9 | AH35: 32 | AI35: 6 | AJ35: 36 | AK35: 18 | AL35: 8 | AM35: 8 | AN35: 9 | AO35: 9 | AP35: 3 | AQ35: 37 | AR35: 7 | AS35: 2 | AT35: 2 | AU35: 9 | AV35: 6 | AW35: 7 | AX35: 26 | AY35: 5 | AZ35: 41 | BA35: 21 | BB35: 9 | BC35: 9 | BD35: 9 | BE35: 9 | BF35: 9 | BG35: 45 | BH35: 9 | BI35: 9 | BJ35: 9 | BK35: 9 | BL35: 9 | BM35: 9 | BN35: 45 | BO35: 9 | BP35: 36 | BQ35: 18 | BR35: 2 | BS35: 2 | BT35: 9 | BU35: 6 | BV35: 7 | BW35: 26 | BX35: 5 | BY35: 2 | BZ35: 2 | CA35: 9 | CB35: 6 | CC35: 7 | CD35: 26 | CE35: 5 | CF35: 56 | CG35: 28 | CH35: 9 | CI35: 8 | CJ35: 9 | CK35: 9 | CL35: 6 | CM35: 41 | CN35: 8 | CO35: 9 | CP35: 9 | CQ35: 9 | CR35: 9 | CS35: 6 | CT35: 42 | CU35: 8 | CV35: 16 | CW35: 8 | CX35: 8 | CY35: 9 | CZ35: 9 | DA35: 3 | DB35: 7 | DC35: 36 | DD35: 7 | DE35: 2 | DF35: 2 | DG35: 9 | DH35: 6 | DI35: 7 | DJ35: 26 | DK35: 5 | DL35: 33 | DM35: 17 | DN35: 8 | DO35: 5 | DP35: 7 | DQ35: 7 | DR35: 9 | DS35: 36 | DT35: 22 | DU35: 9 | DV35: 6 | DW35: 5 | DX35: 8 | DY35: 9 | DZ35: 37 | EA35: 22 | EB35: 36 | EC35: 80 | ED35: A | EE35: 9 | EF35: 9 | EG35: 9 | EH35: 6 | EI35: 9 | EJ35: 42 | EK35: 25 | EL35: 3 | EM35: 9 | EN35: 8 | EO35: 9 | EP35: 7 | EQ35: 36 | ER35: 22 | ES35: 37 | ET35: 84 | EU35: A | EV35: 9 | EW35: 9 | EX35: 9 | EY35: 6 | EZ35: 9 | FA35: 42 | FB35: 25 | FC35: 3 | FD35: 9 | FE35: 8 | FF35: 9 | FG35: 7 | FH35: 36 | FI35: 22 | FJ35: 33 | FK35: 80 | FL35: A
B36: =IF(StudentData!A36="","",StudentData!A36) -> 26 | C36: =IF(StudentData!B36="","",StudentData!B36) -> 26 | D36: =IF(StudentData!C36="","",(LEFT(TRIM(CLEAN(StudentData!C36)),SEARCH(" ",TRIM(CLEAN(StudentData!C36)),SEARCH(" ",TRIM(CLEAN(StudentData!C36)),1)+1)))&" "&LEFT(RIGHT(StudentData!C36,LEN(StudentData!C36)-SEARCH(" ",StudentData!C36,SEARCH(" ",StudentData!C36,SEARCH(" ",StudentData!C36,1)+1)-1)),1)&".") -> CHAVDA AJITBHAI H. | E36: =IF(StudentData!G36="","",StudentData!G36) ->  | F36: 7 | G36: 1 | H36: 3 | I36: 1 | J36: 9 | K36: 21 | L36: 4 | M36: 7 | N36: 1 | O36: 3 | P36: 1 | Q36: 3 | R36: 15 | S36: 3 | T36: 21 | U36: 11 | V36: 3 | W36: 9 | X36: 3 | Y36: 5 | Z36: 2 | AA36: 22 | AB36: 4 | AC36: 3 | AD36: 3 | AE36: 9 | AF36: 3 | AG36: 5 | AH36: 23 | AI36: 5 | AJ36: 22 | AK36: 11 | AL36: 5 | AM36: 5 | AN36: 1 | AO36: 1 | AP36: 3 | AQ36: 15 | AR36: 3 | AS36: 1 | AT36: 1 | AU36: 1 | AV36: 6 | AW36: 5 | AX36: 14 | AY36: 3 | AZ36: 26 | BA36: 13 | BB36: 7 | BC36: 2 | BD36: 2 | BE36: 5 | BF36: 4 | BG36: 20 | BH36: 4 | BI36: 7 | BJ36: 7 | BK36: 2 | BL36: 2 | BM36: 5 | BN36: 23 | BO36: 5 | BP36: 11 | BQ36: 6 | BR36: 1 | BS36: 1 | BT36: 1 | BU36: 6 | BV36: 5 | BW36: 14 | BX36: 3 | BY36: 1 | BZ36: 1 | CA36: 1 | CB36: 6 | CC36: 5 | CD36: 14 | CE36: 3 | CF36: 20 | CG36: 10 | CH36: 5 | CI36: 3 | CJ36: 4 | CK36: 8 | CL36: 6 | CM36: 26 | CN36: 5 | CO36: 2 | CP36: 5 | CQ36: 4 | CR36: 8 | CS36: 6 | CT36: 25 | CU36: 5 | CV36: 14 | CW36: 7 | CX36: 5 | CY36: 1 | CZ36: 1 | DA36: 3 | DB36: 1 | DC36: 11 | DD36: 2 | DE36: 1 | DF36: 1 | DG36: 1 | DH36: 6 | DI36: 5 | DJ36: 14 | DK36: 3 | DL36: 15 | DM36: 8 | DN36: 9 | DO36: 2 | DP36: 9 | DQ36: 9 | DR36: 5 | DS36: 34 | DT36: 20 | DU36: 5 | DV36: 8 | DW36: 4 | DX36: 3 | DY36: 4 | DZ36: 24 | EA36: 14 | EB36: 34 | EC36: 68 | ED36: B+ | EE36: 7 | EF36: 1 | EG36: 3 | EH36: 1 | EI36: 9 | EJ36: 21 | EK36: 13 | EL36: 3 | EM36: 9 | EN36: 3 | EO36: 5 | EP36: 2 | EQ36: 22 | ER36: 13 | ES36: 24 | ET36: 50 | EU36: B | EV36: 7 | EW36: 1 | EX36: 3 | EY36: 1 | EZ36: 9 | FA36: 21 | FB36: 13 | FC36: 3 | FD36: 9 | FE36: 3 | FF36: 5 | FG36: 2 | FH36: 22 | FI36: 13 | FJ36: 23 | FK36: 49 | FL36: B
B37: =IF(StudentData!A37="","",StudentData!A37) -> 27 | C37: =IF(StudentData!B37="","",StudentData!B37) -> 27 | D37: =IF(StudentData!C37="","",(LEFT(TRIM(CLEAN(StudentData!C37)),SEARCH(" ",TRIM(CLEAN(StudentData!C37)),SEARCH(" ",TRIM(CLEAN(StudentData!C37)),1)+1)))&" "&LEFT(RIGHT(StudentData!C37,LEN(StudentData!C37)-SEARCH(" ",StudentData!C37,SEARCH(" ",StudentData!C37,SEARCH(" ",StudentData!C37,1)+1)-1)),1)&".") -> VAGHRI MAHESH M. | E37: =IF(StudentData!G37="","",StudentData!G37) ->  | F37: 2 | G37: 7 | H37: 1 | I37: 2 | J37: 8 | K37: 20 | L37: 4 | M37: 2 | N37: 7 | O37: 1 | P37: 7 | Q37: 1 | R37: 18 | S37: 4 | T37: 20 | U37: 10 | V37: 1 | W37: 2 | X37: 1 | Y37: 5 | Z37: 1 | AA37: 10 | AB37: 2 | AC37: 1 | AD37: 1 | AE37: 2 | AF37: 1 | AG37: 5 | AH37: 10 | AI37: 2 | AJ37: 10 | AK37: 5 | AL37: 9 | AM37: 9 | AN37: 9 | AO37: 9 | AP37: 9 | AQ37: 45 | AR37: 9 | AS37: 1 | AT37: 1 | AU37: 1 | AV37: 1 | AW37: 6 | AX37: 10 | AY37: 2 | AZ37: 24 | BA37: 12 | BB37: 9 | BC37: 4 | BD37: 4 | BE37: 9 | BF37: 4 | BG37: 30 | BH37: 6 | BI37: 9 | BJ37: 9 | BK37: 4 | BL37: 4 | BM37: 9 | BN37: 35 | BO37: 7 | BP37: 46 | BQ37: 23 | BR37: 1 | BS37: 1 | BT37: 1 | BU37: 1 | BV37: 6 | BW37: 10 | BX37: 2 | BY37: 1 | BZ37: 1 | CA37: 1 | CB37: 1 | CC37: 6 | CD37: 10 | CE37: 2 | CF37: 30 | CG37: 15 | CH37: 6 | CI37: 6 | CJ37: 7 | CK37: 2 | CL37: 3 | CM37: 24 | CN37: 5 | CO37: 4 | CP37: 9 | CQ37: 4 | CR37: 2 | CS37: 3 | CT37: 22 | CU37: 4 | CV37: 10 | CW37: 5 | CX37: 9 | CY37: 9 | CZ37: 9 | DA37: 9 | DB37: 9 | DC37: 45 | DD37: 9 | DE37: 1 | DF37: 1 | DG37: 1 | DH37: 1 | DI37: 6 | DJ37: 10 | DK37: 2 | DL37: 10 | DM37: 5 | DN37: 8 | DO37: 2 | DP37: 2 | DQ37: 1 | DR37: 1 | DS37: 14 | DT37: 8 | DU37: 1 | DV37: 4 | DW37: 4 | DX37: 7 | DY37: 4 | DZ37: 20 | EA37: 12 | EB37: 14 | EC37: 34 | ED37: C | EE37: 2 | EF37: 7 | EG37: 1 | EH37: 2 | EI37: 8 | EJ37: 20 | EK37: 12 | EL37: 1 | EM37: 2 | EN37: 1 | EO37: 5 | EP37: 1 | EQ37: 10 | ER37: 6 | ES37: 20 | ET37: 38 | EU37: C | FM37: 2 | FN37: 7 | FO37: 1 | FP37: 2 | FQ37: 8 | FR37: 20 | FS37: 12 | FT37: 1 | FU37: 2 | FV37: 1 | FW37: 5 | FX37: 1 | FY37: 10 | FZ37: 6 | GA37: 19 | GB37: 37 | GC37: C
B38: =IF(StudentData!A38="","",StudentData!A38) -> 28 | C38: =IF(StudentData!B38="","",StudentData!B38) -> 28 | D38: =IF(StudentData!C38="","",(LEFT(TRIM(CLEAN(StudentData!C38)),SEARCH(" ",TRIM(CLEAN(StudentData!C38)),SEARCH(" ",TRIM(CLEAN(StudentData!C38)),1)+1)))&" "&LEFT(RIGHT(StudentData!C38,LEN(StudentData!C38)-SEARCH(" ",StudentData!C38,SEARCH(" ",StudentData!C38,SEARCH(" ",StudentData!C38,1)+1)-1)),1)&".") -> KHALIFA JAHIDBHAI S. | E38: =IF(StudentData!G38="","",StudentData!G38) ->  | F38: 4 | G38: 6 | H38: 6 | I38: 4 | J38: 5 | K38: 25 | L38: 5 | M38: 4 | N38: 6 | O38: 6 | P38: 6 | Q38: 6 | R38: 28 | S38: 6 | T38: 25 | U38: 13 | V38: 4 | W38: 6 | X38: 2 | Y38: 2 | Z38: 4 | AA38: 18 | AB38: 4 | AC38: 4 | AD38: 4 | AE38: 6 | AF38: 2 | AG38: 2 | AH38: 18 | AI38: 4 | AJ38: 18 | AK38: 9 | AL38: 1 | AM38: 1 | AN38: 1 | AO38: 1 | AP38: 1 | AQ38: 5 | AR38: 1 | AS38: 2 | AT38: 2 | AU38: 1 | AV38: 2 | AW38: 4 | AX38: 11 | AY38: 2 | AZ38: 24 | BA38: 12 | BB38: 3 | BC38: 9 | BD38: 8 | BE38: 5 | BF38: 6 | BG38: 31 | BH38: 6 | BI38: 3 | BJ38: 3 | BK38: 9 | BL38: 8 | BM38: 5 | BN38: 28 | BO38: 6 | BP38: 4 | BQ38: 2 | BR38: 2 | BS38: 2 | BT38: 1 | BU38: 2 | BV38: 4 | BW38: 11 | BX38: 2 | BY38: 2 | BZ38: 2 | CA38: 1 | CB38: 2 | CC38: 4 | CD38: 11 | CE38: 2 | CF38: 31 | CG38: 16 | CH38: 3 | CI38: 3 | CJ38: 7 | CK38: 5 | CL38: 6 | CM38: 24 | CN38: 5 | CO38: 8 | CP38: 5 | CQ38: 6 | CR38: 5 | CS38: 6 | CT38: 30 | CU38: 6 | CV38: 13 | CW38: 7 | CX38: 1 | CY38: 1 | CZ38: 1 | DA38: 1 | DB38: 1 | DC38: 5 | DD38: 1 | DE38: 2 | DF38: 2 | DG38: 1 | DH38: 2 | DI38: 4 | DJ38: 11 | DK38: 2 | DL38: 10 | DM38: 5 | DN38: 8 | DO38: 1 | DP38: 3 | DQ38: 3 | DR38: 3 | DS38: 18 | DT38: 11 | DU38: 8 | DV38: 8 | DW38: 1 | DX38: 2 | DY38: 7 | DZ38: 26 | EA38: 16 | EB38: 18 | EC38: 45 | ED38: B | EE38: 4 | EF38: 6 | EG38: 6 | EH38: 4 | EI38: 5 | EJ38: 25 | EK38: 15 | EL38: 4 | EM38: 6 | EN38: 2 | EO38: 2 | EP38: 4 | EQ38: 18 | ER38: 11 | ES38: 26 | ET38: 52 | EU38: B | FM38: 4 | FN38: 6 | FO38: 6 | FP38: 4 | FQ38: 5 | FR38: 25 | FS38: 15 | FT38: 4 | FU38: 6 | FV38: 2 | FW38: 2 | FX38: 4 | FY38: 18 | FZ38: 11 | GA38: 15 | GB38: 41 | GC38: C
B39: =IF(StudentData!A39="","",StudentData!A39) -> 29 | C39: =IF(StudentData!B39="","",StudentData!B39) -> 29 | D39: =IF(StudentData!C39="","",(LEFT(TRIM(CLEAN(StudentData!C39)),SEARCH(" ",TRIM(CLEAN(StudentData!C39)),SEARCH(" ",TRIM(CLEAN(StudentData!C39)),1)+1)))&" "&LEFT(RIGHT(StudentData!C39,LEN(StudentData!C39)-SEARCH(" ",StudentData!C39,SEARCH(" ",StudentData!C39,SEARCH(" ",StudentData!C39,1)+1)-1)),1)&".") -> MALEK NASHIRBHAI J. | E39: =IF(StudentData!G39="","",StudentData!G39) ->  | F39: 5 | G39: 9 | H39: 7 | I39: 1 | J39: 2 | K39: 24 | L39: 5 | M39: 5 | N39: 9 | O39: 7 | P39: 9 | Q39: 7 | R39: 37 | S39: 7 | T39: 24 | U39: 12 | V39: 1 | W39: 5 | X39: 7 | Y39: 8 | Z39: 6 | AA39: 27 | AB39: 5 | AC39: 1 | AD39: 1 | AE39: 5 | AF39: 7 | AG39: 8 | AH39: 22 | AI39: 4 | AJ39: 27 | AK39: 14 | AL39: 2 | AM39: 2 | AN39: 8 | AO39: 1 | AP39: 1 | AQ39: 14 | AR39: 3 | AS39: 1 | AT39: 1 | AU39: 4 | AV39: 7 | AW39: 2 | AX39: 15 | AY39: 3 | AZ39: 27 | BA39: 14 | BB39: 2 | BC39: 5 | BD39: 7 | BE39: 6 | BF39: 6 | BG39: 26 | BH39: 5 | BI39: 2 | BJ39: 2 | BK39: 5 | BL39: 7 | BM39: 6 | BN39: 22 | BO39: 4 | BP39: 16 | BQ39: 8 | BR39: 1 | BS39: 1 | BT39: 4 | BU39: 7 | BV39: 2 | BW39: 15 | BX39: 3 | BY39: 1 | BZ39: 1 | CA39: 4 | CB39: 7 | CC39: 2 | CD39: 15 | CE39: 3 | CF39: 26 | CG39: 13 | CH39: 4 | CI39: 9 | CJ39: 3 | CK39: 8 | CL39: 3 | CM39: 27 | CN39: 5 | CO39: 7 | CP39: 6 | CQ39: 6 | CR39: 8 | CS39: 3 | CT39: 30 | CU39: 6 | CV39: 12 | CW39: 6 | CX39: 2 | CY39: 8 | CZ39: 1 | DA39: 1 | DB39: 4 | DC39: 16 | DD39: 3 | DE39: 1 | DF39: 1 | DG39: 4 | DH39: 7 | DI39: 2 | DJ39: 15 | DK39: 3 | DL39: 20 | DM39: 10 | DN39: 1 | DO39: 7 | DP39: 4 | DQ39: 5 | DR39: 8 | DS39: 25 | DT39: 15 | DU39: 7 | DV39: 7 | DW39: 6 | DX39: 4 | DY39: 6 | DZ39: 30 | EA39: 18 | EB39: 25 | EC39: 58 | ED39: B | EE39: 5 | EF39: 9 | EG39: 7 | EH39: 1 | EI39: 2 | EJ39: 24 | EK39: 14 | EL39: 1 | EM39: 5 | EN39: 7 | EO39: 8 | EP39: 6 | EQ39: 27 | ER39: 16 | ES39: 30 | ET39: 60 | EU39: B+ | FM39: 5 | FN39: 9 | FO39: 7 | FP39: 1 | FQ39: 2 | FR39: 24 | FS39: 14 | FT39: 1 | FU39: 5 | FV39: 7 | FW39: 8 | FX39: 6 | FY39: 27 | FZ39: 16 | GA39: 15 | GB39: 45 | GC39: B
B40: =IF(StudentData!A40="","",StudentData!A40) -> 30 | C40: =IF(StudentData!B40="","",StudentData!B40) -> 30 | D40: =IF(StudentData!C40="","",(LEFT(TRIM(CLEAN(StudentData!C40)),SEARCH(" ",TRIM(CLEAN(StudentData!C40)),SEARCH(" ",TRIM(CLEAN(StudentData!C40)),1)+1)))&" "&LEFT(RIGHT(StudentData!C40,LEN(StudentData!C40)-SEARCH(" ",StudentData!C40,SEARCH(" ",StudentData!C40,SEARCH(" ",StudentData!C40,1)+1)-1)),1)&".") -> GALIYA VIJAYBHAI M. | E40: =IF(StudentData!G40="","",StudentData!G40) ->  | F40: 5 | G40: 7 | H40: 3 | I40: 9 | J40: 9 | K40: 33 | L40: 7 | M40: 5 | N40: 7 | O40: 3 | P40: 7 | Q40: 3 | R40: 25 | S40: 5 | T40: 33 | U40: 17 | V40: 1 | W40: 3 | X40: 3 | Y40: 9 | Z40: 6 | AA40: 22 | AB40: 4 | AC40: 1 | AD40: 1 | AE40: 3 | AF40: 3 | AG40: 9 | AH40: 17 | AI40: 3 | AJ40: 22 | AK40: 11 | AL40: 9 | AM40: 9 | AN40: 1 | AO40: 1 | AP40: 2 | AQ40: 22 | AR40: 4 | AS40: 2 | AT40: 2 | AU40: 3 | AV40: 6 | AW40: 7 | AX40: 20 | AY40: 4 | AZ40: 29 | BA40: 15 | BB40: 8 | BC40: 7 | BD40: 1 | BE40: 4 | BF40: 5 | BG40: 25 | BH40: 5 | BI40: 8 | BJ40: 8 | BK40: 7 | BL40: 1 | BM40: 4 | BN40: 28 | BO40: 6 | BP40: 18 | BQ40: 9 | BR40: 2 | BS40: 2 | BT40: 3 | BU40: 6 | BV40: 7 | BW40: 20 | BX40: 4 | BY40: 2 | BZ40: 2 | CA40: 3 | CB40: 6 | CC40: 7 | CD40: 20 | CE40: 4 | CF40: 25 | CG40: 13 | CH40: 7 | CI40: 3 | CJ40: 9 | CK40: 1 | CL40: 9 | CM40: 29 | CN40: 6 | CO40: 1 | CP40: 4 | CQ40: 5 | CR40: 1 | CS40: 9 | CT40: 20 | CU40: 4 | CV40: 14 | CW40: 7 | CX40: 9 | CY40: 1 | CZ40: 1 | DA40: 2 | DB40: 5 | DC40: 18 | DD40: 4 | DE40: 2 | DF40: 2 | DG40: 3 | DH40: 6 | DI40: 7 | DJ40: 20 | DK40: 4 | DL40: 22 | DM40: 11 | DN40: 3 | DO40: 1 | DP40: 2 | DQ40: 9 | DR40: 6 | DS40: 21 | DT40: 13 | DU40: 9 | DV40: 9 | DW40: 9 | DX40: 6 | DY40: 5 | DZ40: 38 | EA40: 23 | EB40: 21 | EC40: 57 | ED40: B | EE40: 5 | EF40: 7 | EG40: 3 | EH40: 9 | EI40: 9 | EJ40: 33 | EK40: 20 | EL40: 1 | EM40: 3 | EN40: 3 | EO40: 9 | EP40: 6 | EQ40: 22 | ER40: 13 | ES40: 38 | ET40: 71 | EU40: B+ | FM40: 5 | FN40: 7 | FO40: 3 | FP40: 9 | FQ40: 9 | FR40: 33 | FS40: 20 | FT40: 1 | FU40: 3 | FV40: 3 | FW40: 9 | FX40: 6 | FY40: 22 | FZ40: 13 | GA40: 25 | GB40: 58 | GC40: B
B41: =IF(StudentData!A41="","",StudentData!A41) -> 31 | C41: =IF(StudentData!B41="","",StudentData!B41) -> 31 | D41: =IF(StudentData!C41="","",(LEFT(TRIM(CLEAN(StudentData!C41)),SEARCH(" ",TRIM(CLEAN(StudentData!C41)),SEARCH(" ",TRIM(CLEAN(StudentData!C41)),1)+1)))&" "&LEFT(RIGHT(StudentData!C41,LEN(StudentData!C41)-SEARCH(" ",StudentData!C41,SEARCH(" ",StudentData!C41,SEARCH(" ",StudentData!C41,1)+1)-1)),1)&".") -> RABARI RAKESHBHAI J. | E41: =IF(StudentData!G41="","",StudentData!G41) ->  | F41: 1 | G41: 1 | H41: 7 | I41: 8 | J41: 6 | K41: 23 | L41: 5 | M41: 1 | N41: 1 | O41: 7 | P41: 1 | Q41: 7 | R41: 17 | S41: 3 | T41: 23 | U41: 12 | V41: 5 | W41: 4 | X41: 1 | Y41: 4 | Z41: 3 | AA41: 17 | AB41: 3 | AC41: 5 | AD41: 5 | AE41: 4 | AF41: 1 | AG41: 4 | AH41: 19 | AI41: 4 | AJ41: 17 | AK41: 9 | AL41: 1 | AM41: 1 | AN41: 3 | AO41: 4 | AP41: 1 | AQ41: 10 | AR41: 2 | AS41: 5 | AT41: 5 | AU41: 1 | AV41: 9 | AW41: 2 | AX41: 22 | AY41: 4 | AZ41: 24 | BA41: 12 | BB41: 6 | BC41: 2 | BD41: 6 | BE41: 2 | BF41: 4 | BG41: 20 | BH41: 4 | BI41: 6 | BJ41: 6 | BK41: 2 | BL41: 6 | BM41: 2 | BN41: 22 | BO41: 4 | BP41: 10 | BQ41: 5 | BR41: 5 | BS41: 5 | BT41: 1 | BU41: 9 | BV41: 2 | BW41: 22 | BX41: 4 | BY41: 5 | BZ41: 5 | CA41: 1 | CB41: 9 | CC41: 2 | CD41: 22 | CE41: 4 | CF41: 20 | CG41: 10 | CH41: 6 | CI41: 1 | CJ41: 6 | CK41: 9 | CL41: 2 | CM41: 24 | CN41: 5 | CO41: 6 | CP41: 2 | CQ41: 4 | CR41: 9 | CS41: 2 | CT41: 23 | CU41: 5 | CV41: 11 | CW41: 6 | CX41: 1 | CY41: 3 | CZ41: 4 | DA41: 1 | DB41: 1 | DC41: 10 | DD41: 2 | DE41: 5 | DF41: 5 | DG41: 1 | DH41: 9 | DI41: 2 | DJ41: 22 | DK41: 4 | DL41: 22 | DM41: 11 | DN41: 2 | DO41: 2 | DP41: 7 | DQ41: 2 | DR41: 3 | DS41: 16 | DT41: 10 | DU41: 7 | DV41: 3 | DW41: 4 | DX41: 5 | DY41: 6 | DZ41: 25 | EA41: 15 | EB41: 16 | EC41: 41 | ED41: C | EE41: 1 | EF41: 1 | EG41: 7 | EH41: 8 | EI41: 6 | EJ41: 23 | EK41: 14 | EL41: 5 | EM41: 4 | EN41: 1 | EO41: 4 | EP41: 3 | EQ41: 17 | ER41: 10 | ES41: 25 | ET41: 49 | EU41: B | FM41: 1 | FN41: 1 | FO41: 7 | FP41: 8 | FQ41: 6 | FR41: 23 | FS41: 14 | FT41: 5 | FU41: 4 | FV41: 1 | FW41: 4 | FX41: 3 | FY41: 17 | FZ41: 10 | GA41: 24 | GB41: 48 | GC41: B
B42: =IF(StudentData!A42="","",StudentData!A42) -> 32 | C42: =IF(StudentData!B42="","",StudentData!B42) -> 32 | D42: =IF(StudentData!C42="","",(LEFT(TRIM(CLEAN(StudentData!C42)),SEARCH(" ",TRIM(CLEAN(StudentData!C42)),SEARCH(" ",TRIM(CLEAN(StudentData!C42)),1)+1)))&" "&LEFT(RIGHT(StudentData!C42,LEN(StudentData!C42)-SEARCH(" ",StudentData!C42,SEARCH(" ",StudentData!C42,SEARCH(" ",StudentData!C42,1)+1)-1)),1)&".") -> BHIMANI AXAYKUMAR H. | E42: =IF(StudentData!G42="","",StudentData!G42) ->  | F42: 7 | G42: 6 | H42: 7 | I42: 5 | J42: 9 | K42: 34 | L42: 7 | M42: 7 | N42: 6 | O42: 7 | P42: 6 | Q42: 7 | R42: 33 | S42: 7 | T42: 34 | U42: 17 | V42: 6 | W42: 1 | X42: 5 | Y42: 3 | Z42: 5 | AA42: 20 | AB42: 4 | AC42: 6 | AD42: 6 | AE42: 1 | AF42: 5 | AG42: 3 | AH42: 21 | AI42: 4 | AJ42: 20 | AK42: 10 | AL42: 5 | AM42: 5 | AN42: 8 | AO42: 5 | AP42: 6 | AQ42: 29 | AR42: 6 | AS42: 6 | AT42: 6 | AU42: 2 | AV42: 5 | AW42: 2 | AX42: 21 | AY42: 4 | AZ42: 33 | BA42: 17 | BB42: 8 | BC42: 4 | BD42: 1 | BE42: 1 | BF42: 2 | BG42: 16 | BH42: 3 | BI42: 8 | BJ42: 8 | BK42: 4 | BL42: 1 | BM42: 1 | BN42: 22 | BO42: 4 | BP42: 25 | BQ42: 13 | BR42: 6 | BS42: 6 | BT42: 2 | BU42: 5 | BV42: 2 | BW42: 21 | BX42: 4 | BY42: 6 | BZ42: 6 | CA42: 2 | CB42: 5 | CC42: 2 | CD42: 21 | CE42: 4 | CF42: 16 | CG42: 8 | CH42: 2 | CI42: 4 | CJ42: 9 | CK42: 9 | CL42: 9 | CM42: 33 | CN42: 7 | CO42: 1 | CP42: 1 | CQ42: 2 | CR42: 9 | CS42: 9 | CT42: 22 | CU42: 4 | CV42: 14 | CW42: 7 | CX42: 5 | CY42: 8 | CZ42: 5 | DA42: 6 | DB42: 1 | DC42: 25 | DD42: 5 | DE42: 6 | DF42: 6 | DG42: 2 | DH42: 5 | DI42: 2 | DJ42: 21 | DK42: 4 | DL42: 20 | DM42: 10 | DN42: 4 | DO42: 5 | DP42: 5 | DQ42: 6 | DR42: 6 | DS42: 26 | DT42: 16 | DU42: 8 | DV42: 7 | DW42: 1 | DX42: 2 | DY42: 5 | DZ42: 23 | EA42: 14 | EB42: 26 | EC42: 56 | ED42: B | EE42: 7 | EF42: 6 | EG42: 7 | EH42: 5 | EI42: 9 | EJ42: 34 | EK42: 20 | EL42: 6 | EM42: 1 | EN42: 5 | EO42: 3 | EP42: 5 | EQ42: 20 | ER42: 12 | ES42: 23 | ET42: 55 | EU42: B | FM42: 7 | FN42: 6 | FO42: 7 | FP42: 5 | FQ42: 9 | FR42: 34 | FS42: 20 | FT42: 6 | FU42: 1 | FV42: 5 | FW42: 3 | FX42: 5 | FY42: 20 | FZ42: 12 | GA42: 22 | GB42: 54 | GC42: B
B43: =IF(StudentData!A43="","",StudentData!A43) -> 33 | C43: =IF(StudentData!B43="","",StudentData!B43) -> 33 | D43: =IF(StudentData!C43="","",(LEFT(TRIM(CLEAN(StudentData!C43)),SEARCH(" ",TRIM(CLEAN(StudentData!C43)),SEARCH(" ",TRIM(CLEAN(StudentData!C43)),1)+1)))&" "&LEFT(RIGHT(StudentData!C43,LEN(StudentData!C43)-SEARCH(" ",StudentData!C43,SEARCH(" ",StudentData!C43,SEARCH(" ",StudentData!C43,1)+1)-1)),1)&".") -> SHEKH AYAZ B. | E43: =IF(StudentData!G43="","",StudentData!G43) ->  | F43: 2 | G43: 4 | H43: 8 | I43: 5 | J43: 7 | K43: 26 | L43: 5 | M43: 2 | N43: 4 | O43: 8 | P43: 4 | Q43: 8 | R43: 26 | S43: 5 | T43: 26 | U43: 13 | V43: 1 | W43: 4 | X43: 2 | Y43: 1 | Z43: 9 | AA43: 17 | AB43: 3 | AC43: 1 | AD43: 1 | AE43: 4 | AF43: 2 | AG43: 1 | AH43: 9 | AI43: 2 | AJ43: 17 | AK43: 9 | AL43: 3 | AM43: 3 | AN43: 1 | AO43: 9 | AP43: 8 | AQ43: 24 | AR43: 5 | AS43: 1 | AT43: 1 | AU43: 4 | AV43: 1 | AW43: 5 | AX43: 12 | AY43: 2 | AZ43: 35 | BA43: 18 | BB43: 2 | BC43: 5 | BD43: 5 | BE43: 1 | BF43: 1 | BG43: 14 | BH43: 3 | BI43: 2 | BJ43: 2 | BK43: 5 | BL43: 5 | BM43: 1 | BN43: 15 | BO43: 3 | BP43: 25 | BQ43: 13 | BR43: 1 | BS43: 1 | BT43: 4 | BU43: 1 | BV43: 5 | BW43: 12 | BX43: 2 | BY43: 1 | BZ43: 1 | CA43: 4 | CB43: 1 | CC43: 5 | CD43: 12 | CE43: 2 | CF43: 14 | CG43: 7 | CH43: 3 | CI43: 9 | CJ43: 6 | CK43: 9 | CL43: 8 | CM43: 35 | CN43: 7 | CO43: 5 | CP43: 1 | CQ43: 1 | CR43: 9 | CS43: 8 | CT43: 24 | CU43: 5 | CV43: 15 | CW43: 8 | CX43: 3 | CY43: 1 | CZ43: 9 | DA43: 8 | DB43: 4 | DC43: 25 | DD43: 5 | DE43: 1 | DF43: 1 | DG43: 4 | DH43: 1 | DI43: 5 | DJ43: 12 | DK43: 2 | DL43: 12 | DM43: 6 | DN43: 8 | DO43: 7 | DP43: 1 | DQ43: 7 | DR43: 5 | DS43: 28 | DT43: 17 | DU43: 1 | DV43: 5 | DW43: 1 | DX43: 6 | DY43: 3 | DZ43: 16 | EA43: 10 | EB43: 28 | EC43: 55 | ED43: B | EE43: 2 | EF43: 4 | EG43: 8 | EH43: 5 | EI43: 7 | EJ43: 26 | EK43: 16 | EL43: 1 | EM43: 4 | EN43: 2 | EO43: 1 | EP43: 9 | EQ43: 17 | ER43: 10 | ES43: 16 | ET43: 42 | EU43: C | FM43: 2 | FN43: 4 | FO43: 8 | FP43: 5 | FQ43: 7 | FR43: 26 | FS43: 16 | FT43: 1 | FU43: 4 | FV43: 2 | FW43: 1 | FX43: 9 | FY43: 17 | FZ43: 10 | GA43: 16 | GB43: 42 | GC43: C
B44: =IF(StudentData!A44="","",StudentData!A44) -> 34 | C44: =IF(StudentData!B44="","",StudentData!B44) -> 34 | D44: =IF(StudentData!C44="","",(LEFT(TRIM(CLEAN(StudentData!C44)),SEARCH(" ",TRIM(CLEAN(StudentData!C44)),SEARCH(" ",TRIM(CLEAN(StudentData!C44)),1)+1)))&" "&LEFT(RIGHT(StudentData!C44,LEN(StudentData!C44)-SEARCH(" ",StudentData!C44,SEARCH(" ",StudentData!C44,SEARCH(" ",StudentData!C44,1)+1)-1)),1)&".") -> TAKOR MEHULKUMAR R. | E44: =IF(StudentData!G44="","",StudentData!G44) ->  | F44: 3 | G44: 5 | H44: 4 | I44: 1 | J44: 9 | K44: 22 | L44: 4 | M44: 3 | N44: 5 | O44: 4 | P44: 5 | Q44: 4 | R44: 21 | S44: 4 | T44: 22 | U44: 11 | V44: 1 | W44: 1 | X44: 5 | Y44: 6 | Z44: 1 | AA44: 14 | AB44: 3 | AC44: 1 | AD44: 1 | AE44: 1 | AF44: 5 | AG44: 6 | AH44: 14 | AI44: 3 | AJ44: 14 | AK44: 7 | AL44: 1 | AM44: 1 | AN44: 3 | AO44: 4 | AP44: 3 | AQ44: 12 | AR44: 2 | AS44: 1 | AT44: 1 | AU44: 1 | AV44: 3 | AW44: 4 | AX44: 10 | AY44: 2 | AZ44: 29 | BA44: 15 | BB44: 1 | BC44: 1 | BD44: 7 | BE44: 5 | BF44: 3 | BG44: 17 | BH44: 3 | BI44: 1 | BJ44: 1 | BK44: 1 | BL44: 7 | BM44: 5 | BN44: 15 | BO44: 3 | BP44: 13 | BQ44: 7 | BR44: 1 | BS44: 1 | BT44: 1 | BU44: 3 | BV44: 4 | BW44: 10 | BX44: 2 | BY44: 1 | BZ44: 1 | CA44: 1 | CB44: 3 | CC44: 4 | CD44: 10 | CE44: 2 | CF44: 17 | CG44: 9 | CH44: 4 | CI44: 6 | CJ44: 8 | CK44: 3 | CL44: 8 | CM44: 29 | CN44: 6 | CO44: 7 | CP44: 5 | CQ44: 3 | CR44: 3 | CS44: 8 | CT44: 26 | CU44: 5 | CV44: 11 | CW44: 6 | CX44: 1 | CY44: 3 | CZ44: 4 | DA44: 3 | DB44: 2 | DC44: 13 | DD44: 3 | DE44: 1 | DF44: 1 | DG44: 1 | DH44: 3 | DI44: 4 | DJ44: 10 | DK44: 2 | DL44: 11 | DM44: 6 | DN44: 5 | DO44: 7 | DP44: 1 | DQ44: 1 | DR44: 2 | DS44: 16 | DT44: 10 | DU44: 1 | DV44: 2 | DW44: 5 | DX44: 6 | DY44: 1 | DZ44: 15 | EA44: 9 | EB44: 16 | EC44: 35 | ED44: C | EE44: 3 | EF44: 5 | EG44: 4 | EH44: 1 | EI44: 9 | EJ44: 22 | EK44: 13 | EL44: 1 | EM44: 1 | EN44: 5 | EO44: 6 | EP44: 1 | EQ44: 14 | ER44: 8 | ES44: 15 | ET44: 36 | EU44: C | FM44: 3 | FN44: 5 | FO44: 4 | FP44: 1 | FQ44: 9 | FR44: 22 | FS44: 13 | FT44: 1 | FU44: 1 | FV44: 5 | FW44: 6 | FX44: 1 | FY44: 14 | FZ44: 8 | GA44: 17 | GB44: 38 | GC44: C
B45: =IF(StudentData!A45="","",StudentData!A45) -> 35 | C45: =IF(StudentData!B45="","",StudentData!B45) -> 35 | D45: =IF(StudentData!C45="","",(LEFT(TRIM(CLEAN(StudentData!C45)),SEARCH(" ",TRIM(CLEAN(StudentData!C45)),SEARCH(" ",TRIM(CLEAN(StudentData!C45)),1)+1)))&" "&LEFT(RIGHT(StudentData!C45,LEN(StudentData!C45)-SEARCH(" ",StudentData!C45,SEARCH(" ",StudentData!C45,SEARCH(" ",StudentData!C45,1)+1)-1)),1)&".") -> KUDECHA SURESHBHAI S. | E45: =IF(StudentData!G45="","",StudentData!G45) ->  | F45: 1 | G45: 1 | H45: 1 | I45: 1 | J45: 1 | K45: 5 | L45: 1 | M45: 1 | N45: 1 | O45: 1 | P45: 1 | Q45: 1 | R45: 5 | S45: 1 | T45: 3 | U45: 2 | V45: 1 | W45: 1 | X45: 1 | Y45: 1 | Z45: 1 | AA45: 5 | AB45: 1 | AC45: 1 | AD45: 1 | AE45: 1 | AF45: 1 | AG45: 1 | AH45: 5 | AI45: 1 | AJ45: 1 | AK45: 1 | AL45: 1 | AM45: 1 | AN45: 1 | AO45: 1 | AP45: 1 | AQ45: 5 | AR45: 1 | AS45: 1 | AT45: 1 | AU45: 1 | AV45: 1 | AW45: 1 | AX45: 5 | AY45: 1 | AZ45: 12 | BA45: 6 | BB45: 4 | BC45: 1 | BD45: 4 | BE45: 1 | BF45: 1 | BG45: 11 | BH45: 2 | BI45: 4 | BJ45: 4 | BK45: 1 | BL45: 4 | BM45: 1 | BN45: 14 | BO45: 3 | BP45: 3 | BQ45: 2 | BR45: 1 | BS45: 1 | BT45: 1 | BU45: 1 | BV45: 1 | BW45: 5 | BX45: 1 | BY45: 1 | BZ45: 1 | CA45: 1 | CB45: 1 | CC45: 1 | CD45: 5 | CE45: 1 | CF45: 11 | CG45: 6 | CH45: 1 | CI45: 4 | CJ45: 1 | CK45: 2 | CL45: 4 | CM45: 12 | CN45: 2 | CO45: 4 | CP45: 1 | CQ45: 1 | CR45: 2 | CS45: 4 | CT45: 12 | CU45: 2 | CV45: 10 | CW45: 5 | CX45: 1 | CY45: 1 | CZ45: 1 | DA45: 1 | DB45: 1 | DC45: 5 | DD45: 1 | DE45: 1 | DF45: 1 | DG45: 1 | DH45: 1 | DI45: 1 | DJ45: 5 | DK45: 1 | DL45: 7 | DM45: 4 | DN45: 6 | DO45: 1 | DP45: 1 | DQ45: 3 | DR45: 3 | DS45: 14 | DT45: 8 | DU45: 2 | DV45: 1 | DW45: 5 | DX45: 6 | DY45: 2 | DZ45: 16 | EA45: 10 | EB45: 14 | EC45: 32 | ED45: E | EE45: 1 | EF45: 1 | EG45: 1 | EH45: 1 | EI45: 1 | EJ45: 5 | EK45: 3 | EL45: 1 | EM45: 1 | EN45: 1 | EO45: 1 | EP45: 1 | EQ45: 5 | ER45: 3 | ES45: 16 | ET45: 22 | EU45: E | FM45: 1 | FN45: 1 | FO45: 1 | FP45: 1 | FQ45: 1 | FR45: 5 | FS45: 3 | FT45: 1 | FU45: 1 | FV45: 1 | FW45: 1 | FX45: 1 | FY45: 5 | FZ45: 3 | GA45: 17 | GB45: 23 | GC45: E
B46: =IF(StudentData!A46="","",StudentData!A46) -> 36 | C46: =IF(StudentData!B46="","",StudentData!B46) -> 36 | D46: =IF(StudentData!C46="","",(LEFT(TRIM(CLEAN(StudentData!C46)),SEARCH(" ",TRIM(CLEAN(StudentData!C46)),SEARCH(" ",TRIM(CLEAN(StudentData!C46)),1)+1)))&" "&LEFT(RIGHT(StudentData!C46,LEN(StudentData!C46)-SEARCH(" ",StudentData!C46,SEARCH(" ",StudentData!C46,SEARCH(" ",StudentData!C46,1)+1)-1)),1)&".") -> CHAUHAN HARDIKKUMAR M. | E46: =IF(StudentData!G46="","",StudentData!G46) ->  | F46: 1 | G46: 4 | H46: 5 | I46: 1 | J46: 1 | K46: 12 | L46: 2 | M46: 1 | N46: 4 | O46: 5 | P46: 4 | Q46: 5 | R46: 19 | S46: 4 | T46: 12 | U46: 6 | V46: 1 | W46: 1 | X46: 1 | Y46: 1 | Z46: 3 | AA46: 7 | AB46: 1 | AC46: 1 | AD46: 1 | AE46: 1 | AF46: 1 | AG46: 1 | AH46: 5 | AI46: 1 | AJ46: 7 | AK46: 4 | AL46: 1 | AM46: 1 | AN46: 1 | AO46: 1 | AP46: 1 | AQ46: 5 | AR46: 1 | AS46: 2 | AT46: 2 | AU46: 3 | AV46: 3 | AW46: 1 | AX46: 11 | AY46: 2 | AZ46: 14 | BA46: 7 | BB46: 5 | BC46: 3 | BD46: 1 | BE46: 3 | BF46: 1 | BG46: 13 | BH46: 3 | BI46: 5 | BJ46: 5 | BK46: 3 | BL46: 1 | BM46: 3 | BN46: 17 | BO46: 3 | BP46: 4 | BQ46: 2 | BR46: 2 | BS46: 2 | BT46: 3 | BU46: 3 | BV46: 1 | BW46: 11 | BX46: 2 | BY46: 2 | BZ46: 2 | CA46: 3 | CB46: 3 | CC46: 1 | CD46: 11 | CE46: 2 | CF46: 13 | CG46: 7 | CH46: 3 | CI46: 1 | CJ46: 8 | CK46: 1 | CL46: 1 | CM46: 14 | CN46: 3 | CO46: 1 | CP46: 3 | CQ46: 1 | CR46: 1 | CS46: 1 | CT46: 7 | CU46: 1 | CV46: 15 | CW46: 8 | CX46: 1 | CY46: 1 | CZ46: 1 | DA46: 1 | DB46: 1 | DC46: 5 | DD46: 1 | DE46: 2 | DF46: 2 | DG46: 3 | DH46: 3 | DI46: 1 | DJ46: 11 | DK46: 2 | DL46: 12 | DM46: 6 | DN46: 1 | DO46: 6 | DP46: 2 | DQ46: 4 | DR46: 1 | DS46: 14 | DT46: 8 | DU46: 3 | DV46: 5 | DW46: 2 | DX46: 2 | DY46: 2 | DZ46: 14 | EA46: 8 | EB46: 14 | EC46: 30 | ED46: E | EE46: 1 | EF46: 4 | EG46: 5 | EH46: 1 | EI46: 1 | EJ46: 12 | EK46: 7 | EL46: 1 | EM46: 1 | EN46: 1 | EO46: 1 | EP46: 3 | EQ46: 7 | ER46: 4 | ES46: 14 | ET46: 25 | EU46: E | FM46: 1 | FN46: 4 | FO46: 5 | FP46: 1 | FQ46: 1 | FR46: 12 | FS46: 7 | FT46: 1 | FU46: 1 | FV46: 1 | FW46: 1 | FX46: 3 | FY46: 7 | FZ46: 4 | GA46: 15 | GB46: 26 | GC46: E
B47: =IF(StudentData!A47="","",StudentData!A47) -> 37 | C47: =IF(StudentData!B47="","",StudentData!B47) -> 37 | D47: =IF(StudentData!C47="","",(LEFT(TRIM(CLEAN(StudentData!C47)),SEARCH(" ",TRIM(CLEAN(StudentData!C47)),SEARCH(" ",TRIM(CLEAN(StudentData!C47)),1)+1)))&" "&LEFT(RIGHT(StudentData!C47,LEN(StudentData!C47)-SEARCH(" ",StudentData!C47,SEARCH(" ",StudentData!C47,SEARCH(" ",StudentData!C47,1)+1)-1)),1)&".") -> SOLANKI SAMIRBHAI D. | E47: =IF(StudentData!G47="","",StudentData!G47) ->  | F47: 5 | G47: 9 | H47: 3 | I47: 3 | J47: 3 | K47: 23 | L47: 5 | M47: 5 | N47: 9 | O47: 3 | P47: 9 | Q47: 3 | R47: 29 | S47: 6 | T47: 23 | U47: 12 | V47: 5 | W47: 5 | X47: 1 | Y47: 7 | Z47: 1 | AA47: 19 | AB47: 4 | AC47: 5 | AD47: 5 | AE47: 5 | AF47: 1 | AG47: 7 | AH47: 23 | AI47: 5 | AJ47: 19 | AK47: 10 | AL47: 6 | AM47: 6 | AN47: 5 | AO47: 1 | AP47: 1 | AQ47: 19 | AR47: 4 | AS47: 2 | AT47: 2 | AU47: 1 | AV47: 1 | AW47: 3 | AX47: 9 | AY47: 2 | AZ47: 20 | BA47: 10 | BB47: 7 | BC47: 3 | BD47: 3 | BE47: 3 | BF47: 1 | BG47: 17 | BH47: 3 | BI47: 7 | BJ47: 7 | BK47: 3 | BL47: 3 | BM47: 3 | BN47: 23 | BO47: 5 | BP47: 20 | BQ47: 10 | BR47: 2 | BS47: 2 | BT47: 1 | BU47: 1 | BV47: 3 | BW47: 9 | BX47: 2 | BY47: 2 | BZ47: 2 | CA47: 1 | CB47: 1 | CC47: 3 | CD47: 9 | CE47: 2 | CF47: 17 | CG47: 9 | CH47: 7 | CI47: 2 | CJ47: 7 | CK47: 2 | CL47: 2 | CM47: 20 | CN47: 4 | CO47: 3 | CP47: 3 | CQ47: 1 | CR47: 2 | CS47: 2 | CT47: 11 | CU47: 2 | CV47: 10 | CW47: 5 | CX47: 6 | CY47: 5 | CZ47: 1 | DA47: 1 | DB47: 7 | DC47: 20 | DD47: 4 | DE47: 2 | DF47: 2 | DG47: 1 | DH47: 1 | DI47: 3 | DJ47: 9 | DK47: 2 | DL47: 12 | DM47: 6 | DN47: 1 | DO47: 1 | DP47: 3 | DQ47: 7 | DR47: 4 | DS47: 16 | DT47: 10 | DU47: 3 | DV47: 1 | DW47: 1 | DX47: 2 | DY47: 9 | DZ47: 16 | EA47: 10 | EB47: 16 | EC47: 36 | ED47: C | EE47: 5 | EF47: 9 | EG47: 3 | EH47: 3 | EI47: 3 | EJ47: 23 | EK47: 14 | EL47: 5 | EM47: 5 | EN47: 1 | EO47: 7 | EP47: 1 | EQ47: 19 | ER47: 11 | ES47: 16 | ET47: 41 | EU47: C | FM47: 5 | FN47: 9 | FO47: 3 | FP47: 3 | FQ47: 3 | FR47: 23 | FS47: 14 | FT47: 5 | FU47: 5 | FV47: 1 | FW47: 7 | FX47: 1 | FY47: 19 | FZ47: 11 | GA47: 22 | GB47: 47 | GC47: B
B48: =IF(StudentData!A48="","",StudentData!A48) -> 38 | C48: =IF(StudentData!B48="","",StudentData!B48) -> 38 | D48: =IF(StudentData!C48="","",(LEFT(TRIM(CLEAN(StudentData!C48)),SEARCH(" ",TRIM(CLEAN(StudentData!C48)),SEARCH(" ",TRIM(CLEAN(StudentData!C48)),1)+1)))&" "&LEFT(RIGHT(StudentData!C48,LEN(StudentData!C48)-SEARCH(" ",StudentData!C48,SEARCH(" ",StudentData!C48,SEARCH(" ",StudentData!C48,1)+1)-1)),1)&".") -> THAKOR VISHALBHAI R. | E48: =IF(StudentData!G48="","",StudentData!G48) ->  | F48: 1 | G48: 7 | H48: 2 | I48: 7 | J48: 5 | K48: 22 | L48: 4 | M48: 1 | N48: 7 | O48: 2 | P48: 7 | Q48: 2 | R48: 19 | S48: 4 | T48: 22 | U48: 11 | V48: 3 | W48: 4 | X48: 1 | Y48: 1 | Z48: 1 | AA48: 10 | AB48: 2 | AC48: 3 | AD48: 3 | AE48: 4 | AF48: 1 | AG48: 1 | AH48: 12 | AI48: 2 | AJ48: 10 | AK48: 5 | AL48: 1 | AM48: 1 | AN48: 2 | AO48: 3 | AP48: 1 | AQ48: 8 | AR48: 2 | AS48: 3 | AT48: 3 | AU48: 6 | AV48: 3 | AW48: 1 | AX48: 16 | AY48: 3 | AZ48: 18 | BA48: 9 | BB48: 3 | BC48: 4 | BD48: 7 | BE48: 4 | BF48: 4 | BG48: 22 | BH48: 4 | BI48: 3 | BJ48: 3 | BK48: 4 | BL48: 7 | BM48: 4 | BN48: 21 | BO48: 4 | BP48: 8 | BQ48: 4 | BR48: 3 | BS48: 3 | BT48: 6 | BU48: 3 | BV48: 1 | BW48: 16 | BX48: 3 | BY48: 3 | BZ48: 3 | CA48: 6 | CB48: 3 | CC48: 1 | CD48: 16 | CE48: 3 | CF48: 22 | CG48: 11 | CH48: 4 | CI48: 6 | CJ48: 1 | CK48: 5 | CL48: 2 | CM48: 18 | CN48: 4 | CO48: 7 | CP48: 4 | CQ48: 4 | CR48: 5 | CS48: 2 | CT48: 22 | CU48: 4 | CV48: 13 | CW48: 7 | CX48: 1 | CY48: 2 | CZ48: 3 | DA48: 1 | DB48: 1 | DC48: 8 | DD48: 2 | DE48: 3 | DF48: 3 | DG48: 6 | DH48: 3 | DI48: 1 | DJ48: 16 | DK48: 3 | DL48: 14 | DM48: 7 | DN48: 7 | DO48: 1 | DP48: 2 | DQ48: 4 | DR48: 1 | DS48: 15 | DT48: 9 | DU48: 6 | DV48: 3 | DW48: 1 | DX48: 2 | DY48: 2 | DZ48: 14 | EA48: 8 | EB48: 15 | EC48: 32 | ED48: E | EE48: 1 | EF48: 7 | EG48: 2 | EH48: 7 | EI48: 5 | EJ48: 22 | EK48: 13 | EL48: 3 | EM48: 4 | EN48: 1 | EO48: 1 | EP48: 1 | EQ48: 10 | ER48: 6 | ES48: 14 | ET48: 33 | EU48: C | FM48: 1 | FN48: 7 | FO48: 2 | FP48: 7 | FQ48: 5 | FR48: 22 | FS48: 13 | FT48: 3 | FU48: 4 | FV48: 1 | FW48: 1 | FX48: 1 | FY48: 10 | FZ48: 6 | GA48: 17 | GB48: 36 | GC48: C
B49: =IF(StudentData!A49="","",StudentData!A49) -> 39 | C49: =IF(StudentData!B49="","",StudentData!B49) -> 39 | D49: =IF(StudentData!C49="","",(LEFT(TRIM(CLEAN(StudentData!C49)),SEARCH(" ",TRIM(CLEAN(StudentData!C49)),SEARCH(" ",TRIM(CLEAN(StudentData!C49)),1)+1)))&" "&LEFT(RIGHT(StudentData!C49,LEN(StudentData!C49)-SEARCH(" ",StudentData!C49,SEARCH(" ",StudentData!C49,SEARCH(" ",StudentData!C49,1)+1)-1)),1)&".") -> THAKOR JIGNESHBHAI P. | E49: =IF(StudentData!G49="","",StudentData!G49) ->  | F49: 4 | G49: 3 | H49: 7 | I49: 3 | J49: 3 | K49: 20 | L49: 4 | M49: 4 | N49: 3 | O49: 7 | P49: 3 | Q49: 7 | R49: 24 | S49: 5 | T49: 20 | U49: 10 | V49: 2 | W49: 2 | X49: 1 | Y49: 1 | Z49: 6 | AA49: 12 | AB49: 2 | AC49: 2 | AD49: 2 | AE49: 2 | AF49: 1 | AG49: 1 | AH49: 8 | AI49: 2 | AJ49: 12 | AK49: 6 | AL49: 2 | AM49: 2 | AN49: 5 | AO49: 1 | AP49: 2 | AQ49: 12 | AR49: 2 | AS49: 1 | AT49: 1 | AU49: 1 | AV49: 4 | AW49: 4 | AX49: 11 | AY49: 2 | AZ49: 20 | BA49: 10 | BB49: 7 | BC49: 7 | BD49: 8 | BE49: 3 | BF49: 1 | BG49: 26 | BH49: 5 | BI49: 7 | BJ49: 7 | BK49: 7 | BL49: 8 | BM49: 3 | BN49: 32 | BO49: 6 | BP49: 11 | BQ49: 6 | BR49: 1 | BS49: 1 | BT49: 1 | BU49: 4 | BV49: 4 | BW49: 11 | BX49: 2 | BY49: 1 | BZ49: 1 | CA49: 1 | CB49: 4 | CC49: 4 | CD49: 11 | CE49: 2 | CF49: 26 | CG49: 13 | CH49: 1 | CI49: 3 | CJ49: 7 | CK49: 1 | CL49: 8 | CM49: 20 | CN49: 4 | CO49: 8 | CP49: 3 | CQ49: 1 | CR49: 1 | CS49: 8 | CT49: 21 | CU49: 4 | CV49: 17 | CW49: 9 | CX49: 2 | CY49: 5 | CZ49: 1 | DA49: 2 | DB49: 1 | DC49: 11 | DD49: 2 | DE49: 1 | DF49: 1 | DG49: 1 | DH49: 4 | DI49: 4 | DJ49: 11 | DK49: 2 | DL49: 11 | DM49: 6 | DN49: 8 | DO49: 3 | DP49: 5 | DQ49: 3 | DR49: 2 | DS49: 21 | DT49: 13 | DU49: 5 | DV49: 7 | DW49: 6 | DX49: 1 | DY49: 2 | DZ49: 21 | EA49: 13 | EB49: 21 | EC49: 47 | ED49: B | EE49: 4 | EF49: 3 | EG49: 7 | EH49: 3 | EI49: 3 | EJ49: 20 | EK49: 12 | EL49: 2 | EM49: 2 | EN49: 1 | EO49: 1 | EP49: 6 | EQ49: 12 | ER49: 7 | ES49: 21 | ET49: 40 | EU49: C | FM49: 4 | FN49: 3 | FO49: 7 | FP49: 3 | FQ49: 3 | FR49: 20 | FS49: 12 | FT49: 2 | FU49: 2 | FV49: 1 | FW49: 1 | FX49: 6 | FY49: 12 | FZ49: 7 | GA49: 27 | GB49: 46 | GC49: B
B50: =IF(StudentData!A50="","",StudentData!A50) -> 40 | C50: =IF(StudentData!B50="","",StudentData!B50) -> 40 | D50: =IF(StudentData!C50="","",(LEFT(TRIM(CLEAN(StudentData!C50)),SEARCH(" ",TRIM(CLEAN(StudentData!C50)),SEARCH(" ",TRIM(CLEAN(StudentData!C50)),1)+1)))&" "&LEFT(RIGHT(StudentData!C50,LEN(StudentData!C50)-SEARCH(" ",StudentData!C50,SEARCH(" ",StudentData!C50,SEARCH(" ",StudentData!C50,1)+1)-1)),1)&".") -> RABARI VISHALKUMAR D. | E50: =IF(StudentData!G50="","",StudentData!G50) ->  | F50: 4 | G50: 7 | H50: 5 | I50: 9 | J50: 9 | K50: 34 | L50: 7 | M50: 4 | N50: 7 | O50: 5 | P50: 7 | Q50: 5 | R50: 28 | S50: 6 | T50: 34 | U50: 17 | V50: 2 | W50: 9 | X50: 3 | Y50: 5 | Z50: 3 | AA50: 22 | AB50: 4 | AC50: 2 | AD50: 2 | AE50: 9 | AF50: 3 | AG50: 5 | AH50: 21 | AI50: 4 | AJ50: 22 | AK50: 11 | AL50: 9 | AM50: 9 | AN50: 9 | AO50: 6 | AP50: 9 | AQ50: 42 | AR50: 8 | AS50: 3 | AT50: 3 | AU50: 1 | AV50: 1 | AW50: 5 | AX50: 13 | AY50: 3 | AZ50: 28 | BA50: 14 | BB50: 6 | BC50: 7 | BD50: 4 | BE50: 9 | BF50: 4 | BG50: 30 | BH50: 6 | BI50: 6 | BJ50: 6 | BK50: 7 | BL50: 4 | BM50: 9 | BN50: 32 | BO50: 6 | BP50: 36 | BQ50: 18 | BR50: 3 | BS50: 3 | BT50: 1 | BU50: 1 | BV50: 5 | BW50: 13 | BX50: 3 | BY50: 3 | BZ50: 3 | CA50: 1 | CB50: 1 | CC50: 5 | CD50: 13 | CE50: 3 | CF50: 30 | CG50: 15 | CH50: 2 | CI50: 8 | CJ50: 3 | CK50: 8 | CL50: 7 | CM50: 28 | CN50: 6 | CO50: 4 | CP50: 9 | CQ50: 4 | CR50: 8 | CS50: 7 | CT50: 32 | CU50: 6 | CV50: 18 | CW50: 9 | CX50: 9 | CY50: 9 | CZ50: 6 | DA50: 9 | DB50: 3 | DC50: 36 | DD50: 7 | DE50: 3 | DF50: 3 | DG50: 1 | DH50: 1 | DI50: 5 | DJ50: 13 | DK50: 3 | DL50: 14 | DM50: 7 | DN50: 1 | DO50: 4 | DP50: 6 | DQ50: 3 | DR50: 8 | DS50: 22 | DT50: 13 | DU50: 9 | DV50: 8 | DW50: 7 | DX50: 1 | DY50: 2 | DZ50: 27 | EA50: 16 | EB50: 22 | EC50: 51 | ED50: B | EE50: 4 | EF50: 7 | EG50: 5 | EH50: 9 | EI50: 9 | EJ50: 34 | EK50: 20 | EL50: 2 | EM50: 9 | EN50: 3 | EO50: 5 | EP50: 3 | EQ50: 22 | ER50: 13 | ES50: 27 | ET50: 60 | EU50: B+ | FM50: 4 | FN50: 7 | FO50: 5 | FP50: 9 | FQ50: 9 | FR50: 34 | FS50: 20 | FT50: 2 | FU50: 9 | FV50: 3 | FW50: 5 | FX50: 3 | FY50: 22 | FZ50: 13 | GA50: 35 | GB50: 68 | GC50: B+
B51: =IF(StudentData!A51="","",StudentData!A51) -> 41 | C51: =IF(StudentData!B51="","",StudentData!B51) -> 41 | D51: =IF(StudentData!C51="","",(LEFT(TRIM(CLEAN(StudentData!C51)),SEARCH(" ",TRIM(CLEAN(StudentData!C51)),SEARCH(" ",TRIM(CLEAN(StudentData!C51)),1)+1)))&" "&LEFT(RIGHT(StudentData!C51,LEN(StudentData!C51)-SEARCH(" ",StudentData!C51,SEARCH(" ",StudentData!C51,SEARCH(" ",StudentData!C51,1)+1)-1)),1)&".") -> BHIMANI CHETANKUMAR N. | E51: =IF(StudentData!G51="","",StudentData!G51) ->  | F51: 1 | G51: 6 | H51: 1 | I51: 7 | J51: 5 | K51: 20 | L51: 4 | M51: 1 | N51: 6 | O51: 1 | P51: 6 | Q51: 1 | R51: 15 | S51: 3 | T51: 20 | U51: 10 | V51: 1 | W51: 1 | X51: 3 | Y51: 3 | Z51: 1 | AA51: 9 | AB51: 2 | AC51: 1 | AD51: 1 | AE51: 1 | AF51: 3 | AG51: 3 | AH51: 9 | AI51: 2 | AJ51: 9 | AK51: 5 | AL51: 1 | AM51: 1 | AN51: 2 | AO51: 4 | AP51: 1 | AQ51: 9 | AR51: 2 | AS51: 1 | AT51: 1 | AU51: 1 | AV51: 1 | AW51: 4 | AX51: 8 | AY51: 2 | AZ51: 15 | BA51: 8 | BB51: 7 | BC51: 3 | BD51: 1 | BE51: 7 | BF51: 2 | BG51: 20 | BH51: 4 | BI51: 7 | BJ51: 7 | BK51: 3 | BL51: 1 | BM51: 7 | BN51: 25 | BO51: 5 | BP51: 13 | BQ51: 7 | BR51: 1 | BS51: 1 | BT51: 1 | BU51: 1 | BV51: 4 | BW51: 8 | BX51: 2 | BY51: 1 | BZ51: 1 | CA51: 1 | CB51: 1 | CC51: 4 | CD51: 8 | CE51: 2 | CF51: 20 | CG51: 10 | CH51: 1 | CI51: 5 | CJ51: 6 | CK51: 2 | CL51: 1 | CM51: 15 | CN51: 3 | CO51: 1 | CP51: 7 | CQ51: 2 | CR51: 2 | CS51: 1 | CT51: 13 | CU51: 3 | CV51: 15 | CW51: 8 | CX51: 1 | CY51: 2 | CZ51: 4 | DA51: 1 | DB51: 5 | DC51: 13 | DD51: 3 | DE51: 1 | DF51: 1 | DG51: 1 | DH51: 1 | DI51: 4 | DJ51: 8 | DK51: 2 | DL51: 8 | DM51: 4 | DN51: 2 | DO51: 2 | DP51: 9 | DQ51: 4 | DR51: 2 | DS51: 19 | DT51: 11 | DU51: 1 | DV51: 1 | DW51: 5 | DX51: 1 | DY51: 6 | DZ51: 14 | EA51: 8 | EB51: 19 | EC51: 38 | ED51: C | EE51: 1 | EF51: 6 | EG51: 1 | EH51: 7 | EI51: 5 | EJ51: 20 | EK51: 12 | EL51: 1 | EM51: 1 | EN51: 3 | EO51: 3 | EP51: 1 | EQ51: 9 | ER51: 5 | ES51: 14 | ET51: 31 | EU51: E | FM51: 1 | FN51: 6 | FO51: 1 | FP51: 7 | FQ51: 5 | FR51: 20 | FS51: 12 | FT51: 1 | FU51: 1 | FV51: 3 | FW51: 3 | FX51: 1 | FY51: 9 | FZ51: 5 | GA51: 26 | GB51: 43 | GC51: C
B52: =IF(StudentData!A52="","",StudentData!A52) -> 42 | C52: =IF(StudentData!B52="","",StudentData!B52) -> 42 | D52: =IF(StudentData!C52="","",(LEFT(TRIM(CLEAN(StudentData!C52)),SEARCH(" ",TRIM(CLEAN(StudentData!C52)),SEARCH(" ",TRIM(CLEAN(StudentData!C52)),1)+1)))&" "&LEFT(RIGHT(StudentData!C52,LEN(StudentData!C52)-SEARCH(" ",StudentData!C52,SEARCH(" ",StudentData!C52,SEARCH(" ",StudentData!C52,1)+1)-1)),1)&".") -> PARMAR AARYANSINH R. | E52: =IF(StudentData!G52="","",StudentData!G52) ->  | F52: 1 | G52: 4 | H52: 5 | I52: 7 | J52: 5 | K52: 22 | L52: 4 | M52: 1 | N52: 4 | O52: 5 | P52: 4 | Q52: 5 | R52: 19 | S52: 4 | T52: 22 | U52: 11 | V52: 1 | W52: 3 | X52: 6 | Y52: 4 | Z52: 1 | AA52: 15 | AB52: 3 | AC52: 1 | AD52: 1 | AE52: 3 | AF52: 6 | AG52: 4 | AH52: 15 | AI52: 3 | AJ52: 15 | AK52: 8 | AL52: 7 | AM52: 7 | AN52: 5 | AO52: 2 | AP52: 1 | AQ52: 22 | AR52: 4 | AS52: 1 | AT52: 1 | AU52: 1 | AV52: 1 | AW52: 1 | AX52: 5 | AY52: 1 | AZ52: 18 | BA52: 9 | BB52: 1 | BC52: 4 | BD52: 3 | BE52: 5 | BF52: 8 | BG52: 21 | BH52: 4 | BI52: 1 | BJ52: 1 | BK52: 4 | BL52: 3 | BM52: 5 | BN52: 14 | BO52: 3 | BP52: 21 | BQ52: 11 | BR52: 1 | BS52: 1 | BT52: 1 | BU52: 1 | BV52: 1 | BW52: 5 | BX52: 1 | BY52: 1 | BZ52: 1 | CA52: 1 | CB52: 1 | CC52: 1 | CD52: 5 | CE52: 1 | CF52: 21 | CG52: 11 | CH52: 1 | CI52: 5 | CJ52: 3 | CK52: 2 | CL52: 7 | CM52: 18 | CN52: 4 | CO52: 3 | CP52: 5 | CQ52: 8 | CR52: 2 | CS52: 7 | CT52: 25 | CU52: 5 | CV52: 11 | CW52: 6 | CX52: 7 | CY52: 5 | CZ52: 2 | DA52: 1 | DB52: 6 | DC52: 21 | DD52: 4 | DE52: 1 | DF52: 1 | DG52: 1 | DH52: 1 | DI52: 1 | DJ52: 5 | DK52: 1 | DL52: 8 | DM52: 4 | DN52: 7 | DO52: 3 | DP52: 1 | DQ52: 2 | DR52: 4 | DS52: 17 | DT52: 10 | DU52: 2 | DV52: 6 | DW52: 1 | DX52: 2 | DY52: 8 | DZ52: 19 | EA52: 11 | EB52: 17 | EC52: 38 | ED52: C | EE52: 1 | EF52: 4 | EG52: 5 | EH52: 7 | EI52: 5 | EJ52: 22 | EK52: 13 | EL52: 1 | EM52: 3 | EN52: 6 | EO52: 4 | EP52: 1 | EQ52: 15 | ER52: 9 | ES52: 19 | ET52: 41 | EU52: C | FM52: 1 | FN52: 4 | FO52: 5 | FP52: 7 | FQ52: 5 | FR52: 22 | FS52: 13 | FT52: 1 | FU52: 3 | FV52: 6 | FW52: 4 | FX52: 1 | FY52: 15 | FZ52: 9 | GA52: 17 | GB52: 39 | GC52: C
B53: =IF(StudentData!A53="","",StudentData!A53) -> 43 | C53: =IF(StudentData!B53="","",StudentData!B53) -> 43 | D53: =IF(StudentData!C53="","",(LEFT(TRIM(CLEAN(StudentData!C53)),SEARCH(" ",TRIM(CLEAN(StudentData!C53)),SEARCH(" ",TRIM(CLEAN(StudentData!C53)),1)+1)))&" "&LEFT(RIGHT(StudentData!C53,LEN(StudentData!C53)-SEARCH(" ",StudentData!C53,SEARCH(" ",StudentData!C53,SEARCH(" ",StudentData!C53,1)+1)-1)),1)&".") -> SADHU JAYESH J. | E53: =IF(StudentData!G53="","",StudentData!G53) ->  | F53: 6 | G53: 3 | H53: 8 | I53: 3 | J53: 4 | K53: 24 | L53: 5 | M53: 6 | N53: 3 | O53: 8 | P53: 3 | Q53: 8 | R53: 28 | S53: 6 | T53: 24 | U53: 12 | V53: 1 | W53: 6 | X53: 8 | Y53: 6 | Z53: 4 | AA53: 25 | AB53: 5 | AC53: 1 | AD53: 1 | AE53: 6 | AF53: 8 | AG53: 6 | AH53: 22 | AI53: 4 | AJ53: 25 | AK53: 13 | AL53: 1 | AM53: 1 | AN53: 1 | AO53: 8 | AP53: 4 | AQ53: 15 | AR53: 3 | AS53: 1 | AT53: 1 | AU53: 3 | AV53: 6 | AW53: 7 | AX53: 18 | AY53: 4 | AZ53: 22 | BA53: 11 | BB53: 5 | BC53: 5 | BD53: 5 | BE53: 1 | BF53: 4 | BG53: 20 | BH53: 4 | BI53: 5 | BJ53: 5 | BK53: 5 | BL53: 5 | BM53: 1 | BN53: 21 | BO53: 4 | BP53: 16 | BQ53: 8 | BR53: 1 | BS53: 1 | BT53: 3 | BU53: 6 | BV53: 7 | BW53: 18 | BX53: 4 | BY53: 1 | BZ53: 1 | CA53: 3 | CB53: 6 | CC53: 7 | CD53: 18 | CE53: 4 | CF53: 20 | CG53: 10 | CH53: 4 | CI53: 5 | CJ53: 4 | CK53: 1 | CL53: 8 | CM53: 22 | CN53: 4 | CO53: 5 | CP53: 1 | CQ53: 4 | CR53: 1 | CS53: 8 | CT53: 19 | CU53: 4 | CV53: 14 | CW53: 7 | CX53: 1 | CY53: 1 | CZ53: 8 | DA53: 4 | DB53: 2 | DC53: 16 | DD53: 3 | DE53: 1 | DF53: 1 | DG53: 3 | DH53: 6 | DI53: 7 | DJ53: 18 | DK53: 4 | DL53: 20 | DM53: 10 | DN53: 5 | DO53: 1 | DP53: 1 | DQ53: 1 | DR53: 6 | DS53: 14 | DT53: 8 | DU53: 3 | DV53: 1 | DW53: 5 | DX53: 1 | DY53: 5 | DZ53: 15 | EA53: 9 | EB53: 14 | EC53: 31 | ED53: E | EE53: 6 | EF53: 3 | EG53: 8 | EH53: 3 | EI53: 4 | EJ53: 24 | EK53: 14 | EL53: 1 | EM53: 6 | EN53: 8 | EO53: 6 | EP53: 4 | EQ53: 25 | ER53: 15 | ES53: 15 | ET53: 44 | EU53: C | FM53: 6 | FN53: 3 | FO53: 8 | FP53: 3 | FQ53: 4 | FR53: 24 | FS53: 14 | FT53: 1 | FU53: 6 | FV53: 8 | FW53: 6 | FX53: 4 | FY53: 25 | FZ53: 15 | GA53: 20 | GB53: 49 | GC53: B
B54: =IF(StudentData!A54="","",StudentData!A54) -> 44 | C54: =IF(StudentData!B54="","",StudentData!B54) -> 44 | D54: =IF(StudentData!C54="","",(LEFT(TRIM(CLEAN(StudentData!C54)),SEARCH(" ",TRIM(CLEAN(StudentData!C54)),SEARCH(" ",TRIM(CLEAN(StudentData!C54)),1)+1)))&" "&LEFT(RIGHT(StudentData!C54,LEN(StudentData!C54)-SEARCH(" ",StudentData!C54,SEARCH(" ",StudentData!C54,SEARCH(" ",StudentData!C54,1)+1)-1)),1)&".") -> THAKOR AMITBHAI B. | E54: =IF(StudentData!G54="","",StudentData!G54) ->  | F54: 5 | G54: 3 | H54: 1 | I54: 6 | J54: 7 | K54: 22 | L54: 4 | M54: 5 | N54: 3 | O54: 1 | P54: 3 | Q54: 1 | R54: 13 | S54: 3 | T54: 22 | U54: 11 | V54: 4 | W54: 1 | X54: 3 | Y54: 1 | Z54: 1 | AA54: 10 | AB54: 2 | AC54: 4 | AD54: 4 | AE54: 1 | AF54: 3 | AG54: 1 | AH54: 13 | AI54: 3 | AJ54: 10 | AK54: 5 | AL54: 1 | AM54: 1 | AN54: 3 | AO54: 3 | AP54: 2 | AQ54: 10 | AR54: 2 | AS54: 1 | AT54: 1 | AU54: 1 | AV54: 6 | AW54: 3 | AX54: 12 | AY54: 2 | AZ54: 20 | BA54: 10 | BB54: 7 | BC54: 1 | BD54: 4 | BE54: 2 | BF54: 3 | BG54: 17 | BH54: 3 | BI54: 7 | BJ54: 7 | BK54: 1 | BL54: 4 | BM54: 2 | BN54: 21 | BO54: 4 | BP54: 14 | BQ54: 7 | BR54: 1 | BS54: 1 | BT54: 1 | BU54: 6 | BV54: 3 | BW54: 12 | BX54: 2 | BY54: 1 | BZ54: 1 | CA54: 1 | CB54: 6 | CC54: 3 | CD54: 12 | CE54: 2 | CF54: 17 | CG54: 9 | CH54: 5 | CI54: 4 | CJ54: 5 | CK54: 1 | CL54: 5 | CM54: 20 | CN54: 4 | CO54: 4 | CP54: 2 | CQ54: 3 | CR54: 1 | CS54: 5 | CT54: 15 | CU54: 3 | CV54: 12 | CW54: 6 | CX54: 1 | CY54: 3 | CZ54: 3 | DA54: 2 | DB54: 5 | DC54: 14 | DD54: 3 | DE54: 1 | DF54: 1 | DG54: 1 | DH54: 6 | DI54: 3 | DJ54: 12 | DK54: 2 | DL54: 12 | DM54: 6 | DN54: 4 | DO54: 2 | DP54: 2 | DQ54: 2 | DR54: 7 | DS54: 17 | DT54: 10 | DU54: 2 | DV54: 1 | DW54: 5 | DX54: 3 | DY54: 3 | DZ54: 14 | EA54: 8 | EB54: 17 | EC54: 35 | ED54: C | EE54: 5 | EF54: 3 | EG54: 1 | EH54: 6 | EI54: 7 | EJ54: 22 | EK54: 13 | EL54: 4 | EM54: 1 | EN54: 3 | EO54: 1 | EP54: 1 | EQ54: 10 | ER54: 6 | ES54: 14 | ET54: 33 | EU54: C | FM54: 5 | FN54: 3 | FO54: 1 | FP54: 6 | FQ54: 7 | FR54: 22 | FS54: 13 | FT54: 4 | FU54: 1 | FV54: 3 | FW54: 1 | FX54: 1 | FY54: 10 | FZ54: 6 | GA54: 14 | GB54: 33 | GC54: C
B55: =IF(StudentData!A55="","",StudentData!A55) -> 45 | C55: =IF(StudentData!B55="","",StudentData!B55) -> 45 | D55: =IF(StudentData!C55="","",(LEFT(TRIM(CLEAN(StudentData!C55)),SEARCH(" ",TRIM(CLEAN(StudentData!C55)),SEARCH(" ",TRIM(CLEAN(StudentData!C55)),1)+1)))&" "&LEFT(RIGHT(StudentData!C55,LEN(StudentData!C55)-SEARCH(" ",StudentData!C55,SEARCH(" ",StudentData!C55,SEARCH(" ",StudentData!C55,1)+1)-1)),1)&".") -> PANCHANI CHETAN S. | E55: =IF(StudentData!G55="","",StudentData!G55) ->  | F55: 7 | G55: 3 | H55: 9 | I55: 4 | J55: 9 | K55: 32 | L55: 6 | M55: 7 | N55: 3 | O55: 9 | P55: 3 | Q55: 9 | R55: 31 | S55: 6 | T55: 32 | U55: 16 | V55: 4 | W55: 9 | X55: 8 | Y55: 9 | Z55: 8 | AA55: 38 | AB55: 8 | AC55: 4 | AD55: 4 | AE55: 9 | AF55: 8 | AG55: 9 | AH55: 34 | AI55: 7 | AJ55: 38 | AK55: 19 | AL55: 7 | AM55: 7 | AN55: 4 | AO55: 3 | AP55: 2 | AQ55: 23 | AR55: 5 | AS55: 4 | AT55: 4 | AU55: 1 | AV55: 9 | AW55: 5 | AX55: 23 | AY55: 5 | AZ55: 29 | BA55: 15 | BB55: 9 | BC55: 9 | BD55: 9 | BE55: 9 | BF55: 9 | BG55: 45 | BH55: 9 | BI55: 9 | BJ55: 9 | BK55: 9 | BL55: 9 | BM55: 9 | BN55: 45 | BO55: 9 | BP55: 19 | BQ55: 10 | BR55: 4 | BS55: 4 | BT55: 1 | BU55: 9 | BV55: 5 | BW55: 23 | BX55: 5 | BY55: 4 | BZ55: 4 | CA55: 1 | CB55: 9 | CC55: 5 | CD55: 23 | CE55: 5 | CF55: 55 | CG55: 28 | CH55: 6 | CI55: 9 | CJ55: 3 | CK55: 9 | CL55: 2 | CM55: 29 | CN55: 6 | CO55: 9 | CP55: 9 | CQ55: 9 | CR55: 9 | CS55: 2 | CT55: 38 | CU55: 8 | CV55: 22 | CW55: 11 | CX55: 7 | CY55: 4 | CZ55: 3 | DA55: 2 | DB55: 3 | DC55: 19 | DD55: 4 | DE55: 4 | DF55: 4 | DG55: 1 | DH55: 9 | DI55: 5 | DJ55: 23 | DK55: 5 | DL55: 20 | DM55: 10 | DN55: 1 | DO55: 5 | DP55: 6 | DQ55: 3 | DR55: 5 | DS55: 20 | DT55: 12 | DU55: 6 | DV55: 3 | DW55: 1 | DX55: 2 | DY55: 3 | DZ55: 15 | EA55: 9 | EB55: 20 | EC55: 41 | ED55: C | EE55: 7 | EF55: 3 | EG55: 9 | EH55: 4 | EI55: 9 | EJ55: 32 | EK55: 19 | EL55: 4 | EM55: 9 | EN55: 8 | EO55: 9 | EP55: 8 | EQ55: 38 | ER55: 23 | ES55: 15 | ET55: 57 | EU55: B | FM55: 7 | FN55: 3 | FO55: 9 | FP55: 4 | FQ55: 9 | FR55: 32 | FS55: 19 | FT55: 4 | FU55: 9 | FV55: 8 | FW55: 9 | FX55: 8 | FY55: 38 | FZ55: 23 | GA55: 15 | GB55: 57 | GC55: B
B56: =IF(StudentData!A56="","",StudentData!A56) -> 46 | C56: =IF(StudentData!B56="","",StudentData!B56) -> 46 | D56: =IF(StudentData!C56="","",(LEFT(TRIM(CLEAN(StudentData!C56)),SEARCH(" ",TRIM(CLEAN(StudentData!C56)),SEARCH(" ",TRIM(CLEAN(StudentData!C56)),1)+1)))&" "&LEFT(RIGHT(StudentData!C56,LEN(StudentData!C56)-SEARCH(" ",StudentData!C56,SEARCH(" ",StudentData!C56,SEARCH(" ",StudentData!C56,1)+1)-1)),1)&".") -> RATHOD HIREN H. | E56: =IF(StudentData!G56="","",StudentData!G56) ->  | F56: 4 | G56: 2 | H56: 8 | I56: 9 | J56: 2 | K56: 25 | L56: 5 | M56: 4 | N56: 2 | O56: 8 | P56: 2 | Q56: 8 | R56: 24 | S56: 5 | T56: 25 | U56: 13 | V56: 2 | W56: 5 | X56: 6 | Y56: 4 | Z56: 7 | AA56: 24 | AB56: 5 | AC56: 2 | AD56: 2 | AE56: 5 | AF56: 6 | AG56: 4 | AH56: 19 | AI56: 4 | AJ56: 24 | AK56: 12 | AL56: 6 | AM56: 6 | AN56: 7 | AO56: 2 | AP56: 1 | AQ56: 22 | AR56: 4 | AS56: 1 | AT56: 1 | AU56: 1 | AV56: 3 | AW56: 5 | AX56: 11 | AY56: 2 | AZ56: 28 | BA56: 14 | BB56: 1 | BC56: 1 | BD56: 1 | BE56: 2 | BF56: 6 | BG56: 11 | BH56: 2 | BI56: 1 | BJ56: 1 | BK56: 1 | BL56: 1 | BM56: 2 | BN56: 6 | BO56: 1 | BP56: 25 | BQ56: 13 | BR56: 1 | BS56: 1 | BT56: 1 | BU56: 3 | BV56: 5 | BW56: 11 | BX56: 2 | BY56: 1 | BZ56: 1 | CA56: 1 | CB56: 3 | CC56: 5 | CD56: 11 | CE56: 2 | CF56: 11 | CG56: 6 | CH56: 7 | CI56: 4 | CJ56: 3 | CK56: 6 | CL56: 8 | CM56: 28 | CN56: 6 | CO56: 1 | CP56: 2 | CQ56: 6 | CR56: 6 | CS56: 8 | CT56: 23 | CU56: 5 | CV56: 11 | CW56: 6 | CX56: 6 | CY56: 7 | CZ56: 2 | DA56: 1 | DB56: 9 | DC56: 25 | DD56: 5 | DE56: 1 | DF56: 1 | DG56: 1 | DH56: 3 | DI56: 5 | DJ56: 11 | DK56: 2 | DL56: 16 | DM56: 8 | DN56: 8 | DO56: 4 | DP56: 1 | DQ56: 2 | DR56: 6 | DS56: 21 | DT56: 13 | DU56: 5 | DV56: 6 | DW56: 1 | DX56: 1 | DY56: 1 | DZ56: 14 | EA56: 8 | EB56: 21 | EC56: 42 | ED56: C | EE56: 4 | EF56: 2 | EG56: 8 | EH56: 9 | EI56: 2 | EJ56: 25 | EK56: 15 | EL56: 2 | EM56: 5 | EN56: 6 | EO56: 4 | EP56: 7 | EQ56: 24 | ER56: 14 | ES56: 14 | ET56: 43 | EU56: C | FM56: 4 | FN56: 2 | FO56: 8 | FP56: 9 | FQ56: 2 | FR56: 25 | FS56: 15 | FT56: 2 | FU56: 5 | FV56: 6 | FW56: 4 | FX56: 7 | FY56: 24 | FZ56: 14 | GA56: 18 | GB56: 47 | GC56: B
B57: =IF(StudentData!A57="","",StudentData!A57) -> 47 | C57: =IF(StudentData!B57="","",StudentData!B57) -> 47 | D57: =IF(StudentData!C57="","",(LEFT(TRIM(CLEAN(StudentData!C57)),SEARCH(" ",TRIM(CLEAN(StudentData!C57)),SEARCH(" ",TRIM(CLEAN(StudentData!C57)),1)+1)))&" "&LEFT(RIGHT(StudentData!C57,LEN(StudentData!C57)-SEARCH(" ",StudentData!C57,SEARCH(" ",StudentData!C57,SEARCH(" ",StudentData!C57,1)+1)-1)),1)&".") -> SAVDHARIYA BHARATBHAI K. | E57: =IF(StudentData!G57="","",StudentData!G57) ->  | F57: 5 | G57: 1 | H57: 9 | I57: 3 | J57: 3 | K57: 21 | L57: 4 | M57: 5 | N57: 1 | O57: 9 | P57: 1 | Q57: 9 | R57: 25 | S57: 5 | T57: 21 | U57: 11 | V57: 1 | W57: 2 | X57: 5 | Y57: 2 | Z57: 1 | AA57: 11 | AB57: 2 | AC57: 1 | AD57: 1 | AE57: 2 | AF57: 5 | AG57: 2 | AH57: 11 | AI57: 2 | AJ57: 11 | AK57: 6 | AL57: 1 | AM57: 1 | AN57: 1 | AO57: 3 | AP57: 2 | AQ57: 8 | AR57: 2 | AS57: 4 | AT57: 4 | AU57: 1 | AV57: 1 | AW57: 1 | AX57: 11 | AY57: 2 | AZ57: 20 | BA57: 10 | BB57: 2 | BC57: 1 | BD57: 5 | BE57: 2 | BF57: 7 | BG57: 17 | BH57: 3 | BI57: 2 | BJ57: 2 | BK57: 1 | BL57: 5 | BM57: 2 | BN57: 12 | BO57: 2 | BP57: 9 | BQ57: 5 | BR57: 4 | BS57: 4 | BT57: 1 | BU57: 1 | BV57: 1 | BW57: 11 | BX57: 2 | BY57: 4 | BZ57: 4 | CA57: 1 | CB57: 1 | CC57: 1 | CD57: 11 | CE57: 2 | CF57: 17 | CG57: 9 | CH57: 4 | CI57: 6 | CJ57: 3 | CK57: 1 | CL57: 6 | CM57: 20 | CN57: 4 | CO57: 5 | CP57: 2 | CQ57: 7 | CR57: 1 | CS57: 6 | CT57: 21 | CU57: 4 | CV57: 8 | CW57: 4 | CX57: 1 | CY57: 1 | CZ57: 3 | DA57: 2 | DB57: 2 | DC57: 9 | DD57: 2 | DE57: 4 | DF57: 4 | DG57: 1 | DH57: 1 | DI57: 1 | DJ57: 11 | DK57: 2 | DL57: 8 | DM57: 4 | DN57: 7 | DO57: 3 | DP57: 5 | DQ57: 3 | DR57: 6 | DS57: 24 | DT57: 14 | DU57: 4 | DV57: 5 | DW57: 1 | DX57: 7 | DY57: 1 | DZ57: 18 | EA57: 11 | EB57: 24 | EC57: 49 | ED57: B | EE57: 5 | EF57: 1 | EG57: 9 | EH57: 3 | EI57: 3 | EJ57: 21 | EK57: 13 | EL57: 1 | EM57: 2 | EN57: 5 | EO57: 2 | EP57: 1 | EQ57: 11 | ER57: 7 | ES57: 18 | ET57: 38 | EU57: C | FM57: 5 | FN57: 1 | FO57: 9 | FP57: 3 | FQ57: 3 | FR57: 21 | FS57: 13 | FT57: 1 | FU57: 2 | FV57: 5 | FW57: 2 | FX57: 1 | FY57: 11 | FZ57: 7 | GA57: 18 | GB57: 38 | GC57: C
B58: =IF(StudentData!A58="","",StudentData!A58) -> 48 | C58: =IF(StudentData!B58="","",StudentData!B58) -> 48 | D58: =IF(StudentData!C58="","",(LEFT(TRIM(CLEAN(StudentData!C58)),SEARCH(" ",TRIM(CLEAN(StudentData!C58)),SEARCH(" ",TRIM(CLEAN(StudentData!C58)),1)+1)))&" "&LEFT(RIGHT(StudentData!C58,LEN(StudentData!C58)-SEARCH(" ",StudentData!C58,SEARCH(" ",StudentData!C58,SEARCH(" ",StudentData!C58,1)+1)-1)),1)&".") -> JARVALIYA SANJAYKUMAR J. | E58: =IF(StudentData!G58="","",StudentData!G58) ->  | F58: 4 | G58: 6 | H58: 1 | I58: 4 | J58: 6 | K58: 21 | L58: 4 | M58: 4 | N58: 6 | O58: 1 | P58: 6 | Q58: 1 | R58: 18 | S58: 4 | T58: 21 | U58: 11 | V58: 3 | W58: 5 | X58: 1 | Y58: 5 | Z58: 1 | AA58: 15 | AB58: 3 | AC58: 3 | AD58: 3 | AE58: 5 | AF58: 1 | AG58: 5 | AH58: 17 | AI58: 3 | AJ58: 15 | AK58: 8 | AL58: 1 | AM58: 1 | AN58: 4 | AO58: 1 | AP58: 2 | AQ58: 9 | AR58: 2 | AS58: 1 | AT58: 1 | AU58: 2 | AV58: 2 | AW58: 1 | AX58: 7 | AY58: 1 | AZ58: 22 | BA58: 11 | BB58: 2 | BC58: 1 | BD58: 5 | BE58: 5 | BF58: 1 | BG58: 14 | BH58: 3 | BI58: 2 | BJ58: 2 | BK58: 1 | BL58: 5 | BM58: 5 | BN58: 15 | BO58: 3 | BP58: 12 | BQ58: 6 | BR58: 1 | BS58: 1 | BT58: 2 | BU58: 2 | BV58: 1 | BW58: 7 | BX58: 1 | BY58: 1 | BZ58: 1 | CA58: 2 | CB58: 2 | CC58: 1 | CD58: 7 | CE58: 1 | CF58: 14 | CG58: 7 | CH58: 1 | CI58: 7 | CJ58: 7 | CK58: 6 | CL58: 1 | CM58: 22 | CN58: 4 | CO58: 5 | CP58: 5 | CQ58: 1 | CR58: 6 | CS58: 1 | CT58: 18 | CU58: 4 | CV58: 9 | CW58: 5 | CX58: 1 | CY58: 4 | CZ58: 1 | DA58: 2 | DB58: 4 | DC58: 12 | DD58: 2 | DE58: 1 | DF58: 1 | DG58: 2 | DH58: 2 | DI58: 1 | DJ58: 7 | DK58: 1 | DL58: 8 | DM58: 4 | DN58: 3 | DO58: 1 | DP58: 1 | DQ58: 3 | DR58: 6 | DS58: 14 | DT58: 8 | DU58: 1 | DV58: 4 | DW58: 1 | DX58: 2 | DY58: 6 | DZ58: 14 | EA58: 8 | EB58: 14 | EC58: 30 | ED58: E | EE58: 4 | EF58: 6 | EG58: 1 | EH58: 4 | EI58: 6 | EJ58: 21 | EK58: 13 | EL58: 3 | EM58: 5 | EN58: 1 | EO58: 5 | EP58: 1 | EQ58: 15 | ER58: 9 | ES58: 14 | ET58: 36 | EU58: C | FM58: 4 | FN58: 6 | FO58: 1 | FP58: 4 | FQ58: 6 | FR58: 21 | FS58: 13 | FT58: 3 | FU58: 5 | FV58: 1 | FW58: 5 | FX58: 1 | FY58: 15 | FZ58: 9 | GA58: 19 | GB58: 41 | GC58: C
B59: =IF(StudentData!A59="","",StudentData!A59) -> 49 | C59: =IF(StudentData!B59="","",StudentData!B59) -> 49 | D59: =IF(StudentData!C59="","",(LEFT(TRIM(CLEAN(StudentData!C59)),SEARCH(" ",TRIM(CLEAN(StudentData!C59)),SEARCH(" ",TRIM(CLEAN(StudentData!C59)),1)+1)))&" "&LEFT(RIGHT(StudentData!C59,LEN(StudentData!C59)-SEARCH(" ",StudentData!C59,SEARCH(" ",StudentData!C59,SEARCH(" ",StudentData!C59,1)+1)-1)),1)&".") -> PATADIYA MANTRAKUMAR N. | E59: =IF(StudentData!G59="","",StudentData!G59) ->  | F59: 1 | G59: 8 | H59: 8 | I59: 7 | J59: 6 | K59: 30 | L59: 6 | M59: 1 | N59: 8 | O59: 8 | P59: 8 | Q59: 8 | R59: 33 | S59: 7 | T59: 30 | U59: 15 | V59: 7 | W59: 1 | X59: 1 | Y59: 4 | Z59: 7 | AA59: 20 | AB59: 4 | AC59: 7 | AD59: 7 | AE59: 1 | AF59: 1 | AG59: 4 | AH59: 20 | AI59: 4 | AJ59: 20 | AK59: 10 | AL59: 2 | AM59: 2 | AN59: 7 | AO59: 2 | AP59: 8 | AQ59: 21 | AR59: 4 | AS59: 1 | AT59: 1 | AU59: 1 | AV59: 1 | AW59: 6 | AX59: 10 | AY59: 2 | AZ59: 27 | BA59: 14 | BB59: 5 | BC59: 3 | BD59: 3 | BE59: 4 | BF59: 5 | BG59: 20 | BH59: 4 | BI59: 5 | BJ59: 5 | BK59: 3 | BL59: 3 | BM59: 4 | BN59: 20 | BO59: 4 | BP59: 24 | BQ59: 12 | BR59: 1 | BS59: 1 | BT59: 1 | BU59: 1 | BV59: 6 | BW59: 10 | BX59: 2 | BY59: 1 | BZ59: 1 | CA59: 1 | CB59: 1 | CC59: 6 | CD59: 10 | CE59: 2 | CF59: 20 | CG59: 10 | CH59: 5 | CI59: 9 | CJ59: 2 | CK59: 2 | CL59: 9 | CM59: 27 | CN59: 5 | CO59: 3 | CP59: 4 | CQ59: 5 | CR59: 2 | CS59: 9 | CT59: 23 | CU59: 5 | CV59: 14 | CW59: 7 | CX59: 2 | CY59: 7 | CZ59: 2 | DA59: 8 | DB59: 5 | DC59: 24 | DD59: 5 | DE59: 1 | DF59: 1 | DG59: 1 | DH59: 1 | DI59: 6 | DJ59: 10 | DK59: 2 | DL59: 10 | DM59: 5 | DN59: 1 | DO59: 4 | DP59: 3 | DQ59: 6 | DR59: 5 | DS59: 19 | DT59: 11 | DU59: 1 | DV59: 3 | DW59: 5 | DX59: 1 | DY59: 7 | DZ59: 17 | EA59: 10 | EB59: 19 | EC59: 40 | ED59: C | EE59: 1 | EF59: 8 | EG59: 8 | EH59: 7 | EI59: 6 | EJ59: 30 | EK59: 18 | EL59: 7 | EM59: 1 | EN59: 1 | EO59: 4 | EP59: 7 | EQ59: 20 | ER59: 12 | ES59: 17 | ET59: 47 | EU59: B | FM59: 1 | FN59: 8 | FO59: 8 | FP59: 7 | FQ59: 6 | FR59: 30 | FS59: 18 | FT59: 7 | FU59: 1 | FV59: 1 | FW59: 4 | FX59: 7 | FY59: 20 | FZ59: 12 | GA59: 21 | GB59: 51 | GC59: B
B60: =IF(StudentData!A60="","",StudentData!A60) -> 50 | C60: =IF(StudentData!B60="","",StudentData!B60) -> 50 | D60: =IF(StudentData!C60="","",(LEFT(TRIM(CLEAN(StudentData!C60)),SEARCH(" ",TRIM(CLEAN(StudentData!C60)),SEARCH(" ",TRIM(CLEAN(StudentData!C60)),1)+1)))&" "&LEFT(RIGHT(StudentData!C60,LEN(StudentData!C60)-SEARCH(" ",StudentData!C60,SEARCH(" ",StudentData!C60,SEARCH(" ",StudentData!C60,1)+1)-1)),1)&".") -> PATADIYA KANAIYALAL D. | E60: =IF(StudentData!G60="","",StudentData!G60) ->  | F60: 1 | G60: 2 | H60: 6 | I60: 9 | J60: 2 | K60: 20 | L60: 4 | M60: 1 | N60: 2 | O60: 6 | P60: 2 | Q60: 6 | R60: 17 | S60: 3 | T60: 20 | U60: 10 | V60: 1 | W60: 1 | X60: 6 | Y60: 1 | Z60: 1 | AA60: 10 | AB60: 2 | AC60: 1 | AD60: 1 | AE60: 1 | AF60: 6 | AG60: 1 | AH60: 10 | AI60: 2 | AJ60: 10 | AK60: 5 | AL60: 6 | AM60: 6 | AN60: 1 | AO60: 6 | AP60: 5 | AQ60: 24 | AR60: 5 | AS60: 1 | AT60: 1 | AU60: 2 | AV60: 1 | AW60: 1 | AX60: 6 | AY60: 1 | AZ60: 23 | BA60: 12 | BB60: 1 | BC60: 8 | BD60: 1 | BE60: 4 | BF60: 6 | BG60: 20 | BH60: 4 | BI60: 1 | BJ60: 1 | BK60: 8 | BL60: 1 | BM60: 4 | BN60: 15 | BO60: 3 | BP60: 22 | BQ60: 11 | BR60: 1 | BS60: 1 | BT60: 2 | BU60: 1 | BV60: 1 | BW60: 6 | BX60: 1 | BY60: 1 | BZ60: 1 | CA60: 2 | CB60: 1 | CC60: 1 | CD60: 6 | CE60: 1 | CF60: 20 | CG60: 10 | CH60: 3 | CI60: 6 | CJ60: 1 | CK60: 6 | CL60: 7 | CM60: 23 | CN60: 5 | CO60: 1 | CP60: 4 | CQ60: 6 | CR60: 6 | CS60: 7 | CT60: 24 | CU60: 5 | CV60: 13 | CW60: 7 | CX60: 6 | CY60: 1 | CZ60: 6 | DA60: 5 | DB60: 4 | DC60: 22 | DD60: 4 | DE60: 1 | DF60: 1 | DG60: 2 | DH60: 1 | DI60: 1 | DJ60: 6 | DK60: 1 | DL60: 7 | DM60: 4 | DN60: 2 | DO60: 1 | DP60: 5 | DQ60: 3 | DR60: 3 | DS60: 14 | DT60: 8 | DU60: 6 | DV60: 2 | DW60: 1 | DX60: 1 | DY60: 4 | DZ60: 14 | EA60: 8 | EB60: 14 | EC60: 30 | ED60: E | EE60: 1 | EF60: 2 | EG60: 6 | EH60: 9 | EI60: 2 | EJ60: 20 | EK60: 12 | EL60: 1 | EM60: 1 | EN60: 6 | EO60: 1 | EP60: 1 | EQ60: 10 | ER60: 6 | ES60: 14 | ET60: 32 | EU60: E | FM60: 1 | FN60: 2 | FO60: 6 | FP60: 9 | FQ60: 2 | FR60: 20 | FS60: 12 | FT60: 1 | FU60: 1 | FV60: 6 | FW60: 1 | FX60: 1 | FY60: 10 | FZ60: 6 | GA60: 37 | GB60: 55 | GC60: B
B61: =IF(StudentData!A61="","",StudentData!A61) -> 51 | C61: =IF(StudentData!B61="","",StudentData!B61) -> 51 | D61: =IF(StudentData!C61="","",(LEFT(TRIM(CLEAN(StudentData!C61)),SEARCH(" ",TRIM(CLEAN(StudentData!C61)),SEARCH(" ",TRIM(CLEAN(StudentData!C61)),1)+1)))&" "&LEFT(RIGHT(StudentData!C61,LEN(StudentData!C61)-SEARCH(" ",StudentData!C61,SEARCH(" ",StudentData!C61,SEARCH(" ",StudentData!C61,1)+1)-1)),1)&".") -> DEDANIYA BHARATBHAI K. | E61: =IF(StudentData!G61="","",StudentData!G61) ->  | F61: 9 | G61: 4 | H61: 9 | I61: 5 | J61: 7 | K61: 34 | L61: 7 | M61: 9 | N61: 4 | O61: 9 | P61: 4 | Q61: 9 | R61: 35 | S61: 7 | T61: 34 | U61: 17 | V61: 7 | W61: 1 | X61: 3 | Y61: 1 | Z61: 5 | AA61: 17 | AB61: 3 | AC61: 7 | AD61: 7 | AE61: 1 | AF61: 3 | AG61: 1 | AH61: 19 | AI61: 4 | AJ61: 17 | AK61: 9 | AL61: 1 | AM61: 1 | AN61: 2 | AO61: 9 | AP61: 9 | AQ61: 22 | AR61: 4 | AS61: 5 | AT61: 5 | AU61: 1 | AV61: 3 | AW61: 1 | AX61: 15 | AY61: 3 | AZ61: 25 | BA61: 13 | BB61: 4 | BC61: 6 | BD61: 6 | BE61: 2 | BF61: 3 | BG61: 21 | BH61: 4 | BI61: 4 | BJ61: 4 | BK61: 6 | BL61: 6 | BM61: 2 | BN61: 22 | BO61: 4 | BP61: 24 | BQ61: 12 | BR61: 5 | BS61: 5 | BT61: 1 | BU61: 3 | BV61: 1 | BW61: 15 | BX61: 3 | BY61: 5 | BZ61: 5 | CA61: 1 | CB61: 3 | CC61: 1 | CD61: 15 | CE61: 3 | CF61: 21 | CG61: 11 | CH61: 7 | CI61: 4 | CJ61: 7 | CK61: 2 | CL61: 5 | CM61: 25 | CN61: 5 | CO61: 6 | CP61: 2 | CQ61: 3 | CR61: 2 | CS61: 5 | CT61: 18 | CU61: 4 | CV61: 13 | CW61: 7 | CX61: 1 | CY61: 2 | CZ61: 9 | DA61: 9 | DB61: 3 | DC61: 24 | DD61: 5 | DE61: 5 | DF61: 5 | DG61: 1 | DH61: 3 | DI61: 1 | DJ61: 15 | DK61: 3 | DL61: 12 | DM61: 6 | DN61: 5 | DO61: 7 | DP61: 6 | DQ61: 4 | DR61: 2 | DS61: 24 | DT61: 14 | DU61: 2 | DV61: 6 | DW61: 6 | DX61: 9 | DY61: 2 | DZ61: 25 | EA61: 15 | EB61: 24 | EC61: 53 | ED61: B | EE61: 9 | EF61: 4 | EG61: 9 | EH61: 5 | EI61: 7 | EJ61: 34 | EK61: 20 | EL61: 7 | EM61: 1 | EN61: 3 | EO61: 1 | EP61: 5 | EQ61: 17 | ER61: 10 | ES61: 25 | ET61: 55 | EU61: B | FM61: 9 | FN61: 4 | FO61: 9 | FP61: 5 | FQ61: 7 | FR61: 34 | FS61: 20 | FT61: 7 | FU61: 1 | FV61: 3 | FW61: 1 | FX61: 5 | FY61: 17 | FZ61: 10 | GA61: 34 | GB61: 64 | GC61: B+
B62: =IF(StudentData!A62="","",StudentData!A62) -> 52 | C62: =IF(StudentData!B62="","",StudentData!B62) -> 52 | D62: =IF(StudentData!C62="","",(LEFT(TRIM(CLEAN(StudentData!C62)),SEARCH(" ",TRIM(CLEAN(StudentData!C62)),SEARCH(" ",TRIM(CLEAN(StudentData!C62)),1)+1)))&" "&LEFT(RIGHT(StudentData!C62,LEN(StudentData!C62)-SEARCH(" ",StudentData!C62,SEARCH(" ",StudentData!C62,SEARCH(" ",StudentData!C62,1)+1)-1)),1)&".") -> VIRUGAMI HITESHBHAI L. | E62: =IF(StudentData!G62="","",StudentData!G62) ->  | F62: 9 | G62: 9 | H62: 9 | I62: 9 | J62: 9 | K62: 45 | L62: 9 | M62: 9 | N62: 9 | O62: 9 | P62: 9 | Q62: 9 | R62: 45 | S62: 9 | T62: 47 | U62: 24 | V62: 3 | W62: 9 | X62: 4 | Y62: 7 | Z62: 7 | AA62: 30 | AB62: 6 | AC62: 3 | AD62: 3 | AE62: 9 | AF62: 4 | AG62: 7 | AH62: 26 | AI62: 5 | AJ62: 30 | AK62: 15 | AL62: 8 | AM62: 8 | AN62: 9 | AO62: 9 | AP62: 8 | AQ62: 42 | AR62: 8 | AS62: 6 | AT62: 6 | AU62: 8 | AV62: 6 | AW62: 7 | AX62: 33 | AY62: 7 | AZ62: 43 | BA62: 22 | BB62: 5 | BC62: 9 | BD62: 5 | BE62: 8 | BF62: 5 | BG62: 32 | BH62: 6 | BI62: 5 | BJ62: 5 | BK62: 9 | BL62: 5 | BM62: 8 | BN62: 32 | BO62: 6 | BP62: 43 | BQ62: 22 | BR62: 6 | BS62: 6 | BT62: 8 | BU62: 6 | BV62: 7 | BW62: 33 | BX62: 7 | BY62: 6 | BZ62: 6 | CA62: 8 | CB62: 6 | CC62: 7 | CD62: 33 | CE62: 7 | CF62: 32 | CG62: 16 | CH62: 7 | CI62: 9 | CJ62: 9 | CK62: 9 | CL62: 9 | CM62: 43 | CN62: 9 | CO62: 5 | CP62: 8 | CQ62: 5 | CR62: 9 | CS62: 9 | CT62: 36 | CU62: 7 | CV62: 39 | CW62: 20 | CX62: 8 | CY62: 9 | CZ62: 9 | DA62: 8 | DB62: 9 | DC62: 43 | DD62: 9 | DE62: 6 | DF62: 6 | DG62: 8 | DH62: 6 | DI62: 7 | DJ62: 33 | DK62: 7 | DL62: 34 | DM62: 17 | DN62: 6 | DO62: 6 | DP62: 4 | DQ62: 9 | DR62: 8 | DS62: 33 | DT62: 20 | DU62: 6 | DV62: 3 | DW62: 9 | DX62: 4 | DY62: 8 | DZ62: 30 | EA62: 18 | EB62: 33 | EC62: 71 | ED62: B+ | EE62: 9 | EF62: 9 | EG62: 9 | EH62: 9 | EI62: 9 | EJ62: 45 | EK62: 27 | EL62: 3 | EM62: 9 | EN62: 4 | EO62: 7 | EP62: 7 | EQ62: 30 | ER62: 18 | ES62: 30 | ET62: 75 | EU62: A | FM62: 9 | FN62: 9 | FO62: 9 | FP62: 9 | FQ62: 9 | FR62: 45 | FS62: 27 | FT62: 3 | FU62: 9 | FV62: 4 | FW62: 7 | FX62: 7 | FY62: 30 | FZ62: 18 | GA62: 27 | GB62: 72 | GC62: B+
B63: =IF(StudentData!A63="","",StudentData!A63) -> 53 | C63: =IF(StudentData!B63="","",StudentData!B63) -> 53 | D63: =IF(StudentData!C63="","",(LEFT(TRIM(CLEAN(StudentData!C63)),SEARCH(" ",TRIM(CLEAN(StudentData!C63)),SEARCH(" ",TRIM(CLEAN(StudentData!C63)),1)+1)))&" "&LEFT(RIGHT(StudentData!C63,LEN(StudentData!C63)-SEARCH(" ",StudentData!C63,SEARCH(" ",StudentData!C63,SEARCH(" ",StudentData!C63,1)+1)-1)),1)&".") -> SURELA ANANDBHAI R. | E63: =IF(StudentData!G63="","",StudentData!G63) ->  | F63: 8 | G63: 8 | H63: 6 | I63: 4 | J63: 9 | K63: 35 | L63: 7 | M63: 8 | N63: 8 | O63: 6 | P63: 8 | Q63: 6 | R63: 36 | S63: 7 | T63: 35 | U63: 18 | V63: 2 | W63: 6 | X63: 6 | Y63: 5 | Z63: 2 | AA63: 21 | AB63: 4 | AC63: 2 | AD63: 2 | AE63: 6 | AF63: 6 | AG63: 5 | AH63: 21 | AI63: 4 | AJ63: 21 | AK63: 11 | AL63: 3 | AM63: 3 | AN63: 1 | AO63: 7 | AP63: 5 | AQ63: 19 | AR63: 4 | AS63: 3 | AT63: 3 | AU63: 8 | AV63: 1 | AW63: 3 | AX63: 18 | AY63: 4 | AZ63: 31 | BA63: 16 | BB63: 6 | BC63: 4 | BD63: 6 | BE63: 9 | BF63: 9 | BG63: 34 | BH63: 7 | BI63: 6 | BJ63: 6 | BK63: 4 | BL63: 6 | BM63: 9 | BN63: 31 | BO63: 6 | BP63: 24 | BQ63: 12 | BR63: 3 | BS63: 3 | BT63: 8 | BU63: 1 | BV63: 3 | BW63: 18 | BX63: 4 | BY63: 3 | BZ63: 3 | CA63: 8 | CB63: 1 | CC63: 3 | CD63: 18 | CE63: 4 | CF63: 34 | CG63: 17 | CH63: 5 | CI63: 6 | CJ63: 4 | CK63: 9 | CL63: 7 | CM63: 31 | CN63: 6 | CO63: 6 | CP63: 9 | CQ63: 9 | CR63: 9 | CS63: 7 | CT63: 40 | CU63: 8 | CV63: 22 | CW63: 11 | CX63: 3 | CY63: 1 | CZ63: 7 | DA63: 5 | DB63: 8 | DC63: 24 | DD63: 5 | DE63: 3 | DF63: 3 | DG63: 8 | DH63: 1 | DI63: 3 | DJ63: 18 | DK63: 4 | DL63: 16 | DM63: 8 | DN63: 5 | DO63: 4 | DP63: 6 | DQ63: 1 | DR63: 3 | DS63: 19 | DT63: 11 | DU63: 3 | DV63: 1 | DW63: 7 | DX63: 1 | DY63: 4 | DZ63: 16 | EA63: 10 | EB63: 19 | EC63: 40 | ED63: C | EE63: 8 | EF63: 8 | EG63: 6 | EH63: 4 | EI63: 9 | EJ63: 35 | EK63: 21 | EL63: 2 | EM63: 6 | EN63: 6 | EO63: 5 | EP63: 2 | EQ63: 21 | ER63: 13 | ES63: 16 | ET63: 50 | EU63: B | FM63: 8 | FN63: 8 | FO63: 6 | FP63: 4 | FQ63: 9 | FR63: 35 | FS63: 21 | FT63: 2 | FU63: 6 | FV63: 6 | FW63: 5 | FX63: 2 | FY63: 21 | FZ63: 13 | GA63: 19 | GB63: 53 | GC63: B
B64: =IF(StudentData!A64="","",StudentData!A64) -> 54 | C64: =IF(StudentData!B64="","",StudentData!B64) -> 54 | D64: =IF(StudentData!C64="","",(LEFT(TRIM(CLEAN(StudentData!C64)),SEARCH(" ",TRIM(CLEAN(StudentData!C64)),SEARCH(" ",TRIM(CLEAN(StudentData!C64)),1)+1)))&" "&LEFT(RIGHT(StudentData!C64,LEN(StudentData!C64)-SEARCH(" ",StudentData!C64,SEARCH(" ",StudentData!C64,SEARCH(" ",StudentData!C64,1)+1)-1)),1)&".") -> BHIMANI CHIRAGBHAI M. | E64: =IF(StudentData!G64="","",StudentData!G64) ->  | F64: 9 | G64: 9 | H64: 9 | I64: 5 | J64: 6 | K64: 38 | L64: 8 | M64: 9 | N64: 9 | O64: 9 | P64: 9 | Q64: 9 | R64: 45 | S64: 9 | T64: 38 | U64: 19 | V64: 3 | W64: 7 | X64: 6 | Y64: 3 | Z64: 6 | AA64: 25 | AB64: 5 | AC64: 3 | AD64: 3 | AE64: 7 | AF64: 6 | AG64: 3 | AH64: 22 | AI64: 4 | AJ64: 25 | AK64: 13 | AL64: 8 | AM64: 8 | AN64: 7 | AO64: 4 | AP64: 9 | AQ64: 36 | AR64: 7 | AS64: 1 | AT64: 1 | AU64: 7 | AV64: 2 | AW64: 6 | AX64: 17 | AY64: 3 | AZ64: 34 | BA64: 17 | BB64: 9 | BC64: 9 | BD64: 9 | BE64: 9 | BF64: 9 | BG64: 45 | BH64: 9 | BI64: 9 | BJ64: 9 | BK64: 9 | BL64: 9 | BM64: 9 | BN64: 45 | BO64: 9 | BP64: 34 | BQ64: 17 | BR64: 1 | BS64: 1 | BT64: 7 | BU64: 2 | BV64: 6 | BW64: 17 | BX64: 3 | BY64: 1 | BZ64: 1 | CA64: 7 | CB64: 2 | CC64: 6 | CD64: 17 | CE64: 3 | CF64: 47 | CG64: 24 | CH64: 6 | CI64: 8 | CJ64: 9 | CK64: 7 | CL64: 4 | CM64: 34 | CN64: 7 | CO64: 9 | CP64: 9 | CQ64: 9 | CR64: 7 | CS64: 4 | CT64: 38 | CU64: 8 | CV64: 22 | CW64: 11 | CX64: 8 | CY64: 7 | CZ64: 4 | DA64: 9 | DB64: 6 | DC64: 34 | DD64: 7 | DE64: 1 | DF64: 1 | DG64: 7 | DH64: 2 | DI64: 6 | DJ64: 17 | DK64: 3 | DL64: 18 | DM64: 9 | DN64: 8 | DO64: 7 | DP64: 2 | DQ64: 5 | DR64: 9 | DS64: 31 | DT64: 19 | DU64: 6 | DV64: 8 | DW64: 3 | DX64: 5 | DY64: 6 | DZ64: 28 | EA64: 17 | EB64: 31 | EC64: 67 | ED64: B+ | EE64: 9 | EF64: 9 | EG64: 9 | EH64: 5 | EI64: 6 | EJ64: 38 | EK64: 23 | EL64: 3 | EM64: 7 | EN64: 6 | EO64: 3 | EP64: 6 | EQ64: 25 | ER64: 15 | ES64: 28 | ET64: 66 | EU64: B+ | FM64: 9 | FN64: 9 | FO64: 9 | FP64: 5 | FQ64: 6 | FR64: 38 | FS64: 23 | FT64: 3 | FU64: 7 | FV64: 6 | FW64: 3 | FX64: 6 | FY64: 25 | FZ64: 15 | GA64: 29 | GB64: 67 | GC64: B+
B65: =IF(StudentData!A65="","",StudentData!A65) -> 55 | C65: =IF(StudentData!B65="","",StudentData!B65) -> 55 | D65: =IF(StudentData!C65="","",(LEFT(TRIM(CLEAN(StudentData!C65)),SEARCH(" ",TRIM(CLEAN(StudentData!C65)),SEARCH(" ",TRIM(CLEAN(StudentData!C65)),1)+1)))&" "&LEFT(RIGHT(StudentData!C65,LEN(StudentData!C65)-SEARCH(" ",StudentData!C65,SEARCH(" ",StudentData!C65,SEARCH(" ",StudentData!C65,1)+1)-1)),1)&".") -> DHAMECHA NILESHBHAI V. | E65: =IF(StudentData!G65="","",StudentData!G65) ->  | F65: 9 | G65: 9 | H65: 9 | I65: 9 | J65: 7 | K65: 43 | L65: 9 | M65: 9 | N65: 9 | O65: 9 | P65: 9 | Q65: 9 | R65: 45 | S65: 9 | T65: 43 | U65: 22 | V65: 7 | W65: 3 | X65: 9 | Y65: 5 | Z65: 7 | AA65: 31 | AB65: 6 | AC65: 7 | AD65: 7 | AE65: 3 | AF65: 9 | AG65: 5 | AH65: 31 | AI65: 6 | AJ65: 31 | AK65: 16 | AL65: 9 | AM65: 9 | AN65: 9 | AO65: 8 | AP65: 9 | AQ65: 44 | AR65: 9 | AS65: 4 | AT65: 4 | AU65: 5 | AV65: 8 | AW65: 4 | AX65: 25 | AY65: 5 | AZ65: 47 | BA65: 24 | BB65: 8 | BC65: 8 | BD65: 8 | BE65: 1 | BF65: 5 | BG65: 30 | BH65: 6 | BI65: 8 | BJ65: 8 | BK65: 8 | BL65: 8 | BM65: 1 | BN65: 33 | BO65: 7 | BP65: 44 | BQ65: 22 | BR65: 4 | BS65: 4 | BT65: 5 | BU65: 8 | BV65: 4 | BW65: 25 | BX65: 5 | BY65: 4 | BZ65: 4 | CA65: 5 | CB65: 8 | CC65: 4 | CD65: 25 | CE65: 5 | CF65: 30 | CG65: 15 | CH65: 9 | CI65: 9 | CJ65: 9 | CK65: 9 | CL65: 9 | CM65: 45 | CN65: 9 | CO65: 8 | CP65: 1 | CQ65: 5 | CR65: 9 | CS65: 9 | CT65: 32 | CU65: 6 | CV65: 34 | CW65: 17 | CX65: 9 | CY65: 9 | CZ65: 8 | DA65: 9 | DB65: 9 | DC65: 44 | DD65: 9 | DE65: 4 | DF65: 4 | DG65: 5 | DH65: 8 | DI65: 4 | DJ65: 25 | DK65: 5 | DL65: 30 | DM65: 15 | DN65: 7 | DO65: 7 | DP65: 7 | DQ65: 5 | DR65: 5 | DS65: 31 | DT65: 19 | DU65: 8 | DV65: 9 | DW65: 7 | DX65: 9 | DY65: 4 | DZ65: 37 | EA65: 22 | EB65: 31 | EC65: 72 | ED65: B+ | EE65: 9 | EF65: 9 | EG65: 9 | EH65: 9 | EI65: 7 | EJ65: 43 | EK65: 26 | EL65: 7 | EM65: 3 | EN65: 9 | EO65: 5 | EP65: 7 | EQ65: 31 | ER65: 19 | ES65: 37 | ET65: 82 | EU65: A | FM65: 9 | FN65: 9 | FO65: 9 | FP65: 9 | FQ65: 7 | FR65: 43 | FS65: 26 | FT65: 7 | FU65: 3 | FV65: 9 | FW65: 5 | FX65: 7 | FY65: 31 | FZ65: 19 | GA65: 30 | GB65: 75 | GC65: A
B66: =IF(StudentData!A66="","",StudentData!A66) -> 56 | C66: =IF(StudentData!B66="","",StudentData!B66) -> 56 | D66: =IF(StudentData!C66="","",(LEFT(TRIM(CLEAN(StudentData!C66)),SEARCH(" ",TRIM(CLEAN(StudentData!C66)),SEARCH(" ",TRIM(CLEAN(StudentData!C66)),1)+1)))&" "&LEFT(RIGHT(StudentData!C66,LEN(StudentData!C66)-SEARCH(" ",StudentData!C66,SEARCH(" ",StudentData!C66,SEARCH(" ",StudentData!C66,1)+1)-1)),1)&".") -> THAKOR CHONDABHAI D. | E66: =IF(StudentData!G66="","",StudentData!G66) ->  | F66: 3 | G66: 3 | H66: 7 | I66: 5 | J66: 9 | K66: 27 | L66: 5 | M66: 3 | N66: 3 | O66: 7 | P66: 3 | Q66: 7 | R66: 23 | S66: 5 | T66: 27 | U66: 14 | V66: 3 | W66: 3 | X66: 6 | Y66: 2 | Z66: 6 | AA66: 20 | AB66: 4 | AC66: 3 | AD66: 3 | AE66: 3 | AF66: 6 | AG66: 2 | AH66: 17 | AI66: 3 | AJ66: 20 | AK66: 10 | AL66: 1 | AM66: 1 | AN66: 1 | AO66: 6 | AP66: 8 | AQ66: 17 | AR66: 3 | AS66: 2 | AT66: 2 | AU66: 2 | AV66: 1 | AW66: 4 | AX66: 11 | AY66: 2 | AZ66: 26 | BA66: 13 | BB66: 3 | BC66: 2 | BD66: 2 | BE66: 9 | BF66: 7 | BG66: 23 | BH66: 5 | BI66: 3 | BJ66: 3 | BK66: 2 | BL66: 2 | BM66: 9 | BN66: 19 | BO66: 4 | BP66: 20 | BQ66: 10 | BR66: 2 | BS66: 2 | BT66: 2 | BU66: 1 | BV66: 4 | BW66: 11 | BX66: 2 | BY66: 2 | BZ66: 2 | CA66: 2 | CB66: 1 | CC66: 4 | CD66: 11 | CE66: 2 | CF66: 23 | CG66: 12 | CH66: 8 | CI66: 4 | CJ66: 4 | CK66: 1 | CL66: 9 | CM66: 26 | CN66: 5 | CO66: 2 | CP66: 9 | CQ66: 7 | CR66: 1 | CS66: 9 | CT66: 28 | CU66: 6 | CV66: 22 | CW66: 11 | CX66: 1 | CY66: 1 | CZ66: 6 | DA66: 8 | DB66: 4 | DC66: 20 | DD66: 4 | DE66: 2 | DF66: 2 | DG66: 2 | DH66: 1 | DI66: 4 | DJ66: 11 | DK66: 2 | DL66: 12 | DM66: 6 | DN66: 7 | DO66: 1 | DP66: 7 | DQ66: 9 | DR66: 1 | DS66: 25 | DT66: 15 | DU66: 1 | DV66: 1 | DW66: 6 | DX66: 2 | DY66: 4 | DZ66: 14 | EA66: 8 | EB66: 25 | EC66: 48 | ED66: B | EE66: 3 | EF66: 3 | EG66: 7 | EH66: 5 | EI66: 9 | EJ66: 27 | EK66: 16 | EL66: 3 | EM66: 3 | EN66: 6 | EO66: 2 | EP66: 6 | EQ66: 20 | ER66: 12 | ES66: 14 | ET66: 42 | EU66: C | FM66: 3 | FN66: 3 | FO66: 7 | FP66: 5 | FQ66: 9 | FR66: 27 | FS66: 16 | FT66: 3 | FU66: 3 | FV66: 6 | FW66: 2 | FX66: 6 | FY66: 20 | FZ66: 12 | GA66: 17 | GB66: 45 | GC66: B
B67: =IF(StudentData!A67="","",StudentData!A67) -> 57 | C67: =IF(StudentData!B67="","",StudentData!B67) -> 57 | D67: =IF(StudentData!C67="","",(LEFT(TRIM(CLEAN(StudentData!C67)),SEARCH(" ",TRIM(CLEAN(StudentData!C67)),SEARCH(" ",TRIM(CLEAN(StudentData!C67)),1)+1)))&" "&LEFT(RIGHT(StudentData!C67,LEN(StudentData!C67)-SEARCH(" ",StudentData!C67,SEARCH(" ",StudentData!C67,SEARCH(" ",StudentData!C67,1)+1)-1)),1)&".") -> RANIVADIYA VISHALKUMAR A. | E67: =IF(StudentData!G67="","",StudentData!G67) ->  | F67: 8 | G67: 4 | H67: 5 | I67: 9 | J67: 9 | K67: 35 | L67: 7 | M67: 8 | N67: 4 | O67: 5 | P67: 4 | Q67: 5 | R67: 26 | S67: 5 | T67: 35 | U67: 18 | V67: 9 | W67: 3 | X67: 9 | Y67: 2 | Z67: 2 | AA67: 25 | AB67: 5 | AC67: 9 | AD67: 9 | AE67: 3 | AF67: 9 | AG67: 2 | AH67: 32 | AI67: 6 | AJ67: 25 | AK67: 13 | AL67: 3 | AM67: 3 | AN67: 8 | AO67: 5 | AP67: 2 | AQ67: 21 | AR67: 4 | AS67: 2 | AT67: 2 | AU67: 2 | AV67: 1 | AW67: 5 | AX67: 12 | AY67: 2 | AZ67: 33 | BA67: 17 | BB67: 4 | BC67: 4 | BD67: 8 | BE67: 9 | BF67: 4 | BG67: 29 | BH67: 6 | BI67: 4 | BJ67: 4 | BK67: 4 | BL67: 8 | BM67: 9 | BN67: 29 | BO67: 6 | BP67: 23 | BQ67: 12 | BR67: 2 | BS67: 2 | BT67: 2 | BU67: 1 | BV67: 5 | BW67: 12 | BX67: 2 | BY67: 2 | BZ67: 2 | CA67: 2 | CB67: 1 | CC67: 5 | CD67: 12 | CE67: 2 | CF67: 29 | CG67: 15 | CH67: 9 | CI67: 4 | CJ67: 9 | CK67: 7 | CL67: 4 | CM67: 33 | CN67: 7 | CO67: 8 | CP67: 9 | CQ67: 4 | CR67: 7 | CS67: 4 | CT67: 32 | CU67: 6 | CV67: 23 | CW67: 12 | CX67: 3 | CY67: 8 | CZ67: 5 | DA67: 2 | DB67: 5 | DC67: 23 | DD67: 5 | DE67: 2 | DF67: 2 | DG67: 2 | DH67: 1 | DI67: 5 | DJ67: 12 | DK67: 2 | DL67: 16 | DM67: 8 | DN67: 9 | DO67: 2 | DP67: 7 | DQ67: 6 | DR67: 7 | DS67: 31 | DT67: 19 | DU67: 7 | DV67: 5 | DW67: 3 | DX67: 9 | DY67: 1 | DZ67: 25 | EA67: 15 | EB67: 31 | EC67: 65 | ED67: B+ | EE67: 8 | EF67: 4 | EG67: 5 | EH67: 9 | EI67: 9 | EJ67: 35 | EK67: 21 | EL67: 9 | EM67: 3 | EN67: 9 | EO67: 2 | EP67: 2 | EQ67: 25 | ER67: 15 | ES67: 25 | ET67: 61 | EU67: B+ | FM67: 8 | FN67: 4 | FO67: 5 | FP67: 9 | FQ67: 9 | FR67: 35 | FS67: 21 | FT67: 9 | FU67: 3 | FV67: 9 | FW67: 2 | FX67: 2 | FY67: 25 | FZ67: 15 | GA67: 26 | GB67: 62 | GC67: B+
B68: =IF(StudentData!A68="","",StudentData!A68) -> 58 | C68: =IF(StudentData!B68="","",StudentData!B68) -> 58 | D68: =IF(StudentData!C68="","",(LEFT(TRIM(CLEAN(StudentData!C68)),SEARCH(" ",TRIM(CLEAN(StudentData!C68)),SEARCH(" ",TRIM(CLEAN(StudentData!C68)),1)+1)))&" "&LEFT(RIGHT(StudentData!C68,LEN(StudentData!C68)-SEARCH(" ",StudentData!C68,SEARCH(" ",StudentData!C68,SEARCH(" ",StudentData!C68,1)+1)-1)),1)&".") -> VAIRAGI DEVENDRAKUMAR A. | E68: =IF(StudentData!G68="","",StudentData!G68) ->  | F68: 4 | G68: 8 | H68: 8 | I68: 1 | J68: 1 | K68: 22 | L68: 4 | M68: 4 | N68: 8 | O68: 8 | P68: 8 | Q68: 8 | R68: 36 | S68: 7 | T68: 22 | U68: 11 | V68: 4 | W68: 4 | X68: 1 | Y68: 5 | Z68: 1 | AA68: 15 | AB68: 3 | AC68: 4 | AD68: 4 | AE68: 4 | AF68: 1 | AG68: 5 | AH68: 18 | AI68: 4 | AJ68: 15 | AK68: 8 | AL68: 1 | AM68: 1 | AN68: 3 | AO68: 6 | AP68: 3 | AQ68: 14 | AR68: 3 | AS68: 2 | AT68: 2 | AU68: 4 | AV68: 1 | AW68: 4 | AX68: 13 | AY68: 3 | AZ68: 23 | BA68: 12 | BB68: 3 | BC68: 1 | BD68: 6 | BE68: 7 | BF68: 5 | BG68: 22 | BH68: 4 | BI68: 3 | BJ68: 3 | BK68: 1 | BL68: 6 | BM68: 7 | BN68: 20 | BO68: 4 | BP68: 15 | BQ68: 8 | BR68: 2 | BS68: 2 | BT68: 4 | BU68: 1 | BV68: 4 | BW68: 13 | BX68: 3 | BY68: 2 | BZ68: 2 | CA68: 4 | CB68: 1 | CC68: 4 | CD68: 13 | CE68: 3 | CF68: 22 | CG68: 11 | CH68: 5 | CI68: 7 | CJ68: 4 | CK68: 1 | CL68: 6 | CM68: 23 | CN68: 5 | CO68: 6 | CP68: 7 | CQ68: 5 | CR68: 1 | CS68: 6 | CT68: 25 | CU68: 5 | CV68: 16 | CW68: 8 | CX68: 1 | CY68: 3 | CZ68: 6 | DA68: 3 | DB68: 2 | DC68: 15 | DD68: 3 | DE68: 2 | DF68: 2 | DG68: 4 | DH68: 1 | DI68: 4 | DJ68: 13 | DK68: 3 | DL68: 15 | DM68: 8 | DN68: 3 | DO68: 1 | DP68: 7 | DQ68: 3 | DR68: 9 | DS68: 23 | DT68: 14 | DU68: 1 | DV68: 3 | DW68: 2 | DX68: 3 | DY68: 5 | DZ68: 14 | EA68: 8 | EB68: 23 | EC68: 45 | ED68: B | EE68: 4 | EF68: 8 | EG68: 8 | EH68: 1 | EI68: 1 | EJ68: 22 | EK68: 13 | EL68: 4 | EM68: 4 | EN68: 1 | EO68: 5 | EP68: 1 | EQ68: 15 | ER68: 9 | ES68: 14 | ET68: 36 | EU68: C | FM68: 4 | FN68: 8 | FO68: 8 | FP68: 1 | FQ68: 1 | FR68: 22 | FS68: 13 | FT68: 4 | FU68: 4 | FV68: 1 | FW68: 5 | FX68: 1 | FY68: 15 | FZ68: 9 | GA68: 15 | GB68: 37 | GC68: C
B69: =IF(StudentData!A69="","",StudentData!A69) -> 59 | C69: =IF(StudentData!B69="","",StudentData!B69) -> 59 | D69: =IF(StudentData!C69="","",(LEFT(TRIM(CLEAN(StudentData!C69)),SEARCH(" ",TRIM(CLEAN(StudentData!C69)),SEARCH(" ",TRIM(CLEAN(StudentData!C69)),1)+1)))&" "&LEFT(RIGHT(StudentData!C69,LEN(StudentData!C69)-SEARCH(" ",StudentData!C69,SEARCH(" ",StudentData!C69,SEARCH(" ",StudentData!C69,1)+1)-1)),1)&".") -> JAMBUKIYA KARTIKBHAI R. | E69: =IF(StudentData!G69="","",StudentData!G69) ->  | F69: 4 | G69: 8 | H69: 7 | I69: 2 | J69: 9 | K69: 30 | L69: 6 | M69: 4 | N69: 8 | O69: 7 | P69: 8 | Q69: 7 | R69: 34 | S69: 7 | T69: 30 | U69: 15 | V69: 1 | W69: 9 | X69: 6 | Y69: 7 | Z69: 7 | AA69: 30 | AB69: 6 | AC69: 1 | AD69: 1 | AE69: 9 | AF69: 6 | AG69: 7 | AH69: 24 | AI69: 5 | AJ69: 30 | AK69: 15 | AL69: 8 | AM69: 8 | AN69: 4 | AO69: 9 | AP69: 5 | AQ69: 34 | AR69: 7 | AS69: 2 | AT69: 2 | AU69: 1 | AV69: 3 | AW69: 6 | AX69: 14 | AY69: 3 | AZ69: 32 | BA69: 16 | BB69: 2 | BC69: 2 | BD69: 9 | BE69: 5 | BF69: 7 | BG69: 25 | BH69: 5 | BI69: 2 | BJ69: 2 | BK69: 2 | BL69: 9 | BM69: 5 | BN69: 20 | BO69: 4 | BP69: 34 | BQ69: 17 | BR69: 2 | BS69: 2 | BT69: 1 | BU69: 3 | BV69: 6 | BW69: 14 | BX69: 3 | BY69: 2 | BZ69: 2 | CA69: 1 | CB69: 3 | CC69: 6 | CD69: 14 | CE69: 3 | CF69: 25 | CG69: 13 | CH69: 7 | CI69: 3 | CJ69: 9 | CK69: 7 | CL69: 6 | CM69: 32 | CN69: 6 | CO69: 9 | CP69: 5 | CQ69: 7 | CR69: 7 | CS69: 6 | CT69: 34 | CU69: 7 | CV69: 21 | CW69: 11 | CX69: 8 | CY69: 4 | CZ69: 9 | DA69: 5 | DB69: 8 | DC69: 34 | DD69: 7 | DE69: 2 | DF69: 2 | DG69: 1 | DH69: 3 | DI69: 6 | DJ69: 14 | DK69: 3 | DL69: 13 | DM69: 7 | DN69: 4 | DO69: 7 | DP69: 5 | DQ69: 5 | DR69: 5 | DS69: 26 | DT69: 16 | DU69: 7 | DV69: 3 | DW69: 9 | DX69: 4 | DY69: 8 | DZ69: 31 | EA69: 19 | EB69: 26 | EC69: 61 | ED69: B+ | EE69: 4 | EF69: 8 | EG69: 7 | EH69: 2 | EI69: 9 | EJ69: 30 | EK69: 18 | EL69: 1 | EM69: 9 | EN69: 6 | EO69: 7 | EP69: 7 | EQ69: 30 | ER69: 18 | ES69: 31 | ET69: 67 | EU69: B+ | FM69: 4 | FN69: 8 | FO69: 7 | FP69: 2 | FQ69: 9 | FR69: 30 | FS69: 18 | FT69: 1 | FU69: 9 | FV69: 6 | FW69: 7 | FX69: 7 | FY69: 30 | FZ69: 18 | GA69: 23 | GB69: 59 | GC69: B
B70: =IF(StudentData!A70="","",StudentData!A70) -> 60 | C70: =IF(StudentData!B70="","",StudentData!B70) -> 60 | D70: =IF(StudentData!C70="","",(LEFT(TRIM(CLEAN(StudentData!C70)),SEARCH(" ",TRIM(CLEAN(StudentData!C70)),SEARCH(" ",TRIM(CLEAN(StudentData!C70)),1)+1)))&" "&LEFT(RIGHT(StudentData!C70,LEN(StudentData!C70)-SEARCH(" ",StudentData!C70,SEARCH(" ",StudentData!C70,SEARCH(" ",StudentData!C70,1)+1)-1)),1)&".") -> DEVIPUJAK SUNIL D. | E70: =IF(StudentData!G70="","",StudentData!G70) ->  | F70: 9 | G70: 5 | H70: 2 | I70: 1 | J70: 3 | K70: 20 | L70: 4 | M70: 9 | N70: 5 | O70: 2 | P70: 5 | Q70: 2 | R70: 23 | S70: 5 | T70: 20 | U70: 10 | V70: 3 | W70: 3 | X70: 3 | Y70: 4 | Z70: 3 | AA70: 16 | AB70: 3 | AC70: 3 | AD70: 3 | AE70: 3 | AF70: 3 | AG70: 4 | AH70: 16 | AI70: 3 | AJ70: 16 | AK70: 8 | AL70: 1 | AM70: 1 | AN70: 5 | AO70: 7 | AP70: 5 | AQ70: 19 | AR70: 4 | AS70: 1 | AT70: 1 | AU70: 1 | AV70: 1 | AW70: 1 | AX70: 5 | AY70: 1 | AZ70: 14 | BA70: 7 | BB70: 1 | BC70: 3 | BD70: 7 | BE70: 5 | BF70: 8 | BG70: 24 | BH70: 5 | BI70: 1 | BJ70: 1 | BK70: 3 | BL70: 7 | BM70: 5 | BN70: 17 | BO70: 3 | BP70: 21 | BQ70: 11 | BR70: 1 | BS70: 1 | BT70: 1 | BU70: 1 | BV70: 1 | BW70: 5 | BX70: 1 | BY70: 1 | BZ70: 1 | CA70: 1 | CB70: 1 | CC70: 1 | CD70: 5 | CE70: 1 | CF70: 24 | CG70: 12 | CH70: 1 | CI70: 3 | CJ70: 2 | CK70: 5 | CL70: 3 | CM70: 14 | CN70: 3 | CO70: 7 | CP70: 5 | CQ70: 8 | CR70: 5 | CS70: 3 | CT70: 28 | CU70: 6 | CV70: 17 | CW70: 9 | CX70: 1 | CY70: 5 | CZ70: 7 | DA70: 5 | DB70: 3 | DC70: 21 | DD70: 4 | DE70: 1 | DF70: 1 | DG70: 1 | DH70: 1 | DI70: 1 | DJ70: 5 | DK70: 1 | DL70: 10 | DM70: 5 | DN70: 2 | DO70: 8 | DP70: 2 | DQ70: 2 | DR70: 7 | DS70: 21 | DT70: 13 | DU70: 1 | DV70: 2 | DW70: 9 | DX70: 6 | DY70: 3 | DZ70: 21 | EA70: 13 | EB70: 21 | EC70: 47 | ED70: B | EE70: 9 | EF70: 5 | EG70: 2 | EH70: 1 | EI70: 3 | EJ70: 20 | EK70: 12 | EL70: 3 | EM70: 3 | EN70: 3 | EO70: 4 | EP70: 3 | EQ70: 16 | ER70: 10 | ES70: 21 | ET70: 43 | EU70: C | FM70: 9 | FN70: 5 | FO70: 2 | FP70: 1 | FQ70: 3 | FR70: 20 | FS70: 12 | FT70: 3 | FU70: 3 | FV70: 3 | FW70: 4 | FX70: 3 | FY70: 16 | FZ70: 10 | GA70: 20 | GB70: 42 | GC70: C
B71: =IF(StudentData!A71="","",StudentData!A71) -> 61 | C71: =IF(StudentData!B71="","",StudentData!B71) -> 62 | D71: =IF(StudentData!C71="","",(LEFT(TRIM(CLEAN(StudentData!C71)),SEARCH(" ",TRIM(CLEAN(StudentData!C71)),SEARCH(" ",TRIM(CLEAN(StudentData!C71)),1)+1)))&" "&LEFT(RIGHT(StudentData!C71,LEN(StudentData!C71)-SEARCH(" ",StudentData!C71,SEARCH(" ",StudentData!C71,SEARCH(" ",StudentData!C71,1)+1)-1)),1)&".") -> KOLA BHAGVANBHAI B. | E71: =IF(StudentData!G71="","",StudentData!G71) ->  | F71: 1 | G71: 4 | H71: 5 | I71: 1 | J71: 1 | K71: 12 | L71: 2 | M71: 1 | N71: 4 | O71: 5 | P71: 4 | Q71: 5 | R71: 19 | S71: 4 | T71: 12 | U71: 6 | V71: 1 | W71: 1 | X71: 6 | Y71: 2 | Z71: 1 | AA71: 11 | AB71: 2 | AC71: 1 | AD71: 1 | AE71: 1 | AF71: 6 | AG71: 2 | AH71: 11 | AI71: 2 | AJ71: 11 | AK71: 6 | AL71: 5 | AM71: 5 | AN71: 1 | AO71: 3 | AP71: 1 | AQ71: 15 | AR71: 3 | AS71: 1 | AT71: 1 | AU71: 2 | AV71: 1 | AW71: 1 | AX71: 6 | AY71: 1 | AZ71: 12 | BA71: 6 | BB71: 2 | BC71: 2 | BD71: 5 | BE71: 4 | BF71: 7 | BG71: 20 | BH71: 4 | BI71: 2 | BJ71: 2 | BK71: 2 | BL71: 5 | BM71: 4 | BN71: 15 | BO71: 3 | BP71: 11 | BQ71: 6 | BR71: 1 | BS71: 1 | BT71: 2 | BU71: 1 | BV71: 1 | BW71: 6 | BX71: 1 | BY71: 1 | BZ71: 1 | CA71: 2 | CB71: 1 | CC71: 1 | CD71: 6 | CE71: 1 | CF71: 20 | CG71: 10 | CH71: 5 | CI71: 1 | CJ71: 1 | CK71: 4 | CL71: 1 | CM71: 12 | CN71: 2 | CO71: 5 | CP71: 4 | CQ71: 7 | CR71: 4 | CS71: 1 | CT71: 21 | CU71: 4 | CV71: 16 | CW71: 8 | CX71: 5 | CY71: 1 | CZ71: 3 | DA71: 1 | DB71: 1 | DC71: 11 | DD71: 2 | DE71: 1 | DF71: 1 | DG71: 2 | DH71: 1 | DI71: 1 | DJ71: 6 | DK71: 1 | DL71: 7 | DM71: 4 | DN71: 8 | DO71: 2 | DP71: 2 | DQ71: 5 | DR71: 5 | DS71: 22 | DT71: 13 | DU71: 8 | DV71: 1 | DW71: 2 | DX71: 1 | DY71: 9 | DZ71: 21 | EA71: 13 | EB71: 22 | EC71: 48 | ED71: B | EE71: 1 | EF71: 4 | EG71: 5 | EH71: 1 | EI71: 1 | EJ71: 12 | EK71: 7 | EL71: 1 | EM71: 1 | EN71: 6 | EO71: 2 | EP71: 1 | EQ71: 11 | ER71: 7 | ES71: 21 | ET71: 35 | EU71: C | FM71: 1 | FN71: 4 | FO71: 5 | FP71: 1 | FQ71: 1 | FR71: 12 | FS71: 7 | FT71: 1 | FU71: 1 | FV71: 6 | FW71: 2 | FX71: 1 | FY71: 11 | FZ71: 7 | GA71: 19 | GB71: 33 | GC71: C
B72: =IF(StudentData!A72="","",StudentData!A72) -> 62 | C72: =IF(StudentData!B72="","",StudentData!B72) -> 63 | D72: =IF(StudentData!C72="","",(LEFT(TRIM(CLEAN(StudentData!C72)),SEARCH(" ",TRIM(CLEAN(StudentData!C72)),SEARCH(" ",TRIM(CLEAN(StudentData!C72)),1)+1)))&" "&LEFT(RIGHT(StudentData!C72,LEN(StudentData!C72)-SEARCH(" ",StudentData!C72,SEARCH(" ",StudentData!C72,SEARCH(" ",StudentData!C72,1)+1)-1)),1)&".") -> KOLADARA HITESHKUMAR N. | E72: =IF(StudentData!G72="","",StudentData!G72) -> LEFT | F72: 1 | G72: 1 | H72: 1 | I72: 1 | J72: 1 | K72: 5 | L72: 1 | M72: 1 | N72: 1 | O72: 1 | P72: 1 | Q72: 1 | R72: 5 | S72: 1 | T72: Ab | U72: Ab | V72: 1 | W72: 2 | X72: 1 | Y72: 2 | Z72: 2 | AA72: 8 | AB72: 2 | AC72: 1 | AD72: 1 | AE72: 2 | AF72: 1 | AG72: 2 | AH72: 7 | AI72: 1 | AJ72: 8 | AK72: 4 | AL72: 2 | AM72: 2 | AN72: 1 | AO72: 1 | AP72: 1 | AQ72: 7 | AR72: 1 | AS72: 1 | AT72: 1 | AU72: 1 | AV72: 1 | AW72: 1 | AX72: 5 | AY72: 1 | AZ72: 4 | BA72: 2 | BB72: 4 | BC72: 6 | BD72: 1 | BE72: 1 | BF72: 8 | BG72: 20 | BH72: 4 | BI72: 4 | BJ72: 4 | BK72: 6 | BL72: 1 | BM72: 1 | BN72: 16 | BO72: 3 | BP72: 6 | BQ72: 3 | BR72: 1 | BS72: 1 | BT72: 1 | BU72: 1 | BV72: 1 | BW72: 5 | BX72: 1 | BY72: 1 | BZ72: 1 | CA72: 1 | CB72: 1 | CC72: 1 | CD72: 5 | CE72: 1 | CF72: 20 | CG72: 10 | CH72: 1 | CI72: 1 | CJ72: 1 | CK72: 1 | CL72: 1 | CM72: 5 | CN72: 1 | CO72: 1 | CP72: 1 | CQ72: 8 | CR72: 1 | CS72: 1 | CT72: 12 | CU72: 2 | CV72: 8 | CW72: 4 | CX72: 2 | CY72: 1 | CZ72: 1 | DA72: 1 | DB72: 1 | DC72: 6 | DD72: 1 | DE72: 1 | DF72: 1 | DG72: 1 | DH72: 1 | DI72: 1 | DJ72: 5 | DK72: 1 | DL72: 8 | DM72: 4 | DN72: 2 | DO72: 4 | DP72: 8 | DQ72: 4 | DR72: 6 | DS72: 24 | DT72: 14 | DU72: 9 | DV72: 2 | DW72: 4 | DX72: 3 | DY72: 5 | DZ72: 23 | EA72: 14 | EB72: 24 | EC72: 52 | ED72: B | EE72: 1 | EF72: 1 | EG72: 1 | EH72: 1 | EI72: 1 | EJ72: 5 | EK72: 3 | EL72: 1 | EM72: 2 | EN72: 1 | EO72: 2 | EP72: 2 | EQ72: 8 | ER72: 5 | ES72: 23 | ET72: 31 | EU72: E | FM72: 1 | FN72: 1 | FO72: 1 | FP72: 1 | FQ72: 1 | FR72: 5 | FS72: 3 | FT72: 1 | FU72: 2 | FV72: 1 | FW72: 2 | FX72: 2 | FY72: 8 | FZ72: 5 | GA72: 22 | GB72: 30 | GC72: E
B73: =IF(StudentData!A73="","",StudentData!A73) -> 63 | C73: =IF(StudentData!B73="","",StudentData!B73) -> 64 | D73: =IF(StudentData!C73="","",(LEFT(TRIM(CLEAN(StudentData!C73)),SEARCH(" ",TRIM(CLEAN(StudentData!C73)),SEARCH(" ",TRIM(CLEAN(StudentData!C73)),1)+1)))&" "&LEFT(RIGHT(StudentData!C73,LEN(StudentData!C73)-SEARCH(" ",StudentData!C73,SEARCH(" ",StudentData!C73,SEARCH(" ",StudentData!C73,1)+1)-1)),1)&".") -> VANAPARA ALPESH J. | E73: =IF(StudentData!G73="","",StudentData!G73) ->  | F73: 5 | G73: 3 | H73: 9 | I73: 9 | J73: 9 | K73: 35 | L73: 7 | M73: 5 | N73: 3 | O73: 9 | P73: 3 | Q73: 9 | R73: 29 | S73: 6 | T73: 35 | U73: 18 | V73: 5 | W73: 7 | X73: 1 | Y73: 1 | Z73: 6 | AA73: 20 | AB73: 4 | AC73: 5 | AD73: 5 | AE73: 7 | AF73: 1 | AG73: 1 | AH73: 19 | AI73: 4 | AJ73: 20 | AK73: 10 | AL73: 5 | AM73: 5 | AN73: 5 | AO73: 3 | AP73: 6 | AQ73: 24 | AR73: 5 | AS73: 3 | AT73: 3 | AU73: 6 | AV73: 7 | AW73: 1 | AX73: 20 | AY73: 4 | AZ73: 24 | BA73: 12 | BB73: 4 | BC73: 7 | BD73: 5 | BE73: 8 | BF73: 8 | BG73: 32 | BH73: 6 | BI73: 4 | BJ73: 4 | BK73: 7 | BL73: 5 | BM73: 8 | BN73: 28 | BO73: 6 | BP73: 25 | BQ73: 13 | BR73: 3 | BS73: 3 | BT73: 6 | BU73: 7 | BV73: 1 | BW73: 20 | BX73: 4 | BY73: 3 | BZ73: 3 | CA73: 6 | CB73: 7 | CC73: 1 | CD73: 20 | CE73: 4 | CF73: 32 | CG73: 16 | CH73: 5 | CI73: 4 | CJ73: 9 | CK73: 3 | CL73: 3 | CM73: 24 | CN73: 5 | CO73: 5 | CP73: 8 | CQ73: 8 | CR73: 3 | CS73: 3 | CT73: 27 | CU73: 5 | CV73: 20 | CW73: 10 | CX73: 5 | CY73: 5 | CZ73: 3 | DA73: 6 | DB73: 6 | DC73: 25 | DD73: 5 | DE73: 3 | DF73: 3 | DG73: 6 | DH73: 7 | DI73: 1 | DJ73: 20 | DK73: 4 | DL73: 18 | DM73: 9 | DN73: 1 | DO73: 7 | DP73: 4 | DQ73: 7 | DR73: 7 | DS73: 26 | DT73: 16 | DU73: 9 | DV73: 1 | DW73: 5 | DX73: 6 | DY73: 5 | DZ73: 26 | EA73: 16 | EB73: 26 | EC73: 58 | ED73: B | EE73: 5 | EF73: 3 | EG73: 9 | EH73: 9 | EI73: 9 | EJ73: 35 | EK73: 21 | EL73: 5 | EM73: 7 | EN73: 1 | EO73: 1 | EP73: 6 | EQ73: 20 | ER73: 12 | ES73: 26 | ET73: 59 | EU73: B | FM73: 5 | FN73: 3 | FO73: 9 | FP73: 9 | FQ73: 9 | FR73: 35 | FS73: 21 | FT73: 5 | FU73: 7 | FV73: 1 | FW73: 1 | FX73: 6 | FY73: 20 | FZ73: 12 | GA73: 27 | GB73: 60 | GC73: B+
B74: =IF(StudentData!A74="","",StudentData!A74) -> 64 | C74: =IF(StudentData!B74="","",StudentData!B74) -> 65 | D74: =IF(StudentData!C74="","",(LEFT(TRIM(CLEAN(StudentData!C74)),SEARCH(" ",TRIM(CLEAN(StudentData!C74)),SEARCH(" ",TRIM(CLEAN(StudentData!C74)),1)+1)))&" "&LEFT(RIGHT(StudentData!C74,LEN(StudentData!C74)-SEARCH(" ",StudentData!C74,SEARCH(" ",StudentData!C74,SEARCH(" ",StudentData!C74,1)+1)-1)),1)&".") -> MAKWANA ANKITKUMAR K. | E74: =IF(StudentData!G74="","",StudentData!G74) ->  | F74: 5 | G74: 4 | H74: 4 | I74: 7 | J74: 6 | K74: 26 | L74: 5 | M74: 5 | N74: 4 | O74: 4 | P74: 4 | Q74: 4 | R74: 21 | S74: 4 | T74: 26 | U74: 13 | V74: 5 | W74: 4 | X74: 3 | Y74: 3 | Z74: 6 | AA74: 21 | AB74: 4 | AC74: 5 | AD74: 5 | AE74: 4 | AF74: 3 | AG74: 3 | AH74: 20 | AI74: 4 | AJ74: 21 | AK74: 11 | AL74: 3 | AM74: 3 | AN74: 7 | AO74: 1 | AP74: 1 | AQ74: 15 | AR74: 3 | AS74: 2 | AT74: 2 | AU74: 3 | AV74: 4 | AW74: 4 | AX74: 15 | AY74: 3 | AZ74: 29 | BA74: 15 | BB74: 1 | BC74: 9 | BD74: 2 | BE74: 7 | BF74: 8 | BG74: 27 | BH74: 5 | BI74: 1 | BJ74: 1 | BK74: 9 | BL74: 2 | BM74: 7 | BN74: 20 | BO74: 4 | BP74: 14 | BQ74: 7 | BR74: 2 | BS74: 2 | BT74: 3 | BU74: 4 | BV74: 4 | BW74: 15 | BX74: 3 | BY74: 2 | BZ74: 2 | CA74: 3 | CB74: 4 | CC74: 4 | CD74: 15 | CE74: 3 | CF74: 27 | CG74: 14 | CH74: 5 | CI74: 5 | CJ74: 4 | CK74: 8 | CL74: 7 | CM74: 29 | CN74: 6 | CO74: 2 | CP74: 7 | CQ74: 8 | CR74: 8 | CS74: 7 | CT74: 32 | CU74: 6 | CV74: 18 | CW74: 9 | CX74: 3 | CY74: 7 | CZ74: 1 | DA74: 1 | DB74: 2 | DC74: 14 | DD74: 3 | DE74: 2 | DF74: 2 | DG74: 3 | DH74: 4 | DI74: 4 | DJ74: 15 | DK74: 3 | DL74: 17 | DM74: 9 | DN74: 7 | DO74: 1 | DP74: 1 | DQ74: 3 | DR74: 7 | DS74: 19 | DT74: 11 | DU74: 1 | DV74: 2 | DW74: 5 | DX74: 3 | DY74: 6 | DZ74: 17 | EA74: 10 | EB74: 19 | EC74: 40 | ED74: C | EE74: 5 | EF74: 4 | EG74: 4 | EH74: 7 | EI74: 6 | EJ74: 26 | EK74: 16 | EL74: 5 | EM74: 4 | EN74: 3 | EO74: 3 | EP74: 6 | EQ74: 21 | ER74: 13 | ES74: 17 | ET74: 46 | EU74: B | FM74: 5 | FN74: 4 | FO74: 4 | FP74: 7 | FQ74: 6 | FR74: 26 | FS74: 16 | FT74: 5 | FU74: 4 | FV74: 3 | FW74: 3 | FX74: 6 | FY74: 21 | FZ74: 13 | GA74: 18 | GB74: 47 | GC74: B
B75: =IF(StudentData!A75="","",StudentData!A75) -> 65 | C75: =IF(StudentData!B75="","",StudentData!B75) -> 73 | D75: =IF(StudentData!C75="","",(LEFT(TRIM(CLEAN(StudentData!C75)),SEARCH(" ",TRIM(CLEAN(StudentData!C75)),SEARCH(" ",TRIM(CLEAN(StudentData!C75)),1)+1)))&" "&LEFT(RIGHT(StudentData!C75,LEN(StudentData!C75)-SEARCH(" ",StudentData!C75,SEARCH(" ",StudentData!C75,SEARCH(" ",StudentData!C75,1)+1)-1)),1)&".") -> BAROT MANAV P. | E75: =IF(StudentData!G75="","",StudentData!G75) ->  | K75: =IF(AND(F75="",G75="",H75="",I75="",J75=""),"",(IF(AND(F75="Ab",G75="Ab",H75="Ab",I75="Ab",J75="Ab"),"Ab",SUM(F75:J75)))) ->  | L75: =IF(K75="","",IF(K75="Ab","Ab",ROUND(SUM(F75:J75)*10/K$9,0))) ->  | R75: =IF(AND(M75="",N75="",O75="",P75="",Q75=""),"",(IF(AND(M75="Ab",N75="Ab",O75="Ab",P75="Ab",Q75="Ab"),"Ab",SUM(M75:Q75)))) ->  | S75: =IF(R75="","",IF(R75="Ab","Ab",ROUND(SUM(M75:Q75)*10/R$9,0))) ->  | U75: =IF(T75="","",IF(T75="AB","Ab",ROUNDUP(T75/2,0))) ->  | AA75: =IF(AND(V75="",W75="",X75="",Y75="",Z75=""),"",(IF(AND(V75="Ab",W75="Ab",X75="Ab",Y75="Ab",Z75="Ab"),"Ab",SUM(V75:Z75)))) ->  | AB75: =IF(AA75="","",IF(AA75="Ab","Ab",ROUND(SUM(V75:Z75)*10/AA$9,0))) ->  | AH75: =IF(AND(AC75="",AD75="",AE75="",AF75="",AG75=""),"",(IF(AND(AC75="Ab",AD75="Ab",AE75="Ab",AF75="Ab",AG75="Ab"),"Ab",SUM(AC75:AG75)))) ->  | AI75: =IF(AH75="","",IF(AH75="Ab","Ab",ROUND(SUM(AC75:AG75)*10/AH$9,0))) ->  | AK75: =IF(AJ75="","",IF(AJ75="AB","Ab",ROUNDUP(AJ75/2,0))) ->  | AQ75: =IF(AND(AL75="",AM75="",AN75="",AO75="",AP75=""),"",(IF(AND(AL75="Ab",AM75="Ab",AN75="Ab",AO75="Ab",AP75="Ab"),"Ab",SUM(AL75:AP75)))) ->  | AR75: =IF(AQ75="","",IF(AQ75="Ab","Ab",ROUND(SUM(AL75:AP75)*10/AQ$9,0))) ->  | AX75: =IF(AND(AS75="",AT75="",AU75="",AV75="",AW75=""),"",(IF(AND(AS75="Ab",AT75="Ab",AU75="Ab",AV75="Ab",AW75="Ab"),"Ab",SUM(AS75:AW75)))) ->  | AY75: =IF(AX75="","",IF(AX75="Ab","Ab",ROUND(SUM(AS75:AW75)*10/AX$9,0))) ->  | BA75: =IF(AZ75="","",IF(AZ75="AB","Ab",ROUNDUP(AZ75/2,0))) ->  | BG75: =IF(AND(BB75="",BC75="",BD75="",BE75="",BF75=""),"",(IF(AND(BB75="Ab",BC75="Ab",BD75="Ab",BE75="Ab",BF75="Ab"),"Ab",SUM(BB75:BF75)))) ->  | BH75: =IF(BG75="","",IF(BG75="Ab","Ab",ROUND(SUM(BB75:BF75)*10/BG$9,0))) ->  | BN75: =IF(AND(BI75="",BJ75="",BK75="",BL75="",BM75=""),"",(IF(AND(BI75="Ab",BJ75="Ab",BK75="Ab",BL75="Ab",BM75="Ab"),"Ab",SUM(BI75:BM75)))) ->  | BO75: =IF(BN75="","",IF(BN75="Ab","Ab",ROUND(SUM(BI75:BM75)*10/BN$9,0))) ->  | BQ75: =IF(BP75="","",IF(BP75="AB","Ab",ROUNDUP(BP75/2,0))) ->  | BW75: =IF(AND(BR75="",BS75="",BT75="",BU75="",BV75=""),"",(IF(AND(BR75="Ab",BS75="Ab",BT75="Ab",BU75="Ab",BV75="Ab"),"Ab",SUM(BR75:BV75)))) ->  | BX75: =IF(BW75="","",IF(BW75="Ab","Ab",ROUND(SUM(BR75:BV75)*10/BW$9,0))) ->  | CD75: =IF(AND(BY75="",BZ75="",CA75="",CB75="",CC75=""),"",(IF(AND(BY75="Ab",BZ75="Ab",CA75="Ab",CB75="Ab",CC75="Ab"),"Ab",SUM(BY75:CC75)))) ->  | CE75: =IF(CD75="","",IF(CD75="Ab","Ab",ROUND(SUM(BY75:CC75)*10/CD$9,0))) ->  | CG75: =IF(CF75="","",IF(CF75="AB","Ab",ROUNDUP(CF75/2,0))) ->  | CM75: =IF(AND(CH75="",CI75="",CJ75="",CK75="",CL75=""),"",(IF(AND(CH75="Ab",CI75="Ab",CJ75="Ab",CK75="Ab",CL75="Ab"),"Ab",SUM(CH75:CL75)))) ->  | CN75: =IF(CM75="","",IF(CM75="Ab","Ab",ROUND(SUM(CH75:CL75)*10/CM$9,0))) ->  | CT75: =IF(AND(CO75="",CP75="",CQ75="",CR75="",CS75=""),"",(IF(AND(CO75="Ab",CP75="Ab",CQ75="Ab",CR75="Ab",CS75="Ab"),"Ab",SUM(CO75:CS75)))) ->  | CU75: =IF(CT75="","",IF(CT75="Ab","Ab",ROUND(SUM(CO75:CS75)*10/CT$9,0))) ->  | CW75: =IF(CV75="","",IF(CV75="AB","Ab",ROUNDUP(CV75/2,0))) ->  | DC75: =IF(AND(CX75="",CY75="",CZ75="",DA75="",DB75=""),"",(IF(AND(CX75="Ab",CY75="Ab",CZ75="Ab",DA75="Ab",DB75="Ab"),"Ab",SUM(CX75:DB75)))) ->  | DD75: =IF(DC75="","",IF(DC75="Ab","Ab",ROUND(SUM(CX75:DB75)*10/DC$9,0))) ->  | DJ75: =IF(AND(DE75="",DF75="",DG75="",DH75="",DI75=""),"",(IF(AND(DE75="Ab",DF75="Ab",DG75="Ab",DH75="Ab",DI75="Ab"),"Ab",SUM(DE75:DI75)))) ->  | DK75: =IF(DJ75="","",IF(DJ75="Ab","Ab",ROUND(SUM(DE75:DI75)*10/DJ$9,0))) ->  | DM75: =IF(DL75="","",IF(DL75="AB","Ab",ROUNDUP(DL75/2,0))) ->  | DS75: =IF(AND(DN75="",DO75="",DP75="",DQ75="",DR75=""),"",(IF(AND(DN75="Ab",DO75="Ab",DP75="Ab",DQ75="Ab",DR75="Ab"),"Ab",SUM(DN75:DR75)))) ->  | DT75: =IF(DS75="","",IF(DS75="Ab","Ab",ROUND(SUM(DN75:DR75)*30/DS$9,0))) ->  | DZ75: =IF(AND(DU75="",DV75="",DW75="",DX75="",DY75=""),"",(IF(AND(DU75="Ab",DV75="Ab",DW75="Ab",DX75="Ab",DY75="Ab"),"Ab",SUM(DU75:DY75)))) ->  | EA75: =IF(DZ75="","",IF(DZ75="Ab","Ab",ROUND(SUM(DU75:DY75)*30/DZ$9,0))) ->  | EC75: =IF(AND(DT75="",EA75="",EB75=""),"",IF(AND(DT75="Ab",EA75="Ab",EB75="Ab"),"Ab",SUM(DT75,EA75,EB75))) ->  | ED75: =IF(EC75="","",IF(EC75="Ab","Ab",IF(EC75>89,"A+",IF(EC75>74,"A",IF(EC75>59,"B+",IF(EC75>44,"B",IF(EC75>32,"C","E"))))))) ->  | EJ75: =IF(AND(EE75="",EF75="",EG75="",EH75="",EI75=""),"",(IF(AND(EE75="Ab",EF75="Ab",EG75="Ab",EH75="Ab",EI75="Ab"),"Ab",SUM(EE75:EI75)))) ->  | EK75: =IF(EJ75="","",IF(EJ75="Ab","Ab",ROUND(SUM(EE75:EI75)*30/EJ$9,0))) ->  | EQ75: =IF(AND(EL75="",EM75="",EN75="",EO75="",EP75=""),"",(IF(AND(EL75="Ab",EM75="Ab",EN75="Ab",EO75="Ab",EP75="Ab"),"Ab",SUM(EL75:EP75)))) ->  | ER75: =IF(EQ75="","",IF(EQ75="Ab","Ab",ROUND(SUM(EL75:EP75)*30/EQ$9,0))) ->  | ET75: =IF(AND(EK75="",ER75="",ES75=""),"",IF(AND(EK75="Ab",ER75="Ab",ES75="Ab"),"Ab",SUM(EK75,ER75,ES75))) ->  | EU75: =IF(ET75="","",IF(ET75="Ab","Ab",IF(ET75>89,"A+",IF(ET75>74,"A",IF(ET75>59,"B+",IF(ET75>44,"B",IF(ET75>32,"C","E"))))))) ->  | FA75: =IF(AND(EV75="",EW75="",EX75="",EY75="",EZ75=""),"",(IF(AND(EV75="Ab",EW75="Ab",EX75="Ab",EY75="Ab",EZ75="Ab"),"Ab",SUM(EV75:EZ75)))) ->  | FB75: =IF(FA75="","",IF(FA75="Ab","Ab",ROUND(SUM(EV75:EZ75)*30/FA$9,0))) ->  | FH75: =IF(AND(FC75="",FD75="",FE75="",FF75="",FG75=""),"",(IF(AND(FC75="Ab",FD75="Ab",FE75="Ab",FF75="Ab",FG75="Ab"),"Ab",SUM(FC75:FG75)))) ->  | FI75: =IF(FH75="","",IF(FH75="Ab","Ab",ROUND(SUM(FC75:FG75)*30/FH$9,0))) ->  | FK75: =IF(AND(FB75="",FI75="",FJ75=""),"",IF(AND(FB75="Ab",FI75="Ab",FJ75="Ab"),"Ab",SUM(FB75,FI75,FJ75))) ->  | FL75: =IF(FK75="","",IF(FK75="Ab","Ab",IF(FK75>89,"A+",IF(FK75>74,"A",IF(FK75>59,"B+",IF(FK75>44,"B",IF(FK75>32,"C","E"))))))) ->  | FR75: =IF(AND(FM75="",FN75="",FO75="",FP75="",FQ75=""),"",(IF(AND(FM75="Ab",FN75="Ab",FO75="Ab",FP75="Ab",FQ75="Ab"),"Ab",SUM(FM75:FQ75)))) ->  | FS75: =IF(FR75="","",IF(FR75="Ab","Ab",ROUND(SUM(FM75:FQ75)*30/FR$9,0))) ->  | FY75: =IF(AND(FT75="",FU75="",FV75="",FW75="",FX75=""),"",(IF(AND(FT75="Ab",FU75="Ab",FV75="Ab",FW75="Ab",FX75="Ab"),"Ab",SUM(FT75:FX75)))) ->  | FZ75: =IF(FY75="","",IF(FY75="Ab","Ab",ROUND(SUM(FT75:FX75)*30/FY$9,0))) ->  | GB75: =IF(AND(FS75="",FZ75="",GA75=""),"",IF(AND(FS75="Ab",FZ75="Ab",GA75="Ab"),"Ab",SUM(FS75,FZ75,GA75))) ->  | GC75: =IF(GB75="","",IF(GB75="Ab","Ab",IF(GB75>89,"A+",IF(GB75>74,"A",IF(GB75>59,"B+",IF(GB75>44,"B",IF(GB75>32,"C","E"))))))) -> 
B76: =IF(StudentData!A76="","",StudentData!A76) ->  | C76: =IF(StudentData!B76="","",StudentData!B76) ->  | D76: =IF(StudentData!C76="","",(LEFT(TRIM(CLEAN(StudentData!C76)),SEARCH(" ",TRIM(CLEAN(StudentData!C76)),SEARCH(" ",TRIM(CLEAN(StudentData!C76)),1)+1)))&" "&LEFT(RIGHT(StudentData!C76,LEN(StudentData!C76)-SEARCH(" ",StudentData!C76,SEARCH(" ",StudentData!C76,SEARCH(" ",StudentData!C76,1)+1)-1)),1)&".") ->  | E76: =IF(StudentData!G76="","",StudentData!G76) -> 
B77: =IF(StudentData!A77="","",StudentData!A77) ->  | C77: =IF(StudentData!B77="","",StudentData!B77) ->  | D77: =IF(StudentData!C77="","",(LEFT(TRIM(CLEAN(StudentData!C77)),SEARCH(" ",TRIM(CLEAN(StudentData!C77)),SEARCH(" ",TRIM(CLEAN(StudentData!C77)),1)+1)))&" "&LEFT(RIGHT(StudentData!C77,LEN(StudentData!C77)-SEARCH(" ",StudentData!C77,SEARCH(" ",StudentData!C77,SEARCH(" ",StudentData!C77,1)+1)-1)),1)&".") ->  | E77: =IF(StudentData!G77="","",StudentData!G77) -> 
B78: =IF(StudentData!A78="","",StudentData!A78) ->  | C78: =IF(StudentData!B78="","",StudentData!B78) ->  | D78: =IF(StudentData!C78="","",(LEFT(TRIM(CLEAN(StudentData!C78)),SEARCH(" ",TRIM(CLEAN(StudentData!C78)),SEARCH(" ",TRIM(CLEAN(StudentData!C78)),1)+1)))&" "&LEFT(RIGHT(StudentData!C78,LEN(StudentData!C78)-SEARCH(" ",StudentData!C78,SEARCH(" ",StudentData!C78,SEARCH(" ",StudentData!C78,1)+1)-1)),1)&".") ->  | E78: =IF(StudentData!G78="","",StudentData!G78) -> 
B79: =IF(StudentData!A79="","",StudentData!A79) ->  | C79: =IF(StudentData!B79="","",StudentData!B79) ->  | D79: =IF(StudentData!C79="","",(LEFT(TRIM(CLEAN(StudentData!C79)),SEARCH(" ",TRIM(CLEAN(StudentData!C79)),SEARCH(" ",TRIM(CLEAN(StudentData!C79)),1)+1)))&" "&LEFT(RIGHT(StudentData!C79,LEN(StudentData!C79)-SEARCH(" ",StudentData!C79,SEARCH(" ",StudentData!C79,SEARCH(" ",StudentData!C79,1)+1)-1)),1)&".") ->  | E79: =IF(StudentData!G79="","",StudentData!G79) -> 
B80: =IF(StudentData!A80="","",StudentData!A80) ->  | C80: =IF(StudentData!B80="","",StudentData!B80) ->  | D80: =IF(StudentData!C80="","",(LEFT(TRIM(CLEAN(StudentData!C80)),SEARCH(" ",TRIM(CLEAN(StudentData!C80)),SEARCH(" ",TRIM(CLEAN(StudentData!C80)),1)+1)))&" "&LEFT(RIGHT(StudentData!C80,LEN(StudentData!C80)-SEARCH(" ",StudentData!C80,SEARCH(" ",StudentData!C80,SEARCH(" ",StudentData!C80,1)+1)-1)),1)&".") ->  | E80: =IF(StudentData!G80="","",StudentData!G80) -> 
B81: =IF(StudentData!A81="","",StudentData!A81) ->  | C81: =IF(StudentData!B81="","",StudentData!B81) ->  | D81: =IF(StudentData!C81="","",(LEFT(TRIM(CLEAN(StudentData!C81)),SEARCH(" ",TRIM(CLEAN(StudentData!C81)),SEARCH(" ",TRIM(CLEAN(StudentData!C81)),1)+1)))&" "&LEFT(RIGHT(StudentData!C81,LEN(StudentData!C81)-SEARCH(" ",StudentData!C81,SEARCH(" ",StudentData!C81,SEARCH(" ",StudentData!C81,1)+1)-1)),1)&".") ->  | E81: =IF(StudentData!G81="","",StudentData!G81) -> 
B82: =IF(StudentData!A82="","",StudentData!A82) ->  | C82: =IF(StudentData!B82="","",StudentData!B82) ->  | D82: =IF(StudentData!C82="","",(LEFT(TRIM(CLEAN(StudentData!C82)),SEARCH(" ",TRIM(CLEAN(StudentData!C82)),SEARCH(" ",TRIM(CLEAN(StudentData!C82)),1)+1)))&" "&LEFT(RIGHT(StudentData!C82,LEN(StudentData!C82)-SEARCH(" ",StudentData!C82,SEARCH(" ",StudentData!C82,SEARCH(" ",StudentData!C82,1)+1)-1)),1)&".") ->  | E82: =IF(StudentData!G82="","",StudentData!G82) -> 
B83: =IF(StudentData!A83="","",StudentData!A83) ->  | C83: =IF(StudentData!B83="","",StudentData!B83) ->  | D83: =IF(StudentData!C83="","",(LEFT(TRIM(CLEAN(StudentData!C83)),SEARCH(" ",TRIM(CLEAN(StudentData!C83)),SEARCH(" ",TRIM(CLEAN(StudentData!C83)),1)+1)))&" "&LEFT(RIGHT(StudentData!C83,LEN(StudentData!C83)-SEARCH(" ",StudentData!C83,SEARCH(" ",StudentData!C83,SEARCH(" ",StudentData!C83,1)+1)-1)),1)&".") ->  | E83: =IF(StudentData!G83="","",StudentData!G83) -> 
B84: =IF(StudentData!A84="","",StudentData!A84) ->  | C84: =IF(StudentData!B84="","",StudentData!B84) ->  | D84: =IF(StudentData!C84="","",(LEFT(TRIM(CLEAN(StudentData!C84)),SEARCH(" ",TRIM(CLEAN(StudentData!C84)),SEARCH(" ",TRIM(CLEAN(StudentData!C84)),1)+1)))&" "&LEFT(RIGHT(StudentData!C84,LEN(StudentData!C84)-SEARCH(" ",StudentData!C84,SEARCH(" ",StudentData!C84,SEARCH(" ",StudentData!C84,1)+1)-1)),1)&".") ->  | E84: =IF(StudentData!G84="","",StudentData!G84) -> 
B85: =IF(StudentData!A85="","",StudentData!A85) ->  | C85: =IF(StudentData!B85="","",StudentData!B85) ->  | D85: =IF(StudentData!C85="","",(LEFT(TRIM(CLEAN(StudentData!C85)),SEARCH(" ",TRIM(CLEAN(StudentData!C85)),SEARCH(" ",TRIM(CLEAN(StudentData!C85)),1)+1)))&" "&LEFT(RIGHT(StudentData!C85,LEN(StudentData!C85)-SEARCH(" ",StudentData!C85,SEARCH(" ",StudentData!C85,SEARCH(" ",StudentData!C85,1)+1)-1)),1)&".") ->  | E85: =IF(StudentData!G85="","",StudentData!G85) -> 
B86: =IF(StudentData!A86="","",StudentData!A86) ->  | C86: =IF(StudentData!B86="","",StudentData!B86) ->  | D86: =IF(StudentData!C86="","",(LEFT(TRIM(CLEAN(StudentData!C86)),SEARCH(" ",TRIM(CLEAN(StudentData!C86)),SEARCH(" ",TRIM(CLEAN(StudentData!C86)),1)+1)))&" "&LEFT(RIGHT(StudentData!C86,LEN(StudentData!C86)-SEARCH(" ",StudentData!C86,SEARCH(" ",StudentData!C86,SEARCH(" ",StudentData!C86,1)+1)-1)),1)&".") ->  | E86: =IF(StudentData!G86="","",StudentData!G86) -> 
B87: =IF(StudentData!A87="","",StudentData!A87) ->  | C87: =IF(StudentData!B87="","",StudentData!B87) ->  | D87: =IF(StudentData!C87="","",(LEFT(TRIM(CLEAN(StudentData!C87)),SEARCH(" ",TRIM(CLEAN(StudentData!C87)),SEARCH(" ",TRIM(CLEAN(StudentData!C87)),1)+1)))&" "&LEFT(RIGHT(StudentData!C87,LEN(StudentData!C87)-SEARCH(" ",StudentData!C87,SEARCH(" ",StudentData!C87,SEARCH(" ",StudentData!C87,1)+1)-1)),1)&".") ->  | E87: =IF(StudentData!G87="","",StudentData!G87) -> 
B88: =IF(StudentData!A88="","",StudentData!A88) ->  | C88: =IF(StudentData!B88="","",StudentData!B88) ->  | D88: =IF(StudentData!C88="","",(LEFT(TRIM(CLEAN(StudentData!C88)),SEARCH(" ",TRIM(CLEAN(StudentData!C88)),SEARCH(" ",TRIM(CLEAN(StudentData!C88)),1)+1)))&" "&LEFT(RIGHT(StudentData!C88,LEN(StudentData!C88)-SEARCH(" ",StudentData!C88,SEARCH(" ",StudentData!C88,SEARCH(" ",StudentData!C88,1)+1)-1)),1)&".") ->  | E88: =IF(StudentData!G88="","",StudentData!G88) -> 
B89: =IF(StudentData!A89="","",StudentData!A89) ->  | C89: =IF(StudentData!B89="","",StudentData!B89) ->  | D89: =IF(StudentData!C89="","",(LEFT(TRIM(CLEAN(StudentData!C89)),SEARCH(" ",TRIM(CLEAN(StudentData!C89)),SEARCH(" ",TRIM(CLEAN(StudentData!C89)),1)+1)))&" "&LEFT(RIGHT(StudentData!C89,LEN(StudentData!C89)-SEARCH(" ",StudentData!C89,SEARCH(" ",StudentData!C89,SEARCH(" ",StudentData!C89,1)+1)-1)),1)&".") ->  | E89: =IF(StudentData!G89="","",StudentData!G89) -> 
B90: =IF(StudentData!A90="","",StudentData!A90) ->  | C90: =IF(StudentData!B90="","",StudentData!B90) ->  | D90: =IF(StudentData!C90="","",(LEFT(TRIM(CLEAN(StudentData!C90)),SEARCH(" ",TRIM(CLEAN(StudentData!C90)),SEARCH(" ",TRIM(CLEAN(StudentData!C90)),1)+1)))&" "&LEFT(RIGHT(StudentData!C90,LEN(StudentData!C90)-SEARCH(" ",StudentData!C90,SEARCH(" ",StudentData!C90,SEARCH(" ",StudentData!C90,1)+1)-1)),1)&".") ->  | E90: =IF(StudentData!G90="","",StudentData!G90) -> 
B91: =IF(StudentData!A91="","",StudentData!A91) ->  | C91: =IF(StudentData!B91="","",StudentData!B91) ->  | D91: =IF(StudentData!C91="","",(LEFT(TRIM(CLEAN(StudentData!C91)),SEARCH(" ",TRIM(CLEAN(StudentData!C91)),SEARCH(" ",TRIM(CLEAN(StudentData!C91)),1)+1)))&" "&LEFT(RIGHT(StudentData!C91,LEN(StudentData!C91)-SEARCH(" ",StudentData!C91,SEARCH(" ",StudentData!C91,SEARCH(" ",StudentData!C91,1)+1)-1)),1)&".") ->  | E91: =IF(StudentData!G91="","",StudentData!G91) -> 
B92: =IF(StudentData!A92="","",StudentData!A92) ->  | C92: =IF(StudentData!B92="","",StudentData!B92) ->  | D92: =IF(StudentData!C92="","",(LEFT(TRIM(CLEAN(StudentData!C92)),SEARCH(" ",TRIM(CLEAN(StudentData!C92)),SEARCH(" ",TRIM(CLEAN(StudentData!C92)),1)+1)))&" "&LEFT(RIGHT(StudentData!C92,LEN(StudentData!C92)-SEARCH(" ",StudentData!C92,SEARCH(" ",StudentData!C92,SEARCH(" ",StudentData!C92,1)+1)-1)),1)&".") ->  | E92: =IF(StudentData!G92="","",StudentData!G92) -> 
B93: =IF(StudentData!A93="","",StudentData!A93) ->  | C93: =IF(StudentData!B93="","",StudentData!B93) ->  | D93: =IF(StudentData!C93="","",(LEFT(TRIM(CLEAN(StudentData!C93)),SEARCH(" ",TRIM(CLEAN(StudentData!C93)),SEARCH(" ",TRIM(CLEAN(StudentData!C93)),1)+1)))&" "&LEFT(RIGHT(StudentData!C93,LEN(StudentData!C93)-SEARCH(" ",StudentData!C93,SEARCH(" ",StudentData!C93,SEARCH(" ",StudentData!C93,1)+1)-1)),1)&".") ->  | E93: =IF(StudentData!G93="","",StudentData!G93) -> 
B94: =IF(StudentData!A94="","",StudentData!A94) ->  | C94: =IF(StudentData!B94="","",StudentData!B94) ->  | D94: =IF(StudentData!C94="","",(LEFT(TRIM(CLEAN(StudentData!C94)),SEARCH(" ",TRIM(CLEAN(StudentData!C94)),SEARCH(" ",TRIM(CLEAN(StudentData!C94)),1)+1)))&" "&LEFT(RIGHT(StudentData!C94,LEN(StudentData!C94)-SEARCH(" ",StudentData!C94,SEARCH(" ",StudentData!C94,SEARCH(" ",StudentData!C94,1)+1)-1)),1)&".") ->  | E94: =IF(StudentData!G94="","",StudentData!G94) -> 
B95: =IF(StudentData!A95="","",StudentData!A95) ->  | C95: =IF(StudentData!B95="","",StudentData!B95) ->  | D95: =IF(StudentData!C95="","",(LEFT(TRIM(CLEAN(StudentData!C95)),SEARCH(" ",TRIM(CLEAN(StudentData!C95)),SEARCH(" ",TRIM(CLEAN(StudentData!C95)),1)+1)))&" "&LEFT(RIGHT(StudentData!C95,LEN(StudentData!C95)-SEARCH(" ",StudentData!C95,SEARCH(" ",StudentData!C95,SEARCH(" ",StudentData!C95,1)+1)-1)),1)&".") ->  | E95: =IF(StudentData!G95="","",StudentData!G95) -> 
B96: =IF(StudentData!A96="","",StudentData!A96) ->  | C96: =IF(StudentData!B96="","",StudentData!B96) ->  | D96: =IF(StudentData!C96="","",(LEFT(TRIM(CLEAN(StudentData!C96)),SEARCH(" ",TRIM(CLEAN(StudentData!C96)),SEARCH(" ",TRIM(CLEAN(StudentData!C96)),1)+1)))&" "&LEFT(RIGHT(StudentData!C96,LEN(StudentData!C96)-SEARCH(" ",StudentData!C96,SEARCH(" ",StudentData!C96,SEARCH(" ",StudentData!C96,1)+1)-1)),1)&".") ->  | E96: =IF(StudentData!G96="","",StudentData!G96) -> 
B97: =IF(StudentData!A97="","",StudentData!A97) ->  | C97: =IF(StudentData!B97="","",StudentData!B97) ->  | D97: =IF(StudentData!C97="","",(LEFT(TRIM(CLEAN(StudentData!C97)),SEARCH(" ",TRIM(CLEAN(StudentData!C97)),SEARCH(" ",TRIM(CLEAN(StudentData!C97)),1)+1)))&" "&LEFT(RIGHT(StudentData!C97,LEN(StudentData!C97)-SEARCH(" ",StudentData!C97,SEARCH(" ",StudentData!C97,SEARCH(" ",StudentData!C97,1)+1)-1)),1)&".") ->  | E97: =IF(StudentData!G97="","",StudentData!G97) -> 
B98: =IF(StudentData!A98="","",StudentData!A98) ->  | C98: =IF(StudentData!B98="","",StudentData!B98) ->  | D98: =IF(StudentData!C98="","",(LEFT(TRIM(CLEAN(StudentData!C98)),SEARCH(" ",TRIM(CLEAN(StudentData!C98)),SEARCH(" ",TRIM(CLEAN(StudentData!C98)),1)+1)))&" "&LEFT(RIGHT(StudentData!C98,LEN(StudentData!C98)-SEARCH(" ",StudentData!C98,SEARCH(" ",StudentData!C98,SEARCH(" ",StudentData!C98,1)+1)-1)),1)&".") ->  | E98: =IF(StudentData!G98="","",StudentData!G98) -> 
B99: =IF(StudentData!A99="","",StudentData!A99) ->  | C99: =IF(StudentData!B99="","",StudentData!B99) ->  | D99: =IF(StudentData!C99="","",(LEFT(TRIM(CLEAN(StudentData!C99)),SEARCH(" ",TRIM(CLEAN(StudentData!C99)),SEARCH(" ",TRIM(CLEAN(StudentData!C99)),1)+1)))&" "&LEFT(RIGHT(StudentData!C99,LEN(StudentData!C99)-SEARCH(" ",StudentData!C99,SEARCH(" ",StudentData!C99,SEARCH(" ",StudentData!C99,1)+1)-1)),1)&".") ->  | E99: =IF(StudentData!G99="","",StudentData!G99) -> 
B100: =IF(StudentData!A100="","",StudentData!A100) ->  | C100: =IF(StudentData!B100="","",StudentData!B100) ->  | D100: =IF(StudentData!C100="","",(LEFT(TRIM(CLEAN(StudentData!C100)),SEARCH(" ",TRIM(CLEAN(StudentData!C100)),SEARCH(" ",TRIM(CLEAN(StudentData!C100)),1)+1)))&" "&LEFT(RIGHT(StudentData!C100,LEN(StudentData!C100)-SEARCH(" ",StudentData!C100,SEARCH(" ",StudentData!C100,SEARCH(" ",StudentData!C100,1)+1)-1)),1)&".") ->  | E100: =IF(StudentData!G100="","",StudentData!G100) -> 
B101: =IF(StudentData!A101="","",StudentData!A101) ->  | C101: =IF(StudentData!B101="","",StudentData!B101) ->  | D101: =IF(StudentData!C101="","",(LEFT(TRIM(CLEAN(StudentData!C101)),SEARCH(" ",TRIM(CLEAN(StudentData!C101)),SEARCH(" ",TRIM(CLEAN(StudentData!C101)),1)+1)))&" "&LEFT(RIGHT(StudentData!C101,LEN(StudentData!C101)-SEARCH(" ",StudentData!C101,SEARCH(" ",StudentData!C101,SEARCH(" ",StudentData!C101,1)+1)-1)),1)&".") ->  | E101: =IF(StudentData!G101="","",StudentData!G101) -> 
B102: =IF(StudentData!A102="","",StudentData!A102) ->  | C102: =IF(StudentData!B102="","",StudentData!B102) ->  | D102: =IF(StudentData!C102="","",(LEFT(TRIM(CLEAN(StudentData!C102)),SEARCH(" ",TRIM(CLEAN(StudentData!C102)),SEARCH(" ",TRIM(CLEAN(StudentData!C102)),1)+1)))&" "&LEFT(RIGHT(StudentData!C102,LEN(StudentData!C102)-SEARCH(" ",StudentData!C102,SEARCH(" ",StudentData!C102,SEARCH(" ",StudentData!C102,1)+1)-1)),1)&".") ->  | E102: =IF(StudentData!G102="","",StudentData!G102) -> 
B103: =IF(StudentData!A103="","",StudentData!A103) ->  | C103: =IF(StudentData!B103="","",StudentData!B103) ->  | D103: =IF(StudentData!C103="","",(LEFT(TRIM(CLEAN(StudentData!C103)),SEARCH(" ",TRIM(CLEAN(StudentData!C103)),SEARCH(" ",TRIM(CLEAN(StudentData!C103)),1)+1)))&" "&LEFT(RIGHT(StudentData!C103,LEN(StudentData!C103)-SEARCH(" ",StudentData!C103,SEARCH(" ",StudentData!C103,SEARCH(" ",StudentData!C103,1)+1)-1)),1)&".") ->  | E103: =IF(StudentData!G103="","",StudentData!G103) -> 
B104: =IF(StudentData!A104="","",StudentData!A104) ->  | C104: =IF(StudentData!B104="","",StudentData!B104) ->  | D104: =IF(StudentData!C104="","",(LEFT(TRIM(CLEAN(StudentData!C104)),SEARCH(" ",TRIM(CLEAN(StudentData!C104)),SEARCH(" ",TRIM(CLEAN(StudentData!C104)),1)+1)))&" "&LEFT(RIGHT(StudentData!C104,LEN(StudentData!C104)-SEARCH(" ",StudentData!C104,SEARCH(" ",StudentData!C104,SEARCH(" ",StudentData!C104,1)+1)-1)),1)&".") ->  | E104: =IF(StudentData!G104="","",StudentData!G104) -> 
B105: =IF(StudentData!A105="","",StudentData!A105) ->  | C105: =IF(StudentData!B105="","",StudentData!B105) ->  | D105: =IF(StudentData!C105="","",(LEFT(TRIM(CLEAN(StudentData!C105)),SEARCH(" ",TRIM(CLEAN(StudentData!C105)),SEARCH(" ",TRIM(CLEAN(StudentData!C105)),1)+1)))&" "&LEFT(RIGHT(StudentData!C105,LEN(StudentData!C105)-SEARCH(" ",StudentData!C105,SEARCH(" ",StudentData!C105,SEARCH(" ",StudentData!C105,1)+1)-1)),1)&".") ->  | E105: =IF(StudentData!G105="","",StudentData!G105) -> 
B106: =IF(StudentData!A106="","",StudentData!A106) ->  | C106: =IF(StudentData!B106="","",StudentData!B106) ->  | D106: =IF(StudentData!C106="","",(LEFT(TRIM(CLEAN(StudentData!C106)),SEARCH(" ",TRIM(CLEAN(StudentData!C106)),SEARCH(" ",TRIM(CLEAN(StudentData!C106)),1)+1)))&" "&LEFT(RIGHT(StudentData!C106,LEN(StudentData!C106)-SEARCH(" ",StudentData!C106,SEARCH(" ",StudentData!C106,SEARCH(" ",StudentData!C106,1)+1)-1)),1)&".") ->  | E106: =IF(StudentData!G106="","",StudentData!G106) -> 
B107: =IF(StudentData!A107="","",StudentData!A107) ->  | C107: =IF(StudentData!B107="","",StudentData!B107) ->  | D107: =IF(StudentData!C107="","",(LEFT(TRIM(CLEAN(StudentData!C107)),SEARCH(" ",TRIM(CLEAN(StudentData!C107)),SEARCH(" ",TRIM(CLEAN(StudentData!C107)),1)+1)))&" "&LEFT(RIGHT(StudentData!C107,LEN(StudentData!C107)-SEARCH(" ",StudentData!C107,SEARCH(" ",StudentData!C107,SEARCH(" ",StudentData!C107,1)+1)-1)),1)&".") ->  | E107: =IF(StudentData!G107="","",StudentData!G107) -> 
B108: =IF(StudentData!A108="","",StudentData!A108) ->  | C108: =IF(StudentData!B108="","",StudentData!B108) ->  | D108: =IF(StudentData!C108="","",(LEFT(TRIM(CLEAN(StudentData!C108)),SEARCH(" ",TRIM(CLEAN(StudentData!C108)),SEARCH(" ",TRIM(CLEAN(StudentData!C108)),1)+1)))&" "&LEFT(RIGHT(StudentData!C108,LEN(StudentData!C108)-SEARCH(" ",StudentData!C108,SEARCH(" ",StudentData!C108,SEARCH(" ",StudentData!C108,1)+1)-1)),1)&".") ->  | E108: =IF(StudentData!G108="","",StudentData!G108) -> 
B109: =IF(StudentData!A109="","",StudentData!A109) ->  | C109: =IF(StudentData!B109="","",StudentData!B109) ->  | D109: =IF(StudentData!C109="","",(LEFT(TRIM(CLEAN(StudentData!C109)),SEARCH(" ",TRIM(CLEAN(StudentData!C109)),SEARCH(" ",TRIM(CLEAN(StudentData!C109)),1)+1)))&" "&LEFT(RIGHT(StudentData!C109,LEN(StudentData!C109)-SEARCH(" ",StudentData!C109,SEARCH(" ",StudentData!C109,SEARCH(" ",StudentData!C109,1)+1)-1)),1)&".") ->  | E109: =IF(StudentData!G109="","",StudentData!G109) -> 
B110: =IF(StudentData!A110="","",StudentData!A110) ->  | C110: =IF(StudentData!B110="","",StudentData!B110) ->  | D110: =IF(StudentData!C110="","",(LEFT(TRIM(CLEAN(StudentData!C110)),SEARCH(" ",TRIM(CLEAN(StudentData!C110)),SEARCH(" ",TRIM(CLEAN(StudentData!C110)),1)+1)))&" "&LEFT(RIGHT(StudentData!C110,LEN(StudentData!C110)-SEARCH(" ",StudentData!C110,SEARCH(" ",StudentData!C110,SEARCH(" ",StudentData!C110,1)+1)-1)),1)&".") ->  | E110: =IF(StudentData!G110="","",StudentData!G110) -> 
B111: =IF(StudentData!A111="","",StudentData!A111) ->  | C111: =IF(StudentData!B111="","",StudentData!B111) ->  | D111: =IF(StudentData!C111="","",(LEFT(TRIM(CLEAN(StudentData!C111)),SEARCH(" ",TRIM(CLEAN(StudentData!C111)),SEARCH(" ",TRIM(CLEAN(StudentData!C111)),1)+1)))&" "&LEFT(RIGHT(StudentData!C111,LEN(StudentData!C111)-SEARCH(" ",StudentData!C111,SEARCH(" ",StudentData!C111,SEARCH(" ",StudentData!C111,1)+1)-1)),1)&".") ->  | E111: =IF(StudentData!G111="","",StudentData!G111) -> 

Sheet RESULTSHEET
A1: =StudentData!O10 -> 65 | B1: ="STD -"&StudentData!O7&StudentData!O8 -> STD -9A | F1: =StudentData!A2 -> SHREE SURAJMALJI HIGHSCHOOL PATDI | AH1: =B1 -> STD -9A | AL1: =StudentData!I3 -> YEAR 2017-18
F2: FIRST ANNUAL RESULT SHEET | R2: =StudentData!N9&"-"&StudentData!O9 -> CLASS TEACHER-M.V.PARMAR
B3: TOTAL STUDENT | F3: =IF(COUNT(I12:I112)=0,"",COUNT(I12:I112)) -> 64 | J3: =IF(COUNT(M12:M112)=0,"",COUNT(M12:M112)) -> 64 | N3: =IF(COUNT(Q12:Q112)=0,"",COUNT(Q12:Q112)) -> 64 | R3: =IF(COUNT(U12:U112)=0,"",COUNT(U12:U112)) -> 64 | V3: =IF(COUNT(Y12:Y112)=0,"",COUNT(Y12:Y112)) -> 64 | Z3: =IF(COUNT(AC12:AC112)=0,"",COUNT(AC12:AC112)) -> 64 | AD3: =IF(COUNT(AG12:AG112)=0,"",COUNT(AG12:AG112)) -> 64 | AL3: =IF(COUNT(AL12:AL112)=0,"",COUNT(AL12:AL112)) -> 64
B4: NO OF STUDENT ABSENT | F4: =IF(COUNTIF(I12:I112,"AB")=0,"-",COUNTIF(I12:I112,"AB")) -> - | J4: =IF(COUNTIF(M12:M112,"AB")=0,"-",COUNTIF(M12:M112,"AB")) -> - | N4: =IF(COUNTIF(Q12:Q112,"AB")=0,"-",COUNTIF(Q12:Q112,"AB")) -> - | R4: =IF(COUNTIF(U12:U112,"AB")=0,"-",COUNTIF(U12:U112,"AB")) -> - | V4: =IF(COUNTIF(Y12:Y112,"AB")=0,"-",COUNTIF(Y12:Y112,"AB")) -> - | Z4: =IF(COUNTIF(AC12:AC112,"AB")=0,"-",COUNTIF(AC12:AC112,"AB")) -> - | AD4: =IF(COUNTIF(AG12:AG112,"AB")=0,"-",COUNTIF(AG12:AG112,"AB")) -> - | AL4: =IF(COUNTIF(AL12:AL112,"AB")=0,"-",COUNTIF(AL12:AL112,"AB")) -> -
B5: NO OF STUDENT APPEARED | F5: =IF(F4="-",F3,IF(AND(F3="",F4=""),"",F3-F4)) -> 64 | J5: =IF(J4="-",J3,IF(AND(J3="",J4=""),"",J3-J4)) -> 64 | N5: =IF(N4="-",N3,IF(AND(N3="",N4=""),"",N3-N4)) -> 64 | R5: =IF(R4="-",R3,IF(AND(R3="",R4=""),"",R3-R4)) -> 64 | V5: =IF(V4="-",V3,IF(AND(V3="",V4=""),"",V3-V4)) -> 64 | Z5: =IF(Z4="-",Z3,IF(AND(Z3="",Z4=""),"",Z3-Z4)) -> 64 | AD5: =IF(AD4="-",AD3,IF(AND(AD3="",AD4=""),"",AD3-AD4)) -> 64 | AL5: =IF(AL4="-",AL3,(IF(AND(AL3="",AL4=""),"",AL3-AL4))) -> 64
B6: NO OF STUDENT PASSED | F6: =IF(COUNTIF(I13:I112,">16")=0,"",COUNTIF(I13:I112,">16")) -> 59 | J6: =IF(COUNTIF(M13:M112,">16")=0,"",COUNTIF(M13:M112,">16")) -> 43 | N6: =IF(COUNTIF(Q13:Q112,">16")=0,"",COUNTIF(Q13:Q112,">16")) -> 50 | R6: =IF(COUNTIF(U13:U112,">16")=0,"",COUNTIF(U13:U112,">16")) -> 42 | V6: =IF(COUNTIF(Y13:Y112,">16")=0,"",COUNTIF(Y13:Y112,">16")) -> 41 | Z6: =IF(COUNTIF(AC13:AC112,">16")=0,"",COUNTIF(AC13:AC112,">16")) -> 47 | AD6: =IF(COUNTIF(AG13:AG112,">16")=0,"",COUNTIF(AG13:AG112,">16")) -> 29 | AL6: =IF(COUNTIF(AM13:AM112,"=P")=0,"",COUNTIF(AM13:AM112,"=P")) -> 25
B7: NO OF STUDENT FAILED | F7: =IF(COUNTIF(I13:I112,"<=17")=0,"",COUNTIF(I13:I112,"<=17")) -> 7 | J7: =IF(COUNTIF(M13:M112,"<=17")=0,"",COUNTIF(M13:M112,"<=17")) -> 24 | N7: =IF(COUNTIF(Q13:Q112,"<=17")=0,"",COUNTIF(Q13:Q112,"<=17")) -> 15 | R7: =IF(COUNTIF(U13:U112,"<=17")=0,"",COUNTIF(U13:U112,"<=17")) -> 26 | V7: =IF(COUNTIF(Y13:Y112,"<=17")=0,"",COUNTIF(Y13:Y112,"<=17")) -> 28 | Z7: =IF(COUNTIF(AC13:AC112,"<=17")=0,"",COUNTIF(AC13:AC112,"<=17")) -> 30 | AD7: =IF(COUNTIF(AG13:AG112,"<=17")=0,"",COUNTIF(AG13:AG112,"<=17")) -> 40 | AL7: =IF(COUNTIF(AM13:AM112,"=F")=0,"",COUNTIF(AM13:AM112,"=F")) -> 39
B8: PERCENTAGE | F8: =IF(F3="","",ROUND(F6*100/F5,2)) -> 92.19 | J8: =IF(J3="","",ROUND(J6*100/J5,2)) -> 67.19 | N8: =IF(N3="","",ROUND(N6*100/N5,2)) -> 78.13 | R8: =IF(R3="","",ROUND(R6*100/R5,2)) -> 65.63 | V8: =IF(V3="","",ROUND(V6*100/V5,2)) -> 64.06 | Z8: =IF(Z3="","",ROUND(Z6*100/Z5,2)) -> 73.44 | AD8: =IF(AD3="","",ROUND(AD6*100/AD5,2)) -> 45.31 | AL8: =IF(AL3="","",ROUND(AL6*100/AL5,2)) -> 39.06
B9: SR NO | C9: ROLL NO | F9: =StudentData!$N13 -> GUJARATI | J9: =StudentData!$N14 -> ENGLISH | N9: =StudentData!$N15 -> HINDI | R9: =StudentData!$N16 -> SANSKRIT | V9: =StudentData!$N17 -> MATHS | Z9: =StudentData!$N18 -> SCI&TECH | AD9: =StudentData!$N19 -> SOC.SCI | AH9: =StudentData!$N20 -> PT | AI9: =StudentData!$N21 -> DRAW | AJ9: =StudentData!$N22 -> COM | AK9: =StudentData!$N23 -> DAI | AL9: TOTAL | AM9: RESULT | AN9: RANK | AO9: PR RANK | AP9: PERSENT
F10: FA1 | G10: FA2 | H10: SA1 | I10: TOT | J10: FA1 | K10: FA2 | L10: SA1 | M10: TOT | N10: FA1 | O10: FA2 | P10: SA1 | Q10: TOT | R10: FA1 | S10: FA2 | T10: SA1 | U10: TOT | V10: FA1 | W10: FA2 | X10: SA1 | Y10: TOT | Z10: FA1 | AA10: FA2 | AB10: SA1 | AC10: TOT | AD10: FA1 | AE10: FA2 | AF10: SA1 | AG10: TOT
D11: NAME OF STUDENT | F11: 10 | G11: 10 | H11: 30 | I11: 50 | J11: 10 | K11: 10 | L11: 30 | M11: 50 | N11: 10 | O11: 10 | P11: 30 | Q11: 50 | R11: 10 | S11: 10 | T11: 30 | U11: 50 | V11: 10 | W11: 10 | X11: 30 | Y11: 50 | Z11: 10 | AA11: 10 | AB11: 30 | AC11: 50 | AD11: 10 | AE11: 10 | AF11: 30 | AG11: 50 | AH11: 40 | AI11: 40 | AJ11: 40 | AK11: 40
B12: =IF(SEM1MARKENTRY!B10="","",SEM1MARKENTRY!B10) ->  | C12: =IF(SEM1MARKENTRY!C10="","",SEM1MARKENTRY!C10) ->  | D12: =IF(StudentData!C10="","",(LEFT(TRIM(CLEAN(StudentData!C10)),SEARCH(" ",TRIM(CLEAN(StudentData!C10)),SEARCH(" ",TRIM(CLEAN(StudentData!C10)),1)+1)))&" "&LEFT(RIGHT(StudentData!C10,LEN(StudentData!C10)-SEARCH(" ",StudentData!C10,SEARCH(" ",StudentData!C10,SEARCH(" ",StudentData!C10,1)+1)-1)),1)&".") ->  | E12: =IF(SEM1MARKENTRY!E10="","",SEM1MARKENTRY!E10) ->  | F12: =IF(SEM1MARKENTRY!L10="","",SEM1MARKENTRY!L10) ->  | G12: =IF(SEM1MARKENTRY!S10="","",SEM1MARKENTRY!S10) ->  | H12: =IF(SEM1MARKENTRY!U10="","",SEM1MARKENTRY!U10) ->  | I12: =IF(AND(F12="",G12="",H12=""),"",SUM(F12:H12)) ->  | J12: =IF(SEM1MARKENTRY!AB10="","",SEM1MARKENTRY!AB10) ->  | K12: =IF(SEM1MARKENTRY!AI10="","",SEM1MARKENTRY!AI10) ->  | L12: =IF(SEM1MARKENTRY!AK10="","",SEM1MARKENTRY!AK10) ->  | M12: =IF(AND(J12="",K12="",L12=""),"",SUM(J12:L12)) ->  | N12: =IF(SEM1MARKENTRY!AR10="","",SEM1MARKENTRY!AR10) ->  | O12: =IF(SEM1MARKENTRY!AY10="","",SEM1MARKENTRY!AY10) ->  | P12: =IF(SEM1MARKENTRY!BA10="","",SEM1MARKENTRY!BA10) ->  | Q12: =IF(AND(N12="",O12="",P12=""),"",SUM(N12:P12)) ->  | R12: =IF(SEM1MARKENTRY!BH10="","",SEM1MARKENTRY!BH10) ->  | S12: =IF(SEM1MARKENTRY!BO10="","",SEM1MARKENTRY!BO10) ->  | T12: =IF(SEM1MARKENTRY!BQ10="","",SEM1MARKENTRY!BQ10) ->  | U12: =IF(AND(R12="",S12="",T12=""),"",SUM(R12:T12)) ->  | V12: =IF(SEM1MARKENTRY!BX10="","",SEM1MARKENTRY!BX10) ->  | W12: =IF(SEM1MARKENTRY!CE10="","",SEM1MARKENTRY!CE10) ->  | X12: =IF(SEM1MARKENTRY!CG10="","",SEM1MARKENTRY!CG10) ->  | Y12: =IF(AND(V12="",W12="",X12=""),"",SUM(V12:X12)) ->  | Z12: =IF(SEM1MARKENTRY!CN10="","",SEM1MARKENTRY!CN10) ->  | AA12: =IF(SEM1MARKENTRY!CU10="","",SEM1MARKENTRY!CU10) ->  | AB12: =IF(SEM1MARKENTRY!CW10="","",SEM1MARKENTRY!CW10) ->  | AC12: =IF(AND(Z12="",AA12="",AB12=""),"",SUM(Z12:AB12)) ->  | AD12: =IF(SEM1MARKENTRY!DD10="","",SEM1MARKENTRY!DD10) ->  | AE12: =IF(SEM1MARKENTRY!DK10="","",SEM1MARKENTRY!DK10) ->  | AF12: =IF(SEM1MARKENTRY!DM10="","",SEM1MARKENTRY!DM10) ->  | AG12: =IF(AND(AD12="",AE12="",AF12=""),"",SUM(AD12:AF12)) ->  | AH12: =IF(SEM1MARKENTRY!ED10="","",SEM1MARKENTRY!ED10) ->  | AI12: =IF(SEM1MARKENTRY!EU10="","",SEM1MARKENTRY!EU10) ->  | AJ12: =IF(SEM1MARKENTRY!FL10="","",SEM1MARKENTRY!FL10) ->  | AK12: =IF(SEM1MARKENTRY!GC10="","",SEM1MARKENTRY!GC10) ->  | AL12: =IF(AND(I12="",M12="",Q12="",U12="",Y12="",AC12="",AG12=""),"",IF(AND(I12="AB",M12="AB",Q12="AB",U12="AB",Y12="AB",AC12="AB",AG12="AB"),"AB",SUM(I12,M12,Q12,U12,Y12,AC12,AG12))) ->  | AM12: =IF(AL12="","",IF(AL12="ab","Ab",IF(AND(I12>16,M12>16,Q12>16,U12>16,Y12>16,AC12>16,AG12>16),"P","F"))) ->  | AN12: =IF(AM12="F","-",IF(AL12="","",IF(AL12="Ab","",RANK(AL12,AL:AL,0)))) ->  | AO12: =IF(AN12="","",IF(AN12="-","-",ROUND(VALUE($AL$6-AN12)*100/$AL$6,2))) ->  | AP12: =IF(AL12="","",IF(AM12="F","",IF(AL12="ab","-",ROUND(AL12/3.5,2)))) ->  | BA12: =IF(AN12="-","",AN12) ->  | BB12: =IF(C12="","",C12) ->  | BC12: =IF(D12="","",D12) ->  | BD12: =IF(AL12="","",AL12) ->  | BE12: =IF(AO12="","",AO12) ->  | BF12: =IF(AP12="","",AP12) -> 
B13: =IF(SEM1MARKENTRY!B11="","",SEM1MARKENTRY!B11) -> 1 | C13: =IF(SEM1MARKENTRY!C11="","",SEM1MARKENTRY!C11) -> 1 | D13: =IF(StudentData!C11="","",(LEFT(TRIM(CLEAN(StudentData!C11)),SEARCH(" ",TRIM(CLEAN(StudentData!C11)),SEARCH(" ",TRIM(CLEAN(StudentData!C11)),1)+1)))&" "&LEFT(RIGHT(StudentData!C11,LEN(StudentData!C11)-SEARCH(" ",StudentData!C11,SEARCH(" ",StudentData!C11,SEARCH(" ",StudentData!C11,1)+1)-1)),1)&".") -> DESAI RUSHI D. | E13: =IF(SEM1MARKENTRY!E11="","",SEM1MARKENTRY!E11) ->  | F13: =IF(SEM1MARKENTRY!L11="","",SEM1MARKENTRY!L11) -> 8 | G13: =IF(SEM1MARKENTRY!S11="","",SEM1MARKENTRY!S11) -> 9 | H13: =IF(SEM1MARKENTRY!U11="","",SEM1MARKENTRY!U11) -> 21 | I13: =IF(AND(F13="",G13="",H13=""),"",SUM(F13:H13)) -> 38 | J13: =IF(SEM1MARKENTRY!AB11="","",SEM1MARKENTRY!AB11) -> 9 | K13: =IF(SEM1MARKENTRY!AI11="","",SEM1MARKENTRY!AI11) -> 9 | L13: =IF(SEM1MARKENTRY!AK11="","",SEM1MARKENTRY!AK11) -> 22 | M13: =IF(AND(J13="",K13="",L13=""),"",SUM(J13:L13)) -> 40 | N13: =IF(SEM1MARKENTRY!AR11="","",SEM1MARKENTRY!AR11) -> 9 | O13: =IF(SEM1MARKENTRY!AY11="","",SEM1MARKENTRY!AY11) -> 6 | P13: =IF(SEM1MARKENTRY!BA11="","",SEM1MARKENTRY!BA11) -> 18 | Q13: =IF(AND(N13="",O13="",P13=""),"",SUM(N13:P13)) -> 33 | R13: =IF(SEM1MARKENTRY!BH11="","",SEM1MARKENTRY!BH11) -> 8 | S13: =IF(SEM1MARKENTRY!BO11="","",SEM1MARKENTRY!BO11) -> 8 | T13: =IF(SEM1MARKENTRY!BQ11="","",SEM1MARKENTRY!BQ11) -> 24 | U13: =IF(AND(R13="",S13="",T13=""),"",SUM(R13:T13)) -> 40 | V13: =IF(SEM1MARKENTRY!BX11="","",SEM1MARKENTRY!BX11) -> 6 | W13: =IF(SEM1MARKENTRY!CE11="","",SEM1MARKENTRY!CE11) -> 6 | X13: =IF(SEM1MARKENTRY!CG11="","",SEM1MARKENTRY!CG11) -> 20 | Y13: =IF(AND(V13="",W13="",X13=""),"",SUM(V13:X13)) -> 32 | Z13: =IF(SEM1MARKENTRY!CN11="","",SEM1MARKENTRY!CN11) -> 7 | AA13: =IF(SEM1MARKENTRY!CU11="","",SEM1MARKENTRY!CU11) -> 8 | AB13: =IF(SEM1MARKENTRY!CW11="","",SEM1MARKENTRY!CW11) -> 19 | AC13: =IF(AND(Z13="",AA13="",AB13=""),"",SUM(Z13:AB13)) -> 34 | AD13: =IF(SEM1MARKENTRY!DD11="","",SEM1MARKENTRY!DD11) -> 9 | AE13: =IF(SEM1MARKENTRY!DK11="","",SEM1MARKENTRY!DK11) -> 6 | AF13: =IF(SEM1MARKENTRY!DM11="","",SEM1MARKENTRY!DM11) -> 17 | AG13: =IF(AND(AD13="",AE13="",AF13=""),"",SUM(AD13:AF13)) -> 32 | AH13: =IF(SEM1MARKENTRY!ED11="","",SEM1MARKENTRY!ED11) -> B | AI13: =IF(SEM1MARKENTRY!EU11="","",SEM1MARKENTRY!EU11) -> A | AJ13: =IF(SEM1MARKENTRY!FL11="","",SEM1MARKENTRY!FL11) -> B+ | AK13: =IF(SEM1MARKENTRY!GC11="","",SEM1MARKENTRY!GC11) ->  | AL13: =IF(AND(I13="",M13="",Q13="",U13="",Y13="",AC13="",AG13=""),"",IF(AND(I13="AB",M13="AB",Q13="AB",U13="AB",Y13="AB",AC13="AB",AG13="AB"),"AB",SUM(I13,M13,Q13,U13,Y13,AC13,AG13))) -> 249 | AM13: =IF(AL13="","",IF(AL13="ab","Ab",IF(AND(I13>16,M13>16,Q13>16,U13>16,Y13>16,AC13>16,AG13>16),"P","F"))) -> P | AN13: =IF(AM13="F","-",IF(AL13="","",IF(AL13="Ab","",RANK(AL13,AL:AL,0)))) -> 2 | AO13: =IF(AN13="","",IF(AN13="-","-",ROUND(VALUE($AL$6-AN13)*100/$AL$6,2))) -> 92 | AP13: =IF(AL13="","",IF(AM13="F","",IF(AL13="ab","-",ROUND(AL13/3.5,2)))) -> 71.14 | BA13: =IF(AN13="-","",AN13) -> 2 | BB13: =IF(C13="","",C13) -> 1 | BC13: DESAI RUSHI D. | BD13: =IF(AL13="","",AL13) -> 249 | BE13: 92 | BF13: 71.14
B14: =IF(SEM1MARKENTRY!B12="","",SEM1MARKENTRY!B12) -> 2 | C14: =IF(SEM1MARKENTRY!C12="","",SEM1MARKENTRY!C12) -> 2 | D14: =IF(StudentData!C12="","",(LEFT(TRIM(CLEAN(StudentData!C12)),SEARCH(" ",TRIM(CLEAN(StudentData!C12)),SEARCH(" ",TRIM(CLEAN(StudentData!C12)),1)+1)))&" "&LEFT(RIGHT(StudentData!C12,LEN(StudentData!C12)-SEARCH(" ",StudentData!C12,SEARCH(" ",StudentData!C12,SEARCH(" ",StudentData!C12,1)+1)-1)),1)&".") -> SHRIMALI UPENDRA M. | E14: =IF(SEM1MARKENTRY!E12="","",SEM1MARKENTRY!E12) ->  | F14: =IF(SEM1MARKENTRY!L12="","",SEM1MARKENTRY!L12) -> 7 | G14: =IF(SEM1MARKENTRY!S12="","",SEM1MARKENTRY!S12) -> 7 | H14: =IF(SEM1MARKENTRY!U12="","",SEM1MARKENTRY!U12) -> 17 | I14: 31 | J14: =IF(SEM1MARKENTRY!AB12="","",SEM1MARKENTRY!AB12) -> 4 | K14: =IF(SEM1MARKENTRY!AI12="","",SEM1MARKENTRY!AI12) -> 5 | L14: =IF(SEM1MARKENTRY!AK12="","",SEM1MARKENTRY!AK12) -> 10 | M14: 19 | N14: =IF(SEM1MARKENTRY!AR12="","",SEM1MARKENTRY!AR12) -> 4 | O14: =IF(SEM1MARKENTRY!AY12="","",SEM1MARKENTRY!AY12) -> 3 | P14: =IF(SEM1MARKENTRY!BA12="","",SEM1MARKENTRY!BA12) -> 14 | Q14: 21 | R14: =IF(SEM1MARKENTRY!BH12="","",SEM1MARKENTRY!BH12) -> 5 | S14: =IF(SEM1MARKENTRY!BO12="","",SEM1MARKENTRY!BO12) -> 5 | T14: =IF(SEM1MARKENTRY!BQ12="","",SEM1MARKENTRY!BQ12) -> 10 | U14: 20 | V14: =IF(SEM1MARKENTRY!BX12="","",SEM1MARKENTRY!BX12) -> 3 | W14: =IF(SEM1MARKENTRY!CE12="","",SEM1MARKENTRY!CE12) -> 3 | X14: =IF(SEM1MARKENTRY!CG12="","",SEM1MARKENTRY!CG12) -> 12 | Y14: 18 | Z14: =IF(SEM1MARKENTRY!CN12="","",SEM1MARKENTRY!CN12) -> 5 | AA14: =IF(SEM1MARKENTRY!CU12="","",SEM1MARKENTRY!CU12) -> 5 | AB14: =IF(SEM1MARKENTRY!CW12="","",SEM1MARKENTRY!CW12) -> 9 | AC14: 19 | AD14: =IF(SEM1MARKENTRY!DD12="","",SEM1MARKENTRY!DD12) -> 4 | AE14: =IF(SEM1MARKENTRY!DK12="","",SEM1MARKENTRY!DK12) -> 3 | AF14: =IF(SEM1MARKENTRY!DM12="","",SEM1MARKENTRY!DM12) -> 7 | AG14: 14 | AH14: =IF(SEM1MARKENTRY!ED12="","",SEM1MARKENTRY!ED12) -> B | AI14: =IF(SEM1MARKENTRY!EU12="","",SEM1MARKENTRY!EU12) -> B | AJ14: =IF(SEM1MARKENTRY!FL12="","",SEM1MARKENTRY!FL12) -> B | AK14: =IF(SEM1MARKENTRY!GC12="","",SEM1MARKENTRY!GC12) ->  | AL14: 142 | AM14: F | AN14: =IF(AM14="F","-",IF(AL14="","",IF(AL14="Ab","",RANK(AL14,AL:AL,0)))) -> - | AO14: - | BB14: 2 | BC14: SHRIMALI UPENDRA M. | BD14: 142 | BE14: -
B15: =IF(SEM1MARKENTRY!B13="","",SEM1MARKENTRY!B13) -> 3 | C15: =IF(SEM1MARKENTRY!C13="","",SEM1MARKENTRY!C13) -> 3 | D15: =IF(StudentData!C13="","",(LEFT(TRIM(CLEAN(StudentData!C13)),SEARCH(" ",TRIM(CLEAN(StudentData!C13)),SEARCH(" ",TRIM(CLEAN(StudentData!C13)),1)+1)))&" "&LEFT(RIGHT(StudentData!C13,LEN(StudentData!C13)-SEARCH(" ",StudentData!C13,SEARCH(" ",StudentData!C13,SEARCH(" ",StudentData!C13,1)+1)-1)),1)&".") -> CHAUHAN AEZADBHAI A. | E15: =IF(SEM1MARKENTRY!E13="","",SEM1MARKENTRY!E13) ->  | F15: =IF(SEM1MARKENTRY!L13="","",SEM1MARKENTRY!L13) -> 6 | G15: =IF(SEM1MARKENTRY!S13="","",SEM1MARKENTRY!S13) -> 7 | H15: =IF(SEM1MARKENTRY!U13="","",SEM1MARKENTRY!U13) -> 15 | I15: 28 | J15: =IF(SEM1MARKENTRY!AB13="","",SEM1MARKENTRY!AB13) -> 6 | K15: =IF(SEM1MARKENTRY!AI13="","",SEM1MARKENTRY!AI13) -> 7 | L15: =IF(SEM1MARKENTRY!AK13="","",SEM1MARKENTRY!AK13) -> 15 | M15: 28 | N15: =IF(SEM1MARKENTRY!AR13="","",SEM1MARKENTRY!AR13) -> 6 | O15: =IF(SEM1MARKENTRY!AY13="","",SEM1MARKENTRY!AY13) -> 3 | P15: =IF(SEM1MARKENTRY!BA13="","",SEM1MARKENTRY!BA13) -> 12 | Q15: 21 | R15: =IF(SEM1MARKENTRY!BH13="","",SEM1MARKENTRY!BH13) -> 5 | S15: =IF(SEM1MARKENTRY!BO13="","",SEM1MARKENTRY!BO13) -> 5 | T15: =IF(SEM1MARKENTRY!BQ13="","",SEM1MARKENTRY!BQ13) -> 12 | U15: 22 | V15: =IF(SEM1MARKENTRY!BX13="","",SEM1MARKENTRY!BX13) -> 3 | W15: =IF(SEM1MARKENTRY!CE13="","",SEM1MARKENTRY!CE13) -> 3 | X15: =IF(SEM1MARKENTRY!CG13="","",SEM1MARKENTRY!CG13) -> 13 | Y15: 19 | Z15: =IF(SEM1MARKENTRY!CN13="","",SEM1MARKENTRY!CN13) -> 5 | AA15: =IF(SEM1MARKENTRY!CU13="","",SEM1MARKENTRY!CU13) -> 4 | AB15: =IF(SEM1MARKENTRY!CW13="","",SEM1MARKENTRY!CW13) -> 8 | AC15: 17 | AD15: =IF(SEM1MARKENTRY!DD13="","",SEM1MARKENTRY!DD13) -> 5 | AE15: =IF(SEM1MARKENTRY!DK13="","",SEM1MARKENTRY!DK13) -> 3 | AF15: =IF(SEM1MARKENTRY!DM13="","",SEM1MARKENTRY!DM13) -> 10 | AG15: 18 | AH15: =IF(SEM1MARKENTRY!ED13="","",SEM1MARKENTRY!ED13) -> B | AI15: =IF(SEM1MARKENTRY!EU13="","",SEM1MARKENTRY!EU13) -> B+ | AJ15: =IF(SEM1MARKENTRY!FL13="","",SEM1MARKENTRY!FL13) -> B | AK15: =IF(SEM1MARKENTRY!GC13="","",SEM1MARKENTRY!GC13) ->  | AL15: 153 | AM15: P | AN15: 25 | AO15: 0 | AP15: 43.71 | BA15: 25 | BB15: 3 | BC15: CHAUHAN AEZADBHAI A. | BD15: 153 | BE15: 0 | BF15: 43.71
B16: =IF(SEM1MARKENTRY!B14="","",SEM1MARKENTRY!B14) -> 4 | C16: =IF(SEM1MARKENTRY!C14="","",SEM1MARKENTRY!C14) -> 4 | D16: =IF(StudentData!C14="","",(LEFT(TRIM(CLEAN(StudentData!C14)),SEARCH(" ",TRIM(CLEAN(StudentData!C14)),SEARCH(" ",TRIM(CLEAN(StudentData!C14)),1)+1)))&" "&LEFT(RIGHT(StudentData!C14,LEN(StudentData!C14)-SEARCH(" ",StudentData!C14,SEARCH(" ",StudentData!C14,SEARCH(" ",StudentData!C14,1)+1)-1)),1)&".") -> PALIYA JAYKUMAR H. | E16: =IF(SEM1MARKENTRY!E14="","",SEM1MARKENTRY!E14) ->  | F16: =IF(SEM1MARKENTRY!L14="","",SEM1MARKENTRY!L14) -> 7 | G16: =IF(SEM1MARKENTRY!S14="","",SEM1MARKENTRY!S14) -> 7 | H16: =IF(SEM1MARKENTRY!U14="","",SEM1MARKENTRY!U14) -> 19 | I16: 33 | J16: =IF(SEM1MARKENTRY!AB14="","",SEM1MARKENTRY!AB14) -> 8 | K16: =IF(SEM1MARKENTRY!AI14="","",SEM1MARKENTRY!AI14) -> 8 | L16: =IF(SEM1MARKENTRY!AK14="","",SEM1MARKENTRY!AK14) -> 20 | M16: 36 | N16: =IF(SEM1MARKENTRY!AR14="","",SEM1MARKENTRY!AR14) -> 9 | O16: =IF(SEM1MARKENTRY!AY14="","",SEM1MARKENTRY!AY14) -> 7 | P16: =IF(SEM1MARKENTRY!BA14="","",SEM1MARKENTRY!BA14) -> 14 | Q16: 30 | R16: =IF(SEM1MARKENTRY!BH14="","",SEM1MARKENTRY!BH14) -> 8 | S16: =IF(SEM1MARKENTRY!BO14="","",SEM1MARKENTRY!BO14) -> 7 | T16: =IF(SEM1MARKENTRY!BQ14="","",SEM1MARKENTRY!BQ14) -> 22 | U16: 37 | V16: =IF(SEM1MARKENTRY!BX14="","",SEM1MARKENTRY!BX14) -> 7 | W16: =IF(SEM1MARKENTRY!CE14="","",SEM1MARKENTRY!CE14) -> 7 | X16: =IF(SEM1MARKENTRY!CG14="","",SEM1MARKENTRY!CG14) -> 20 | Y16: 34 | Z16: =IF(SEM1MARKENTRY!CN14="","",SEM1MARKENTRY!CN14) -> 6 | AA16: =IF(SEM1MARKENTRY!CU14="","",SEM1MARKENTRY!CU14) -> 8 | AB16: =IF(SEM1MARKENTRY!CW14="","",SEM1MARKENTRY!CW14) -> 12 | AC16: 26 | AD16: =IF(SEM1MARKENTRY!DD14="","",SEM1MARKENTRY!DD14) -> 9 | AE16: =IF(SEM1MARKENTRY!DK14="","",SEM1MARKENTRY!DK14) -> 7 | AF16: =IF(SEM1MARKENTRY!DM14="","",SEM1MARKENTRY!DM14) -> 15 | AG16: 31 | AH16: =IF(SEM1MARKENTRY!ED14="","",SEM1MARKENTRY!ED14) -> B+ | AI16: =IF(SEM1MARKENTRY!EU14="","",SEM1MARKENTRY!EU14) -> B+ | AJ16: =IF(SEM1MARKENTRY!FL14="","",SEM1MARKENTRY!FL14) -> B+ | AK16: =IF(SEM1MARKENTRY!GC14="","",SEM1MARKENTRY!GC14) ->  | AL16: 227 | AM16: P | AN16: 6 | AO16: 76 | AP16: 64.86 | BA16: 6 | BB16: 4 | BC16: PALIYA JAYKUMAR H. | BD16: 227 | BE16: 76 | BF16: 64.86
B17: =IF(SEM1MARKENTRY!B15="","",SEM1MARKENTRY!B15) -> 5 | C17: =IF(SEM1MARKENTRY!C15="","",SEM1MARKENTRY!C15) -> 5 | D17: =IF(StudentData!C15="","",(LEFT(TRIM(CLEAN(StudentData!C15)),SEARCH(" ",TRIM(CLEAN(StudentData!C15)),SEARCH(" ",TRIM(CLEAN(StudentData!C15)),1)+1)))&" "&LEFT(RIGHT(StudentData!C15,LEN(StudentData!C15)-SEARCH(" ",StudentData!C15,SEARCH(" ",StudentData!C15,SEARCH(" ",StudentData!C15,1)+1)-1)),1)&".") -> GHANCHI RUMIRZAFAR S. | E17: =IF(SEM1MARKENTRY!E15="","",SEM1MARKENTRY!E15) ->  | F17: =IF(SEM1MARKENTRY!L15="","",SEM1MARKENTRY!L15) -> 6 | G17: =IF(SEM1MARKENTRY!S15="","",SEM1MARKENTRY!S15) -> 5 | H17: =IF(SEM1MARKENTRY!U15="","",SEM1MARKENTRY!U15) -> 15 | I17: 26 | J17: =IF(SEM1MARKENTRY!AB15="","",SEM1MARKENTRY!AB15) -> 4 | K17: =IF(SEM1MARKENTRY!AI15="","",SEM1MARKENTRY!AI15) -> 5 | L17: =IF(SEM1MARKENTRY!AK15="","",SEM1MARKENTRY!AK15) -> 11 | M17: 20 | N17: =IF(SEM1MARKENTRY!AR15="","",SEM1MARKENTRY!AR15) -> 4 | O17: =IF(SEM1MARKENTRY!AY15="","",SEM1MARKENTRY!AY15) -> 2 | P17: =IF(SEM1MARKENTRY!BA15="","",SEM1MARKENTRY!BA15) -> 11 | Q17: 17 | R17: =IF(SEM1MARKENTRY!BH15="","",SEM1MARKENTRY!BH15) -> 4 | S17: =IF(SEM1MARKENTRY!BO15="","",SEM1MARKENTRY!BO15) -> 3 | T17: =IF(SEM1MARKENTRY!BQ15="","",SEM1MARKENTRY!BQ15) -> 8 | U17: 15 | V17: =IF(SEM1MARKENTRY!BX15="","",SEM1MARKENTRY!BX15) -> 2 | W17: =IF(SEM1MARKENTRY!CE15="","",SEM1MARKENTRY!CE15) -> 2 | X17: =IF(SEM1MARKENTRY!CG15="","",SEM1MARKENTRY!CG15) -> 10 | Y17: 14 | Z17: =IF(SEM1MARKENTRY!CN15="","",SEM1MARKENTRY!CN15) -> 4 | AA17: =IF(SEM1MARKENTRY!CU15="","",SEM1MARKENTRY!CU15) -> 6 | AB17: =IF(SEM1MARKENTRY!CW15="","",SEM1MARKENTRY!CW15) -> 6 | AC17: 16 | AD17: =IF(SEM1MARKENTRY!DD15="","",SEM1MARKENTRY!DD15) -> 3 | AE17: =IF(SEM1MARKENTRY!DK15="","",SEM1MARKENTRY!DK15) -> 2 | AF17: =IF(SEM1MARKENTRY!DM15="","",SEM1MARKENTRY!DM15) -> 5 | AG17: 10 | AH17: =IF(SEM1MARKENTRY!ED15="","",SEM1MARKENTRY!ED15) -> B | AI17: =IF(SEM1MARKENTRY!EU15="","",SEM1MARKENTRY!EU15) -> B | AJ17: =IF(SEM1MARKENTRY!FL15="","",SEM1MARKENTRY!FL15) -> B | AK17: =IF(SEM1MARKENTRY!GC15="","",SEM1MARKENTRY!GC15) ->  | AL17: 118 | AM17: F | AN17: - | AO17: - | BB17: 5 | BC17: GHANCHI RUMIRZAFAR S. | BD17: 118 | BE17: -
B18: =IF(SEM1MARKENTRY!B16="","",SEM1MARKENTRY!B16) -> 6 | C18: =IF(SEM1MARKENTRY!C16="","",SEM1MARKENTRY!C16) -> 6 | D18: =IF(StudentData!C16="","",(LEFT(TRIM(CLEAN(StudentData!C16)),SEARCH(" ",TRIM(CLEAN(StudentData!C16)),SEARCH(" ",TRIM(CLEAN(StudentData!C16)),1)+1)))&" "&LEFT(RIGHT(StudentData!C16,LEN(StudentData!C16)-SEARCH(" ",StudentData!C16,SEARCH(" ",StudentData!C16,SEARCH(" ",StudentData!C16,1)+1)-1)),1)&".") -> GHANCHI MAHMADSAHEJAN S. | E18: =IF(SEM1MARKENTRY!E16="","",SEM1MARKENTRY!E16) ->  | F18: =IF(SEM1MARKENTRY!L16="","",SEM1MARKENTRY!L16) -> 4 | G18: =IF(SEM1MARKENTRY!S16="","",SEM1MARKENTRY!S16) -> 3 | H18: =IF(SEM1MARKENTRY!U16="","",SEM1MARKENTRY!U16) -> 11 | I18: 18 | J18: =IF(SEM1MARKENTRY!AB16="","",SEM1MARKENTRY!AB16) -> 5 | K18: =IF(SEM1MARKENTRY!AI16="","",SEM1MARKENTRY!AI16) -> 4 | L18: =IF(SEM1MARKENTRY!AK16="","",SEM1MARKENTRY!AK16) -> 13 | M18: 22 | N18: =IF(SEM1MARKENTRY!AR16="","",SEM1MARKENTRY!AR16) -> 3 | O18: =IF(SEM1MARKENTRY!AY16="","",SEM1MARKENTRY!AY16) -> 3 | P18: =IF(SEM1MARKENTRY!BA16="","",SEM1MARKENTRY!BA16) -> 12 | Q18: 18 | R18: =IF(SEM1MARKENTRY!BH16="","",SEM1MARKENTRY!BH16) -> 4 | S18: =IF(SEM1MARKENTRY!BO16="","",SEM1MARKENTRY!BO16) -> 5 | T18: =IF(SEM1MARKENTRY!BQ16="","",SEM1MARKENTRY!BQ16) -> 8 | U18: 17 | V18: =IF(SEM1MARKENTRY!BX16="","",SEM1MARKENTRY!BX16) -> 3 | W18: =IF(SEM1MARKENTRY!CE16="","",SEM1MARKENTRY!CE16) -> 3 | X18: =IF(SEM1MARKENTRY!CG16="","",SEM1MARKENTRY!CG16) -> 11 | Y18: 17 | Z18: =IF(SEM1MARKENTRY!CN16="","",SEM1MARKENTRY!CN16) -> 5 | AA18: =IF(SEM1MARKENTRY!CU16="","",SEM1MARKENTRY!CU16) -> 5 | AB18: =IF(SEM1MARKENTRY!CW16="","",SEM1MARKENTRY!CW16) -> 8 | AC18: 18 | AD18: =IF(SEM1MARKENTRY!DD16="","",SEM1MARKENTRY!DD16) -> 3 | AE18: =IF(SEM1MARKENTRY!DK16="","",SEM1MARKENTRY!DK16) -> 3 | AF18: =IF(SEM1MARKENTRY!DM16="","",SEM1MARKENTRY!DM16) -> 5 | AG18: 11 | AH18: =IF(SEM1MARKENTRY!ED16="","",SEM1MARKENTRY!ED16) -> C | AI18: =IF(SEM1MARKENTRY!EU16="","",SEM1MARKENTRY!EU16) -> B | AJ18: =IF(SEM1MARKENTRY!FL16="","",SEM1MARKENTRY!FL16) -> C | AK18: =IF(SEM1MARKENTRY!GC16="","",SEM1MARKENTRY!GC16) ->  | AL18: 121 | AM18: F | AN18: - | AO18: - | BB18: 6 | BC18: GHANCHI MAHMADSAHEJAN S. | BD18: 121 | BE18: -
B19: =IF(SEM1MARKENTRY!B17="","",SEM1MARKENTRY!B17) -> 7 | C19: =IF(SEM1MARKENTRY!C17="","",SEM1MARKENTRY!C17) -> 7 | D19: =IF(StudentData!C17="","",(LEFT(TRIM(CLEAN(StudentData!C17)),SEARCH(" ",TRIM(CLEAN(StudentData!C17)),SEARCH(" ",TRIM(CLEAN(StudentData!C17)),1)+1)))&" "&LEFT(RIGHT(StudentData!C17,LEN(StudentData!C17)-SEARCH(" ",StudentData!C17,SEARCH(" ",StudentData!C17,SEARCH(" ",StudentData!C17,1)+1)-1)),1)&".") -> PATADIYA SAHILBHAI H. | E19: =IF(SEM1MARKENTRY!E17="","",SEM1MARKENTRY!E17) ->  | F19: =IF(SEM1MARKENTRY!L17="","",SEM1MARKENTRY!L17) -> 5 | G19: =IF(SEM1MARKENTRY!S17="","",SEM1MARKENTRY!S17) -> 3 | H19: =IF(SEM1MARKENTRY!U17="","",SEM1MARKENTRY!U17) -> 12 | I19: 20 | J19: =IF(SEM1MARKENTRY!AB17="","",SEM1MARKENTRY!AB17) -> 5 | K19: =IF(SEM1MARKENTRY!AI17="","",SEM1MARKENTRY!AI17) -> 6 | L19: =IF(SEM1MARKENTRY!AK17="","",SEM1MARKENTRY!AK17) -> 12 | M19: 23 | N19: =IF(SEM1MARKENTRY!AR17="","",SEM1MARKENTRY!AR17) -> 4 | O19: =IF(SEM1MARKENTRY!AY17="","",SEM1MARKENTRY!AY17) -> 2 | P19: =IF(SEM1MARKENTRY!BA17="","",SEM1MARKENTRY!BA17) -> 12 | Q19: 18 | R19: =IF(SEM1MARKENTRY!BH17="","",SEM1MARKENTRY!BH17) -> 3 | S19: =IF(SEM1MARKENTRY!BO17="","",SEM1MARKENTRY!BO17) -> 4 | T19: =IF(SEM1MARKENTRY!BQ17="","",SEM1MARKENTRY!BQ17) -> 10 | U19: 17 | V19: =IF(SEM1MARKENTRY!BX17="","",SEM1MARKENTRY!BX17) -> 2 | W19: =IF(SEM1MARKENTRY!CE17="","",SEM1MARKENTRY!CE17) -> 2 | X19: =IF(SEM1MARKENTRY!CG17="","",SEM1MARKENTRY!CG17) -> 9 | Y19: 13 | Z19: =IF(SEM1MARKENTRY!CN17="","",SEM1MARKENTRY!CN17) -> 5 | AA19: =IF(SEM1MARKENTRY!CU17="","",SEM1MARKENTRY!CU17) -> 4 | AB19: =IF(SEM1MARKENTRY!CW17="","",SEM1MARKENTRY!CW17) -> 8 | AC19: 17 | AD19: =IF(SEM1MARKENTRY!DD17="","",SEM1MARKENTRY!DD17) -> 4 | AE19: =IF(SEM1MARKENTRY!DK17="","",SEM1MARKENTRY!DK17) -> 2 | AF19: =IF(SEM1MARKENTRY!DM17="","",SEM1MARKENTRY!DM17) -> 8 | AG19: 14 | AH19: =IF(SEM1MARKENTRY!ED17="","",SEM1MARKENTRY!ED17) -> C | AI19: =IF(SEM1MARKENTRY!EU17="","",SEM1MARKENTRY!EU17) -> B | AJ19: =IF(SEM1MARKENTRY!FL17="","",SEM1MARKENTRY!FL17) -> C | AK19: =IF(SEM1MARKENTRY!GC17="","",SEM1MARKENTRY!GC17) ->  | AL19: 122 | AM19: F | AN19: - | AO19: - | BB19: 7 | BC19: PATADIYA SAHILBHAI H. | BD19: 122 | BE19: -
B20: =IF(SEM1MARKENTRY!B18="","",SEM1MARKENTRY!B18) -> 8 | C20: =IF(SEM1MARKENTRY!C18="","",SEM1MARKENTRY!C18) -> 8 | D20: =IF(StudentData!C18="","",(LEFT(TRIM(CLEAN(StudentData!C18)),SEARCH(" ",TRIM(CLEAN(StudentData!C18)),SEARCH(" ",TRIM(CLEAN(StudentData!C18)),1)+1)))&" "&LEFT(RIGHT(StudentData!C18,LEN(StudentData!C18)-SEARCH(" ",StudentData!C18,SEARCH(" ",StudentData!C18,SEARCH(" ",StudentData!C18,1)+1)-1)),1)&".") -> RABARI MAHESHBHAI K. | E20: =IF(SEM1MARKENTRY!E18="","",SEM1MARKENTRY!E18) ->  | F20: =IF(SEM1MARKENTRY!L18="","",SEM1MARKENTRY!L18) -> 9 | G20: =IF(SEM1MARKENTRY!S18="","",SEM1MARKENTRY!S18) -> 9 | H20: =IF(SEM1MARKENTRY!U18="","",SEM1MARKENTRY!U18) -> 23 | I20: 41 | J20: =IF(SEM1MARKENTRY!AB18="","",SEM1MARKENTRY!AB18) -> 7 | K20: =IF(SEM1MARKENTRY!AI18="","",SEM1MARKENTRY!AI18) -> 8 | L20: =IF(SEM1MARKENTRY!AK18="","",SEM1MARKENTRY!AK18) -> 18 | M20: 33 | N20: =IF(SEM1MARKENTRY!AR18="","",SEM1MARKENTRY!AR18) -> 9 | O20: =IF(SEM1MARKENTRY!AY18="","",SEM1MARKENTRY!AY18) -> 6 | P20: =IF(SEM1MARKENTRY!BA18="","",SEM1MARKENTRY!BA18) -> 22 | Q20: 37 | R20: =IF(SEM1MARKENTRY!BH18="","",SEM1MARKENTRY!BH18) -> 5 | S20: =IF(SEM1MARKENTRY!BO18="","",SEM1MARKENTRY!BO18) -> 6 | T20: =IF(SEM1MARKENTRY!BQ18="","",SEM1MARKENTRY!BQ18) -> 23 | U20: 34 | V20: =IF(SEM1MARKENTRY!BX18="","",SEM1MARKENTRY!BX18) -> 6 | W20: =IF(SEM1MARKENTRY!CE18="","",SEM1MARKENTRY!CE18) -> 6 | X20: =IF(SEM1MARKENTRY!CG18="","",SEM1MARKENTRY!CG18) -> 13 | Y20: 25 | Z20: =IF(SEM1MARKENTRY!CN18="","",SEM1MARKENTRY!CN18) -> 9 | AA20: =IF(SEM1MARKENTRY!CU18="","",SEM1MARKENTRY!CU18) -> 7 | AB20: =IF(SEM1MARKENTRY!CW18="","",SEM1MARKENTRY!CW18) -> 12 | AC20: 28 | AD20: =IF(SEM1MARKENTRY!DD18="","",SEM1MARKENTRY!DD18) -> 9 | AE20: =IF(SEM1MARKENTRY!DK18="","",SEM1MARKENTRY!DK18) -> 6 | AF20: =IF(SEM1MARKENTRY!DM18="","",SEM1MARKENTRY!DM18) -> 17 | AG20: 32 | AH20: =IF(SEM1MARKENTRY!ED18="","",SEM1MARKENTRY!ED18) -> B | AI20: =IF(SEM1MARKENTRY!EU18="","",SEM1MARKENTRY!EU18) -> A | AJ20: =IF(SEM1MARKENTRY!FL18="","",SEM1MARKENTRY!FL18) -> B+ | AK20: =IF(SEM1MARKENTRY!GC18="","",SEM1MARKENTRY!GC18) ->  | AL20: 230 | AM20: P | AN20: 4 | AO20: 84 | AP20: 65.71 | BA20: 4 | BB20: 8 | BC20: RABARI MAHESHBHAI K. | BD20: 230 | BE20: 84 | BF20: 65.71
B21: =IF(SEM1MARKENTRY!B19="","",SEM1MARKENTRY!B19) -> 9 | C21: =IF(SEM1MARKENTRY!C19="","",SEM1MARKENTRY!C19) -> 9 | D21: =IF(StudentData!C19="","",(LEFT(TRIM(CLEAN(StudentData!C19)),SEARCH(" ",TRIM(CLEAN(StudentData!C19)),SEARCH(" ",TRIM(CLEAN(StudentData!C19)),1)+1)))&" "&LEFT(RIGHT(StudentData!C19,LEN(StudentData!C19)-SEARCH(" ",StudentData!C19,SEARCH(" ",StudentData!C19,SEARCH(" ",StudentData!C19,1)+1)-1)),1)&".") -> RUDECHA JATINKUMAR D. | E21: =IF(SEM1MARKENTRY!E19="","",SEM1MARKENTRY!E19) ->  | F21: =IF(SEM1MARKENTRY!L19="","",SEM1MARKENTRY!L19) -> 5 | G21: =IF(SEM1MARKENTRY!S19="","",SEM1MARKENTRY!S19) -> 5 | H21: =IF(SEM1MARKENTRY!U19="","",SEM1MARKENTRY!U19) -> 12 | I21: 22 | J21: =IF(SEM1MARKENTRY!AB19="","",SEM1MARKENTRY!AB19) -> 4 | K21: =IF(SEM1MARKENTRY!AI19="","",SEM1MARKENTRY!AI19) -> 3 | L21: =IF(SEM1MARKENTRY!AK19="","",SEM1MARKENTRY!AK19) -> 10 | M21: 17 | N21: =IF(SEM1MARKENTRY!AR19="","",SEM1MARKENTRY!AR19) -> 3 | O21: =IF(SEM1MARKENTRY!AY19="","",SEM1MARKENTRY!AY19) -> 2 | P21: =IF(SEM1MARKENTRY!BA19="","",SEM1MARKENTRY!BA19) -> 14 | Q21: 19 | R21: =IF(SEM1MARKENTRY!BH19="","",SEM1MARKENTRY!BH19) -> 3 | S21: =IF(SEM1MARKENTRY!BO19="","",SEM1MARKENTRY!BO19) -> 3 | T21: =IF(SEM1MARKENTRY!BQ19="","",SEM1MARKENTRY!BQ19) -> 10 | U21: 16 | V21: =IF(SEM1MARKENTRY!BX19="","",SEM1MARKENTRY!BX19) -> 2 | W21: =IF(SEM1MARKENTRY!CE19="","",SEM1MARKENTRY!CE19) -> 2 | X21: =IF(SEM1MARKENTRY!CG19="","",SEM1MARKENTRY!CG19) -> 9 | Y21: 13 | Z21: =IF(SEM1MARKENTRY!CN19="","",SEM1MARKENTRY!CN19) -> 5 | AA21: =IF(SEM1MARKENTRY!CU19="","",SEM1MARKENTRY!CU19) -> 4 | AB21: =IF(SEM1MARKENTRY!CW19="","",SEM1MARKENTRY!CW19) -> 7 | AC21: 16 | AD21: =IF(SEM1MARKENTRY!DD19="","",SEM1MARKENTRY!DD19) -> 4 | AE21: =IF(SEM1MARKENTRY!DK19="","",SEM1MARKENTRY!DK19) -> 2 | AF21: =IF(SEM1MARKENTRY!DM19="","",SEM1MARKENTRY!DM19) -> 7 | AG21: 13 | AH21: =IF(SEM1MARKENTRY!ED19="","",SEM1MARKENTRY!ED19) -> C | AI21: =IF(SEM1MARKENTRY!EU19="","",SEM1MARKENTRY!EU19) -> C | AJ21: =IF(SEM1MARKENTRY!FL19="","",SEM1MARKENTRY!FL19) -> C | AK21: =IF(SEM1MARKENTRY!GC19="","",SEM1MARKENTRY!GC19) ->  | AL21: 116 | AM21: F | AN21: - | AO21: - | BB21: 9 | BC21: RUDECHA JATINKUMAR D. | BD21: 116 | BE21: -
B22: =IF(SEM1MARKENTRY!B20="","",SEM1MARKENTRY!B20) -> 10 | C22: =IF(SEM1MARKENTRY!C20="","",SEM1MARKENTRY!C20) -> 10 | D22: =IF(StudentData!C20="","",(LEFT(TRIM(CLEAN(StudentData!C20)),SEARCH(" ",TRIM(CLEAN(StudentData!C20)),SEARCH(" ",TRIM(CLEAN(StudentData!C20)),1)+1)))&" "&LEFT(RIGHT(StudentData!C20,LEN(StudentData!C20)-SEARCH(" ",StudentData!C20,SEARCH(" ",StudentData!C20,SEARCH(" ",StudentData!C20,1)+1)-1)),1)&".") -> SIPAI NAIM H. | E22: =IF(SEM1MARKENTRY!E20="","",SEM1MARKENTRY!E20) ->  | F22: =IF(SEM1MARKENTRY!L20="","",SEM1MARKENTRY!L20) -> 7 | G22: =IF(SEM1MARKENTRY!S20="","",SEM1MARKENTRY!S20) -> 6 | H22: =IF(SEM1MARKENTRY!U20="","",SEM1MARKENTRY!U20) -> 18 | I22: 31 | J22: =IF(SEM1MARKENTRY!AB20="","",SEM1MARKENTRY!AB20) -> 7 | K22: =IF(SEM1MARKENTRY!AI20="","",SEM1MARKENTRY!AI20) -> 5 | L22: =IF(SEM1MARKENTRY!AK20="","",SEM1MARKENTRY!AK20) -> 17 | M22: 29 | N22: =IF(SEM1MARKENTRY!AR20="","",SEM1MARKENTRY!AR20) -> 8 | O22: =IF(SEM1MARKENTRY!AY20="","",SEM1MARKENTRY!AY20) -> 5 | P22: =IF(SEM1MARKENTRY!BA20="","",SEM1MARKENTRY!BA20) -> 16 | Q22: 29 | R22: =IF(SEM1MARKENTRY!BH20="","",SEM1MARKENTRY!BH20) -> 7 | S22: =IF(SEM1MARKENTRY!BO20="","",SEM1MARKENTRY!BO20) -> 7 | T22: =IF(SEM1MARKENTRY!BQ20="","",SEM1MARKENTRY!BQ20) -> 21 | U22: 35 | V22: =IF(SEM1MARKENTRY!BX20="","",SEM1MARKENTRY!BX20) -> 5 | W22: =IF(SEM1MARKENTRY!CE20="","",SEM1MARKENTRY!CE20) -> 5 | X22: =IF(SEM1MARKENTRY!CG20="","",SEM1MARKENTRY!CG20) -> 17 | Y22: 27 | Z22: =IF(SEM1MARKENTRY!CN20="","",SEM1MARKENTRY!CN20) -> 6 | AA22: =IF(SEM1MARKENTRY!CU20="","",SEM1MARKENTRY!CU20) -> 6 | AB22: =IF(SEM1MARKENTRY!CW20="","",SEM1MARKENTRY!CW20) -> 12 | AC22: 24 | AD22: =IF(SEM1MARKENTRY!DD20="","",SEM1MARKENTRY!DD20) -> 8 | AE22: =IF(SEM1MARKENTRY!DK20="","",SEM1MARKENTRY!DK20) -> 5 | AF22: =IF(SEM1MARKENTRY!DM20="","",SEM1MARKENTRY!DM20) -> 16 | AG22: 29 | AH22: =IF(SEM1MARKENTRY!ED20="","",SEM1MARKENTRY!ED20) -> A | AI22: =IF(SEM1MARKENTRY!EU20="","",SEM1MARKENTRY!EU20) -> B+ | AJ22: =IF(SEM1MARKENTRY!FL20="","",SEM1MARKENTRY!FL20) -> B+ | AK22: =IF(SEM1MARKENTRY!GC20="","",SEM1MARKENTRY!GC20) ->  | AL22: 204 | AM22: P | AN22: 12 | AO22: 52 | AP22: 58.29 | BA22: 12 | BB22: 10 | BC22: SIPAI NAIM H. | BD22: 204 | BE22: 52 | BF22: 58.29
B23: =IF(SEM1MARKENTRY!B21="","",SEM1MARKENTRY!B21) -> 11 | C23: =IF(SEM1MARKENTRY!C21="","",SEM1MARKENTRY!C21) -> 11 | D23: =IF(StudentData!C21="","",(LEFT(TRIM(CLEAN(StudentData!C21)),SEARCH(" ",TRIM(CLEAN(StudentData!C21)),SEARCH(" ",TRIM(CLEAN(StudentData!C21)),1)+1)))&" "&LEFT(RIGHT(StudentData!C21,LEN(StudentData!C21)-SEARCH(" ",StudentData!C21,SEARCH(" ",StudentData!C21,SEARCH(" ",StudentData!C21,1)+1)-1)),1)&".") -> BABARIYA DASHARATHBHAI G. | E23: =IF(SEM1MARKENTRY!E21="","",SEM1MARKENTRY!E21) ->  | F23: =IF(SEM1MARKENTRY!L21="","",SEM1MARKENTRY!L21) -> 9 | G23: =IF(SEM1MARKENTRY!S21="","",SEM1MARKENTRY!S21) -> 9 | H23: =IF(SEM1MARKENTRY!U21="","",SEM1MARKENTRY!U21) -> 25 | I23: 43 | J23: =IF(SEM1MARKENTRY!AB21="","",SEM1MARKENTRY!AB21) -> 9 | K23: =IF(SEM1MARKENTRY!AI21="","",SEM1MARKENTRY!AI21) -> 9 | L23: =IF(SEM1MARKENTRY!AK21="","",SEM1MARKENTRY!AK21) -> 24 | M23: 42 | N23: =IF(SEM1MARKENTRY!AR21="","",SEM1MARKENTRY!AR21) -> 9 | O23: =IF(SEM1MARKENTRY!AY21="","",SEM1MARKENTRY!AY21) -> 8 | P23: =IF(SEM1MARKENTRY!BA21="","",SEM1MARKENTRY!BA21) -> 23 | Q23: 40 | R23: =IF(SEM1MARKENTRY!BH21="","",SEM1MARKENTRY!BH21) -> 7 | S23: =IF(SEM1MARKENTRY!BO21="","",SEM1MARKENTRY!BO21) -> 7 | T23: =IF(SEM1MARKENTRY!BQ21="","",SEM1MARKENTRY!BQ21) -> 23 | U23: 37 | V23: =IF(SEM1MARKENTRY!BX21="","",SEM1MARKENTRY!BX21) -> 8 | W23: =IF(SEM1MARKENTRY!CE21="","",SEM1MARKENTRY!CE21) -> 8 | X23: =IF(SEM1MARKENTRY!CG21="","",SEM1MARKENTRY!CG21) -> 19 | Y23: 35 | Z23: =IF(SEM1MARKENTRY!CN21="","",SEM1MARKENTRY!CN21) -> 9 | AA23: =IF(SEM1MARKENTRY!CU21="","",SEM1MARKENTRY!CU21) -> 8 | AB23: =IF(SEM1MARKENTRY!CW21="","",SEM1MARKENTRY!CW21) -> 19 | AC23: 36 | AD23: =IF(SEM1MARKENTRY!DD21="","",SEM1MARKENTRY!DD21) -> 9 | AE23: =IF(SEM1MARKENTRY!DK21="","",SEM1MARKENTRY!DK21) -> 8 | AF23: =IF(SEM1MARKENTRY!DM21="","",SEM1MARKENTRY!DM21) -> 21 | AG23: 38 | AH23: =IF(SEM1MARKENTRY!ED21="","",SEM1MARKENTRY!ED21) -> A | AI23: =IF(SEM1MARKENTRY!EU21="","",SEM1MARKENTRY!EU21) -> A | AJ23: =IF(SEM1MARKENTRY!FL21="","",SEM1MARKENTRY!FL21) -> A | AK23: =IF(SEM1MARKENTRY!GC21="","",SEM1MARKENTRY!GC21) ->  | AL23: 271 | AM23: P | AN23: 1 | AO23: 96 | AP23: 77.43 | BA23: 1 | BB23: 11 | BC23: BABARIYA DASHARATHBHAI G. | BD23: 271 | BE23: 96 | BF23: 77.43
B24: =IF(SEM1MARKENTRY!B22="","",SEM1MARKENTRY!B22) -> 12 | C24: =IF(SEM1MARKENTRY!C22="","",SEM1MARKENTRY!C22) -> 12 | D24: =IF(StudentData!C22="","",(LEFT(TRIM(CLEAN(StudentData!C22)),SEARCH(" ",TRIM(CLEAN(StudentData!C22)),SEARCH(" ",TRIM(CLEAN(StudentData!C22)),1)+1)))&" "&LEFT(RIGHT(StudentData!C22,LEN(StudentData!C22)-SEARCH(" ",StudentData!C22,SEARCH(" ",StudentData!C22,SEARCH(" ",StudentData!C22,1)+1)-1)),1)&".") -> THAKOR DARSHAN C. | E24: =IF(SEM1MARKENTRY!E22="","",SEM1MARKENTRY!E22) ->  | F24: =IF(SEM1MARKENTRY!L22="","",SEM1MARKENTRY!L22) -> 8 | G24: =IF(SEM1MARKENTRY!S22="","",SEM1MARKENTRY!S22) -> 8 | H24: =IF(SEM1MARKENTRY!U22="","",SEM1MARKENTRY!U22) -> 20 | I24: 36 | J24: =IF(SEM1MARKENTRY!AB22="","",SEM1MARKENTRY!AB22) -> 4 | K24: =IF(SEM1MARKENTRY!AI22="","",SEM1MARKENTRY!AI22) -> 4 | L24: =IF(SEM1MARKENTRY!AK22="","",SEM1MARKENTRY!AK22) -> 11 | M24: 19 | N24: =IF(SEM1MARKENTRY!AR22="","",SEM1MARKENTRY!AR22) -> 3 | O24: =IF(SEM1MARKENTRY!AY22="","",SEM1MARKENTRY!AY22) -> 3 | P24: =IF(SEM1MARKENTRY!BA22="","",SEM1MARKENTRY!BA22) -> 14 | Q24: 20 | R24: =IF(SEM1MARKENTRY!BH22="","",SEM1MARKENTRY!BH22) -> 7 | S24: =IF(SEM1MARKENTRY!BO22="","",SEM1MARKENTRY!BO22) -> 6 | T24: =IF(SEM1MARKENTRY!BQ22="","",SEM1MARKENTRY!BQ22) -> 10 | U24: 23 | V24: =IF(SEM1MARKENTRY!BX22="","",SEM1MARKENTRY!BX22) -> 3 | W24: =IF(SEM1MARKENTRY!CE22="","",SEM1MARKENTRY!CE22) -> 3 | X24: =IF(SEM1MARKENTRY!CG22="","",SEM1MARKENTRY!CG22) -> 17 | Y24: 23 | Z24: =IF(SEM1MARKENTRY!CN22="","",SEM1MARKENTRY!CN22) -> 5 | AA24: =IF(SEM1MARKENTRY!CU22="","",SEM1MARKENTRY!CU22) -> 6 | AB24: =IF(SEM1MARKENTRY!CW22="","",SEM1MARKENTRY!CW22) -> 9 | AC24: 20 | AD24: =IF(SEM1MARKENTRY!DD22="","",SEM1MARKENTRY!DD22) -> 4 | AE24: =IF(SEM1MARKENTRY!DK22="","",SEM1MARKENTRY!DK22) -> 3 | AF24: =IF(SEM1MARKENTRY!DM22="","",SEM1MARKENTRY!DM22) -> 11 | AG24: 18 | AH24: =IF(SEM1MARKENTRY!ED22="","",SEM1MARKENTRY!ED22) -> B | AI24: =IF(SEM1MARKENTRY!EU22="","",SEM1MARKENTRY!EU22) -> B+ | AJ24: =IF(SEM1MARKENTRY!FL22="","",SEM1MARKENTRY!FL22) -> B | AK24: =IF(SEM1MARKENTRY!GC22="","",SEM1MARKENTRY!GC22) ->  | AL24: 159 | AM24: P | AN24: 23 | AO24: 8 | AP24: 45.43 | BA24: 23 | BB24: 12 | BC24: THAKOR DARSHAN C. | BD24: 159 | BE24: 8 | BF24: 45.43
B25: =IF(SEM1MARKENTRY!B23="","",SEM1MARKENTRY!B23) -> 13 | C25: =IF(SEM1MARKENTRY!C23="","",SEM1MARKENTRY!C23) -> 13 | D25: =IF(StudentData!C23="","",(LEFT(TRIM(CLEAN(StudentData!C23)),SEARCH(" ",TRIM(CLEAN(StudentData!C23)),SEARCH(" ",TRIM(CLEAN(StudentData!C23)),1)+1)))&" "&LEFT(RIGHT(StudentData!C23,LEN(StudentData!C23)-SEARCH(" ",StudentData!C23,SEARCH(" ",StudentData!C23,SEARCH(" ",StudentData!C23,1)+1)-1)),1)&".") -> SIPAI FAIZAN D. | E25: =IF(SEM1MARKENTRY!E23="","",SEM1MARKENTRY!E23) ->  | F25: =IF(SEM1MARKENTRY!L23="","",SEM1MARKENTRY!L23) -> 7 | G25: =IF(SEM1MARKENTRY!S23="","",SEM1MARKENTRY!S23) -> 6 | H25: =IF(SEM1MARKENTRY!U23="","",SEM1MARKENTRY!U23) -> 17 | I25: 30 | J25: =IF(SEM1MARKENTRY!AB23="","",SEM1MARKENTRY!AB23) -> 7 | K25: =IF(SEM1MARKENTRY!AI23="","",SEM1MARKENTRY!AI23) -> 7 | L25: =IF(SEM1MARKENTRY!AK23="","",SEM1MARKENTRY!AK23) -> 18 | M25: 32 | N25: =IF(SEM1MARKENTRY!AR23="","",SEM1MARKENTRY!AR23) -> 8 | O25: =IF(SEM1MARKENTRY!AY23="","",SEM1MARKENTRY!AY23) -> 6 | P25: =IF(SEM1MARKENTRY!BA23="","",SEM1MARKENTRY!BA23) -> 18 | Q25: 32 | R25: =IF(SEM1MARKENTRY!BH23="","",SEM1MARKENTRY!BH23) -> 8 | S25: =IF(SEM1MARKENTRY!BO23="","",SEM1MARKENTRY!BO23) -> 8 | T25: =IF(SEM1MARKENTRY!BQ23="","",SEM1MARKENTRY!BQ23) -> 19 | U25: 35 | V25: =IF(SEM1MARKENTRY!BX23="","",SEM1MARKENTRY!BX23) -> 6 | W25: =IF(SEM1MARKENTRY!CE23="","",SEM1MARKENTRY!CE23) -> 6 | X25: =IF(SEM1MARKENTRY!CG23="","",SEM1MARKENTRY!CG23) -> 20 | Y25: 32 | Z25: =IF(SEM1MARKENTRY!CN23="","",SEM1MARKENTRY!CN23) -> 7 | AA25: =IF(SEM1MARKENTRY!CU23="","",SEM1MARKENTRY!CU23) -> 8 | AB25: =IF(SEM1MARKENTRY!CW23="","",SEM1MARKENTRY!CW23) -> 8 | AC25: 23 | AD25: =IF(SEM1MARKENTRY!DD23="","",SEM1MARKENTRY!DD23) -> 8 | AE25: =IF(SEM1MARKENTRY!DK23="","",SEM1MARKENTRY!DK23) -> 6 | AF25: =IF(SEM1MARKENTRY!DM23="","",SEM1MARKENTRY!DM23) -> 14 | AG25: 28 | AH25: =IF(SEM1MARKENTRY!ED23="","",SEM1MARKENTRY!ED23) -> B+ | AI25: =IF(SEM1MARKENTRY!EU23="","",SEM1MARKENTRY!EU23) -> B+ | AJ25: =IF(SEM1MARKENTRY!FL23="","",SEM1MARKENTRY!FL23) -> B+ | AK25: =IF(SEM1MARKENTRY!GC23="","",SEM1MARKENTRY!GC23) ->  | AL25: 212 | AM25: P | AN25: 11 | AO25: 56 | AP25: 60.57 | BA25: 11 | BB25: 13 | BC25: SIPAI FAIZAN D. | BD25: 212 | BE25: 56 | BF25: 60.57
B26: =IF(SEM1MARKENTRY!B24="","",SEM1MARKENTRY!B24) -> 14 | C26: =IF(SEM1MARKENTRY!C24="","",SEM1MARKENTRY!C24) -> 14 | D26: =IF(StudentData!C24="","",(LEFT(TRIM(CLEAN(StudentData!C24)),SEARCH(" ",TRIM(CLEAN(StudentData!C24)),SEARCH(" ",TRIM(CLEAN(StudentData!C24)),1)+1)))&" "&LEFT(RIGHT(StudentData!C24,LEN(StudentData!C24)-SEARCH(" ",StudentData!C24,SEARCH(" ",StudentData!C24,SEARCH(" ",StudentData!C24,1)+1)-1)),1)&".") -> RATHOD MHAVESHKUMAR J. | E26: =IF(SEM1MARKENTRY!E24="","",SEM1MARKENTRY!E24) ->  | F26: =IF(SEM1MARKENTRY!L24="","",SEM1MARKENTRY!L24) -> 7 | G26: =IF(SEM1MARKENTRY!S24="","",SEM1MARKENTRY!S24) -> 7 | H26: =IF(SEM1MARKENTRY!U24="","",SEM1MARKENTRY!U24) -> 18 | I26: 32 | J26: =IF(SEM1MARKENTRY!AB24="","",SEM1MARKENTRY!AB24) -> 6 | K26: =IF(SEM1MARKENTRY!AI24="","",SEM1MARKENTRY!AI24) -> 5 | L26: =IF(SEM1MARKENTRY!AK24="","",SEM1MARKENTRY!AK24) -> 15 | M26: 26 | N26: =IF(SEM1MARKENTRY!AR24="","",SEM1MARKENTRY!AR24) -> 5 | O26: =IF(SEM1MARKENTRY!AY24="","",SEM1MARKENTRY!AY24) -> 3 | P26: =IF(SEM1MARKENTRY!BA24="","",SEM1MARKENTRY!BA24) -> 13 | Q26: 21 | R26: =IF(SEM1MARKENTRY!BH24="","",SEM1MARKENTRY!BH24) -> 6 | S26: =IF(SEM1MARKENTRY!BO24="","",SEM1MARKENTRY!BO24) -> 6 | T26: =IF(SEM1MARKENTRY!BQ24="","",SEM1MARKENTRY!BQ24) -> 14 | U26: 26 | V26: =IF(SEM1MARKENTRY!BX24="","",SEM1MARKENTRY!BX24) -> 3 | W26: =IF(SEM1MARKENTRY!CE24="","",SEM1MARKENTRY!CE24) -> 3 | X26: =IF(SEM1MARKENTRY!CG24="","",SEM1MARKENTRY!CG24) -> 15 | Y26: 21 | Z26: =IF(SEM1MARKENTRY!CN24="","",SEM1MARKENTRY!CN24) -> 5 | AA26: =IF(SEM1MARKENTRY!CU24="","",SEM1MARKENTRY!CU24) -> 5 | AB26: =IF(SEM1MARKENTRY!CW24="","",SEM1MARKENTRY!CW24) -> 7 | AC26: 17 | AD26: =IF(SEM1MARKENTRY!DD24="","",SEM1MARKENTRY!DD24) -> 6 | AE26: =IF(SEM1MARKENTRY!DK24="","",SEM1MARKENTRY!DK24) -> 3 | AF26: =IF(SEM1MARKENTRY!DM24="","",SEM1MARKENTRY!DM24) -> 9 | AG26: 18 | AH26: =IF(SEM1MARKENTRY!ED24="","",SEM1MARKENTRY!ED24) -> B | AI26: =IF(SEM1MARKENTRY!EU24="","",SEM1MARKENTRY!EU24) -> B+ | AJ26: =IF(SEM1MARKENTRY!FL24="","",SEM1MARKENTRY!FL24) -> B+ | AK26: =IF(SEM1MARKENTRY!GC24="","",SEM1MARKENTRY!GC24) ->  | AL26: 161 | AM26: P | AN26: 21 | AO26: 16 | AP26: 46 | BA26: 21 | BB26: 14 | BC26: RATHOD MHAVESHKUMAR J. | BD26: 161 | BE26: 16 | BF26: 46
B27: =IF(SEM1MARKENTRY!B25="","",SEM1MARKENTRY!B25) -> 15 | C27: =IF(SEM1MARKENTRY!C25="","",SEM1MARKENTRY!C25) -> 15 | D27: =IF(StudentData!C25="","",(LEFT(TRIM(CLEAN(StudentData!C25)),SEARCH(" ",TRIM(CLEAN(StudentData!C25)),SEARCH(" ",TRIM(CLEAN(StudentData!C25)),1)+1)))&" "&LEFT(RIGHT(StudentData!C25,LEN(StudentData!C25)-SEARCH(" ",StudentData!C25,SEARCH(" ",StudentData!C25,SEARCH(" ",StudentData!C25,1)+1)-1)),1)&".") -> RABARI BHAILALBHAI D. | E27: =IF(SEM1MARKENTRY!E25="","",SEM1MARKENTRY!E25) ->  | F27: =IF(SEM1MARKENTRY!L25="","",SEM1MARKENTRY!L25) -> 8 | G27: =IF(SEM1MARKENTRY!S25="","",SEM1MARKENTRY!S25) -> 9 | H27: =IF(SEM1MARKENTRY!U25="","",SEM1MARKENTRY!U25) -> 20 | I27: 37 | J27: =IF(SEM1MARKENTRY!AB25="","",SEM1MARKENTRY!AB25) -> 7 | K27: =IF(SEM1MARKENTRY!AI25="","",SEM1MARKENTRY!AI25) -> 7 | L27: =IF(SEM1MARKENTRY!AK25="","",SEM1MARKENTRY!AK25) -> 18 | M27: 32 | N27: =IF(SEM1MARKENTRY!AR25="","",SEM1MARKENTRY!AR25) -> 8 | O27: =IF(SEM1MARKENTRY!AY25="","",SEM1MARKENTRY!AY25) -> 5 | P27: =IF(SEM1MARKENTRY!BA25="","",SEM1MARKENTRY!BA25) -> 15 | Q27: 28 | R27: =IF(SEM1MARKENTRY!BH25="","",SEM1MARKENTRY!BH25) -> 4 | S27: =IF(SEM1MARKENTRY!BO25="","",SEM1MARKENTRY!BO25) -> 4 | T27: =IF(SEM1MARKENTRY!BQ25="","",SEM1MARKENTRY!BQ25) -> 18 | U27: 26 | V27: =IF(SEM1MARKENTRY!BX25="","",SEM1MARKENTRY!BX25) -> 5 | W27: =IF(SEM1MARKENTRY!CE25="","",SEM1MARKENTRY!CE25) -> 5 | X27: =IF(SEM1MARKENTRY!CG25="","",SEM1MARKENTRY!CG25) -> 11 | Y27: 21 | Z27: =IF(SEM1MARKENTRY!CN25="","",SEM1MARKENTRY!CN25) -> 6 | AA27: =IF(SEM1MARKENTRY!CU25="","",SEM1MARKENTRY!CU25) -> 5 | AB27: =IF(SEM1MARKENTRY!CW25="","",SEM1MARKENTRY!CW25) -> 11 | AC27: 22 | AD27: =IF(SEM1MARKENTRY!DD25="","",SEM1MARKENTRY!DD25) -> 7 | AE27: =IF(SEM1MARKENTRY!DK25="","",SEM1MARKENTRY!DK25) -> 5 | AF27: =IF(SEM1MARKENTRY!DM25="","",SEM1MARKENTRY!DM25) -> 11 | AG27: 23 | AH27: =IF(SEM1MARKENTRY!ED25="","",SEM1MARKENTRY!ED25) -> B | AI27: =IF(SEM1MARKENTRY!EU25="","",SEM1MARKENTRY!EU25) -> B+ | AJ27: =IF(SEM1MARKENTRY!FL25="","",SEM1MARKENTRY!FL25) -> B+ | AK27: =IF(SEM1MARKENTRY!GC25="","",SEM1MARKENTRY!GC25) ->  | AL27: 189 | AM27: P | AN27: 15 | AO27: 40 | AP27: 54 | BA27: 15 | BB27: 15 | BC27: RABARI BHAILALBHAI D. | BD27: 189 | BE27: 40 | BF27: 54
B28: =IF(SEM1MARKENTRY!B26="","",SEM1MARKENTRY!B26) -> 16 | C28: =IF(SEM1MARKENTRY!C26="","",SEM1MARKENTRY!C26) -> 16 | D28: =IF(StudentData!C26="","",(LEFT(TRIM(CLEAN(StudentData!C26)),SEARCH(" ",TRIM(CLEAN(StudentData!C26)),SEARCH(" ",TRIM(CLEAN(StudentData!C26)),1)+1)))&" "&LEFT(RIGHT(StudentData!C26,LEN(StudentData!C26)-SEARCH(" ",StudentData!C26,SEARCH(" ",StudentData!C26,SEARCH(" ",StudentData!C26,1)+1)-1)),1)&".") -> CHAVDA BADALBHAI M. | E28: =IF(SEM1MARKENTRY!E26="","",SEM1MARKENTRY!E26) ->  | F28: =IF(SEM1MARKENTRY!L26="","",SEM1MARKENTRY!L26) -> 5 | G28: =IF(SEM1MARKENTRY!S26="","",SEM1MARKENTRY!S26) -> 5 | H28: =IF(SEM1MARKENTRY!U26="","",SEM1MARKENTRY!U26) -> 12 | I28: 22 | J28: =IF(SEM1MARKENTRY!AB26="","",SEM1MARKENTRY!AB26) -> 3 | K28: =IF(SEM1MARKENTRY!AI26="","",SEM1MARKENTRY!AI26) -> 3 | L28: =IF(SEM1MARKENTRY!AK26="","",SEM1MARKENTRY!AK26) -> 8 | M28: 14 | N28: =IF(SEM1MARKENTRY!AR26="","",SEM1MARKENTRY!AR26) -> 3 | O28: =IF(SEM1MARKENTRY!AY26="","",SEM1MARKENTRY!AY26) -> 3 | P28: =IF(SEM1MARKENTRY!BA26="","",SEM1MARKENTRY!BA26) -> 13 | Q28: 19 | R28: =IF(SEM1MARKENTRY!BH26="","",SEM1MARKENTRY!BH26) -> 5 | S28: =IF(SEM1MARKENTRY!BO26="","",SEM1MARKENTRY!BO26) -> 6 | T28: =IF(SEM1MARKENTRY!BQ26="","",SEM1MARKENTRY!BQ26) -> 7 | U28: 18 | V28: =IF(SEM1MARKENTRY!BX26="","",SEM1MARKENTRY!BX26) -> 3 | W28: =IF(SEM1MARKENTRY!CE26="","",SEM1MARKENTRY!CE26) -> 3 | X28: =IF(SEM1MARKENTRY!CG26="","",SEM1MARKENTRY!CG26) -> 13 | Y28: 19 | Z28: =IF(SEM1MARKENTRY!CN26="","",SEM1MARKENTRY!CN26) -> 5 | AA28: =IF(SEM1MARKENTRY!CU26="","",SEM1MARKENTRY!CU26) -> 6 | AB28: =IF(SEM1MARKENTRY!CW26="","",SEM1MARKENTRY!CW26) -> 8 | AC28: 19 | AD28: =IF(SEM1MARKENTRY!DD26="","",SEM1MARKENTRY!DD26) -> 3 | AE28: =IF(SEM1MARKENTRY!DK26="","",SEM1MARKENTRY!DK26) -> 3 | AF28: =IF(SEM1MARKENTRY!DM26="","",SEM1MARKENTRY!DM26) -> 7 | AG28: 13 | AH28: =IF(SEM1MARKENTRY!ED26="","",SEM1MARKENTRY!ED26) -> C | AI28: =IF(SEM1MARKENTRY!EU26="","",SEM1MARKENTRY!EU26) -> C | AJ28: =IF(SEM1MARKENTRY!FL26="","",SEM1MARKENTRY!FL26) -> C | AK28: =IF(SEM1MARKENTRY!GC26="","",SEM1MARKENTRY!GC26) ->  | AL28: 124 | AM28: F | AN28: - | AO28: - | BB28: 16 | BC28: CHAVDA BADALBHAI M. | BD28: 124 | BE28: -
B29: =IF(SEM1MARKENTRY!B27="","",SEM1MARKENTRY!B27) -> 17 | C29: =IF(SEM1MARKENTRY!C27="","",SEM1MARKENTRY!C27) -> 17 | D29: =IF(StudentData!C27="","",(LEFT(TRIM(CLEAN(StudentData!C27)),SEARCH(" ",TRIM(CLEAN(StudentData!C27)),SEARCH(" ",TRIM(CLEAN(StudentData!C27)),1)+1)))&" "&LEFT(RIGHT(StudentData!C27,LEN(StudentData!C27)-SEARCH(" ",StudentData!C27,SEARCH(" ",StudentData!C27,SEARCH(" ",StudentData!C27,1)+1)-1)),1)&".") -> RATHOD CHIRAGKUMAR M. | E29: =IF(SEM1MARKENTRY!E27="","",SEM1MARKENTRY!E27) ->  | F29: =IF(SEM1MARKENTRY!L27="","",SEM1MARKENTRY!L27) -> 9 | G29: =IF(SEM1MARKENTRY!S27="","",SEM1MARKENTRY!S27) -> 9 | H29: =IF(SEM1MARKENTRY!U27="","",SEM1MARKENTRY!U27) -> 23 | I29: 41 | J29: =IF(SEM1MARKENTRY!AB27="","",SEM1MARKENTRY!AB27) -> 8 | K29: =IF(SEM1MARKENTRY!AI27="","",SEM1MARKENTRY!AI27) -> 8 | L29: =IF(SEM1MARKENTRY!AK27="","",SEM1MARKENTRY!AK27) -> 21 | M29: 37 | N29: =IF(SEM1MARKENTRY!AR27="","",SEM1MARKENTRY!AR27) -> 7 | O29: =IF(SEM1MARKENTRY!AY27="","",SEM1MARKENTRY!AY27) -> 4 | P29: =IF(SEM1MARKENTRY!BA27="","",SEM1MARKENTRY!BA27) -> 20 | Q29: 31 | R29: =IF(SEM1MARKENTRY!BH27="","",SEM1MARKENTRY!BH27) -> 8 | S29: =IF(SEM1MARKENTRY!BO27="","",SEM1MARKENTRY!BO27) -> 7 | T29: =IF(SEM1MARKENTRY!BQ27="","",SEM1MARKENTRY!BQ27) -> 19 | U29: 34 | V29: =IF(SEM1MARKENTRY!BX27="","",SEM1MARKENTRY!BX27) -> 4 | W29: =IF(SEM1MARKENTRY!CE27="","",SEM1MARKENTRY!CE27) -> 4 | X29: =IF(SEM1MARKENTRY!CG27="","",SEM1MARKENTRY!CG27) -> 19 | Y29: 27 | Z29: =IF(SEM1MARKENTRY!CN27="","",SEM1MARKENTRY!CN27) -> 8 | AA29: =IF(SEM1MARKENTRY!CU27="","",SEM1MARKENTRY!CU27) -> 7 | AB29: =IF(SEM1MARKENTRY!CW27="","",SEM1MARKENTRY!CW27) -> 11 | AC29: 26 | AD29: =IF(SEM1MARKENTRY!DD27="","",SEM1MARKENTRY!DD27) -> 7 | AE29: =IF(SEM1MARKENTRY!DK27="","",SEM1MARKENTRY!DK27) -> 4 | AF29: =IF(SEM1MARKENTRY!DM27="","",SEM1MARKENTRY!DM27) -> 13 | AG29: 24 | AH29: =IF(SEM1MARKENTRY!ED27="","",SEM1MARKENTRY!ED27) -> B | AI29: =IF(SEM1MARKENTRY!EU27="","",SEM1MARKENTRY!EU27) -> A | AJ29: =IF(SEM1MARKENTRY!FL27="","",SEM1MARKENTRY!FL27) -> A | AK29: =IF(SEM1MARKENTRY!GC27="","",SEM1MARKENTRY!GC27) ->  | AL29: 220 | AM29: P | AN29: 9 | AO29: 64 | AP29: 62.86 | BA29: 9 | BB29: 17 | BC29: RATHOD CHIRAGKUMAR M. | BD29: 220 | BE29: 64 | BF29: 62.86
B30: =IF(SEM1MARKENTRY!B28="","",SEM1MARKENTRY!B28) -> 18 | C30: =IF(SEM1MARKENTRY!C28="","",SEM1MARKENTRY!C28) -> 18 | D30: =IF(StudentData!C28="","",(LEFT(TRIM(CLEAN(StudentData!C28)),SEARCH(" ",TRIM(CLEAN(StudentData!C28)),SEARCH(" ",TRIM(CLEAN(StudentData!C28)),1)+1)))&" "&LEFT(RIGHT(StudentData!C28,LEN(StudentData!C28)-SEARCH(" ",StudentData!C28,SEARCH(" ",StudentData!C28,SEARCH(" ",StudentData!C28,1)+1)-1)),1)&".") -> VALMIKI AMRUTBHAI I. | E30: =IF(SEM1MARKENTRY!E28="","",SEM1MARKENTRY!E28) ->  | F30: =IF(SEM1MARKENTRY!L28="","",SEM1MARKENTRY!L28) -> 8 | G30: =IF(SEM1MARKENTRY!S28="","",SEM1MARKENTRY!S28) -> 8 | H30: =IF(SEM1MARKENTRY!U28="","",SEM1MARKENTRY!U28) -> 20 | I30: 36 | J30: =IF(SEM1MARKENTRY!AB28="","",SEM1MARKENTRY!AB28) -> 7 | K30: =IF(SEM1MARKENTRY!AI28="","",SEM1MARKENTRY!AI28) -> 6 | L30: =IF(SEM1MARKENTRY!AK28="","",SEM1MARKENTRY!AK28) -> 17 | M30: 30 | N30: =IF(SEM1MARKENTRY!AR28="","",SEM1MARKENTRY!AR28) -> 2 | O30: =IF(SEM1MARKENTRY!AY28="","",SEM1MARKENTRY!AY28) -> 5 | P30: =IF(SEM1MARKENTRY!BA28="","",SEM1MARKENTRY!BA28) -> 17 | Q30: 24 | R30: =IF(SEM1MARKENTRY!BH28="","",SEM1MARKENTRY!BH28) -> 3 | S30: =IF(SEM1MARKENTRY!BO28="","",SEM1MARKENTRY!BO28) -> 3 | T30: =IF(SEM1MARKENTRY!BQ28="","",SEM1MARKENTRY!BQ28) -> 7 | U30: 13 | V30: =IF(SEM1MARKENTRY!BX28="","",SEM1MARKENTRY!BX28) -> 5 | W30: =IF(SEM1MARKENTRY!CE28="","",SEM1MARKENTRY!CE28) -> 5 | X30: =IF(SEM1MARKENTRY!CG28="","",SEM1MARKENTRY!CG28) -> 9 | Y30: 19 | Z30: =IF(SEM1MARKENTRY!CN28="","",SEM1MARKENTRY!CN28) -> 7 | AA30: =IF(SEM1MARKENTRY!CU28="","",SEM1MARKENTRY!CU28) -> 4 | AB30: =IF(SEM1MARKENTRY!CW28="","",SEM1MARKENTRY!CW28) -> 11 | AC30: 22 | AD30: =IF(SEM1MARKENTRY!DD28="","",SEM1MARKENTRY!DD28) -> 3 | AE30: =IF(SEM1MARKENTRY!DK28="","",SEM1MARKENTRY!DK28) -> 5 | AF30: =IF(SEM1MARKENTRY!DM28="","",SEM1MARKENTRY!DM28) -> 10 | AG30: 18 | AH30: =IF(SEM1MARKENTRY!ED28="","",SEM1MARKENTRY!ED28) -> B+ | AI30: =IF(SEM1MARKENTRY!EU28="","",SEM1MARKENTRY!EU28) -> B+ | AJ30: =IF(SEM1MARKENTRY!FL28="","",SEM1MARKENTRY!FL28) -> B+ | AK30: =IF(SEM1MARKENTRY!GC28="","",SEM1MARKENTRY!GC28) ->  | AL30: 162 | AM30: F | AN30: - | AO30: - | BB30: 18 | BC30: VALMIKI AMRUTBHAI I. | BD30: 162 | BE30: -
B31: =IF(SEM1MARKENTRY!B29="","",SEM1MARKENTRY!B29) -> 19 | C31: =IF(SEM1MARKENTRY!C29="","",SEM1MARKENTRY!C29) -> 19 | D31: =IF(StudentData!C29="","",(LEFT(TRIM(CLEAN(StudentData!C29)),SEARCH(" ",TRIM(CLEAN(StudentData!C29)),SEARCH(" ",TRIM(CLEAN(StudentData!C29)),1)+1)))&" "&LEFT(RIGHT(StudentData!C29,LEN(StudentData!C29)-SEARCH(" ",StudentData!C29,SEARCH(" ",StudentData!C29,SEARCH(" ",StudentData!C29,1)+1)-1)),1)&".") -> KOLA SAHAR J. | E31: =IF(SEM1MARKENTRY!E29="","",SEM1MARKENTRY!E29) ->  | F31: =IF(SEM1MARKENTRY!L29="","",SEM1MARKENTRY!L29) -> 7 | G31: =IF(SEM1MARKENTRY!S29="","",SEM1MARKENTRY!S29) -> 7 | H31: =IF(SEM1MARKENTRY!U29="","",SEM1MARKENTRY!U29) -> 19 | I31: 33 | J31: =IF(SEM1MARKENTRY!AB29="","",SEM1MARKENTRY!AB29) -> 4 | K31: =IF(SEM1MARKENTRY!AI29="","",SEM1MARKENTRY!AI29) -> 4 | L31: =IF(SEM1MARKENTRY!AK29="","",SEM1MARKENTRY!AK29) -> 11 | M31: 19 | N31: =IF(SEM1MARKENTRY!AR29="","",SEM1MARKENTRY!AR29) -> 4 | O31: =IF(SEM1MARKENTRY!AY29="","",SEM1MARKENTRY!AY29) -> 4 | P31: =IF(SEM1MARKENTRY!BA29="","",SEM1MARKENTRY!BA29) -> 16 | Q31: 24 | R31: =IF(SEM1MARKENTRY!BH29="","",SEM1MARKENTRY!BH29) -> 4 | S31: =IF(SEM1MARKENTRY!BO29="","",SEM1MARKENTRY!BO29) -> 5 | T31: =IF(SEM1MARKENTRY!BQ29="","",SEM1MARKENTRY!BQ29) -> 10 | U31: 19 | V31: =IF(SEM1MARKENTRY!BX29="","",SEM1MARKENTRY!BX29) -> 4 | W31: =IF(SEM1MARKENTRY!CE29="","",SEM1MARKENTRY!CE29) -> 4 | X31: =IF(SEM1MARKENTRY!CG29="","",SEM1MARKENTRY!CG29) -> 10 | Y31: 18 | Z31: =IF(SEM1MARKENTRY!CN29="","",SEM1MARKENTRY!CN29) -> 6 | AA31: =IF(SEM1MARKENTRY!CU29="","",SEM1MARKENTRY!CU29) -> 6 | AB31: =IF(SEM1MARKENTRY!CW29="","",SEM1MARKENTRY!CW29) -> 6 | AC31: 18 | AD31: =IF(SEM1MARKENTRY!DD29="","",SEM1MARKENTRY!DD29) -> 4 | AE31: =IF(SEM1MARKENTRY!DK29="","",SEM1MARKENTRY!DK29) -> 4 | AF31: =IF(SEM1MARKENTRY!DM29="","",SEM1MARKENTRY!DM29) -> 10 | AG31: 18 | AH31: =IF(SEM1MARKENTRY!ED29="","",SEM1MARKENTRY!ED29) -> C | AI31: =IF(SEM1MARKENTRY!EU29="","",SEM1MARKENTRY!EU29) -> B | AJ31: =IF(SEM1MARKENTRY!FL29="","",SEM1MARKENTRY!FL29) -> B | AK31: =IF(SEM1MARKENTRY!GC29="","",SEM1MARKENTRY!GC29) ->  | AL31: 149 | AM31: P | AN31: 26 | AO31: -4 | AP31: 42.57 | BA31: 26 | BB31: 19 | BC31: KOLA SAHAR J. | BD31: 149 | BE31: -4 | BF31: 42.57
B32: =IF(SEM1MARKENTRY!B30="","",SEM1MARKENTRY!B30) -> 20 | C32: =IF(SEM1MARKENTRY!C30="","",SEM1MARKENTRY!C30) -> 20 | D32: =IF(StudentData!C30="","",(LEFT(TRIM(CLEAN(StudentData!C30)),SEARCH(" ",TRIM(CLEAN(StudentData!C30)),SEARCH(" ",TRIM(CLEAN(StudentData!C30)),1)+1)))&" "&LEFT(RIGHT(StudentData!C30,LEN(StudentData!C30)-SEARCH(" ",StudentData!C30,SEARCH(" ",StudentData!C30,SEARCH(" ",StudentData!C30,1)+1)-1)),1)&".") -> GOHIL VIJAYBHAI A. | E32: =IF(SEM1MARKENTRY!E30="","",SEM1MARKENTRY!E30) ->  | F32: =IF(SEM1MARKENTRY!L30="","",SEM1MARKENTRY!L30) -> 6 | G32: =IF(SEM1MARKENTRY!S30="","",SEM1MARKENTRY!S30) -> 5 | H32: =IF(SEM1MARKENTRY!U30="","",SEM1MARKENTRY!U30) -> 15 | I32: 26 | J32: =IF(SEM1MARKENTRY!AB30="","",SEM1MARKENTRY!AB30) -> 5 | K32: =IF(SEM1MARKENTRY!AI30="","",SEM1MARKENTRY!AI30) -> 6 | L32: =IF(SEM1MARKENTRY!AK30="","",SEM1MARKENTRY!AK30) -> 13 | M32: 24 | N32: =IF(SEM1MARKENTRY!AR30="","",SEM1MARKENTRY!AR30) -> 2 | O32: =IF(SEM1MARKENTRY!AY30="","",SEM1MARKENTRY!AY30) -> 3 | P32: =IF(SEM1MARKENTRY!BA30="","",SEM1MARKENTRY!BA30) -> 15 | Q32: 20 | R32: =IF(SEM1MARKENTRY!BH30="","",SEM1MARKENTRY!BH30) -> 3 | S32: =IF(SEM1MARKENTRY!BO30="","",SEM1MARKENTRY!BO30) -> 2 | T32: =IF(SEM1MARKENTRY!BQ30="","",SEM1MARKENTRY!BQ30) -> 8 | U32: 13 | V32: =IF(SEM1MARKENTRY!BX30="","",SEM1MARKENTRY!BX30) -> 3 | W32: =IF(SEM1MARKENTRY!CE30="","",SEM1MARKENTRY!CE30) -> 3 | X32: =IF(SEM1MARKENTRY!CG30="","",SEM1MARKENTRY!CG30) -> 8 | Y32: 14 | Z32: =IF(SEM1MARKENTRY!CN30="","",SEM1MARKENTRY!CN30) -> 6 | AA32: =IF(SEM1MARKENTRY!CU30="","",SEM1MARKENTRY!CU30) -> 4 | AB32: =IF(SEM1MARKENTRY!CW30="","",SEM1MARKENTRY!CW30) -> 7 | AC32: 17 | AD32: =IF(SEM1MARKENTRY!DD30="","",SEM1MARKENTRY!DD30) -> 3 | AE32: =IF(SEM1MARKENTRY!DK30="","",SEM1MARKENTRY!DK30) -> 3 | AF32: =IF(SEM1MARKENTRY!DM30="","",SEM1MARKENTRY!DM30) -> 8 | AG32: 14 | AH32: =IF(SEM1MARKENTRY!ED30="","",SEM1MARKENTRY!ED30) -> B | AI32: =IF(SEM1MARKENTRY!EU30="","",SEM1MARKENTRY!EU30) -> B | AJ32: =IF(SEM1MARKENTRY!FL30="","",SEM1MARKENTRY!FL30) -> B | AK32: =IF(SEM1MARKENTRY!GC30="","",SEM1MARKENTRY!GC30) ->  | AL32: 128 | AM32: F | AN32: - | AO32: - | BB32: 20 | BC32: GOHIL VIJAYBHAI A. | BD32: 128 | BE32: -
B33: =IF(SEM1MARKENTRY!B31="","",SEM1MARKENTRY!B31) -> 21 | C33: =IF(SEM1MARKENTRY!C31="","",SEM1MARKENTRY!C31) -> 21 | D33: =IF(StudentData!C31="","",(LEFT(TRIM(CLEAN(StudentData!C31)),SEARCH(" ",TRIM(CLEAN(StudentData!C31)),SEARCH(" ",TRIM(CLEAN(StudentData!C31)),1)+1)))&" "&LEFT(RIGHT(StudentData!C31,LEN(StudentData!C31)-SEARCH(" ",StudentData!C31,SEARCH(" ",StudentData!C31,SEARCH(" ",StudentData!C31,1)+1)-1)),1)&".") -> MALEK SUFIYAN N. | E33: =IF(SEM1MARKENTRY!E31="","",SEM1MARKENTRY!E31) ->  | F33: =IF(SEM1MARKENTRY!L31="","",SEM1MARKENTRY!L31) -> 1 | G33: =IF(SEM1MARKENTRY!S31="","",SEM1MARKENTRY!S31) -> 1 | H33: =IF(SEM1MARKENTRY!U31="","",SEM1MARKENTRY!U31) -> 3 | I33: 5 | J33: =IF(SEM1MARKENTRY!AB31="","",SEM1MARKENTRY!AB31) -> 3 | K33: =IF(SEM1MARKENTRY!AI31="","",SEM1MARKENTRY!AI31) -> 4 | L33: =IF(SEM1MARKENTRY!AK31="","",SEM1MARKENTRY!AK31) -> 7 | M33: 14 | N33: =IF(SEM1MARKENTRY!AR31="","",SEM1MARKENTRY!AR31) -> 2 | O33: =IF(SEM1MARKENTRY!AY31="","",SEM1MARKENTRY!AY31) -> 5 | P33: =IF(SEM1MARKENTRY!BA31="","",SEM1MARKENTRY!BA31) -> 12 | Q33: 19 | R33: =IF(SEM1MARKENTRY!BH31="","",SEM1MARKENTRY!BH31) -> 4 | S33: =IF(SEM1MARKENTRY!BO31="","",SEM1MARKENTRY!BO31) -> 3 | T33: =IF(SEM1MARKENTRY!BQ31="","",SEM1MARKENTRY!BQ31) -> 8 | U33: 15 | V33: =IF(SEM1MARKENTRY!BX31="","",SEM1MARKENTRY!BX31) -> 5 | W33: =IF(SEM1MARKENTRY!CE31="","",SEM1MARKENTRY!CE31) -> 5 | X33: =IF(SEM1MARKENTRY!CG31="","",SEM1MARKENTRY!CG31) -> 10 | Y33: 20 | Z33: =IF(SEM1MARKENTRY!CN31="","",SEM1MARKENTRY!CN31) -> 5 | AA33: =IF(SEM1MARKENTRY!CU31="","",SEM1MARKENTRY!CU31) -> 6 | AB33: =IF(SEM1MARKENTRY!CW31="","",SEM1MARKENTRY!CW31) -> 6 | AC33: 17 | AD33: =IF(SEM1MARKENTRY!DD31="","",SEM1MARKENTRY!DD31) -> 3 | AE33: =IF(SEM1MARKENTRY!DK31="","",SEM1MARKENTRY!DK31) -> 5 | AF33: =IF(SEM1MARKENTRY!DM31="","",SEM1MARKENTRY!DM31) -> 8 | AG33: 16 | AH33: =IF(SEM1MARKENTRY!ED31="","",SEM1MARKENTRY!ED31) -> C | AI33: =IF(SEM1MARKENTRY!EU31="","",SEM1MARKENTRY!EU31) -> E | AJ33: =IF(SEM1MARKENTRY!FL31="","",SEM1MARKENTRY!FL31) -> E | AK33: =IF(SEM1MARKENTRY!GC31="","",SEM1MARKENTRY!GC31) ->  | AL33: 106 | AM33: F | AN33: - | AO33: - | BB33: 21 | BC33: MALEK SUFIYAN N. | BD33: 106 | BE33: -
B34: =IF(SEM1MARKENTRY!B32="","",SEM1MARKENTRY!B32) -> 22 | C34: =IF(SEM1MARKENTRY!C32="","",SEM1MARKENTRY!C32) -> 22 | D34: =IF(StudentData!C32="","",(LEFT(TRIM(CLEAN(StudentData!C32)),SEARCH(" ",TRIM(CLEAN(StudentData!C32)),SEARCH(" ",TRIM(CLEAN(StudentData!C32)),1)+1)))&" "&LEFT(RIGHT(StudentData!C32,LEN(StudentData!C32)-SEARCH(" ",StudentData!C32,SEARCH(" ",StudentData!C32,SEARCH(" ",StudentData!C32,1)+1)-1)),1)&".") -> DALVADI DHANSHUKHBHAI N. | E34: =IF(SEM1MARKENTRY!E32="","",SEM1MARKENTRY!E32) ->  | F34: =IF(SEM1MARKENTRY!L32="","",SEM1MARKENTRY!L32) -> 7 | G34: =IF(SEM1MARKENTRY!S32="","",SEM1MARKENTRY!S32) -> 7 | H34: =IF(SEM1MARKENTRY!U32="","",SEM1MARKENTRY!U32) -> 17 | I34: 31 | J34: =IF(SEM1MARKENTRY!AB32="","",SEM1MARKENTRY!AB32) -> 6 | K34: =IF(SEM1MARKENTRY!AI32="","",SEM1MARKENTRY!AI32) -> 6 | L34: =IF(SEM1MARKENTRY!AK32="","",SEM1MARKENTRY!AK32) -> 16 | M34: 28 | N34: =IF(SEM1MARKENTRY!AR32="","",SEM1MARKENTRY!AR32) -> 6 | O34: =IF(SEM1MARKENTRY!AY32="","",SEM1MARKENTRY!AY32) -> 6 | P34: =IF(SEM1MARKENTRY!BA32="","",SEM1MARKENTRY!BA32) -> 18 | Q34: 30 | R34: =IF(SEM1MARKENTRY!BH32="","",SEM1MARKENTRY!BH32) -> 5 | S34: =IF(SEM1MARKENTRY!BO32="","",SEM1MARKENTRY!BO32) -> 6 | T34: =IF(SEM1MARKENTRY!BQ32="","",SEM1MARKENTRY!BQ32) -> 14 | U34: 25 | V34: =IF(SEM1MARKENTRY!BX32="","",SEM1MARKENTRY!BX32) -> 6 | W34: =IF(SEM1MARKENTRY!CE32="","",SEM1MARKENTRY!CE32) -> 6 | X34: =IF(SEM1MARKENTRY!CG32="","",SEM1MARKENTRY!CG32) -> 13 | Y34: 25 | Z34: =IF(SEM1MARKENTRY!CN32="","",SEM1MARKENTRY!CN32) -> 7 | AA34: =IF(SEM1MARKENTRY!CU32="","",SEM1MARKENTRY!CU32) -> 7 | AB34: =IF(SEM1MARKENTRY!CW32="","",SEM1MARKENTRY!CW32) -> 10 | AC34: 24 | AD34: =IF(SEM1MARKENTRY!DD32="","",SEM1MARKENTRY!DD32) -> 5 | AE34: =IF(SEM1MARKENTRY!DK32="","",SEM1MARKENTRY!DK32) -> 6 | AF34: =IF(SEM1MARKENTRY!DM32="","",SEM1MARKENTRY!DM32) -> 13 | AG34: 24 | AH34: =IF(SEM1MARKENTRY!ED32="","",SEM1MARKENTRY!ED32) -> B | AI34: =IF(SEM1MARKENTRY!EU32="","",SEM1MARKENTRY!EU32) -> B+ | AJ34: =IF(SEM1MARKENTRY!FL32="","",SEM1MARKENTRY!FL32) -> B+ | AK34: =IF(SEM1MARKENTRY!GC32="","",SEM1MARKENTRY!GC32) ->  | AL34: 187 | AM34: P | AN34: 16 | AO34: 36 | AP34: 53.43 | BA34: 16 | BB34: 22 | BC34: DALVADI DHANSHUKHBHAI N. | BD34: 187 | BE34: 36 | BF34: 53.43
B35: =IF(SEM1MARKENTRY!B33="","",SEM1MARKENTRY!B33) -> 23 | C35: =IF(SEM1MARKENTRY!C33="","",SEM1MARKENTRY!C33) -> 23 | D35: =IF(StudentData!C33="","",(LEFT(TRIM(CLEAN(StudentData!C33)),SEARCH(" ",TRIM(CLEAN(StudentData!C33)),SEARCH(" ",TRIM(CLEAN(StudentData!C33)),1)+1)))&" "&LEFT(RIGHT(StudentData!C33,LEN(StudentData!C33)-SEARCH(" ",StudentData!C33,SEARCH(" ",StudentData!C33,SEARCH(" ",StudentData!C33,1)+1)-1)),1)&".") -> PARMAR RAVIRAJ R. | E35: =IF(SEM1MARKENTRY!E33="","",SEM1MARKENTRY!E33) ->  | F35: =IF(SEM1MARKENTRY!L33="","",SEM1MARKENTRY!L33) -> 9 | G35: =IF(SEM1MARKENTRY!S33="","",SEM1MARKENTRY!S33) -> 9 | H35: =IF(SEM1MARKENTRY!U33="","",SEM1MARKENTRY!U33) -> 24 | I35: 42 | J35: =IF(SEM1MARKENTRY!AB33="","",SEM1MARKENTRY!AB33) -> 7 | K35: =IF(SEM1MARKENTRY!AI33="","",SEM1MARKENTRY!AI33) -> 7 | L35: =IF(SEM1MARKENTRY!AK33="","",SEM1MARKENTRY!AK33) -> 18 | M35: 32 | N35: =IF(SEM1MARKENTRY!AR33="","",SEM1MARKENTRY!AR33) -> 9 | O35: =IF(SEM1MARKENTRY!AY33="","",SEM1MARKENTRY!AY33) -> 6 | P35: =IF(SEM1MARKENTRY!BA33="","",SEM1MARKENTRY!BA33) -> 22 | Q35: 37 | R35: =IF(SEM1MARKENTRY!BH33="","",SEM1MARKENTRY!BH33) -> 6 | S35: =IF(SEM1MARKENTRY!BO33="","",SEM1MARKENTRY!BO33) -> 7 | T35: =IF(SEM1MARKENTRY!BQ33="","",SEM1MARKENTRY!BQ33) -> 21 | U35: 34 | V35: =IF(SEM1MARKENTRY!BX33="","",SEM1MARKENTRY!BX33) -> 6 | W35: =IF(SEM1MARKENTRY!CE33="","",SEM1MARKENTRY!CE33) -> 6 | X35: =IF(SEM1MARKENTRY!CG33="","",SEM1MARKENTRY!CG33) -> 16 | Y35: 28 | Z35: =IF(SEM1MARKENTRY!CN33="","",SEM1MARKENTRY!CN33) -> 9 | AA35: =IF(SEM1MARKENTRY!CU33="","",SEM1MARKENTRY!CU33) -> 6 | AB35: =IF(SEM1MARKENTRY!CW33="","",SEM1MARKENTRY!CW33) -> 8 | AC35: 23 | AD35: =IF(SEM1MARKENTRY!DD33="","",SEM1MARKENTRY!DD33) -> 8 | AE35: =IF(SEM1MARKENTRY!DK33="","",SEM1MARKENTRY!DK33) -> 6 | AF35: =IF(SEM1MARKENTRY!DM33="","",SEM1MARKENTRY!DM33) -> 15 | AG35: 29 | AH35: =IF(SEM1MARKENTRY!ED33="","",SEM1MARKENTRY!ED33) -> B+ | AI35: =IF(SEM1MARKENTRY!EU33="","",SEM1MARKENTRY!EU33) -> A | AJ35: =IF(SEM1MARKENTRY!FL33="","",SEM1MARKENTRY!FL33) -> A | AK35: =IF(SEM1MARKENTRY!GC33="","",SEM1MARKENTRY!GC33) ->  | AL35: 225 | AM35: P | AN35: 8 | AO35: 68 | AP35: 64.29 | BA35: 8 | BB35: 23 | BC35: PARMAR RAVIRAJ R. | BD35: 225 | BE35: 68 | BF35: 64.29
B36: =IF(SEM1MARKENTRY!B34="","",SEM1MARKENTRY!B34) -> 24 | C36: =IF(SEM1MARKENTRY!C34="","",SEM1MARKENTRY!C34) -> 24 | D36: =IF(StudentData!C34="","",(LEFT(TRIM(CLEAN(StudentData!C34)),SEARCH(" ",TRIM(CLEAN(StudentData!C34)),SEARCH(" ",TRIM(CLEAN(StudentData!C34)),1)+1)))&" "&LEFT(RIGHT(StudentData!C34,LEN(StudentData!C34)-SEARCH(" ",StudentData!C34,SEARCH(" ",StudentData!C34,SEARCH(" ",StudentData!C34,1)+1)-1)),1)&".") -> ANSHARI NILESH V. | E36: =IF(SEM1MARKENTRY!E34="","",SEM1MARKENTRY!E34) ->  | F36: =IF(SEM1MARKENTRY!L34="","",SEM1MARKENTRY!L34) -> 8 | G36: =IF(SEM1MARKENTRY!S34="","",SEM1MARKENTRY!S34) -> 8 | H36: =IF(SEM1MARKENTRY!U34="","",SEM1MARKENTRY!U34) -> 20 | I36: 36 | J36: =IF(SEM1MARKENTRY!AB34="","",SEM1MARKENTRY!AB34) -> 6 | K36: =IF(SEM1MARKENTRY!AI34="","",SEM1MARKENTRY!AI34) -> 7 | L36: =IF(SEM1MARKENTRY!AK34="","",SEM1MARKENTRY!AK34) -> 16 | M36: 29 | N36: =IF(SEM1MARKENTRY!AR34="","",SEM1MARKENTRY!AR34) -> 9 | O36: =IF(SEM1MARKENTRY!AY34="","",SEM1MARKENTRY!AY34) -> 6 | P36: =IF(SEM1MARKENTRY!BA34="","",SEM1MARKENTRY!BA34) -> 20 | Q36: 35 | R36: =IF(SEM1MARKENTRY!BH34="","",SEM1MARKENTRY!BH34) -> 7 | S36: =IF(SEM1MARKENTRY!BO34="","",SEM1MARKENTRY!BO34) -> 8 | T36: =IF(SEM1MARKENTRY!BQ34="","",SEM1MARKENTRY!BQ34) -> 22 | U36: 37 | V36: =IF(SEM1MARKENTRY!BX34="","",SEM1MARKENTRY!BX34) -> 6 | W36: =IF(SEM1MARKENTRY!CE34="","",SEM1MARKENTRY!CE34) -> 6 | X36: =IF(SEM1MARKENTRY!CG34="","",SEM1MARKENTRY!CG34) -> 17 | Y36: 29 | Z36: =IF(SEM1MARKENTRY!CN34="","",SEM1MARKENTRY!CN34) -> 8 | AA36: =IF(SEM1MARKENTRY!CU34="","",SEM1MARKENTRY!CU34) -> 7 | AB36: =IF(SEM1MARKENTRY!CW34="","",SEM1MARKENTRY!CW34) -> 10 | AC36: 25 | AD36: =IF(SEM1MARKENTRY!DD34="","",SEM1MARKENTRY!DD34) -> 9 | AE36: =IF(SEM1MARKENTRY!DK34="","",SEM1MARKENTRY!DK34) -> 6 | AF36: =IF(SEM1MARKENTRY!DM34="","",SEM1MARKENTRY!DM34) -> 13 | AG36: 28 | AH36: =IF(SEM1MARKENTRY!ED34="","",SEM1MARKENTRY!ED34) -> B+ | AI36: =IF(SEM1MARKENTRY!EU34="","",SEM1MARKENTRY!EU34) -> B+ | AJ36: =IF(SEM1MARKENTRY!FL34="","",SEM1MARKENTRY!FL34) -> B+ | AK36: =IF(SEM1MARKENTRY!GC34="","",SEM1MARKENTRY!GC34) ->  | AL36: 219 | AM36: P | AN36: 10 | AO36: 60 | AP36: 62.57 | BA36: 10 | BB36: 24 | BC36: ANSHARI NILESH V. | BD36: 219 | BE36: 60 | BF36: 62.57
B37: =IF(SEM1MARKENTRY!B35="","",SEM1MARKENTRY!B35) -> 25 | C37: =IF(SEM1MARKENTRY!C35="","",SEM1MARKENTRY!C35) -> 25 | D37: =IF(StudentData!C35="","",(LEFT(TRIM(CLEAN(StudentData!C35)),SEARCH(" ",TRIM(CLEAN(StudentData!C35)),SEARCH(" ",TRIM(CLEAN(StudentData!C35)),1)+1)))&" "&LEFT(RIGHT(StudentData!C35,LEN(StudentData!C35)-SEARCH(" ",StudentData!C35,SEARCH(" ",StudentData!C35,SEARCH(" ",StudentData!C35,1)+1)-1)),1)&".") -> MULADIYA JIVAN A. | E37: =IF(SEM1MARKENTRY!E35="","",SEM1MARKENTRY!E35) ->  | F37: =IF(SEM1MARKENTRY!L35="","",SEM1MARKENTRY!L35) -> 8 | G37: =IF(SEM1MARKENTRY!S35="","",SEM1MARKENTRY!S35) -> 9 | H37: =IF(SEM1MARKENTRY!U35="","",SEM1MARKENTRY!U35) -> 21 | I37: 38 | J37: =IF(SEM1MARKENTRY!AB35="","",SEM1MARKENTRY!AB35) -> 7 | K37: =IF(SEM1MARKENTRY!AI35="","",SEM1MARKENTRY!AI35) -> 6 | L37: =IF(SEM1MARKENTRY!AK35="","",SEM1MARKENTRY!AK35) -> 18 | M37: 31 | N37: =IF(SEM1MARKENTRY!AR35="","",SEM1MARKENTRY!AR35) -> 7 | O37: =IF(SEM1MARKENTRY!AY35="","",SEM1MARKENTRY!AY35) -> 5 | P37: =IF(SEM1MARKENTRY!BA35="","",SEM1MARKENTRY!BA35) -> 21 | Q37: 33 | R37: =IF(SEM1MARKENTRY!BH35="","",SEM1MARKENTRY!BH35) -> 9 | S37: =IF(SEM1MARKENTRY!BO35="","",SEM1MARKENTRY!BO35) -> 9 | T37: =IF(SEM1MARKENTRY!BQ35="","",SEM1MARKENTRY!BQ35) -> 18 | U37: 36 | V37: =IF(SEM1MARKENTRY!BX35="","",SEM1MARKENTRY!BX35) -> 5 | W37: =IF(SEM1MARKENTRY!CE35="","",SEM1MARKENTRY!CE35) -> 5 | X37: =IF(SEM1MARKENTRY!CG35="","",SEM1MARKENTRY!CG35) -> 28 | Y37: 38 | Z37: =IF(SEM1MARKENTRY!CN35="","",SEM1MARKENTRY!CN35) -> 8 | AA37: =IF(SEM1MARKENTRY!CU35="","",SEM1MARKENTRY!CU35) -> 8 | AB37: =IF(SEM1MARKENTRY!CW35="","",SEM1MARKENTRY!CW35) -> 8 | AC37: 24 | AD37: =IF(SEM1MARKENTRY!DD35="","",SEM1MARKENTRY!DD35) -> 7 | AE37: =IF(SEM1MARKENTRY!DK35="","",SEM1MARKENTRY!DK35) -> 5 | AF37: =IF(SEM1MARKENTRY!DM35="","",SEM1MARKENTRY!DM35) -> 17 | AG37: 29 | AH37: =IF(SEM1MARKENTRY!ED35="","",SEM1MARKENTRY!ED35) -> A | AI37: =IF(SEM1MARKENTRY!EU35="","",SEM1MARKENTRY!EU35) -> A | AJ37: =IF(SEM1MARKENTRY!FL35="","",SEM1MARKENTRY!FL35) -> A | AK37: =IF(SEM1MARKENTRY!GC35="","",SEM1MARKENTRY!GC35) ->  | AL37: 229 | AM37: P | AN37: 5 | AO37: 80 | AP37: 65.43 | BA37: 5 | BB37: 25 | BC37: MULADIYA JIVAN A. | BD37: 229 | BE37: 80 | BF37: 65.43
B38: =IF(SEM1MARKENTRY!B36="","",SEM1MARKENTRY!B36) -> 26 | C38: =IF(SEM1MARKENTRY!C36="","",SEM1MARKENTRY!C36) -> 26 | D38: =IF(StudentData!C36="","",(LEFT(TRIM(CLEAN(StudentData!C36)),SEARCH(" ",TRIM(CLEAN(StudentData!C36)),SEARCH(" ",TRIM(CLEAN(StudentData!C36)),1)+1)))&" "&LEFT(RIGHT(StudentData!C36,LEN(StudentData!C36)-SEARCH(" ",StudentData!C36,SEARCH(" ",StudentData!C36,SEARCH(" ",StudentData!C36,1)+1)-1)),1)&".") -> CHAVDA AJITBHAI H. | E38: =IF(SEM1MARKENTRY!E36="","",SEM1MARKENTRY!E36) ->  | F38: =IF(SEM1MARKENTRY!L36="","",SEM1MARKENTRY!L36) -> 4 | G38: =IF(SEM1MARKENTRY!S36="","",SEM1MARKENTRY!S36) -> 3 | H38: =IF(SEM1MARKENTRY!U36="","",SEM1MARKENTRY!U36) -> 11 | I38: 18 | J38: =IF(SEM1MARKENTRY!AB36="","",SEM1MARKENTRY!AB36) -> 4 | K38: =IF(SEM1MARKENTRY!AI36="","",SEM1MARKENTRY!AI36) -> 5 | L38: =IF(SEM1MARKENTRY!AK36="","",SEM1MARKENTRY!AK36) -> 11 | M38: 20 | N38: =IF(SEM1MARKENTRY!AR36="","",SEM1MARKENTRY!AR36) -> 3 | O38: =IF(SEM1MARKENTRY!AY36="","",SEM1MARKENTRY!AY36) -> 3 | P38: =IF(SEM1MARKENTRY!BA36="","",SEM1MARKENTRY!BA36) -> 13 | Q38: 19 | R38: =IF(SEM1MARKENTRY!BH36="","",SEM1MARKENTRY!BH36) -> 4 | S38: =IF(SEM1MARKENTRY!BO36="","",SEM1MARKENTRY!BO36) -> 5 | T38: =IF(SEM1MARKENTRY!BQ36="","",SEM1MARKENTRY!BQ36) -> 6 | U38: 15 | V38: =IF(SEM1MARKENTRY!BX36="","",SEM1MARKENTRY!BX36) -> 3 | W38: =IF(SEM1MARKENTRY!CE36="","",SEM1MARKENTRY!CE36) -> 3 | X38: =IF(SEM1MARKENTRY!CG36="","",SEM1MARKENTRY!CG36) -> 10 | Y38: 16 | Z38: =IF(SEM1MARKENTRY!CN36="","",SEM1MARKENTRY!CN36) -> 5 | AA38: =IF(SEM1MARKENTRY!CU36="","",SEM1MARKENTRY!CU36) -> 5 | AB38: =IF(SEM1MARKENTRY!CW36="","",SEM1MARKENTRY!CW36) -> 7 | AC38: 17 | AD38: =IF(SEM1MARKENTRY!DD36="","",SEM1MARKENTRY!DD36) -> 2 | AE38: =IF(SEM1MARKENTRY!DK36="","",SEM1MARKENTRY!DK36) -> 3 | AF38: =IF(SEM1MARKENTRY!DM36="","",SEM1MARKENTRY!DM36) -> 8 | AG38: 13 | AH38: =IF(SEM1MARKENTRY!ED36="","",SEM1MARKENTRY!ED36) -> B+ | AI38: =IF(SEM1MARKENTRY!EU36="","",SEM1MARKENTRY!EU36) -> B | AJ38: =IF(SEM1MARKENTRY!FL36="","",SEM1MARKENTRY!FL36) -> B | AK38: =IF(SEM1MARKENTRY!GC36="","",SEM1MARKENTRY!GC36) ->  | AL38: 118 | AM38: F | AN38: - | AO38: - | BB38: 26 | BC38: CHAVDA AJITBHAI H. | BD38: 118 | BE38: -
B39: =IF(SEM1MARKENTRY!B37="","",SEM1MARKENTRY!B37) -> 27 | C39: =IF(SEM1MARKENTRY!C37="","",SEM1MARKENTRY!C37) -> 27 | D39: =IF(StudentData!C37="","",(LEFT(TRIM(CLEAN(StudentData!C37)),SEARCH(" ",TRIM(CLEAN(StudentData!C37)),SEARCH(" ",TRIM(CLEAN(StudentData!C37)),1)+1)))&" "&LEFT(RIGHT(StudentData!C37,LEN(StudentData!C37)-SEARCH(" ",StudentData!C37,SEARCH(" ",StudentData!C37,SEARCH(" ",StudentData!C37,1)+1)-1)),1)&".") -> VAGHRI MAHESH M. | E39: =IF(SEM1MARKENTRY!E37="","",SEM1MARKENTRY!E37) ->  | F39: =IF(SEM1MARKENTRY!L37="","",SEM1MARKENTRY!L37) -> 4 | G39: =IF(SEM1MARKENTRY!S37="","",SEM1MARKENTRY!S37) -> 4 | H39: =IF(SEM1MARKENTRY!U37="","",SEM1MARKENTRY!U37) -> 10 | I39: 18 | J39: =IF(SEM1MARKENTRY!AB37="","",SEM1MARKENTRY!AB37) -> 2 | K39: =IF(SEM1MARKENTRY!AI37="","",SEM1MARKENTRY!AI37) -> 2 | L39: =IF(SEM1MARKENTRY!AK37="","",SEM1MARKENTRY!AK37) -> 5 | M39: 9 | N39: =IF(SEM1MARKENTRY!AR37="","",SEM1MARKENTRY!AR37) -> 9 | O39: =IF(SEM1MARKENTRY!AY37="","",SEM1MARKENTRY!AY37) -> 2 | P39: =IF(SEM1MARKENTRY!BA37="","",SEM1MARKENTRY!BA37) -> 12 | Q39: 23 | R39: =IF(SEM1MARKENTRY!BH37="","",SEM1MARKENTRY!BH37) -> 6 | S39: =IF(SEM1MARKENTRY!BO37="","",SEM1MARKENTRY!BO37) -> 7 | T39: =IF(SEM1MARKENTRY!BQ37="","",SEM1MARKENTRY!BQ37) -> 23 | U39: 36 | V39: =IF(SEM1MARKENTRY!BX37="","",SEM1MARKENTRY!BX37) -> 2 | W39: =IF(SEM1MARKENTRY!CE37="","",SEM1MARKENTRY!CE37) -> 2 | X39: =IF(SEM1MARKENTRY!CG37="","",SEM1MARKENTRY!CG37) -> 15 | Y39: 19 | Z39: =IF(SEM1MARKENTRY!CN37="","",SEM1MARKENTRY!CN37) -> 5 | AA39: =IF(SEM1MARKENTRY!CU37="","",SEM1MARKENTRY!CU37) -> 4 | AB39: =IF(SEM1MARKENTRY!CW37="","",SEM1MARKENTRY!CW37) -> 5 | AC39: 14 | AD39: =IF(SEM1MARKENTRY!DD37="","",SEM1MARKENTRY!DD37) -> 9 | AE39: =IF(SEM1MARKENTRY!DK37="","",SEM1MARKENTRY!DK37) -> 2 | AF39: =IF(SEM1MARKENTRY!DM37="","",SEM1MARKENTRY!DM37) -> 5 | AG39: 16 | AH39: =IF(SEM1MARKENTRY!ED37="","",SEM1MARKENTRY!ED37) -> C | AI39: =IF(SEM1MARKENTRY!EU37="","",SEM1MARKENTRY!EU37) -> C | AJ39: =IF(SEM1MARKENTRY!FL37="","",SEM1MARKENTRY!FL37) ->  | AK39: =IF(SEM1MARKENTRY!GC37="","",SEM1MARKENTRY!GC37) -> C | AL39: 135 | AM39: F | AN39: - | AO39: - | BB39: 27 | BC39: VAGHRI MAHESH M. | BD39: 135 | BE39: -
B40: =IF(SEM1MARKENTRY!B38="","",SEM1MARKENTRY!B38) -> 28 | C40: =IF(SEM1MARKENTRY!C38="","",SEM1MARKENTRY!C38) -> 28 | D40: =IF(StudentData!C38="","",(LEFT(TRIM(CLEAN(StudentData!C38)),SEARCH(" ",TRIM(CLEAN(StudentData!C38)),SEARCH(" ",TRIM(CLEAN(StudentData!C38)),1)+1)))&" "&LEFT(RIGHT(StudentData!C38,LEN(StudentData!C38)-SEARCH(" ",StudentData!C38,SEARCH(" ",StudentData!C38,SEARCH(" ",StudentData!C38,1)+1)-1)),1)&".") -> KHALIFA JAHIDBHAI S. | E40: =IF(SEM1MARKENTRY!E38="","",SEM1MARKENTRY!E38) ->  | F40: =IF(SEM1MARKENTRY!L38="","",SEM1MARKENTRY!L38) -> 5 | G40: =IF(SEM1MARKENTRY!S38="","",SEM1MARKENTRY!S38) -> 6 | H40: =IF(SEM1MARKENTRY!U38="","",SEM1MARKENTRY!U38) -> 13 | I40: 24 | J40: =IF(SEM1MARKENTRY!AB38="","",SEM1MARKENTRY!AB38) -> 4 | K40: =IF(SEM1MARKENTRY!AI38="","",SEM1MARKENTRY!AI38) -> 4 | L40: =IF(SEM1MARKENTRY!AK38="","",SEM1MARKENTRY!AK38) -> 9 | M40: 17 | N40: =IF(SEM1MARKENTRY!AR38="","",SEM1MARKENTRY!AR38) -> 1 | O40: =IF(SEM1MARKENTRY!AY38="","",SEM1MARKENTRY!AY38) -> 2 | P40: =IF(SEM1MARKENTRY!BA38="","",SEM1MARKENTRY!BA38) -> 12 | Q40: 15 | R40: =IF(SEM1MARKENTRY!BH38="","",SEM1MARKENTRY!BH38) -> 6 | S40: =IF(SEM1MARKENTRY!BO38="","",SEM1MARKENTRY!BO38) -> 6 | T40: =IF(SEM1MARKENTRY!BQ38="","",SEM1MARKENTRY!BQ38) -> 2 | U40: 14 | V40: =IF(SEM1MARKENTRY!BX38="","",SEM1MARKENTRY!BX38) -> 2 | W40: =IF(SEM1MARKENTRY!CE38="","",SEM1MARKENTRY!CE38) -> 2 | X40: =IF(SEM1MARKENTRY!CG38="","",SEM1MARKENTRY!CG38) -> 16 | Y40: 20 | Z40: =IF(SEM1MARKENTRY!CN38="","",SEM1MARKENTRY!CN38) -> 5 | AA40: =IF(SEM1MARKENTRY!CU38="","",SEM1MARKENTRY!CU38) -> 6 | AB40: =IF(SEM1MARKENTRY!CW38="","",SEM1MARKENTRY!CW38) -> 7 | AC40: 18 | AD40: =IF(SEM1MARKENTRY!DD38="","",SEM1MARKENTRY!DD38) -> 1 | AE40: =IF(SEM1MARKENTRY!DK38="","",SEM1MARKENTRY!DK38) -> 2 | AF40: =IF(SEM1MARKENTRY!DM38="","",SEM1MARKENTRY!DM38) -> 5 | AG40: 8 | AH40: =IF(SEM1MARKENTRY!ED38="","",SEM1MARKENTRY!ED38) -> B | AI40: =IF(SEM1MARKENTRY!EU38="","",SEM1MARKENTRY!EU38) -> B | AJ40: =IF(SEM1MARKENTRY!FL38="","",SEM1MARKENTRY!FL38) ->  | AK40: =IF(SEM1MARKENTRY!GC38="","",SEM1MARKENTRY!GC38) -> C | AL40: 116 | AM40: F | AN40: - | AO40: - | BB40: 28 | BC40: KHALIFA JAHIDBHAI S. | BD40: 116 | BE40: -
B41: =IF(SEM1MARKENTRY!B39="","",SEM1MARKENTRY!B39) -> 29 | C41: =IF(SEM1MARKENTRY!C39="","",SEM1MARKENTRY!C39) -> 29 | D41: =IF(StudentData!C39="","",(LEFT(TRIM(CLEAN(StudentData!C39)),SEARCH(" ",TRIM(CLEAN(StudentData!C39)),SEARCH(" ",TRIM(CLEAN(StudentData!C39)),1)+1)))&" "&LEFT(RIGHT(StudentData!C39,LEN(StudentData!C39)-SEARCH(" ",StudentData!C39,SEARCH(" ",StudentData!C39,SEARCH(" ",StudentData!C39,1)+1)-1)),1)&".") -> MALEK NASHIRBHAI J. | E41: =IF(SEM1MARKENTRY!E39="","",SEM1MARKENTRY!E39) ->  | F41: =IF(SEM1MARKENTRY!L39="","",SEM1MARKENTRY!L39) -> 5 | G41: =IF(SEM1MARKENTRY!S39="","",SEM1MARKENTRY!S39) -> 7 | H41: =IF(SEM1MARKENTRY!U39="","",SEM1MARKENTRY!U39) -> 12 | I41: 24 | J41: =IF(SEM1MARKENTRY!AB39="","",SEM1MARKENTRY!AB39) -> 5 | K41: =IF(SEM1MARKENTRY!AI39="","",SEM1MARKENTRY!AI39) -> 4 | L41: =IF(SEM1MARKENTRY!AK39="","",SEM1MARKENTRY!AK39) -> 14 | M41: 23 | N41: =IF(SEM1MARKENTRY!AR39="","",SEM1MARKENTRY!AR39) -> 3 | O41: =IF(SEM1MARKENTRY!AY39="","",SEM1MARKENTRY!AY39) -> 3 | P41: =IF(SEM1MARKENTRY!BA39="","",SEM1MARKENTRY!BA39) -> 14 | Q41: 20 | R41: =IF(SEM1MARKENTRY!BH39="","",SEM1MARKENTRY!BH39) -> 5 | S41: =IF(SEM1MARKENTRY!BO39="","",SEM1MARKENTRY!BO39) -> 4 | T41: =IF(SEM1MARKENTRY!BQ39="","",SEM1MARKENTRY!BQ39) -> 8 | U41: 17 | V41: =IF(SEM1MARKENTRY!BX39="","",SEM1MARKENTRY!BX39) -> 3 | W41: =IF(SEM1MARKENTRY!CE39="","",SEM1MARKENTRY!CE39) -> 3 | X41: =IF(SEM1MARKENTRY!CG39="","",SEM1MARKENTRY!CG39) -> 13 | Y41: 19 | Z41: =IF(SEM1MARKENTRY!CN39="","",SEM1MARKENTRY!CN39) -> 5 | AA41: =IF(SEM1MARKENTRY!CU39="","",SEM1MARKENTRY!CU39) -> 6 | AB41: =IF(SEM1MARKENTRY!CW39="","",SEM1MARKENTRY!CW39) -> 6 | AC41: 17 | AD41: =IF(SEM1MARKENTRY!DD39="","",SEM1MARKENTRY!DD39) -> 3 | AE41: =IF(SEM1MARKENTRY!DK39="","",SEM1MARKENTRY!DK39) -> 3 | AF41: =IF(SEM1MARKENTRY!DM39="","",SEM1MARKENTRY!DM39) -> 10 | AG41: 16 | AH41: =IF(SEM1MARKENTRY!ED39="","",SEM1MARKENTRY!ED39) -> B | AI41: =IF(SEM1MARKENTRY!EU39="","",SEM1MARKENTRY!EU39) -> B+ | AJ41: =IF(SEM1MARKENTRY!FL39="","",SEM1MARKENTRY!FL39) ->  | AK41: =IF(SEM1MARKENTRY!GC39="","",SEM1MARKENTRY!GC39) -> B | AL41: 136 | AM41: F | AN41: - | AO41: - | BB41: 29 | BC41: MALEK NASHIRBHAI J. | BD41: 136 | BE41: -
B42: =IF(SEM1MARKENTRY!B40="","",SEM1MARKENTRY!B40) -> 30 | C42: =IF(SEM1MARKENTRY!C40="","",SEM1MARKENTRY!C40) -> 30 | D42: =IF(StudentData!C40="","",(LEFT(TRIM(CLEAN(StudentData!C40)),SEARCH(" ",TRIM(CLEAN(StudentData!C40)),SEARCH(" ",TRIM(CLEAN(StudentData!C40)),1)+1)))&" "&LEFT(RIGHT(StudentData!C40,LEN(StudentData!C40)-SEARCH(" ",StudentData!C40,SEARCH(" ",StudentData!C40,SEARCH(" ",StudentData!C40,1)+1)-1)),1)&".") -> GALIYA VIJAYBHAI M. | E42: =IF(SEM1MARKENTRY!E40="","",SEM1MARKENTRY!E40) ->  | F42: =IF(SEM1MARKENTRY!L40="","",SEM1MARKENTRY!L40) -> 7 | G42: =IF(SEM1MARKENTRY!S40="","",SEM1MARKENTRY!S40) -> 5 | H42: =IF(SEM1MARKENTRY!U40="","",SEM1MARKENTRY!U40) -> 17 | I42: 29 | J42: =IF(SEM1MARKENTRY!AB40="","",SEM1MARKENTRY!AB40) -> 4 | K42: =IF(SEM1MARKENTRY!AI40="","",SEM1MARKENTRY!AI40) -> 3 | L42: =IF(SEM1MARKENTRY!AK40="","",SEM1MARKENTRY!AK40) -> 11 | M42: 18 | N42: =IF(SEM1MARKENTRY!AR40="","",SEM1MARKENTRY!AR40) -> 4 | O42: =IF(SEM1MARKENTRY!AY40="","",SEM1MARKENTRY!AY40) -> 4 | P42: =IF(SEM1MARKENTRY!BA40="","",SEM1MARKENTRY!BA40) -> 15 | Q42: 23 | R42: =IF(SEM1MARKENTRY!BH40="","",SEM1MARKENTRY!BH40) -> 5 | S42: =IF(SEM1MARKENTRY!BO40="","",SEM1MARKENTRY!BO40) -> 6 | T42: =IF(SEM1MARKENTRY!BQ40="","",SEM1MARKENTRY!BQ40) -> 9 | U42: 20 | V42: =IF(SEM1MARKENTRY!BX40="","",SEM1MARKENTRY!BX40) -> 4 | W42: =IF(SEM1MARKENTRY!CE40="","",SEM1MARKENTRY!CE40) -> 4 | X42: =IF(SEM1MARKENTRY!CG40="","",SEM1MARKENTRY!CG40) -> 13 | Y42: 21 | Z42: =IF(SEM1MARKENTRY!CN40="","",SEM1MARKENTRY!CN40) -> 6 | AA42: =IF(SEM1MARKENTRY!CU40="","",SEM1MARKENTRY!CU40) -> 4 | AB42: =IF(SEM1MARKENTRY!CW40="","",SEM1MARKENTRY!CW40) -> 7 | AC42: 17 | AD42: =IF(SEM1MARKENTRY!DD40="","",SEM1MARKENTRY!DD40) -> 4 | AE42: =IF(SEM1MARKENTRY!DK40="","",SEM1MARKENTRY!DK40) -> 4 | AF42: =IF(SEM1MARKENTRY!DM40="","",SEM1MARKENTRY!DM40) -> 11 | AG42: 19 | AH42: =IF(SEM1MARKENTRY!ED40="","",SEM1MARKENTRY!ED40) -> B | AI42: =IF(SEM1MARKENTRY!EU40="","",SEM1MARKENTRY!EU40) -> B+ | AJ42: =IF(SEM1MARKENTRY!FL40="","",SEM1MARKENTRY!FL40) ->  | AK42: =IF(SEM1MARKENTRY!GC40="","",SEM1MARKENTRY!GC40) -> B | AL42: 147 | AM42: P | AN42: 28 | AO42: -12 | AP42: 42 | BA42: 28 | BB42: 30 | BC42: GALIYA VIJAYBHAI M. | BD42: 147 | BE42: -12 | BF42: 42
B43: =IF(SEM1MARKENTRY!B41="","",SEM1MARKENTRY!B41) -> 31 | C43: =IF(SEM1MARKENTRY!C41="","",SEM1MARKENTRY!C41) -> 31 | D43: =IF(StudentData!C41="","",(LEFT(TRIM(CLEAN(StudentData!C41)),SEARCH(" ",TRIM(CLEAN(StudentData!C41)),SEARCH(" ",TRIM(CLEAN(StudentData!C41)),1)+1)))&" "&LEFT(RIGHT(StudentData!C41,LEN(StudentData!C41)-SEARCH(" ",StudentData!C41,SEARCH(" ",StudentData!C41,SEARCH(" ",StudentData!C41,1)+1)-1)),1)&".") -> RABARI RAKESHBHAI J. | E43: =IF(SEM1MARKENTRY!E41="","",SEM1MARKENTRY!E41) ->  | F43: =IF(SEM1MARKENTRY!L41="","",SEM1MARKENTRY!L41) -> 5 | G43: =IF(SEM1MARKENTRY!S41="","",SEM1MARKENTRY!S41) -> 3 | H43: =IF(SEM1MARKENTRY!U41="","",SEM1MARKENTRY!U41) -> 12 | I43: 20 | J43: =IF(SEM1MARKENTRY!AB41="","",SEM1MARKENTRY!AB41) -> 3 | K43: =IF(SEM1MARKENTRY!AI41="","",SEM1MARKENTRY!AI41) -> 4 | L43: =IF(SEM1MARKENTRY!AK41="","",SEM1MARKENTRY!AK41) -> 9 | M43: 16 | N43: =IF(SEM1MARKENTRY!AR41="","",SEM1MARKENTRY!AR41) -> 2 | O43: =IF(SEM1MARKENTRY!AY41="","",SEM1MARKENTRY!AY41) -> 4 | P43: =IF(SEM1MARKENTRY!BA41="","",SEM1MARKENTRY!BA41) -> 12 | Q43: 18 | R43: =IF(SEM1MARKENTRY!BH41="","",SEM1MARKENTRY!BH41) -> 4 | S43: =IF(SEM1MARKENTRY!BO41="","",SEM1MARKENTRY!BO41) -> 4 | T43: =IF(SEM1MARKENTRY!BQ41="","",SEM1MARKENTRY!BQ41) -> 5 | U43: 13 | V43: =IF(SEM1MARKENTRY!BX41="","",SEM1MARKENTRY!BX41) -> 4 | W43: =IF(SEM1MARKENTRY!CE41="","",SEM1MARKENTRY!CE41) -> 4 | X43: =IF(SEM1MARKENTRY!CG41="","",SEM1MARKENTRY!CG41) -> 10 | Y43: 18 | Z43: =IF(SEM1MARKENTRY!CN41="","",SEM1MARKENTRY!CN41) -> 5 | AA43: =IF(SEM1MARKENTRY!CU41="","",SEM1MARKENTRY!CU41) -> 5 | AB43: =IF(SEM1MARKENTRY!CW41="","",SEM1MARKENTRY!CW41) -> 6 | AC43: 16 | AD43: =IF(SEM1MARKENTRY!DD41="","",SEM1MARKENTRY!DD41) -> 2 | AE43: =IF(SEM1MARKENTRY!DK41="","",SEM1MARKENTRY!DK41) -> 4 | AF43: =IF(SEM1MARKENTRY!DM41="","",SEM1MARKENTRY!DM41) -> 11 | AG43: 17 | AH43: =IF(SEM1MARKENTRY!ED41="","",SEM1MARKENTRY!ED41) -> C | AI43: =IF(SEM1MARKENTRY!EU41="","",SEM1MARKENTRY!EU41) -> B | AJ43: =IF(SEM1MARKENTRY!FL41="","",SEM1MARKENTRY!FL41) ->  | AK43: =IF(SEM1MARKENTRY!GC41="","",SEM1MARKENTRY!GC41) -> B | AL43: 118 | AM43: F | AN43: - | AO43: - | BB43: 31 | BC43: RABARI RAKESHBHAI J. | BD43: 118 | BE43: -
B44: =IF(SEM1MARKENTRY!B42="","",SEM1MARKENTRY!B42) -> 32 | C44: =IF(SEM1MARKENTRY!C42="","",SEM1MARKENTRY!C42) -> 32 | D44: =IF(StudentData!C42="","",(LEFT(TRIM(CLEAN(StudentData!C42)),SEARCH(" ",TRIM(CLEAN(StudentData!C42)),SEARCH(" ",TRIM(CLEAN(StudentData!C42)),1)+1)))&" "&LEFT(RIGHT(StudentData!C42,LEN(StudentData!C42)-SEARCH(" ",StudentData!C42,SEARCH(" ",StudentData!C42,SEARCH(" ",StudentData!C42,1)+1)-1)),1)&".") -> BHIMANI AXAYKUMAR H. | E44: =IF(SEM1MARKENTRY!E42="","",SEM1MARKENTRY!E42) ->  | F44: =IF(SEM1MARKENTRY!L42="","",SEM1MARKENTRY!L42) -> 7 | G44: =IF(SEM1MARKENTRY!S42="","",SEM1MARKENTRY!S42) -> 7 | H44: =IF(SEM1MARKENTRY!U42="","",SEM1MARKENTRY!U42) -> 17 | I44: 31 | J44: =IF(SEM1MARKENTRY!AB42="","",SEM1MARKENTRY!AB42) -> 4 | K44: =IF(SEM1MARKENTRY!AI42="","",SEM1MARKENTRY!AI42) -> 4 | L44: =IF(SEM1MARKENTRY!AK42="","",SEM1MARKENTRY!AK42) -> 10 | M44: 18 | N44: =IF(SEM1MARKENTRY!AR42="","",SEM1MARKENTRY!AR42) -> 6 | O44: =IF(SEM1MARKENTRY!AY42="","",SEM1MARKENTRY!AY42) -> 4 | P44: =IF(SEM1MARKENTRY!BA42="","",SEM1MARKENTRY!BA42) -> 17 | Q44: 27 | R44: =IF(SEM1MARKENTRY!BH42="","",SEM1MARKENTRY!BH42) -> 3 | S44: =IF(SEM1MARKENTRY!BO42="","",SEM1MARKENTRY!BO42) -> 4 | T44: =IF(SEM1MARKENTRY!BQ42="","",SEM1MARKENTRY!BQ42) -> 13 | U44: 20 | V44: =IF(SEM1MARKENTRY!BX42="","",SEM1MARKENTRY!BX42) -> 4 | W44: =IF(SEM1MARKENTRY!CE42="","",SEM1MARKENTRY!CE42) -> 4 | X44: =IF(SEM1MARKENTRY!CG42="","",SEM1MARKENTRY!CG42) -> 8 | Y44: 16 | Z44: =IF(SEM1MARKENTRY!CN42="","",SEM1MARKENTRY!CN42) -> 7 | AA44: =IF(SEM1MARKENTRY!CU42="","",SEM1MARKENTRY!CU42) -> 4 | AB44: =IF(SEM1MARKENTRY!CW42="","",SEM1MARKENTRY!CW42) -> 7 | AC44: 18 | AD44: =IF(SEM1MARKENTRY!DD42="","",SEM1MARKENTRY!DD42) -> 5 | AE44: =IF(SEM1MARKENTRY!DK42="","",SEM1MARKENTRY!DK42) -> 4 | AF44: =IF(SEM1MARKENTRY!DM42="","",SEM1MARKENTRY!DM42) -> 10 | AG44: 19 | AH44: =IF(SEM1MARKENTRY!ED42="","",SEM1MARKENTRY!ED42) -> B | AI44: =IF(SEM1MARKENTRY!EU42="","",SEM1MARKENTRY!EU42) -> B | AJ44: =IF(SEM1MARKENTRY!FL42="","",SEM1MARKENTRY!FL42) ->  | AK44: =IF(SEM1MARKENTRY!GC42="","",SEM1MARKENTRY!GC42) -> B | AL44: 149 | AM44: F | AN44: - | AO44: - | BB44: 32 | BC44: BHIMANI AXAYKUMAR H. | BD44: 149 | BE44: =IF(AO44="","",AO44) -> - | BF44: =IF(AP44="","",AP44) -> 
B45: =IF(SEM1MARKENTRY!B43="","",SEM1MARKENTRY!B43) -> 33 | C45: =IF(SEM1MARKENTRY!C43="","",SEM1MARKENTRY!C43) -> 33 | D45: =IF(StudentData!C43="","",(LEFT(TRIM(CLEAN(StudentData!C43)),SEARCH(" ",TRIM(CLEAN(StudentData!C43)),SEARCH(" ",TRIM(CLEAN(StudentData!C43)),1)+1)))&" "&LEFT(RIGHT(StudentData!C43,LEN(StudentData!C43)-SEARCH(" ",StudentData!C43,SEARCH(" ",StudentData!C43,SEARCH(" ",StudentData!C43,1)+1)-1)),1)&".") -> SHEKH AYAZ B. | E45: =IF(SEM1MARKENTRY!E43="","",SEM1MARKENTRY!E43) ->  | F45: =IF(SEM1MARKENTRY!L43="","",SEM1MARKENTRY!L43) -> 5 | G45: =IF(SEM1MARKENTRY!S43="","",SEM1MARKENTRY!S43) -> 5 | H45: =IF(SEM1MARKENTRY!U43="","",SEM1MARKENTRY!U43) -> 13 | I45: 23 | J45: =IF(SEM1MARKENTRY!AB43="","",SEM1MARKENTRY!AB43) -> 3 | K45: =IF(SEM1MARKENTRY!AI43="","",SEM1MARKENTRY!AI43) -> 2 | L45: =IF(SEM1MARKENTRY!AK43="","",SEM1MARKENTRY!AK43) -> 9 | M45: 14 | N45: =IF(SEM1MARKENTRY!AR43="","",SEM1MARKENTRY!AR43) -> 5 | O45: =IF(SEM1MARKENTRY!AY43="","",SEM1MARKENTRY!AY43) -> 2 | P45: =IF(SEM1MARKENTRY!BA43="","",SEM1MARKENTRY!BA43) -> 18 | Q45: 25 | R45: =IF(SEM1MARKENTRY!BH43="","",SEM1MARKENTRY!BH43) -> 3 | S45: =IF(SEM1MARKENTRY!BO43="","",SEM1MARKENTRY!BO43) -> 3 | T45: =IF(SEM1MARKENTRY!BQ43="","",SEM1MARKENTRY!BQ43) -> 13 | U45: 19 | V45: =IF(SEM1MARKENTRY!BX43="","",SEM1MARKENTRY!BX43) -> 2 | W45: =IF(SEM1MARKENTRY!CE43="","",SEM1MARKENTRY!CE43) -> 2 | X45: =IF(SEM1MARKENTRY!CG43="","",SEM1MARKENTRY!CG43) -> 7 | Y45: 11 | Z45: =IF(SEM1MARKENTRY!CN43="","",SEM1MARKENTRY!CN43) -> 7 | AA45: =IF(SEM1MARKENTRY!CU43="","",SEM1MARKENTRY!CU43) -> 5 | AB45: =IF(SEM1MARKENTRY!CW43="","",SEM1MARKENTRY!CW43) -> 8 | AC45: 20 | AD45: =IF(SEM1MARKENTRY!DD43="","",SEM1MARKENTRY!DD43) -> 5 | AE45: =IF(SEM1MARKENTRY!DK43="","",SEM1MARKENTRY!DK43) -> 2 | AF45: =IF(SEM1MARKENTRY!DM43="","",SEM1MARKENTRY!DM43) -> 6 | AG45: 13 | AH45: =IF(SEM1MARKENTRY!ED43="","",SEM1MARKENTRY!ED43) -> B | AI45: =IF(SEM1MARKENTRY!EU43="","",SEM1MARKENTRY!EU43) -> C | AJ45: =IF(SEM1MARKENTRY!FL43="","",SEM1MARKENTRY!FL43) ->  | AK45: =IF(SEM1MARKENTRY!GC43="","",SEM1MARKENTRY!GC43) -> C | AL45: 125 | AM45: F | AN45: - | AO45: - | BB45: 33 | BC45: SHEKH AYAZ B. | BD45: 125 | BE45: -
B46: =IF(SEM1MARKENTRY!B44="","",SEM1MARKENTRY!B44) -> 34 | C46: =IF(SEM1MARKENTRY!C44="","",SEM1MARKENTRY!C44) -> 34 | D46: =IF(StudentData!C44="","",(LEFT(TRIM(CLEAN(StudentData!C44)),SEARCH(" ",TRIM(CLEAN(StudentData!C44)),SEARCH(" ",TRIM(CLEAN(StudentData!C44)),1)+1)))&" "&LEFT(RIGHT(StudentData!C44,LEN(StudentData!C44)-SEARCH(" ",StudentData!C44,SEARCH(" ",StudentData!C44,SEARCH(" ",StudentData!C44,1)+1)-1)),1)&".") -> TAKOR MEHULKUMAR R. | E46: =IF(SEM1MARKENTRY!E44="","",SEM1MARKENTRY!E44) ->  | F46: =IF(SEM1MARKENTRY!L44="","",SEM1MARKENTRY!L44) -> 4 | G46: =IF(SEM1MARKENTRY!S44="","",SEM1MARKENTRY!S44) -> 4 | H46: =IF(SEM1MARKENTRY!U44="","",SEM1MARKENTRY!U44) -> 11 | I46: 19 | J46: =IF(SEM1MARKENTRY!AB44="","",SEM1MARKENTRY!AB44) -> 3 | K46: =IF(SEM1MARKENTRY!AI44="","",SEM1MARKENTRY!AI44) -> 3 | L46: =IF(SEM1MARKENTRY!AK44="","",SEM1MARKENTRY!AK44) -> 7 | M46: 13 | N46: =IF(SEM1MARKENTRY!AR44="","",SEM1MARKENTRY!AR44) -> 2 | O46: =IF(SEM1MARKENTRY!AY44="","",SEM1MARKENTRY!AY44) -> 2 | P46: =IF(SEM1MARKENTRY!BA44="","",SEM1MARKENTRY!BA44) -> 15 | Q46: 19 | R46: =IF(SEM1MARKENTRY!BH44="","",SEM1MARKENTRY!BH44) -> 3 | S46: =IF(SEM1MARKENTRY!BO44="","",SEM1MARKENTRY!BO44) -> 3 | T46: =IF(SEM1MARKENTRY!BQ44="","",SEM1MARKENTRY!BQ44) -> 7 | U46: 13 | V46: =IF(SEM1MARKENTRY!BX44="","",SEM1MARKENTRY!BX44) -> 2 | W46: =IF(SEM1MARKENTRY!CE44="","",SEM1MARKENTRY!CE44) -> 2 | X46: =IF(SEM1MARKENTRY!CG44="","",SEM1MARKENTRY!CG44) -> 9 | Y46: 13 | Z46: =IF(SEM1MARKENTRY!CN44="","",SEM1MARKENTRY!CN44) -> 6 | AA46: =IF(SEM1MARKENTRY!CU44="","",SEM1MARKENTRY!CU44) -> 5 | AB46: =IF(SEM1MARKENTRY!CW44="","",SEM1MARKENTRY!CW44) -> 6 | AC46: 17 | AD46: =IF(SEM1MARKENTRY!DD44="","",SEM1MARKENTRY!DD44) -> 3 | AE46: =IF(SEM1MARKENTRY!DK44="","",SEM1MARKENTRY!DK44) -> 2 | AF46: =IF(SEM1MARKENTRY!DM44="","",SEM1MARKENTRY!DM44) -> 6 | AG46: 11 | AH46: =IF(SEM1MARKENTRY!ED44="","",SEM1MARKENTRY!ED44) -> C | AI46: =IF(SEM1MARKENTRY!EU44="","",SEM1MARKENTRY!EU44) -> C | AJ46: =IF(SEM1MARKENTRY!FL44="","",SEM1MARKENTRY!FL44) ->  | AK46: =IF(SEM1MARKENTRY!GC44="","",SEM1MARKENTRY!GC44) -> C | AL46: 105 | AM46: F | AN46: - | AO46: - | BB46: 34 | BC46: TAKOR MEHULKUMAR R. | BD46: 105 | BE46: -
B47: =IF(SEM1MARKENTRY!B45="","",SEM1MARKENTRY!B45) -> 35 | C47: =IF(SEM1MARKENTRY!C45="","",SEM1MARKENTRY!C45) -> 35 | D47: =IF(StudentData!C45="","",(LEFT(TRIM(CLEAN(StudentData!C45)),SEARCH(" ",TRIM(CLEAN(StudentData!C45)),SEARCH(" ",TRIM(CLEAN(StudentData!C45)),1)+1)))&" "&LEFT(RIGHT(StudentData!C45,LEN(StudentData!C45)-SEARCH(" ",StudentData!C45,SEARCH(" ",StudentData!C45,SEARCH(" ",StudentData!C45,1)+1)-1)),1)&".") -> KUDECHA SURESHBHAI S. | E47: =IF(SEM1MARKENTRY!E45="","",SEM1MARKENTRY!E45) ->  | F47: =IF(SEM1MARKENTRY!L45="","",SEM1MARKENTRY!L45) -> 1 | G47: =IF(SEM1MARKENTRY!S45="","",SEM1MARKENTRY!S45) -> 1 | H47: =IF(SEM1MARKENTRY!U45="","",SEM1MARKENTRY!U45) -> 2 | I47: 4 | J47: =IF(SEM1MARKENTRY!AB45="","",SEM1MARKENTRY!AB45) -> 1 | K47: =IF(SEM1MARKENTRY!AI45="","",SEM1MARKENTRY!AI45) -> 1 | L47: =IF(SEM1MARKENTRY!AK45="","",SEM1MARKENTRY!AK45) -> 1 | M47: 3 | N47: =IF(SEM1MARKENTRY!AR45="","",SEM1MARKENTRY!AR45) -> 1 | O47: =IF(SEM1MARKENTRY!AY45="","",SEM1MARKENTRY!AY45) -> 1 | P47: =IF(SEM1MARKENTRY!BA45="","",SEM1MARKENTRY!BA45) -> 6 | Q47: 8 | R47: =IF(SEM1MARKENTRY!BH45="","",SEM1MARKENTRY!BH45) -> 2 | S47: =IF(SEM1MARKENTRY!BO45="","",SEM1MARKENTRY!BO45) -> 3 | T47: =IF(SEM1MARKENTRY!BQ45="","",SEM1MARKENTRY!BQ45) -> 2 | U47: 7 | V47: =IF(SEM1MARKENTRY!BX45="","",SEM1MARKENTRY!BX45) -> 1 | W47: =IF(SEM1MARKENTRY!CE45="","",SEM1MARKENTRY!CE45) -> 1 | X47: =IF(SEM1MARKENTRY!CG45="","",SEM1MARKENTRY!CG45) -> 6 | Y47: 8 | Z47: =IF(SEM1MARKENTRY!CN45="","",SEM1MARKENTRY!CN45) -> 2 | AA47: =IF(SEM1MARKENTRY!CU45="","",SEM1MARKENTRY!CU45) -> 2 | AB47: =IF(SEM1MARKENTRY!CW45="","",SEM1MARKENTRY!CW45) -> 5 | AC47: 9 | AD47: =IF(SEM1MARKENTRY!DD45="","",SEM1MARKENTRY!DD45) -> 1 | AE47: =IF(SEM1MARKENTRY!DK45="","",SEM1MARKENTRY!DK45) -> 1 | AF47: =IF(SEM1MARKENTRY!DM45="","",SEM1MARKENTRY!DM45) -> 4 | AG47: 6 | AH47: =IF(SEM1MARKENTRY!ED45="","",SEM1MARKENTRY!ED45) -> E | AI47: =IF(SEM1MARKENTRY!EU45="","",SEM1MARKENTRY!EU45) -> E | AJ47: =IF(SEM1MARKENTRY!FL45="","",SEM1MARKENTRY!FL45) ->  | AK47: =IF(SEM1MARKENTRY!GC45="","",SEM1MARKENTRY!GC45) -> E | AL47: 45 | AM47: F | AN47: - | AO47: - | BB47: 35 | BC47: KUDECHA SURESHBHAI S. | BD47: 45 | BE47: -
B48: =IF(SEM1MARKENTRY!B46="","",SEM1MARKENTRY!B46) -> 36 | C48: =IF(SEM1MARKENTRY!C46="","",SEM1MARKENTRY!C46) -> 36 | D48: =IF(StudentData!C46="","",(LEFT(TRIM(CLEAN(StudentData!C46)),SEARCH(" ",TRIM(CLEAN(StudentData!C46)),SEARCH(" ",TRIM(CLEAN(StudentData!C46)),1)+1)))&" "&LEFT(RIGHT(StudentData!C46,LEN(StudentData!C46)-SEARCH(" ",StudentData!C46,SEARCH(" ",StudentData!C46,SEARCH(" ",StudentData!C46,1)+1)-1)),1)&".") -> CHAUHAN HARDIKKUMAR M. | E48: =IF(SEM1MARKENTRY!E46="","",SEM1MARKENTRY!E46) ->  | F48: =IF(SEM1MARKENTRY!L46="","",SEM1MARKENTRY!L46) -> 2 | G48: =IF(SEM1MARKENTRY!S46="","",SEM1MARKENTRY!S46) -> 4 | H48: =IF(SEM1MARKENTRY!U46="","",SEM1MARKENTRY!U46) -> 6 | I48: 12 | J48: =IF(SEM1MARKENTRY!AB46="","",SEM1MARKENTRY!AB46) -> 1 | K48: =IF(SEM1MARKENTRY!AI46="","",SEM1MARKENTRY!AI46) -> 1 | L48: =IF(SEM1MARKENTRY!AK46="","",SEM1MARKENTRY!AK46) -> 4 | M48: 6 | N48: =IF(SEM1MARKENTRY!AR46="","",SEM1MARKENTRY!AR46) -> 1 | O48: =IF(SEM1MARKENTRY!AY46="","",SEM1MARKENTRY!AY46) -> 2 | P48: =IF(SEM1MARKENTRY!BA46="","",SEM1MARKENTRY!BA46) -> 7 | Q48: 10 | R48: =IF(SEM1MARKENTRY!BH46="","",SEM1MARKENTRY!BH46) -> 3 | S48: =IF(SEM1MARKENTRY!BO46="","",SEM1MARKENTRY!BO46) -> 3 | T48: =IF(SEM1MARKENTRY!BQ46="","",SEM1MARKENTRY!BQ46) -> 2 | U48: 8 | V48: =IF(SEM1MARKENTRY!BX46="","",SEM1MARKENTRY!BX46) -> 2 | W48: =IF(SEM1MARKENTRY!CE46="","",SEM1MARKENTRY!CE46) -> 2 | X48: =IF(SEM1MARKENTRY!CG46="","",SEM1MARKENTRY!CG46) -> 7 | Y48: 11 | Z48: =IF(SEM1MARKENTRY!CN46="","",SEM1MARKENTRY!CN46) -> 3 | AA48: =IF(SEM1MARKENTRY!CU46="","",SEM1MARKENTRY!CU46) -> 1 | AB48: =IF(SEM1MARKENTRY!CW46="","",SEM1MARKENTRY!CW46) -> 8 | AC48: 12 | AD48: =IF(SEM1MARKENTRY!DD46="","",SEM1MARKENTRY!DD46) -> 1 | AE48: =IF(SEM1MARKENTRY!DK46="","",SEM1MARKENTRY!DK46) -> 2 | AF48: =IF(SEM1MARKENTRY!DM46="","",SEM1MARKENTRY!DM46) -> 6 | AG48: 9 | AH48: =IF(SEM1MARKENTRY!ED46="","",SEM1MARKENTRY!ED46) -> E | AI48: =IF(SEM1MARKENTRY!EU46="","",SEM1MARKENTRY!EU46) -> E | AJ48: =IF(SEM1MARKENTRY!FL46="","",SEM1MARKENTRY!FL46) ->  | AK48: =IF(SEM1MARKENTRY!GC46="","",SEM1MARKENTRY!GC46) -> E | AL48: 68 | AM48: F | AN48: - | AO48: - | BB48: 36 | BC48: CHAUHAN HARDIKKUMAR M. | BD48: 68 | BE48: -
B49: =IF(SEM1MARKENTRY!B47="","",SEM1MARKENTRY!B47) -> 37 | C49: =IF(SEM1MARKENTRY!C47="","",SEM1MARKENTRY!C47) -> 37 | D49: =IF(StudentData!C47="","",(LEFT(TRIM(CLEAN(StudentData!C47)),SEARCH(" ",TRIM(CLEAN(StudentData!C47)),SEARCH(" ",TRIM(CLEAN(StudentData!C47)),1)+1)))&" "&LEFT(RIGHT(StudentData!C47,LEN(StudentData!C47)-SEARCH(" ",StudentData!C47,SEARCH(" ",StudentData!C47,SEARCH(" ",StudentData!C47,1)+1)-1)),1)&".") -> SOLANKI SAMIRBHAI D. | E49: =IF(SEM1MARKENTRY!E47="","",SEM1MARKENTRY!E47) ->  | F49: =IF(SEM1MARKENTRY!L47="","",SEM1MARKENTRY!L47) -> 5 | G49: =IF(SEM1MARKENTRY!S47="","",SEM1MARKENTRY!S47) -> 6 | H49: =IF(SEM1MARKENTRY!U47="","",SEM1MARKENTRY!U47) -> 12 | I49: 23 | J49: =IF(SEM1MARKENTRY!AB47="","",SEM1MARKENTRY!AB47) -> 4 | K49: =IF(SEM1MARKENTRY!AI47="","",SEM1MARKENTRY!AI47) -> 5 | L49: =IF(SEM1MARKENTRY!AK47="","",SEM1MARKENTRY!AK47) -> 10 | M49: 19 | N49: =IF(SEM1MARKENTRY!AR47="","",SEM1MARKENTRY!AR47) -> 4 | O49: =IF(SEM1MARKENTRY!AY47="","",SEM1MARKENTRY!AY47) -> 2 | P49: =IF(SEM1MARKENTRY!BA47="","",SEM1MARKENTRY!BA47) -> 10 | Q49: 16 | R49: =IF(SEM1MARKENTRY!BH47="","",SEM1MARKENTRY!BH47) -> 3 | S49: =IF(SEM1MARKENTRY!BO47="","",SEM1MARKENTRY!BO47) -> 5 | T49: =IF(SEM1MARKENTRY!BQ47="","",SEM1MARKENTRY!BQ47) -> 10 | U49: 18 | V49: =IF(SEM1MARKENTRY!BX47="","",SEM1MARKENTRY!BX47) -> 2 | W49: =IF(SEM1MARKENTRY!CE47="","",SEM1MARKENTRY!CE47) -> 2 | X49: =IF(SEM1MARKENTRY!CG47="","",SEM1MARKENTRY!CG47) -> 9 | Y49: 13 | Z49: =IF(SEM1MARKENTRY!CN47="","",SEM1MARKENTRY!CN47) -> 4 | AA49: =IF(SEM1MARKENTRY!CU47="","",SEM1MARKENTRY!CU47) -> 2 | AB49: =IF(SEM1MARKENTRY!CW47="","",SEM1MARKENTRY!CW47) -> 5 | AC49: 11 | AD49: =IF(SEM1MARKENTRY!DD47="","",SEM1MARKENTRY!DD47) -> 4 | AE49: =IF(SEM1MARKENTRY!DK47="","",SEM1MARKENTRY!DK47) -> 2 | AF49: =IF(SEM1MARKENTRY!DM47="","",SEM1MARKENTRY!DM47) -> 6 | AG49: 12 | AH49: =IF(SEM1MARKENTRY!ED47="","",SEM1MARKENTRY!ED47) -> C | AI49: =IF(SEM1MARKENTRY!EU47="","",SEM1MARKENTRY!EU47) -> C | AJ49: =IF(SEM1MARKENTRY!FL47="","",SEM1MARKENTRY!FL47) ->  | AK49: =IF(SEM1MARKENTRY!GC47="","",SEM1MARKENTRY!GC47) -> B | AL49: 112 | AM49: F | AN49: - | AO49: - | BB49: 37 | BC49: SOLANKI SAMIRBHAI D. | BD49: 112 | BE49: -
B50: =IF(SEM1MARKENTRY!B48="","",SEM1MARKENTRY!B48) -> 38 | C50: =IF(SEM1MARKENTRY!C48="","",SEM1MARKENTRY!C48) -> 38 | D50: =IF(StudentData!C48="","",(LEFT(TRIM(CLEAN(StudentData!C48)),SEARCH(" ",TRIM(CLEAN(StudentData!C48)),SEARCH(" ",TRIM(CLEAN(StudentData!C48)),1)+1)))&" "&LEFT(RIGHT(StudentData!C48,LEN(StudentData!C48)-SEARCH(" ",StudentData!C48,SEARCH(" ",StudentData!C48,SEARCH(" ",StudentData!C48,1)+1)-1)),1)&".") -> THAKOR VISHALBHAI R. | E50: =IF(SEM1MARKENTRY!E48="","",SEM1MARKENTRY!E48) ->  | F50: =IF(SEM1MARKENTRY!L48="","",SEM1MARKENTRY!L48) -> 4 | G50: =IF(SEM1MARKENTRY!S48="","",SEM1MARKENTRY!S48) -> 4 | H50: =IF(SEM1MARKENTRY!U48="","",SEM1MARKENTRY!U48) -> 11 | I50: 19 | J50: =IF(SEM1MARKENTRY!AB48="","",SEM1MARKENTRY!AB48) -> 2 | K50: =IF(SEM1MARKENTRY!AI48="","",SEM1MARKENTRY!AI48) -> 2 | L50: =IF(SEM1MARKENTRY!AK48="","",SEM1MARKENTRY!AK48) -> 5 | M50: 9 | N50: =IF(SEM1MARKENTRY!AR48="","",SEM1MARKENTRY!AR48) -> 2 | O50: =IF(SEM1MARKENTRY!AY48="","",SEM1MARKENTRY!AY48) -> 3 | P50: =IF(SEM1MARKENTRY!BA48="","",SEM1MARKENTRY!BA48) -> 9 | Q50: 14 | R50: =IF(SEM1MARKENTRY!BH48="","",SEM1MARKENTRY!BH48) -> 4 | S50: =IF(SEM1MARKENTRY!BO48="","",SEM1MARKENTRY!BO48) -> 4 | T50: =IF(SEM1MARKENTRY!BQ48="","",SEM1MARKENTRY!BQ48) -> 4 | U50: 12 | V50: =IF(SEM1MARKENTRY!BX48="","",SEM1MARKENTRY!BX48) -> 3 | W50: =IF(SEM1MARKENTRY!CE48="","",SEM1MARKENTRY!CE48) -> 3 | X50: =IF(SEM1MARKENTRY!CG48="","",SEM1MARKENTRY!CG48) -> 11 | Y50: 17 | Z50: =IF(SEM1MARKENTRY!CN48="","",SEM1MARKENTRY!CN48) -> 4 | AA50: =IF(SEM1MARKENTRY!CU48="","",SEM1MARKENTRY!CU48) -> 4 | AB50: =IF(SEM1MARKENTRY!CW48="","",SEM1MARKENTRY!CW48) -> 7 | AC50: 15 | AD50: =IF(SEM1MARKENTRY!DD48="","",SEM1MARKENTRY!DD48) -> 2 | AE50: =IF(SEM1MARKENTRY!DK48="","",SEM1MARKENTRY!DK48) -> 3 | AF50: =IF(SEM1MARKENTRY!DM48="","",SEM1MARKENTRY!DM48) -> 7 | AG50: 12 | AH50: =IF(SEM1MARKENTRY!ED48="","",SEM1MARKENTRY!ED48) -> E | AI50: =IF(SEM1MARKENTRY!EU48="","",SEM1MARKENTRY!EU48) -> C | AJ50: =IF(SEM1MARKENTRY!FL48="","",SEM1MARKENTRY!FL48) ->  | AK50: =IF(SEM1MARKENTRY!GC48="","",SEM1MARKENTRY!GC48) -> C | AL50: 98 | AM50: F | AN50: - | AO50: - | BB50: 38 | BC50: THAKOR VISHALBHAI R. | BD50: 98 | BE50: -
B51: =IF(SEM1MARKENTRY!B49="","",SEM1MARKENTRY!B49) -> 39 | C51: =IF(SEM1MARKENTRY!C49="","",SEM1MARKENTRY!C49) -> 39 | D51: =IF(StudentData!C49="","",(LEFT(TRIM(CLEAN(StudentData!C49)),SEARCH(" ",TRIM(CLEAN(StudentData!C49)),SEARCH(" ",TRIM(CLEAN(StudentData!C49)),1)+1)))&" "&LEFT(RIGHT(StudentData!C49,LEN(StudentData!C49)-SEARCH(" ",StudentData!C49,SEARCH(" ",StudentData!C49,SEARCH(" ",StudentData!C49,1)+1)-1)),1)&".") -> THAKOR JIGNESHBHAI P. | E51: =IF(SEM1MARKENTRY!E49="","",SEM1MARKENTRY!E49) ->  | F51: =IF(SEM1MARKENTRY!L49="","",SEM1MARKENTRY!L49) -> 4 | G51: =IF(SEM1MARKENTRY!S49="","",SEM1MARKENTRY!S49) -> 5 | H51: =IF(SEM1MARKENTRY!U49="","",SEM1MARKENTRY!U49) -> 10 | I51: 19 | J51: =IF(SEM1MARKENTRY!AB49="","",SEM1MARKENTRY!AB49) -> 2 | K51: =IF(SEM1MARKENTRY!AI49="","",SEM1MARKENTRY!AI49) -> 2 | L51: =IF(SEM1MARKENTRY!AK49="","",SEM1MARKENTRY!AK49) -> 6 | M51: 10 | N51: =IF(SEM1MARKENTRY!AR49="","",SEM1MARKENTRY!AR49) -> 2 | O51: =IF(SEM1MARKENTRY!AY49="","",SEM1MARKENTRY!AY49) -> 2 | P51: =IF(SEM1MARKENTRY!BA49="","",SEM1MARKENTRY!BA49) -> 10 | Q51: 14 | R51: =IF(SEM1MARKENTRY!BH49="","",SEM1MARKENTRY!BH49) -> 5 | S51: =IF(SEM1MARKENTRY!BO49="","",SEM1MARKENTRY!BO49) -> 6 | T51: =IF(SEM1MARKENTRY!BQ49="","",SEM1MARKENTRY!BQ49) -> 6 | U51: 17 | V51: =IF(SEM1MARKENTRY!BX49="","",SEM1MARKENTRY!BX49) -> 2 | W51: =IF(SEM1MARKENTRY!CE49="","",SEM1MARKENTRY!CE49) -> 2 | X51: =IF(SEM1MARKENTRY!CG49="","",SEM1MARKENTRY!CG49) -> 13 | Y51: 17 | Z51: =IF(SEM1MARKENTRY!CN49="","",SEM1MARKENTRY!CN49) -> 4 | AA51: =IF(SEM1MARKENTRY!CU49="","",SEM1MARKENTRY!CU49) -> 4 | AB51: =IF(SEM1MARKENTRY!CW49="","",SEM1MARKENTRY!CW49) -> 9 | AC51: 17 | AD51: =IF(SEM1MARKENTRY!DD49="","",SEM1MARKENTRY!DD49) -> 2 | AE51: =IF(SEM1MARKENTRY!DK49="","",SEM1MARKENTRY!DK49) -> 2 | AF51: =IF(SEM1MARKENTRY!DM49="","",SEM1MARKENTRY!DM49) -> 6 | AG51: 10 | AH51: =IF(SEM1MARKENTRY!ED49="","",SEM1MARKENTRY!ED49) -> B | AI51: =IF(SEM1MARKENTRY!EU49="","",SEM1MARKENTRY!EU49) -> C | AJ51: =IF(SEM1MARKENTRY!FL49="","",SEM1MARKENTRY!FL49) ->  | AK51: =IF(SEM1MARKENTRY!GC49="","",SEM1MARKENTRY!GC49) -> B | AL51: 104 | AM51: F | AN51: - | AO51: - | BB51: 39 | BC51: THAKOR JIGNESHBHAI P. | BD51: 104 | BE51: -
B52: =IF(SEM1MARKENTRY!B50="","",SEM1MARKENTRY!B50) -> 40 | C52: =IF(SEM1MARKENTRY!C50="","",SEM1MARKENTRY!C50) -> 40 | D52: =IF(StudentData!C50="","",(LEFT(TRIM(CLEAN(StudentData!C50)),SEARCH(" ",TRIM(CLEAN(StudentData!C50)),SEARCH(" ",TRIM(CLEAN(StudentData!C50)),1)+1)))&" "&LEFT(RIGHT(StudentData!C50,LEN(StudentData!C50)-SEARCH(" ",StudentData!C50,SEARCH(" ",StudentData!C50,SEARCH(" ",StudentData!C50,1)+1)-1)),1)&".") -> RABARI VISHALKUMAR D. | E52: =IF(SEM1MARKENTRY!E50="","",SEM1MARKENTRY!E50) ->  | F52: =IF(SEM1MARKENTRY!L50="","",SEM1MARKENTRY!L50) -> 7 | G52: =IF(SEM1MARKENTRY!S50="","",SEM1MARKENTRY!S50) -> 6 | H52: =IF(SEM1MARKENTRY!U50="","",SEM1MARKENTRY!U50) -> 17 | I52: 30 | J52: =IF(SEM1MARKENTRY!AB50="","",SEM1MARKENTRY!AB50) -> 4 | K52: =IF(SEM1MARKENTRY!AI50="","",SEM1MARKENTRY!AI50) -> 4 | L52: =IF(SEM1MARKENTRY!AK50="","",SEM1MARKENTRY!AK50) -> 11 | M52: 19 | N52: =IF(SEM1MARKENTRY!AR50="","",SEM1MARKENTRY!AR50) -> 8 | O52: =IF(SEM1MARKENTRY!AY50="","",SEM1MARKENTRY!AY50) -> 3 | P52: =IF(SEM1MARKENTRY!BA50="","",SEM1MARKENTRY!BA50) -> 14 | Q52: 25 | R52: =IF(SEM1MARKENTRY!BH50="","",SEM1MARKENTRY!BH50) -> 6 | S52: =IF(SEM1MARKENTRY!BO50="","",SEM1MARKENTRY!BO50) -> 6 | T52: =IF(SEM1MARKENTRY!BQ50="","",SEM1MARKENTRY!BQ50) -> 18 | U52: 30 | V52: =IF(SEM1MARKENTRY!BX50="","",SEM1MARKENTRY!BX50) -> 3 | W52: =IF(SEM1MARKENTRY!CE50="","",SEM1MARKENTRY!CE50) -> 3 | X52: =IF(SEM1MARKENTRY!CG50="","",SEM1MARKENTRY!CG50) -> 15 | Y52: 21 | Z52: =IF(SEM1MARKENTRY!CN50="","",SEM1MARKENTRY!CN50) -> 6 | AA52: =IF(SEM1MARKENTRY!CU50="","",SEM1MARKENTRY!CU50) -> 6 | AB52: =IF(SEM1MARKENTRY!CW50="","",SEM1MARKENTRY!CW50) -> 9 | AC52: 21 | AD52: =IF(SEM1MARKENTRY!DD50="","",SEM1MARKENTRY!DD50) -> 7 | AE52: =IF(SEM1MARKENTRY!DK50="","",SEM1MARKENTRY!DK50) -> 3 | AF52: =IF(SEM1MARKENTRY!DM50="","",SEM1MARKENTRY!DM50) -> 7 | AG52: 17 | AH52: =IF(SEM1MARKENTRY!ED50="","",SEM1MARKENTRY!ED50) -> B | AI52: =IF(SEM1MARKENTRY!EU50="","",SEM1MARKENTRY!EU50) -> B+ | AJ52: =IF(SEM1MARKENTRY!FL50="","",SEM1MARKENTRY!FL50) ->  | AK52: =IF(SEM1MARKENTRY!GC50="","",SEM1MARKENTRY!GC50) -> B+ | AL52: 163 | AM52: P | AN52: 19 | AO52: 24 | AP52: 46.57 | BA52: 19 | BB52: 40 | BC52: RABARI VISHALKUMAR D. | BD52: 163 | BE52: 24 | BF52: 46.57
B53: =IF(SEM1MARKENTRY!B51="","",SEM1MARKENTRY!B51) -> 41 | C53: =IF(SEM1MARKENTRY!C51="","",SEM1MARKENTRY!C51) -> 41 | D53: =IF(StudentData!C51="","",(LEFT(TRIM(CLEAN(StudentData!C51)),SEARCH(" ",TRIM(CLEAN(StudentData!C51)),SEARCH(" ",TRIM(CLEAN(StudentData!C51)),1)+1)))&" "&LEFT(RIGHT(StudentData!C51,LEN(StudentData!C51)-SEARCH(" ",StudentData!C51,SEARCH(" ",StudentData!C51,SEARCH(" ",StudentData!C51,1)+1)-1)),1)&".") -> BHIMANI CHETANKUMAR N. | E53: =IF(SEM1MARKENTRY!E51="","",SEM1MARKENTRY!E51) ->  | F53: =IF(SEM1MARKENTRY!L51="","",SEM1MARKENTRY!L51) -> 4 | G53: =IF(SEM1MARKENTRY!S51="","",SEM1MARKENTRY!S51) -> 3 | H53: =IF(SEM1MARKENTRY!U51="","",SEM1MARKENTRY!U51) -> 10 | I53: 17 | J53: =IF(SEM1MARKENTRY!AB51="","",SEM1MARKENTRY!AB51) -> 2 | K53: =IF(SEM1MARKENTRY!AI51="","",SEM1MARKENTRY!AI51) -> 2 | L53: =IF(SEM1MARKENTRY!AK51="","",SEM1MARKENTRY!AK51) -> 5 | M53: 9 | N53: =IF(SEM1MARKENTRY!AR51="","",SEM1MARKENTRY!AR51) -> 2 | O53: =IF(SEM1MARKENTRY!AY51="","",SEM1MARKENTRY!AY51) -> 2 | P53: =IF(SEM1MARKENTRY!BA51="","",SEM1MARKENTRY!BA51) -> 8 | Q53: 12 | R53: =IF(SEM1MARKENTRY!BH51="","",SEM1MARKENTRY!BH51) -> 4 | S53: =IF(SEM1MARKENTRY!BO51="","",SEM1MARKENTRY!BO51) -> 5 | T53: =IF(SEM1MARKENTRY!BQ51="","",SEM1MARKENTRY!BQ51) -> 7 | U53: 16 | V53: =IF(SEM1MARKENTRY!BX51="","",SEM1MARKENTRY!BX51) -> 2 | W53: =IF(SEM1MARKENTRY!CE51="","",SEM1MARKENTRY!CE51) -> 2 | X53: =IF(SEM1MARKENTRY!CG51="","",SEM1MARKENTRY!CG51) -> 10 | Y53: 14 | Z53: =IF(SEM1MARKENTRY!CN51="","",SEM1MARKENTRY!CN51) -> 3 | AA53: =IF(SEM1MARKENTRY!CU51="","",SEM1MARKENTRY!CU51) -> 3 | AB53: =IF(SEM1MARKENTRY!CW51="","",SEM1MARKENTRY!CW51) -> 8 | AC53: 14 | AD53: =IF(SEM1MARKENTRY!DD51="","",SEM1MARKENTRY!DD51) -> 3 | AE53: =IF(SEM1MARKENTRY!DK51="","",SEM1MARKENTRY!DK51) -> 2 | AF53: =IF(SEM1MARKENTRY!DM51="","",SEM1MARKENTRY!DM51) -> 4 | AG53: 9 | AH53: =IF(SEM1MARKENTRY!ED51="","",SEM1MARKENTRY!ED51) -> C | AI53: =IF(SEM1MARKENTRY!EU51="","",SEM1MARKENTRY!EU51) -> E | AJ53: =IF(SEM1MARKENTRY!FL51="","",SEM1MARKENTRY!FL51) ->  | AK53: =IF(SEM1MARKENTRY!GC51="","",SEM1MARKENTRY!GC51) -> C | AL53: 91 | AM53: F | AN53: - | AO53: - | BB53: 41 | BC53: BHIMANI CHETANKUMAR N. | BD53: 91 | BE53: -
B54: =IF(SEM1MARKENTRY!B52="","",SEM1MARKENTRY!B52) -> 42 | C54: =IF(SEM1MARKENTRY!C52="","",SEM1MARKENTRY!C52) -> 42 | D54: =IF(StudentData!C52="","",(LEFT(TRIM(CLEAN(StudentData!C52)),SEARCH(" ",TRIM(CLEAN(StudentData!C52)),SEARCH(" ",TRIM(CLEAN(StudentData!C52)),1)+1)))&" "&LEFT(RIGHT(StudentData!C52,LEN(StudentData!C52)-SEARCH(" ",StudentData!C52,SEARCH(" ",StudentData!C52,SEARCH(" ",StudentData!C52,1)+1)-1)),1)&".") -> PARMAR AARYANSINH R. | E54: =IF(SEM1MARKENTRY!E52="","",SEM1MARKENTRY!E52) ->  | F54: =IF(SEM1MARKENTRY!L52="","",SEM1MARKENTRY!L52) -> 4 | G54: =IF(SEM1MARKENTRY!S52="","",SEM1MARKENTRY!S52) -> 4 | H54: =IF(SEM1MARKENTRY!U52="","",SEM1MARKENTRY!U52) -> 11 | I54: 19 | J54: =IF(SEM1MARKENTRY!AB52="","",SEM1MARKENTRY!AB52) -> 3 | K54: =IF(SEM1MARKENTRY!AI52="","",SEM1MARKENTRY!AI52) -> 3 | L54: =IF(SEM1MARKENTRY!AK52="","",SEM1MARKENTRY!AK52) -> 8 | M54: 14 | N54: =IF(SEM1MARKENTRY!AR52="","",SEM1MARKENTRY!AR52) -> 4 | O54: =IF(SEM1MARKENTRY!AY52="","",SEM1MARKENTRY!AY52) -> 1 | P54: =IF(SEM1MARKENTRY!BA52="","",SEM1MARKENTRY!BA52) -> 9 | Q54: 14 | R54: =IF(SEM1MARKENTRY!BH52="","",SEM1MARKENTRY!BH52) -> 4 | S54: =IF(SEM1MARKENTRY!BO52="","",SEM1MARKENTRY!BO52) -> 3 | T54: =IF(SEM1MARKENTRY!BQ52="","",SEM1MARKENTRY!BQ52) -> 11 | U54: 18 | V54: =IF(SEM1MARKENTRY!BX52="","",SEM1MARKENTRY!BX52) -> 1 | W54: =IF(SEM1MARKENTRY!CE52="","",SEM1MARKENTRY!CE52) -> 1 | X54: =IF(SEM1MARKENTRY!CG52="","",SEM1MARKENTRY!CG52) -> 11 | Y54: 13 | Z54: =IF(SEM1MARKENTRY!CN52="","",SEM1MARKENTRY!CN52) -> 4 | AA54: =IF(SEM1MARKENTRY!CU52="","",SEM1MARKENTRY!CU52) -> 5 | AB54: =IF(SEM1MARKENTRY!CW52="","",SEM1MARKENTRY!CW52) -> 6 | AC54: 15 | AD54: =IF(SEM1MARKENTRY!DD52="","",SEM1MARKENTRY!DD52) -> 4 | AE54: =IF(SEM1MARKENTRY!DK52="","",SEM1MARKENTRY!DK52) -> 1 | AF54: =IF(SEM1MARKENTRY!DM52="","",SEM1MARKENTRY!DM52) -> 4 | AG54: 9 | AH54: =IF(SEM1MARKENTRY!ED52="","",SEM1MARKENTRY!ED52) -> C | AI54: =IF(SEM1MARKENTRY!EU52="","",SEM1MARKENTRY!EU52) -> C | AJ54: =IF(SEM1MARKENTRY!FL52="","",SEM1MARKENTRY!FL52) ->  | AK54: =IF(SEM1MARKENTRY!GC52="","",SEM1MARKENTRY!GC52) -> C | AL54: 102 | AM54: F | AN54: - | AO54: - | BB54: 42 | BC54: PARMAR AARYANSINH R. | BD54: 102 | BE54: -
B55: =IF(SEM1MARKENTRY!B53="","",SEM1MARKENTRY!B53) -> 43 | C55: =IF(SEM1MARKENTRY!C53="","",SEM1MARKENTRY!C53) -> 43 | D55: =IF(StudentData!C53="","",(LEFT(TRIM(CLEAN(StudentData!C53)),SEARCH(" ",TRIM(CLEAN(StudentData!C53)),SEARCH(" ",TRIM(CLEAN(StudentData!C53)),1)+1)))&" "&LEFT(RIGHT(StudentData!C53,LEN(StudentData!C53)-SEARCH(" ",StudentData!C53,SEARCH(" ",StudentData!C53,SEARCH(" ",StudentData!C53,1)+1)-1)),1)&".") -> SADHU JAYESH J. | E55: =IF(SEM1MARKENTRY!E53="","",SEM1MARKENTRY!E53) ->  | F55: =IF(SEM1MARKENTRY!L53="","",SEM1MARKENTRY!L53) -> 5 | G55: =IF(SEM1MARKENTRY!S53="","",SEM1MARKENTRY!S53) -> 6 | H55: =IF(SEM1MARKENTRY!U53="","",SEM1MARKENTRY!U53) -> 12 | I55: 23 | J55: =IF(SEM1MARKENTRY!AB53="","",SEM1MARKENTRY!AB53) -> 5 | K55: =IF(SEM1MARKENTRY!AI53="","",SEM1MARKENTRY!AI53) -> 4 | L55: =IF(SEM1MARKENTRY!AK53="","",SEM1MARKENTRY!AK53) -> 13 | M55: 22 | N55: =IF(SEM1MARKENTRY!AR53="","",SEM1MARKENTRY!AR53) -> 3 | O55: =IF(SEM1MARKENTRY!AY53="","",SEM1MARKENTRY!AY53) -> 4 | P55: =IF(SEM1MARKENTRY!BA53="","",SEM1MARKENTRY!BA53) -> 11 | Q55: 18 | R55: =IF(SEM1MARKENTRY!BH53="","",SEM1MARKENTRY!BH53) -> 4 | S55: =IF(SEM1MARKENTRY!BO53="","",SEM1MARKENTRY!BO53) -> 4 | T55: =IF(SEM1MARKENTRY!BQ53="","",SEM1MARKENTRY!BQ53) -> 8 | U55: 16 | V55: =IF(SEM1MARKENTRY!BX53="","",SEM1MARKENTRY!BX53) -> 4 | W55: =IF(SEM1MARKENTRY!CE53="","",SEM1MARKENTRY!CE53) -> 4 | X55: =IF(SEM1MARKENTRY!CG53="","",SEM1MARKENTRY!CG53) -> 10 | Y55: 18 | Z55: =IF(SEM1MARKENTRY!CN53="","",SEM1MARKENTRY!CN53) -> 4 | AA55: =IF(SEM1MARKENTRY!CU53="","",SEM1MARKENTRY!CU53) -> 4 | AB55: =IF(SEM1MARKENTRY!CW53="","",SEM1MARKENTRY!CW53) -> 7 | AC55: 15 | AD55: =IF(SEM1MARKENTRY!DD53="","",SEM1MARKENTRY!DD53) -> 3 | AE55: =IF(SEM1MARKENTRY!DK53="","",SEM1MARKENTRY!DK53) -> 4 | AF55: =IF(SEM1MARKENTRY!DM53="","",SEM1MARKENTRY!DM53) -> 10 | AG55: 17 | AH55: =IF(SEM1MARKENTRY!ED53="","",SEM1MARKENTRY!ED53) -> E | AI55: =IF(SEM1MARKENTRY!EU53="","",SEM1MARKENTRY!EU53) -> C | AJ55: =IF(SEM1MARKENTRY!FL53="","",SEM1MARKENTRY!FL53) ->  | AK55: =IF(SEM1MARKENTRY!GC53="","",SEM1MARKENTRY!GC53) -> B | AL55: 129 | AM55: F | AN55: - | AO55: - | BB55: 43 | BC55: SADHU JAYESH J. | BD55: 129 | BE55: -
